{"text_format":"1","workbook":"xlsx","n_sheets":4,"sheets":["サマリーp1(ボタン付き) (2)","サマリーp2","台帳","group疾患名リスト"],"not_rendered":{"charts":0,"images":0,"macros":1,"external_links":1,"defined_names":48,"comments":0,"pivot_tables":0},"unopened":[],"bounds":{"document_bytes":16777216,"sheet_cells":100000,"rows_first":2000,"rows_last":500,"rows_between":2000,"halvings":0,"cell_chars":16384,"cell_head_chars":4096},"cells_cut":0,"cells_raw":0,"read":"whole","date_system":"1900"}

{"sheet":"サマリーp1(ボタン付き) (2)","index":0,"n_rows":77,"n_cols":19,"rows_kept":77,"cut":false,"hidden":false,"merged":[[9,9,9,10],[11,9,11,10],[59,0,60,0],[59,5,59,6],[59,9,59,10],[11,2,11,4],[11,7,12,8],[13,9,13,10],[15,1,15,10],[23,1,23,10],[21,2,21,6],[64,5,65,10],[25,1,25,10],[29,9,29,10],[30,9,30,10],[31,9,31,10],[32,9,32,10],[33,9,37,10],[41,1,41,10],[53,1,53,10],[45,6,45,10],[47,6,47,10],[49,4,49,10],[51,4,51,10],[7,1,7,2],[7,5,7,6],[7,9,7,10],[0,1,1,5],[3,9,3,10],[5,1,5,3],[5,6,5,7],[5,9,5,10]]}
[null,"治療のまとめ",null,null,null,null,null,"〜長期フォローアップのために〜"]
[null,null,null,null,null,null,null,"JCCG(長期フォローアップ委員会）",null,null,"ver.4.2"]
[]
["氏名",null,"性別",null,null,"カルテ番号",null,null,"生年月日",null,null,null,null,null,"男","女"]
[]
["治療病院",null,null,null,null,"病院の電話番号",null,null,"担当医"]
[]
["診断名",null,null,null,"原発部位",null,null,null,"病期・リスク分類"]
[]
["診断日",null,null,"治療開始日",null,null,null,null,"治療終了日"]
[]
["診断時年齢",{"$f":"IF(AND(J4>0,B10>0)=TRUE,DATEDIF(J4,B10,\"Y\")&\"歳\"&DATEDIF(J4,B10,\"YM\")&\"カ月\",\"\")","v":""},"治療終了時年齢",null,null,{"$f":"IF(AND(J4>0,J10>0)=TRUE,DATEDIF(J4,J10,\"Y\")&\"歳\"&DATEDIF(J4,J10,\"YM\")&\"カ月\",\"\")","v":""},null,"まとめ作成時の本人への病名開示状況",null,null,null,null,null,null,"開示せず","病名のみ","予後・合併症も"]
[]
["発病前の基礎疾患",null,"再発",null,null,"→　ありなら",null,"回","再発部位"]
[]
["病歴概要",null,null,null,null,null,null,null,null,null,null,null,null,null,"骨髄","中枢神経","肝臓","腎臓","肺"]
[]
[]
[]
["グループ名","疾患名","プロトコール名",null,null,null,null,"治療期間",null,"〜"]
[]
["JPLSG","ALL","ALL-T11 HR L-asp中止例　10歳未満"]
[]
["治療内容"]
[]
["治療内容"]
[]
[]
["化学療法薬剤（移植前処置も含む）"]
["投与薬剤名","薬剤の総量",null,"参考量",null,"投与薬剤名","薬剤の総量",null,"参考量","治療中非血液学的合併症"]
[null,180,"mg/㎡",{"$f":"IFERROR(VLOOKUP(C22,台帳!A3:DF382,25,0),\"\")","v":180},null,null,27,"mg/㎡",{"$f":"IFERROR(VLOOKUP(C22,台帳!A3:DF382,48,0),\"\")","v":27},"（原則JCOG/JSCO Grade3以上)"]
[null,120,"mg/㎡",{"$f":"IFERROR(VLOOKUP(C22,台帳!A3:DF382,6,0),\"\")","v":120},null,null,0,"U/㎡",{"$f":"IFERROR(VLOOKUP(C22,台帳!A3:DF382,35,0),\"\")","v":0}]
[null,0,"mg/㎡",{"$f":"IFERROR(VLOOKUP(C22,台帳!A3:DF382,46,0),\"\")","v":0},null,null,5000,"mg/㎡",{"$f":"IFERROR(VLOOKUP(C22,台帳!A3:DF382,19,0),\"\")","v":5000},"その他化学量表中の合併症"]
[null,0,"mg/㎡",{"$f":"IFERROR(VLOOKUP(C22,台帳!A3:DF382,38,0),\"\")","v":0},null,null,8000,"g/㎡",{"$f":"IFERROR(VLOOKUP(C22,台帳!A3:DF382,33,0),\"\")","v":8000}]
[null,0,"mg/㎡",{"$f":"IFERROR(VLOOKUP(C22,台帳!A3:DF382,30,0),\"\")","v":0},null,null,0,"mg/㎡",{"$f":"IFERROR(VLOOKUP(C22,台帳!A3:DF382,17,0),\"\")","v":0}]
[null,20,"g/㎡",{"$f":"IFERROR(VLOOKUP(C22,台帳!A3:DF382,41,0),\"\")","v":20},null,null,0,"mg/㎡",{"$f":"IFERROR(VLOOKUP(C22,台帳!A3:DF382,15,0),\"\")","v":0}]
[null,1000,"mg/㎡",{"$f":"IFERROR(VLOOKUP(C22,台帳!A3:DF382,52,0),\"\")","v":1000},null,null,26,"mg/㎡",{"$f":"IFERROR(VLOOKUP(C22,台帳!A3:DF382,7,0),\"\")","v":26}]
[null,315,"mg/㎡",{"$f":"IFERROR(VLOOKUP(C22,台帳!A3:DF382,44,0),\"\")","v":315},null,null,0,"mg/㎡",{"$f":"IFERROR(VLOOKUP(C22,台帳!A3:DF382,21,0),\"\")","v":0}]
[null,1252,"mg/㎡",{"$f":"IFERROR(VLOOKUP(C22,台帳!A3:DF382,23,0),\"\")","v":1252},null,null,0,"U/㎡",{"$f":"IFERROR(VLOOKUP(C22,台帳!A3:DF382,10,0),\"\")","v":0}]
[null,20,"回",{"$f":"IFERROR(VLOOKUP(C22,台帳!A3:DF382,80,0),\"\")","v":20},null,null,null,"アンスラ換算量",{"$f":"B31*0.83+B32+B33*0.6+B34*4+B35*5","v":269.39999999999998},"mg/㎡"]
[]
["その他の化学療法"]
[]
[]
[]
["手術療法",null,null,null,null,"手術を行った病院"]
[]
["担当医",null,null,null,null,"連絡先"]
[]
["手術日１",null,null,"手術術式１"]
[]
["手術日2",null,null,"手術術式2"]
[]
["合併症他"]
[]
[]
[]
["輸血",null,null,"最終輸血日",null,null,null,"HB抗原",null,"HCV抗体",null,null,null,null,"(+)","(-)","不明"]
[]
["輸血後感染への治療",null,null,"内容と時期",null,null,null,null,"その他の問題点"]
[]
[]
[]
[]
["その他治療",null,null,"治療内容"]
[]
[]
[]
[null,null,"mg/㎡",null,null,null,null,"施行",null,"あり"]
[null,null,"g/㎡",null,null,null,null,"なし",null,"なし"]
[null,null,"mg/kg",null,null,null,null,"X線",null,"不明"]
[null,null,"g/kg",null,null,null,null,"電子線"]
[null,null,"U/㎡",null,null,null,null,"陽子線"]
[null,null,null,null,null,null,null,"重粒子線"]
[null,null,null,null,null,null,null,"小線源治療"]
[null,null,null,null,null,null,null,"定位照射"]
[null,null,null,null,null,null,null,"IMRT"]

{"sheet":"サマリーp2","index":1,"n_rows":78,"n_cols":21,"rows_kept":78,"cut":false,"hidden":false,"merged":[[15,5,15,9],[15,13,15,16],[17,4,17,16],[1,9,1,11],[56,4,56,6],[56,8,56,9],[56,12,56,13],[56,15,56,16],[3,13,11,16],[21,9,21,12],[21,15,21,16],[23,4,23,11],[23,15,23,16],[13,6,13,8],[25,4,25,9],[25,15,25,16],[77,4,77,8],[77,12,77,13],[75,4,75,16],[68,12,68,13],[68,15,68,16],[70,12,70,13],[70,15,70,16],[72,12,72,13],[72,15,72,16],[70,4,70,6],[72,4,72,6],[70,8,70,9],[72,8,72,9],[62,12,62,13],[62,15,62,16],[64,12,64,13],[64,15,64,16],[66,12,66,13],[66,15,66,16],[58,12,58,13],[58,15,58,16],[60,12,60,13],[60,15,60,16],[68,4,68,6],[58,8,58,9],[60,8,60,9],[62,8,62,9],[64,8,64,9],[66,8,66,9],[68,8,68,9],[58,4,58,6],[60,4,60,6],[62,4,62,6],[64,4,64,6],[66,4,66,6],[52,15,52,16],[27,4,27,8],[29,4,29,9],[27,15,27,16],[29,13,29,16],[31,13,31,16],[33,13,33,16],[31,11,32,12],[37,15,37,16],[39,2,39,4],[39,6,39,16],[46,4,46,16],[52,6,52,9],[52,11,52,13]]}
[]
[null,null,"放射線療法（移植前の全身照射も含む）",null,null,null,null,null,null,"施行　　　   なし",null,null,null,"今まで照射を受けている部位・臓器",null,null,null,null,null,"照射",0]
[]
[null,null,"放射線部位",null,"放射線開始日",null,"線種・技術",null,"総線量",null,null,"分割"]
[]
[null,null,null,null,null,null,null,null,null,"Gy",null,null,"回"]
[]
[null,null,null,null,null,null,null,null,null,"Gy",null,null,"回"]
[]
[null,null,null,null,null,null,null,null,null,"Gy",null,null,"回"]
[]
[null,null,null,null,null,null,null,null,null,"Gy",null,null,"回"]
[]
[null,null,"TBIにおける遮蔽・減衰",null,null,null,"     有　　  無　　  不明",null,null,"遮蔽部位",null,null,null,null,null,"⇒その他",null,null,null,"遮蔽",1]
[]
[null,null,"放射線治療部署連絡先",null,null,null,null,null,null,null,null,null,"治療施設名"]
[]
[null,null,"問題点・合併症"]
[]
[]
[]
[null,null,null,"造血幹細胞移植",null,null,null,null,"実施病院",null,null,null,null,"移植回数",null,null,null,null,null,"移植",0]
[]
[null,null,"移植ドナー",null,"　　血縁　　    非血縁　　   自家　  　  ハプロ　　    その他",null,null,null,null,null,null,null,null,"最終移植日",null,null,null,null,null,"回数",0]
[]
[null,null,"HLA一致",null,"　　 6/6　  　5/6　   　4/6  　  　3/6　 　  その他",null,null,null,null,null,null,null,null,"急性GVHD",null,"なし 　　Grade I/II　　Grade III/IV",null,null,null,"aGVHD",0]
[]
[null,null,"移植ソース",null,"　　骨髄　　    末梢血　    　臍帯血",null,null,null,null,null,null,null,null,"慢性GVHD",null,"なし  　　　　限局型　 　　全身型",null,null,null,"cGVHD",0]
[]
[null,null,"前処置強度",null,"     骨髄破壊的　  　骨髄非破壊的　  　 他",null,null,null,null,null,null,null,"GVHD内容"]
[]
[null,null,"前処置内容",null,null,null,null,null,null,null,null,"投与継続中　　　免疫抑制剤"]
[]
[null,null,null,null,null,null,null,null,null,null,null,null,"その他の合併症"]
[]
[]
[]
[null,null,"最近測定した身長",null,null,null,"cm　　体重",null,null,"kg",null,"BMI",{"$f":"IFERROR(I38/(POWER((E38/100),2)), \"\")","v":""},"日付"]
[]
[null,null,"記載時点での服用中の薬剤　　　（除免疫抑制剤）"]
[]
[null,null,"記載時点で認められる合併症"]
[]
[]
[]
[]
[null,null,"合併症の詳細"]
[]
[]
[]
[null,null,null,"推奨するFU検査",null,null,"血液検査",null,null,null,null,"画像検査",null,null,null,"その他の検査"]
[]
[]
[]
[]
[]
[null,null,"長期FU計画",null,"検査項目",null,null,null,"追跡期間・間隔",null,null,null,"検査項目",null,null,"追跡期間・間隔"]
[]
[null,null,"循環器",null,null,null,null,null,null,null,null,"腎･泌尿器"]
[]
[null,null,"呼吸器",null,null,null,null,null,null,null,null,"骨･軟部"]
[]
[null,null,"内分泌",null,null,null,null,null,null,null,null,"皮膚"]
[]
[null,null,"低身長",null,null,null,null,null,null,null,null,"神経"]
[]
[null,null,"代謝系",null,null,null,null,null,null,null,null,"心理"]
[]
[null,null,"免疫",null,null,null,null,null,null,null,null,"視覚"]
[]
[null,null,"消化管",null,null,null,null,null,null,null,null,"聴覚"]
[]
[null,null,"肝胆膵",null,null,null,null,null,null,null,null,"その他"]
[]
[]
[null,null,"まとめ作成時備考"]
[]
[null,null,"記載医師名",null,null,null,null,null,null,null,null,"電話番号",null,null,null,"記載日"]

{"sheet":"台帳","index":2,"n_rows":382,"n_cols":110,"rows_kept":382,"cut":false,"hidden":false,"merged":[]}
["プロトコール名","5FU総量","6MP総量","ACNU総量","ActD総量","ADR総量","AraC総量","AraC単位","BHAC総量","BLM総量","BLM単位","BM","BU総量","BU単位","CBDCA総量","CBDCA単位","CDDP総量","CDDP単位","CPM総量","CPM単位","CPT11総量","CPT11単位","DEX総量","DEX単位","DNR総量","DNR単位","DTIC総量","DXR単位","HU総量","IDA総量","IDA単位","IFN総量","IFO総量","IFO単位","L-asp総量","L-PAM総量","LAsp単位","Mit総量","Mit単位","MTXpo総量","MTX総量","MTX単位","PCZ総量","PSL総量","PSL単位","THP総量","THP単位","VCR総量","VCR単位","VDS総量","VLB総量","VP16総量","VP16有無","VPpo総量","VP単位","アーム","アルキル化剤有無","アンスラ換算量","アンスラ有無","ステロイド長期有無","その他","その他記入","タンデム","プロトコール名2","移植ﾄﾞﾅｰ","移植源","化学療法","化学療法の内容２","化学療法の内容3","化学療法薬剤","原発部位","採血特殊項目","氏名","治療内容","治療変更備考","手術術式1","手術術式2","手術療法","診断名","髄注回数","髄注回数2","線量１","線量2","線量3","線量4","前処置","前処置強度","造血幹細胞移植","短縮版薬剤名1","短縮版薬剤名2","白金有無","備考","病期・リスク分類","分割1","分割2","分割3","分割4","放射線-方法1","放射線-方法2","放射線-方法3","放射線-方法4","放射線部位1","放射線部位2","放射線部位3","放射線部位4","放射線療法","免疫療法","免疫療法の内容","薬剤の総量"]
[1,2,3,4,5,6,7,8,9,10,11,12,13,14,15,16,17,18,19,20,21,22,23,24,25,26,27,28,29,30,31,32,33,34,35,36,37,38,39,40,41,42,43,44,45,46,47,48,49,50,51,52,53,54,55,56,57,58,59,60,61,62,63,64,65,66,67,68,69,70,71,72,73,74,75,76,77,78,79,80,81,82,83,84,85,86,87,88,89,90,91,92,93,94,95,96,97,98,99,100,101,102,103,104,105,106,107,108,109]
["TCCSG L81-10 Ⅰ-A",null,89250,null,null,null,null,null,null,null,null,null,null,null,null,null,null,null,4500,null,null,null,90,null,null,null,null,null,null,null,null,null,null,null,48000,null,null,null,null,2780,null,null,null,1890,null,null,null,7.5,null,null,null,null,null,null,null,null,null,null,null,null,null,null,null,null,null,null,null,"6MP\nVCR\nMTX po","VCR\nL-Asp\nCPM","CPM\nPSL\nDEX\nL-asp\n髄注",null,null,"1","化学療法\n放射線療法",null,null,null,null,"ALL",5,null,"24",null,null,null,null,null,null,"ビンクリスチン\nシクロホスファミド\nL-アスパラギナーゼ\n６MP\nメソトレキセート","プレドニゾロン\nデキサメサゾン\n髄腔内注射",null,null,null,null,null,null,null,null,null,null,null,"頭部",null,null,null,"施行",null,null,null,1]
["TCCSG L81-10 Ⅰ-B",null,89250,null,null,null,null,null,null,null,null,null,null,null,null,null,null,null,4500,null,null,null,90,null,null,null,null,null,null,null,null,null,null,null,48000,null,null,null,null,2960,null,null,null,1890,null,null,null,7.5,null,null,null,null,null,null,null,null,null,null,null,null,null,null,null,null,null,null,null,"VCR\n6MP\nMTX po","VCR\nL-Asp\nCPM","CPM\nPSL\nDEX\nL-asp\n髄注",null,null,"2","化学療法\n放射線療法",null,null,null,null,"ALL",5,null,"18",null,null,null,null,null,null,"ビンクリスチン\nシクロホスファミド\nL-アスパラギナーゼ\n６MP\nメソトレキセート","プレドニゾロン\nデキサメサゾン\n髄腔内注射",null,null,null,null,null,null,null,null,null,null,null,"頭",null,null,null,"施行",null,null,null,2]
["TCCSG L81-10 Ⅱ-1",null,89250,null,null,null,null,null,null,null,null,null,null,null,null,null,null,null,10500,null,null,null,700,null,300,null,null,null,null,null,null,null,null,null,48000,null,null,null,null,2540,null,null,null,1890,null,null,null,7.5,null,null,null,null,null,null,null,null,null,249,null,null,null,null,null,null,null,null,null,"6MP\nMTX po\nVCR","VCR\nL-Asp\nCPM","DNR\nCPM\nPSL\nDEX\nL-asp\n髄注",null,null,"3","化学療法\n放射線療法",null,null,null,null,"ALL",5,null,"24",null,null,null,null,null,null,"ビンクリスチン\nダウノルビシン\nシクロホスファミド\nL-アスパラギナーゼ\n６MP\nメソトレキセート","プレドニゾロン\nデキサメサゾン\n髄腔内注射",null,null,null,null,null,null,null,null,null,null,null,"頭",null,null,null,"施行",null,null,null,3]
["TCCSG L81-10 Ⅱ-2",null,89250,null,null,null,null,null,null,null,null,null,null,null,null,null,null,null,null,null,null,null,700,null,300,null,null,null,null,null,null,null,null,null,48000,null,null,null,null,2740,null,null,null,1890,null,null,null,7.5,null,null,null,null,null,null,null,null,null,249,null,null,null,null,null,null,null,null,null,"VCR\n6MP\nMTX po","VCR\nL-Asp","DNR\nDEX\nL-asp\nPSL\n髄注",null,null,"4","化学療法\n放射線療法",null,null,null,null,"ALL",5,null,"24",null,null,null,null,null,null,"ビンクリスチン\nダウノルビシン\nL-アスパラギナーゼ\n６MP\nメソトレキセート","プレドニゾロン\nデキサメサゾン\n髄腔内注射",null,null,null,null,null,null,null,null,null,null,null,"頭",null,null,null,"施行",null,null,null,4]
["TCCSG L84-11 SR-1",null,74340,null,null,null,null,null,null,null,null,null,null,null,null,null,null,null,null,null,null,null,588,null,null,null,null,null,null,null,null,null,null,null,48000,null,null,null,null,3480,2000,null,null,1890,null,null,null,13.5,null,null,null,null,null,null,null,null,null,null,null,null,null,null,null,null,null,null,null,"VCR\nMTX po\n6MP","VCR\nL-Asp","PSL\nDEX\nL-asp\nMTX iv(d)\n髄注",null,null,"5","化学療法\n放射線療法",null,null,null,null,"ALL",4,null,"18",null,null,null,null,null,null,"ビンクリスチン\nL-アスパラギナーゼ\n６MP\nメソトレキセート","プレドニゾロン\nデキサメサゾン\n髄腔内注射",null,null,null,null,null,null,null,null,null,null,null,"頭",null,null,null,"施行",null,null,null,5]
["TCCSG L84-11 SR-2",null,74340,null,null,null,null,null,null,null,null,null,null,null,null,null,null,null,null,null,null,null,588,null,null,null,null,null,null,null,null,null,null,null,48000,null,null,null,null,3480,2000,null,null,1890,null,null,null,13.5,null,null,null,null,null,null,null,null,null,null,null,null,null,null,null,null,null,null,null,"VCR\nMTX po\n6MP","VCR\nL-Asp","PSL\nDEX\nL-asp\nMTX iv(d)\n髄注",null,null,"6","化学療法\n放射線療法",null,null,null,null,"ALL",5,null,"18",null,null,null,null,null,null,"ビンクリスチン\nL-アスパラギナーゼ\n６MP\nメソトレキセート","プレドニゾロン\nデキサメサゾン\n髄腔内注射 （5回）",null,null,null,null,null,null,null,null,null,null,null,"頭",null,null,null,"施行",null,null,null,6]
["TCCSG L84-11 ＨR-１",null,55860,null,null,null,4000,null,1500,null,null,null,null,null,null,null,null,null,6800,null,null,null,924,null,180,null,null,null,null,null,null,null,null,null,96000,null,null,null,null,2100,1000,null,null,1890,null,null,null,31.5,null,null,null,null,null,null,null,null,null,149.4,null,null,null,"ACM 150",null,null,null,null,null,"VCR\nMTX po\n6MP\nAra-C\nBHAC\nその他","VCR\nL-Asp\nCPM\nその他","PSL\nDEX\nL-asp\nMTX iv(d)\nCPM\nDNR\n髄注",null,null,"7","化学療法\n放射線療法",null,null,null,null,"ALL",9,null,"24",null,null,null,null,null,null,"ビンクリスチン\nダウノルビシン\nシクロホスファミド\nL-アスパラギナーゼ\n６MP\nメソトレキセート","シタラビン\nBHAC\nアクラシノマイシン\nプレドニゾロン\nデキサメサゾン\n髄腔内注射（9回）",null,null,null,null,null,null,null,null,null,null,null,"頭",null,null,null,"施行",null,null,null,7]
["TCCSG L84-11 ＨR-2",null,53340,null,null,null,4000,null,1500,null,null,null,null,null,null,null,null,null,6000,null,null,null,840,null,180,null,null,null,null,null,null,null,null,null,96000,null,null,null,null,2160,2500,null,null,1890,null,null,null,28.5,null,null,null,null,null,null,null,null,null,149.4,null,null,null,"ACM 150",null,null,null,null,null,"VCR\nMTX po\n6MP\nAra-C\nBHAC\nその他","VCR\nL-Asp\nCPM\nAra-C\nその他","PSL\nDEX\nL-asp\nMTX iv(d)\nCPM\nDNR\n髄注",null,null,"8","化学療法\n放射線療法",null,null,null,null,"ALL",15,null,"24",null,null,null,null,null,null,"ビンクリスチン\nダウノルビシン\nシクロホスファミド\nL-アスパラギナーゼ\n６MP\nメソトレキセート","シタラビン\nBHAC\nアクラシノマイシン\nプレドニゾロン\nデキサメサゾン\n髄腔内注射",null,null,null,null,null,null,null,null,null,null,null,"頭",null,null,null,"施行",null,null,null,8]
["TCCSG L84-11 ＨEX",null,45360,null,null,100,1200,"mg/m2",1200,null,null,null,null,null,null,null,null,null,4000,"mg/m2",null,null,315,"mg/m2",75,"mg/m2",null,"mg/m2",null,null,null,null,null,null,78000,null,null,null,null,1995,null,null,null,4550,"mg/m2",null,null,24,null,null,null,null,null,null,null,null,null,162.25,null,null,null,null,null,null,null,null,null,"VCR\nMTX po\n6MP\nAra-C\nBHAC\nCPM","VCR\nL-Asp\nCPM\nAra-C","PSL\nDEX\nL-asp\nCPM\nDNR\nADR\n髄注\nDXR",null,null,"9","化学療法\n放射線療法",null,null,null,null,"ALL",17,null,"24",null,null,null,null,null,null,"ビンクリスチン\nダウノルビシン\nドキソルビシン\nシクロホスファミド\nL-アスパラギナーゼ\n６MP","メソトレキセート\nシタラビン\nBHAC\nプレドニゾロン\nデキサメサゾン\n髄腔内注射",null,null,null,null,null,null,null,null,null,null,null,"頭",null,null,null,"施行",null,null,null,9]
["TCCSG L89-12 SR(0Gy)",null,18270,null,null,100,900,null,400,null,null,null,null,null,null,null,null,null,null,null,null,null,84,null,null,null,null,null,null,null,null,null,null,null,94000,null,null,null,null,2025,9000,null,null,1890,null,100,null,10.5,null,null,null,900,null,null,null,null,null,160,null,null,null,"初期症状はＴＨＰ150",null,null,null,null,null,"VCR\nMTX po\n6MP\nAra-C\nBHAC","VCR\nL-Asp\nAra-C","PSL\nDEX\nL-asp\nMTX iv(d)\n髄注\nADR\nVP iv(d)\nTHP",null,null,"10","化学療法",null,null,null,null,"ALL",9,null,null,null,null,null,null,null,null,"ビンクリスチン\nピラルビシン\nドキソルビシン\nシクロホスファミド\nL-アスパラギナーゼ\n６MP","メソトレキセート\nシタラビン\nBHAC\nエトポシド (VP16)\nプレドニゾロン\nデキサメサゾン\n髄腔内注射",null,null,null,null,null,null,null,null,null,null,null,null,null,null,null,"なし",null,null,null,10]
["TCCSG L89-12 SR(18Gy)\n",null,18270,null,null,null,900,null,400,null,null,null,null,null,null,null,null,null,null,null,null,null,84,null,null,null,null,null,null,null,null,null,null,null,94000,null,null,null,null,2025,null,null,null,1890,null,100,null,10.5,null,null,null,900,null,null,null,null,null,60,null,null,null,"初期症状はTHP150",null,null,null,null,null,"VCR\nMTX po\n6MP\nAra-C\nBHAC","VCR\nL-Asp\nAra-C","PSL\nDEX\nL-asp\n髄注\nVP iv(d)\nTHP",null,null,"11","化学療法\n放射線療法",null,null,null,null,"ALL",9,null,"18",null,null,null,null,null,null,"ビンクリスチン\nピラルビシン\nL-アスパラギナーゼ\n６MP\nメソトレキセート\nシタラビン","BHAC\nエトポシド (VP16)\nプレドニゾロン\nデキサメサゾン\n髄腔内注射",null,null,null,null,null,null,null,null,null,null,null,"頭",null,null,null,"施行",null,null,null,11]
["TCCSG L89-12 IR\n",null,32760,null,null,null,1200,null,1200,null,null,null,null,null,null,null,null,null,3100,null,null,null,95,null,null,null,null,null,null,null,null,null,null,null,174000,null,null,null,null,1800,6000,null,null,3570,null,100,null,12,null,null,null,2400,null,null,null,null,null,92.4,null,null,null,"ACM 60\n初期症状はTHP150",null,null,null,null,null,"VCR\nMTX po\n6MP\nAra-C\nBHAC\nその他","VCR\nL-Asp\nCPM\nAra-C\nその他","PSL\nDEX\nL-asp\nCPM\n髄注\nMTX iv(d)\nVP iv(d)\nTHP",null,null,"12","化学療法\n放射線療法",null,null,null,null,"ALL",7,null,"18",null,null,null,null,null,null,"ビンクリスチン\nピラルビシン\nシクロホスファミド\nL-アスパラギナーゼ\n６MP\nエトポシド","メソトレキセート\nシタラビン\nBHAC\nアクラシノマイシン\nプレドニゾロン\nデキサメサゾン\n髄腔内注射",null,null,null,null,null,null,null,null,null,null,null,"頭",null,null,null,"施行",null,null,null,12]
["TCCSG L89-12 HR\n",null,28560,null,null,null,172000,null,1200,null,null,null,null,null,null,null,null,null,3600,null,null,null,105,null,null,null,null,null,null,null,null,null,null,null,180000,null,null,20,null,1600,6000,null,null,3810,null,120,null,12,null,null,null,2400,null,null,null,null,null,184.4,null,null,null,"mPSL 375\nACM 60\n初期症状はＴＨＰ180",null,null,null,null,null,"VCR\nAra-C\nBHAC\nMTX po\n6MP\nその他","VCR\nCPM\nL-Asp\nAra-C\nその他","PSL\nDEX\nL-asp\nCPM\nMit\nMTX iv(d)\nTHP\n髄注\nVP iv(d)",null,null,"13","化学療法\n放射線療法",null,null,null,null,"ALL",96,null,"18",null,null,null,null,null,null,"ビンクリスチン\nピラルビシン\nミトキサントロン\nシクロホスファミド\nL-アスパラギナーゼ\n６MP\nエトポシド","メソトレキセート\nシタラビン\nBHAC\nアクラシノマイシン\nプレドニゾロン\nデキサメサゾン\n髄腔内注射",null,null,null,null,null,null,null,null,null,null,null,"頭部",null,null,null,"施行",null,null,null,13]
["TCCSG L92-13SR",null,9360,null,null,null,6500,null,null,null,null,null,null,null,null,null,null,null,null,null,null,null,null,null,null,null,null,null,null,null,null,null,null,null,94000,null,null,20,null,650,6000,null,null,1890,null,80,null,105,null,null,null,null,null,null,null,null,null,128,null,null,null,"初期症例はTHP150",null,null,null,null,null,"VCR\nAra-C\nMTX po\n6MP","VCR\nL-Asp\nAra-C","PSL\nL-asp\nTHP\nMit\nMTX iv(d)\n髄注",null,null,"14","化学療法",null,null,null,null,"ALL",8,null,null,null,null,null,null,null,null,"ビンクリスチン\nピラルビシン\nミトキサントロン\nL-アスパラギナーゼ\n６MP\nメソトレキセート","シタラビン\nプレドニゾロン\n髄腔内注射",null,null,null,null,null,null,null,null,null,null,null,null,null,null,null,"なし",null,null,null,14]
["TCCSG L92-13 SR ※中間維持",null,7000,null,null,null,5500,null,null,null,null,null,null,null,null,null,null,null,null,null,null,null,null,null,null,null,null,null,null,null,null,null,null,null,94000,null,"U/m2",20,null,525,9000,null,null,2730,null,80,null,10.5,"mg/m2",null,null,null,null,null,null,null,null,128,"有",null,null,null,null,null,null,null,null,"VCR\nAra-C\n6MP\nMTX po","VCR\nL-Asp\nAra-C","THP\nMit\nMTX iv(d)\nPSL\nL-asp\n髄注",null,null,null,"化学療法",null,null,null,null,null,8,null,null,null,null,null,null,null,null,null,null,null,null,null,null,null,null,null,null,null,null,null,null,null,null,null,"なし",null,null,null,14]
["TCCSG L92-13HR(0Gy)\n",null,6440,null,null,null,9500,null,1200,null,null,null,null,null,null,null,null,null,1000,null,null,null,null,null,null,null,null,null,null,null,null,null,null,null,174000,null,null,20,null,400,6000,null,null,2730,null,100,null,10.5,null,null,null,1200,null,null,null,null,null,140,null,null,null,null,null,null,null,null,null,"VCR\nBHAC\nAra-C\nMTX po\n6MP","VCR\nL-Asp\nCPM\nAra-C","PSL\nL-asp\nCPM\nMit\nVP iv(d)\nMTX iv(d)\n髄注\nTHP",null,null,"15","化学療法\n放射線療法",null,null,null,null,"ALL",9,null,"１８",null,null,null,null,null,null,"ビンクリスチン\nピラルビシン\nミトキサントロン\nシクロホスファミド\nL-アスパラギナーゼ\n６MP\nエトポシド","メソトレキセート\nシタラビン\nBHAC\nプレドニゾロン\n髄腔内注射",null,null,null,null,null,null,null,null,null,null,null,"頭",null,null,null,"施行",null,null,null,15]
["TCCSG L92-HR(12/18y)",null,7280,null,null,null,9500,null,1200,null,null,null,null,null,null,null,null,null,1000,null,null,null,null,null,null,null,null,null,null,null,null,null,null,null,174000,null,null,20,null,400,null,null,null,2730,null,100,null,10.5,null,null,null,1200,null,null,null,null,null,140,null,null,null,null,null,null,null,null,null,"VCR\nAra-C\nMTX po\n6MP\nBHAC","VCR\nL-Asp\nCPM\nAra-C","PSL\nL-asp\nCPM\nMit\nVP iv(d)\n髄注\nTHP",null,null,"16","放射線療法\n化学療法",null,null,null,null,"ALL",10,null,"18",null,null,null,null,null,null,"ビンクリスチン\nピラルビシン\nミトキサントロン\nシクロホスファミド\nL-アスパラギナーゼ\n６MP\nエトポシド","メソトレキセート\nシタラビン\nBHAC\nプレドニゾロン\n髄腔内注射",null,null,null,null,null,null,null,null,null,null,null,"頭",null,null,null,"施行",null,null,null,16]
["TCCSG L92-13PH",null,5600,null,null,null,29500,null,1200,null,null,null,null,null,null,null,null,null,1000,null,null,null,null,null,null,null,null,null,null,null,null,null,null,null,192000,null,null,40,null,null,null,null,null,2730,null,100,null,10.5,null,null,null,1200,null,null,null,null,null,220,null,null,null,null,null,null,null,null,null,"VCR\nBHAC\nAra-C\n6MP","VCR\nL-Asp\nCPM\nAra-C","PSL\nL-asp\nCPM\nMit\n髄注\nVP iv(d)\nTHP",null,null,"17","化学療法\n放射線療法",null,null,null,null,"ALL",96,null,"18",null,null,null,null,null,null,"ビンクリスチン\nピラルビシン\nミトキサントロン\nシクロホスファミド\nL-アスパラギナーゼ\n６MP\nエトポシド","シタラビン\nBHAC\nプレドニゾロン\n髄腔内注射",null,null,null,null,null,null,null,null,null,null,null,"頭",null,null,null,"施行",null,null,null,17]
["TCCSG 95L-14SR(PSL)",null,7060,null,null,null,1875,"mg/m2",null,null,null,null,null,null,null,null,null,null,2000,"mg/m2",null,null,null,null,null,null,null,null,null,null,null,null,null,null,154000,null,"U/m2",null,null,null,10500,"mg/m2",null,3920,"mg/m2",100,"mg/m2",21,"mg/m2",null,null,null,null,null,null,null,null,60,null,null,null,"VCR 21 mg/m2, L-Asp 154000U/m2, 6MP維持療法前 2940mg/m2, 維持療法14720-22080mg/m2\nMTX 維持療法前 75mg/m2(PO),維持療法 650-1040mg/m2(IV),850-1020mg/m2(PO)",null,null,null,null,null,"VCR\nAra-C\n6MP\nCPM","VCR\nL-Asp\nCPM\nAra-C","PSL\nL-asp\nCPM\nTHP\nMTX iv(d)\n髄注",null,null,"18","化学療法",null,null,null,null,"ALL",11,null,null,null,null,null,null,null,null,"ビンクリスチン\nピラルビシン\nシクロホスファミド\nL-アスパラギナーゼ\n６MP\nメソトレキセート","シタラビン\nプレドニゾロン\n髄腔内注射　11回",null,null,null,null,null,null,null,null,null,null,null,null,null,null,null,"なし",null,null,null,18]
["TCCSG L95-14SR(Dex)",null,7060,null,null,null,1875,"mg/m2",null,null,null,null,null,null,null,null,null,null,2000,"mg/m2",null,null,560,"mg/m2",null,null,null,null,null,null,null,null,null,null,154000,null,"U/m2",null,null,null,10500,"mg/m2",null,180,"mg/m2",100,"mg/m2",21,"mg/m2",null,null,null,null,null,null,null,null,60,null,null,null,"VCR 21 mg/m2, L-Asp 154000U/m2, 6MP維持療法前 2940mg/m2, 維持療法14720-22080mg/m2\nMTX 維持療法前 75mg/m2(PO),維持療法 650-1040mg/m2(IV),850-1020mg/m2(PO)",null,null,null,null,null,"VCR\nAra-C\n6MP\nCPM","VCR\nL-Asp\nCPM\nAra-C","PSL\nL-asp\nCPM\nTHP\nMTX iv(d)\n髄注\nDEX",null,null,"19","化学療法",null,null,null,null,"ALL",11,null,null,null,null,null,null,null,null,"ビンクリスチン\nピラルビシン\nシクロホスファミド\nL-アスパラギナーゼ\n６MP\nメソトレキセート","シタラビン\nプレドニゾロン\nデキサメサゾン\n髄腔内注射　11回",null,null,null,null,null,null,null,null,null,null,null,null,null,null,null,"なし",null,null,null,19]
["TCCSG L95-14HR(0)(PSL)\n",null,0,null,null,null,10375,"mg/m2",null,null,null,null,null,null,null,null,null,null,4000,"mg/m2",null,null,null,null,null,null,null,null,null,null,null,null,null,null,141000,null,"U/m2",null,null,null,10000,"mg/m2",null,3360,"mg/m2",220,"mg/m2",21,"mg/m2",null,null,null,null,null,null,null,null,132,null,null,null,"6-MP維持療法前2600mg/m2,維持療法 14720/22080\nMTX 維持療法1500-2230mg/m2(PO)",null,null,null,null,null,"VCR\nAra-C\n6MP\nCPM","VCR\nL-Asp\nCPM\nAra-C","PSL\nL-asp\nCPM\nTHP\nMTX iv(d)\n髄注",null,null,"20","化学療法",null,null,null,"なし","ALL",8,null,null,null,null,null,null,null,null,"ビンクリスチン\nピラルビシン\nシクロホスファミド\nL-アスパラギナーゼ\n６MP\nメソトレキセート","シタラビン\nプレドニゾロン\n髄腔内注射　8回",null,null,null,null,null,null,null,null,null,null,null,null,null,null,null,"なし",null,null,null,20]
["TCCSG L95-14HR(0)(DEX)",null,0,null,null,null,10375,"mg/m2",null,null,null,null,null,null,null,null,null,null,4000,"mg/m2",null,null,476,"mg/m2",null,null,null,null,null,null,null,null,null,null,144000,null,"U/m2",null,null,null,10000,"mg/m2",null,180,"mg/m2",220,"mg/m2",21,"mg/m2",null,null,null,null,null,null,null,null,132,null,null,null,"6-MP維持療法前2600mg/m2,維持療法 14720/22080\nMTX 維持療法1500-2230mg/m2(PO)",null,null,null,null,null,"VCR\nAra-C\n6MP","VCR\nL-Asp\nCPM\nAra-C","PSL\nDEX\nL-asp\nCPM\nTHP\nMTX iv(d)\n髄注",null,null,"21","化学療法",null,null,null,null,"ALL",8,null,null,null,null,null,null,null,null,"ビンクリスチン\nピラルビシン\nシクロホスファミド\nL-アスパラギナーゼ\n６MP\nメソトレキセート","シタラビン\nプレドニゾロン\nデキサメサゾン\n髄腔内注射 8回",null,null,null,null,null,null,null,null,null,null,null,null,null,null,null,"なし",null,null,null,21]
["TCCSG L95-14HR(12/18)(PSL)",null,0,null,null,null,10375,"mg/m2",null,null,null,null,null,null,null,null,null,null,4000,"mg/m2",null,null,null,null,null,null,null,null,null,null,null,null,null,null,144000,null,"U/m2",null,null,0,1000,"mg/m2",null,3360,"mg/m2",220,"mg/m2",21,"mg/m2",null,null,null,null,null,null,null,null,132,null,null,null,"6MP 維持療法前3440mg/m2,維持療法 17360/26040\nMTX(po)  維持療法前 75mg/m2,維持療法 1550/2170",null,null,null,null,null,"VCR\nAra-C\nMTX po\n6MP\nCPM","VCR\nL-Asp\nCPM\nAra-C","PSL\nL-asp\nCPM\nTHP\nMTX iv(d)\n髄注",null,null,"22","化学療法\n放射線療法",null,null,null,null,"ALL",8,null,"18",null,null,null,null,null,null,"ビンクリスチン\nピラルビシン\nシクロホスファミド\nL-アスパラギナーゼ\n６MP\nメソトレキセート","シタラビン\nプレドニゾロン\n髄腔内注射",null,null,null,null,null,null,null,null,null,null,null,"頭",null,null,null,"施行",null,null,null,22]
["TCCSG L95-14HR(12/18)(DEX)",null,0,null,null,null,10375,"mg/m2",null,null,null,null,null,null,null,null,null,null,4000,"mg/m2",null,null,476,"mg/m2",null,null,null,null,null,null,null,null,null,null,144000,null,"U/m2",null,null,0,1000,"mg/m2",null,180,"mg/m2",220,"mg/m2",21,"mg/m2",null,null,null,null,null,null,null,null,132,null,null,null,"6MP 維持療法前3440mg/m2,維持療法 17360/26040\nMTX(po)  維持療法前 75mg/m2,維持療法 1550/2170",null,null,null,null,null,"VCR\nAra-C\nMTX po\n6MP\nCPM","VCR\nL-Asp\nCPM\nAra-C","PSL\nL-asp\nCPM\nTHP\nMTX iv(d)\n髄注\nDEX",null,null,"23","化学療法\n放射線療法",null,null,null,null,"ALL",8,null,"18",null,null,null,null,null,null,"ビンクリスチン\nピラルビシン\nシクロホスファミド\nL-アスパラギナーゼ\n６MP\nメソトレキセート","シタラビン\nプレドニゾロン\nデキサメサゾン\n髄腔内注射 8回",null,null,null,null,null,null,null,null,null,null,null,"頭",null,null,null,"施行",null,null,null,23]
["TCCSG L95-14neoHEX",null,0,null,null,200,57625,"mg/m2",null,null,null,null,null,null,null,null,null,null,4600,"mg/m2",null,null,84,"mg/m2",100,"mg/m2",null,"mg/m2",null,null,null,null,null,null,154000,null,"U/m2",null,null,0,1000,"mg/m2",null,2800,"mg/m2",null,null,22.5,"mg/m2",null,null,null,null,null,null,null,null,283,null,null,null,"6MP維持療法前　1760mg/m2,維持療法 15680-23520mg/m2\nMTX(po)  維持療法 1400-1680mg/m2\n",null,null,null,null,null,"VCR\nAra-C\nMTX po\n6MP\nCPM","VCR\nL-Asp\nCPM\nAra-C","PSL\nL-asp\nCPM\nMTX iv(d)\n髄注\nDEX\nDNR\nADR\nDXR",null,null,"24","化学療法\n放射線療法",null,null,null,null,"ALL",9,null,"18",null,null,null,null,null,null,"ダウノルビシン\nドキソルビシン\nシクロホスファミド\nメソトレキセート\nL-アスパラギナーゼ\nビンクリスチン","シタラビン\n6MP \nプレドニゾロン,デキサメサゾン\n髄腔内注射9回",null,null,null,null,null,null,null,null,null,null,null,"頭",null,null,null,"施行",null,null,null,24]
["TCCSG L95-14neoHEX(SCT)",null,1260,null,null,100,0,null,null,null,null,null,null,null,null,null,null,null,3600,"mg/m2",null,null,105,"mg/m2",100,"mg/m2",null,"mg/m2",null,null,null,null,null,null,142000,null,"U/m2",null,null,null,1000,"mg/m2",null,2070,"mg/m2",null,null,13.5,"mg/m2",null,null,null,null,null,null,null,null,183,null,null,null,"AraC\n33125/49125",null,null,null,null,null,"VCR\nAra-C\nMTX po\n6MP\nCPM","VCR\nL-Asp\nCPM\nAra-C","PSL\nL-asp\nCPM\nMTX iv(d)\n髄注\nDEX\nDNR\nADR\nDXR",null,null,"25","化学療法\n放射線療法\n造血細胞移植",null,null,null,null,"ALL",96,null,"18",null,null,null,null,null,"施行","ダウノルビシン\nドキソルビシン\nシクロホスファミド\nメソトレキセート\nL-アスパラギナーゼ\nビンクリスチン","シタラビン　33125/49125\n6MP \nMTX po 1625/2245\nプレドニゾロン\nデキサメサゾン\n髄腔内注射",null,null,null,null,null,null,null,null,null,null,null,"頭",null,null,null,"施行",null,null,null,25]
["TCCSG L99-15",null,0,null,null,null,1875,"mg/m2",null,null,null,null,null,null,null,null,null,null,2000,"mg/m2",null,null,null,null,100,null,null,null,null,null,null,null,null,null,138000,null,"U/m2",null,null,0,11420,null,null,5670,null,null,null,25.5,"mg/m2",null,null,null,null,null,null,null,null,83,null,null,null,"MTX(PO)2285/2000,6MX 30300/41080\n（再計算未着手）",null,null,null,null,null,"VCR\nAra-C\nMTX po\n6MP\nCPM","VCR\nL-Asp\nCPM\nAra-C","PSL\nL-asp\nDNR\nMTX iv(d)\n髄注\nCPM",null,null,"26","化学療法",null,null,null,null,"ALL",11,null,null,null,null,null,null,null,null,"ビンクリスチン\nダウノルビシン\nシクロホスファミド\nL-アスパラギナーゼ\n６MP","シタラビン\nメソトレキセート\nプレドニゾロン\n髄腔内注射",null,null,null,null,null,null,null,null,null,null,null,null,null,null,null,"なし",null,null,null,26]
["TCCSG L99-15SR(armX)",null,0,null,null,null,1875,"mg/m2",null,null,null,null,null,null,null,null,null,null,2000,"mg/m2",null,null,null,null,null,null,null,null,null,null,null,null,null,null,138000,null,"U/m2",null,null,0,10500,"mg/m2",null,4620,"mg/m2",100,"mg/m2",25.5,"mg/m2",null,null,null,null,null,null,null,null,60,null,null,null,"6MP 32060/46620, MTX((po)2675/3195\n",null,null,null,null,null,"VCR\nAra-C\n6MP\nMTX po\nCPM","VCR\nL-Asp\nCPM\nAra-C","PSL\nL-asp\nMTX iv(d)\n髄注\nCPM\nTHP",null,null,"27","化学療法",null,null,null,null,"ALL",11,null,null,null,null,null,null,null,null,"ビンクリスチン\nダウノルビシン\nシクロホスファミド\nL-アスパラギナーゼ\n６MP","シタラビン\nメソトレキセート\nプレドニゾロン\n髄腔内注射",null,null,null,null,null,null,null,null,null,null,null,null,null,null,null,"なし",null,null,null,27]
["TCCSG L99-15HR(armA,armX)",null,0,null,null,100,19100,"mg/m2",null,null,null,null,null,null,null,null,null,null,4000,"mg/m2",null,null,85,"mg/m2",100,"mg/m2",null,"mg/m2",null,null,null,null,null,null,164000,null,"U/m2",null,null,0,10000,"mg/m2",null,3220,"mg/m2",120,"mg/m2",22.5,"mg/m2",null,null,null,null,null,null,null,null,255,null,null,null,"MTX(po)700/840,6MP 13140/17060",null,null,null,null,null,"VCR\nAra-C\nMTX po\n6MP\nCPM","VCR\nL-Asp\nCPM","PSL\nDEX\nL-asp\nDNR\nADR\nTHP\nMTX iv(d)\n髄注\nCPM\nDXR",null,null,"28","化学療法",null,null,null,null,"ALL",10,null,null,null,null,null,null,null,null,"ビンクリスチン\nピラルビシン\nドキソルビシン\nダウノルビシン\nシクロホスファミド\nL-アスパラギナーゼ","６MP\nメソトレキセート\nシタラビン\nプレドニゾロン\nデキサメサゾン\n髄腔内注射",null,null,null,null,null,null,null,null,null,null,null,null,null,null,null,"なし",null,null,null,28]
["TCCSG L99-15HR(armA,armY)",null,0,null,null,100,19100,"mg/m2",null,null,null,null,null,null,null,null,null,null,5000,"mg/m2",null,null,84,"mg/m2",100,"mg/m2",null,"mg/m2",null,null,null,null,null,null,164000,null,"U/m2",null,null,0,10000,"mg/m2",null,3220,"mg/m2",120,"mg/m2",22.5,"mg/m2",null,null,null,null,null,null,null,null,255,null,null,null,"VCR 22.5mg/m2, L-asp 16.4万U/m2\nMTX(po) 1375/1650 ,6MP ",null,null,null,null,null,"VCR\nAra-C\nMTX po\n6MP\nCPM","VCR\nL-Asp\nCPM\nAra-C","PSL\nDEX\nL-asp\nDNR\nADR\nTHP\nMTX iv(d)\n髄注\nCPM\nDXR",null,null,"29","化学療法",null,null,null,null,"ALL",103,null,null,null,null,null,null,null,null,"ビンクリスチン\nピラルビシン\nドキソルビシン\nダウノルビシン\nシクロホスファミド\nL-アスパラギナーゼ","６MP\nメソトレキセート\nシタラビン\nプレドニゾロン\nデキサメサゾン\n髄腔内注射",null,null,null,null,null,null,null,null,null,null,null,null,null,null,null,"なし",null,null,null,29]
["TCCSG L99-15HR(armBarmX)",null,0,null,null,100,25500,"mg/m2",null,null,null,null,null,null,null,null,null,null,5000,"mg/m2",null,null,84,"mg/m2",100,"mg/m2",null,"mg/m2",null,null,null,null,null,null,154000,null,"U/m2",null,null,0,10000,"mg/m2",null,3220,"mg/m2",120,"mg/m2",22.5,"mg/m2",null,null,null,null,null,null,null,null,255,null,null,null,"MTX(po)700/840, 6MP  14360/18140",null,null,null,null,null,"VCR\nAra-C\nMTX po\n6MP\nCPM","VCR\nL-Asp\nCPM\nAra-C","PSL\nDEX\nL-asp\nDNR\nADR\nTHP\nMTX iv(d)\n髄注\nCPM\nDXR",null,null,"30","化学療法",null,null,null,null,"ALL",113,null,null,null,null,null,null,null,null,"ビンクリスチン\nピラルビシン\nドキソルビシン\nダウノルビシン\nシクロホスファミド\nL-アスパラギナーゼ","６MP\nメソトレキセート\nシタラビン\nプレドニゾロン\nデキサメサゾン\n髄腔内注射",null,null,null,null,null,null,null,null,null,null,null,null,null,null,null,"なし",null,null,null,30]
["TCCSG L99-15HR(armB,armY)",null,0,null,null,100,18625,"mg/m2",null,null,null,null,null,null,null,null,null,null,5000,"mg/m2",null,null,84,"mg/m2",100,"mg/m2",null,"mg/m2",null,null,null,null,null,null,164000,null,"U/m2",null,null,0,10000,"mg/m2",null,3220,"mg/m2",120,"mg/m2",22.5,"mg/m2",null,null,null,null,null,null,null,null,255,null,null,null,"MTX(po)1375/1650, 6MP 17800/25500",null,null,null,null,null,"VCR\nAra-C\nMTX po\n6MP\nCPM","VCR\nL-Asp\nCPM\nAra-C","PSL\nDEX\nL-asp\nDNR\nADR\nTHP\nMTX iv(d)\n髄注\nCPM\nDXR",null,null,"31","化学療法",null,null,null,null,"ALL",113,null,null,null,null,null,null,null,null,"ビンクリスチン\nピラルビシン\nドキソルビシン\nダウノルビシン\nシクロホスファミド\nL-アスパラギナーゼ","６MP\nメソトレキセート\nシタラビン\nプレドニゾロン\nデキサメサゾン\n髄腔内注射",null,null,null,null,null,null,null,null,null,null,null,null,null,null,null,"なし",null,null,null,31]
["TCCSG L99-15HEX",null,2100,null,null,null,125125,"mg/m2",null,null,null,null,null,null,null,null,null,null,5600,"mg/m2",null,null,null,null,100,"mg/m2",null,null,null,null,null,null,null,null,84000,null,"U/m2",40,"mg/m2",null,6000,"mg/m2",null,2100,"mg/m2",null,null,9,"mg/m2",null,null,2000,null,null,"mg/m2",null,null,243,null,null,null,"mPSL 1750",null,null,null,null,null,"VCR\nAra-C\n6MP\nCPM","VCR\nL-Asp\nCPM\nAra-C","PSL\nL-asp\nDNR\nMTX iv(d)\nMit\n髄注\nVP iv(d)\nCPM",null,null,"32","化学療法\n放射線療法",null,null,null,null,"ALL",1717,null,"18",null,null,null,null,null,null,"ビンクリスチン\nミトキサントロン\nダウノルビシン\nシクロホスファミド\nL-アスパラギナーゼ\nエトポシド","６MP\nメソトレキセート\nシタラビン\nプレドニゾロン\nデキサメサゾン\n髄腔内注射",null,null,null,null,null,null,null,null,null,null,null,"頭",null,null,null,"施行",null,null,null,32]
["TCCSG L99-15HEX(SCT)",null,1260,null,null,null,53125,"mg/m2",null,null,null,null,null,null,null,null,null,null,3600,"mg/m2",null,null,null,null,100,"mg/m2",null,null,null,null,null,null,null,null,64000,null,"U/m2",20,"mg/m2",null,null,null,null,2100,"mg/m2",null,null,7.5,"mg/m2",null,null,1000,null,null,"mg/m2",null,null,163,null,null,null,"VCR 7.5mg/m2, L-asp 6.4万U/m2\nｍｐSL　750\n",null,null,null,null,null,"VCR\nAra-C\n6MP\nCPM","VCR\nL-Asp\nCPM\nAra-C","PSL\nL-asp\nDNR\nMit\n髄注\nCPM\nVP iv(d)",null,null,"33","化学療法\n放射線療法\n造血細胞移植",null,null,null,null,"ALL",96,null,null,null,null,null,null,null,"施行","ビンクリスチン\nミトキサントロン\nダウノルビシン\nシクロホスファミド\nエトポシド\nL-アスパラギナーゼ","６MP\nメソトレキセート\nシタラビン\nプレドニゾロン\n髄腔内注射",null,null,null,null,null,null,null,null,null,null,null,null,null,null,null,"施行",null,null,null,33]
["TCCSG T-8801 StageⅠ，Ⅱ",null,21700,null,null,null,null,null,8400,null,null,null,null,null,null,null,null,null,null,null,null,null,null,null,null,null,null,null,null,null,null,null,null,null,80000,null,"U/m2",null,null,2480,5600,null,null,1120,null,null,null,6,"mg/m2",null,null,null,null,null,null,null,null,null,null,null,null,null,null,null,null,null,null,"VCR\nBHAC\nMTX po\n6MP","VCR\nL-Asp","PSL\nL-asp\nMTX iv(d)\n髄注",null,null,"34","化学療法",null,null,null,null,"NHL",10,null,null,null,null,null,null,null,null,"ビンクリスチン\nメソトレキセート\nプレドニゾロン\nL-アスパラギナーゼ\n6MP","BHAC\n髄腔内注射",null,null,null,null,null,null,null,null,null,null,null,null,null,null,null,"なし",null,null,null,34]
["TCCSG T-8801 StageⅢ，Ⅳ",null,38500,null,null,null,null,null,8400,null,null,null,null,null,null,null,null,null,null,null,null,null,null,null,null,null,null,null,null,null,null,null,null,null,80000,null,null,null,null,4400,null,null,null,1120,null,null,null,6,null,null,null,5600,null,null,null,null,null,null,null,null,null,null,null,null,null,null,null,"VCR\nBHAC\n6MP\nMTX po","VCR\nL-Asp","PSL\nL-asp\nVP iv(d)\n髄注",null,null,"35","化学療法\n放射線療法",null,null,null,null,"NHL",10,null,"18",null,null,null,null,null,null,"ビンクリスチン\nメソトレキセート\nプレドニゾロン\nL-アスパラギナーゼ\nエトポシド\n","BHAC\n6MP\n髄腔内注射",null,null,null,null,null,null,null,null,null,null,null,"頭部",null,null,null,"施行",null,null,null,35]
["TCCSG Modified  LSA2L2 StageI,Ⅲ",null,3400,660,null,null,8000,"mg/m2",null,null,null,null,null,null,null,null,null,null,7200,"mg/m2",null,null,null,null,570,"mg/m2",null,null,96000,null,null,null,null,null,84000,null,"U/m2",null,null,400,null,null,null,1680,"mg/m2",null,null,28,"mg/m2",null,null,null,null,null,null,null,null,473.1,null,null,null,"ACNU 660mg/m2, HU 9600mg/m2\n6MP+MTX po",null,null,null,null,null,"VCR\nAra-C\nHU\nMTX po\n6MP\nCPM","VCR\nL-Asp\nCPM\nAra-C","PSL\nL-asp\nCPM\nDNR\nACNU\n髄注",null,null,"36","化学療法",null,null,null,null,"NHL",25,null,null,null,null,null,null,null,null,"ビンクリスチン\nダウノルビシン\nメソトレキセート\nプレドニゾロン\nL-アスパラギナーゼ\nシクロホスファミド","BHAC\n6MP\nアクラシノマイシン\nシタラビン\nハイドロキシウレア\n髄腔内注射",null,null,null,null,null,null,null,null,null,null,null,null,null,null,null,"なし",null,null,null,36]
["TCCSG Modified LSA2L2 StageⅣ",null,4600,1020,null,null,11600,"mg/m2",null,null,null,null,null,null,null,null,null,null,10800,"mg/m2",null,null,null,null,840,"mg/m2",null,null,153600,null,null,null,null,null,84000,null,"U/m2",null,null,640,null,null,null,1680,"mg/m2",null,null,40,"mg/m2",null,null,null,null,null,null,null,null,697.2,null,null,null,"6MP 4600mg/m2, MTX 640mg/m2, HU 153600mg/m2, ACNU 1020mg/m2",null,null,null,null,null,"VCR\nAra-C\nHU\nMTX po\n6MP\nCPM","VCR\nL-Asp\nCPM","PSL\nL-asp\nCPM\nACNU\n髄注\nDNR",null,null,"37","化学療法",null,null,null,null,"NHL",37,null,null,null,null,null,null,null,null,"ダウノルビシン\nシクロホスファミド\nメソトレキセート\nL-アスパラギナーゼ\nビンクリスチン\nACNU","シタラビン\n6MP \nMTX \nプレドニゾロン\nハイドロキシウレア\n髄腔内注射",null,null,null,null,null,null,null,null,null,null,null,null,null,null,null,"なし",null,null,null,37]
["TCCSG B-8801　StageⅠ,Ⅱ",null,null,null,null,200,null,null,2400,null,null,null,null,null,null,null,null,null,6400,null,null,null,null,null,null,null,null,null,null,null,null,null,null,null,null,null,null,null,null,null,9000,null,null,4380,null,null,null,7.5,null,null,null,4400,null,null,null,null,null,200,null,null,null,null,null,null,null,null,null,"VCR\nBHAC","VCR\nCPM","PSL\nCPM\nADR\nMTX iv(d)\n髄注\nDXR",null,null,"38","化学療法",null,null,null,null,"NHL",9,null,null,null,null,null,null,null,null,"ビンクリスチン\nドキソルビシン\nメソトレキセート\nプレドニゾロン\nエトポシド","BHAC\n髄腔内注射",null,null,null,null,null,null,null,null,null,null,null,null,null,null,null,"なし",null,null,null,38]
["TCCSG B-8801 StageⅢ,Ⅳ",null,null,null,null,410,null,null,4800,null,null,null,null,null,null,null,null,null,6400,null,null,null,null,null,null,null,null,null,null,null,null,null,null,null,null,null,null,null,null,null,21000,null,null,9000,null,null,null,18,null,null,null,10000,null,null,null,null,null,410,null,null,null,null,null,null,null,null,null,"VCR\nBHAC\nPCZ\nMTX po","VCR\nCPM","PSL\nCPM\nADR\nVP iv(d)\nMTX iv(d)\n髄注\nDXR",null,null,"39","化学療法",null,null,null,null,"NHL",21,null,null,null,null,null,null,null,null,"ビンクリスチン\nドキソルビシン\nシクロホスファミド\nメソトレキセート\nエトポシド","プレドニゾロン\nプロカルバジン\nBHAC\n髄腔内注射",null,null,null,null,null,null,null,null,null,null,null,null,null,null,null,"なし",null,null,null,39]
["TCCSG T-8801  ※維持 ",null,null,null,null,null,null,null,2400,null,null,null,null,null,null,null,null,null,null,null,null,null,null,null,null,null,null,null,null,null,null,null,null,null,80000,null,"U/m2",null,null,null,null,null,null,1120,null,null,null,6,"mg/m2",null,null,1600,null,null,null,null,null,null,null,null,null,null,null,null,null,null,null,"VCR\nBHAC","VCR\nL-Asp","VP iv(d)\nPSL\nL-asp\n髄注",null,null,null,"化学療法",null,null,null,null,null,5,null,null,null,null,null,null,null,null,null,null,null,null,null,null,null,null,null,null,null,null,null,null,null,null,null,"なし",null,null,null,39]
["TCCSG B96-04　Group A",null,null,null,null,null,900,null,null,null,null,null,null,null,null,null,null,null,4000,null,null,null,null,null,null,null,null,null,null,null,null,null,null,null,null,null,null,null,null,null,6000,null,null,900,null,null,null,1.5,null,null,null,800,null,null,null,null,null,null,null,null,null,null,null,null,null,null,null,"VCR\nAra-C","VCR\nCPM\nAra-C","PSL\nCPM\nVP iv(d)\nMTX iv(d)\n髄注",null,null,"40","化学療法",null,null,null,null,"NHL",3,null,null,null,null,null,null,null,null,"ビンクリスチン\nシタラビン\nシクロホスファミド\nメソトレキセート\nエトポシド","プレドニゾロン\n髄腔内注射",null,null,null,null,null,null,null,null,null,null,null,null,null,null,null,"なし",null,null,null,40]
["TCCSG B96-04　Group B",null,null,null,null,null,2700,null,null,null,null,null,null,null,null,null,null,null,9400,null,null,null,null,null,null,null,null,null,null,null,null,null,null,null,null,null,null,null,null,null,9000,null,null,2100,null,null,null,4.5,null,null,null,1200,null,null,null,null,null,201,null,null,null,"EPI  300",null,null,null,null,null,"VCR\nAra-C","その他\nAra-C\nCPM\nVCR","PSL\nCPM\nVP iv(d)\nMTX iv(d)\n髄注",null,null,"41","化学療法",null,null,null,null,"NHL",7,null,null,null,null,null,null,null,null,"ビンクリスチン\nシタラビン\nシクロホスファミド\nメソトレキセート\nエトポシド","プレドニゾロン\n髄腔内注射",null,null,null,null,null,null,null,null,null,null,null,null,null,null,null,"なし",null,null,null,41]
["TCCSG B96-04　Group C",null,null,null,null,null,25800,null,null,null,null,null,null,null,null,null,null,null,9000,null,null,null,300,null,null,null,null,null,null,null,null,null,null,null,null,null,null,null,null,null,6000,null,null,420,null,null,null,3,null,null,null,1700,null,null,null,null,null,241.2,null,null,null,"EPI  360",null,null,null,null,null,"VCR\nAra-C","その他\nAra-C\nCPM\nVCR","PSL\nDEX\nCPM\nVP iv(d)\nMTX iv(d)\n髄注",null,null,"42","化学療法",null,null,null,null,"NHL",10,null,null,null,null,null,null,null,null,"ビンクリスチン\nシタラビン\nシクロホスファミド\nメソトレキセート\nエトポシド","プレドニゾロン\nデキサメサゾン\n髄腔内注射",null,null,null,null,null,null,null,null,null,null,null,null,null,null,null,"なし",null,null,null,42]
["TCCSG B96-04　Group D",null,null,null,null,null,26400,null,null,null,null,null,null,null,null,null,null,null,11400,null,null,null,350,null,null,null,null,null,null,null,null,null,null,null,null,null,null,null,null,null,9000,null,null,420,null,null,null,3,null,null,null,2100,null,null,null,null,null,375,null,null,null,"EPI  560",null,null,null,null,null,"VCR\nMTX po\nAra-C\nPCZ","VCR\nCPM\nAra-C\nその他","PSL\nDEX\nCPM\nVP iv(d)\nMTX iv(d)\n髄注",null,null,"43","化学療法\n放射線療法",null,null,null,null,"NHL",15,null,null,null,null,null,null,null,null,"ビンクリスチン\nシタラビン\nシクロホスファミド\nメソトレキセート\nエトポシド","プレドニゾロン\nデキサメサゾン\nプロカルバジン\n髄腔内注射",null,null,null,null,null,null,null,null,null,null,null,null,null,null,null,"施行",null,null,null,43]
["TCCSG T96-04 Stage1/2",null,36120,null,null,null,1875,null,null,null,null,null,null,null,null,null,null,null,3000,null,null,null,null,null,null,null,null,null,null,null,null,null,null,null,94000,null,null,null,null,2835,9000,null,null,2240,null,null,null,12,null,null,null,null,null,null,null,null,null,67,null,null,null,"EPI  100",null,null,null,null,null,"VCR\nAra-C\nMTX po\n6MP","VCR\nL-Asp\nCPM\nAra-C\nその他","PSL\nL-asp\nCPM\nMTX iv(d)\n髄注",null,null,"44","化学療法",null,null,null,null,"NHL",8,null,null,null,null,null,null,null,null,"ビンクリスチン\nシタラビン\nシクロホスファミド\nメソトレキセート\nL-アスパラギナーゼ","プレドニゾロン\n6MP\n髄腔内注射",null,null,null,null,null,null,null,null,null,null,null,null,null,null,null,"なし",null,null,null,44]
["TCCSG T96-04 Stage3/4",null,24440,null,null,300,41625,null,null,null,null,null,null,null,null,null,null,null,3400,null,null,null,null,null,null,null,null,null,null,null,null,null,null,null,174000,null,null,null,null,1890,10000,null,null,3940,null,null,null,22.5,null,null,null,null,null,null,null,null,null,300,null,null,null,null,null,null,null,null,null,"VCR\nAra-C\nMTX po\n6MP","L-Asp\nVCR\nCPM\nAra-C","PSL\nL-asp\nCPM\nADR\nMTX iv(d)\n髄注\nDXR",null,null,"45","化学療法\n放射線療法",null,null,null,null,"NHL",9,null,null,null,null,null,null,null,null,"ドキソルビシン\nシクロホスファミド\nメソトレキセート\nL-アスパラギナーゼ\nビンクリスチン\n","シタラビン\n6MP(メルカプトプリン）\nプレドニゾロン\n髄腔内注射",null,null,null,null,null,null,null,null,null,null,null,null,null,null,null,"施行",null,null,null,45]
["TCCSG B01-05 GroupA",null,null,null,null,null,900,"mg/m2",null,null,null,null,null,null,null,null,null,null,4000,"mg/m2",null,null,null,null,null,null,null,null,null,null,null,null,null,null,null,null,null,null,null,null,6000,"mg/m2",null,900,"mg/m2",null,null,1.5,"mg/m2",null,null,800,null,null,"mg/m2",null,null,0,null,null,null,"VCR 1.5mg/m2",null,null,null,null,null,"VCR\nAra-C\nCPM","VCR\nCPM\nAra-C","PSL\nCPM\nVP iv(d)\nMTX iv(d)\n髄注",null,null,"46","化学療法",null,null,null,null,"NHL",3,null,null,null,null,null,null,null,null,"シクロホスファミド\nメソトレキセート\nエトポシド\nビンクリスチン\nシタラビン","プレドニゾロン\n髄腔内注射",null,null,null,null,null,null,null,null,null,null,null,null,null,null,null,"なし",null,null,null,46]
["TCCSG B01-05 GroupB",null,null,null,null,null,2700,"mg/m2",null,null,null,null,null,null,null,null,null,null,9400,"mg/m2",null,null,null,null,null,null,null,null,null,null,null,null,null,null,null,null,null,null,null,null,9000,null,null,2100,null,null,null,4.5,"mg/m2",null,null,1200,null,null,null,null,null,0,null,null,null,"EPI  600, VCR 4.5mg/m2",null,null,null,null,null,"VCR\nAra-C\nCPM","VCR\nCPM\nAra-C\nその他","PSL\nCPM\nVP iv(d)\nMTX iv(d)\n髄注",null,null,"47","化学療法",null,null,null,null,"NHL",7,null,null,null,null,null,null,null,null,"シクロホスファミド\nメソトレキセート\nエトポシド\nビンクリスチン\nシタラビン","エピルビシン\nプレドニゾロン\n髄腔内注射",null,null,null,null,null,null,null,null,null,null,null,null,null,null,null,"なし",null,null,null,47]
["TCCSG B01-05 GroupC",null,null,null,null,null,15800,"mg/m2",null,null,null,null,null,null,null,null,null,null,9000,"mg/m2",null,null,null,null,null,null,null,null,null,null,null,null,null,null,null,null,null,null,null,null,6000,"mg/m2",null,2220,"mg/m2",null,null,3,"mg/m2",6,null,1900,null,null,"mg/m2",null,null,241.2,null,null,null,"EPI  360, VCR 3mg/m2, VDS 6mg/m2",null,null,null,null,null,"VCR\nVDS\nAra-C\nCPM","VCR\nCPM\nAra-C\nその他","PSL\nCPM\nVP iv(d)\nMTX iv(d)\n髄注",null,null,"48","化学療法",null,null,null,null,"NHL",10,null,null,null,null,null,null,null,null,"シクロホスファミド\nメソトレキセート\nエトポシド\nビンクリスチン\nシタラビン","フィルデシン\nエピルビシン\nプレドニゾロン\n髄腔内注射",null,null,null,null,null,null,null,null,null,null,null,null,null,null,null,"なし",null,null,null,48]
["TCCSG B01-05 GroupD",null,null,null,null,null,25800,"mg/m2",null,null,null,null,null,null,null,null,null,null,12600,"mg/m2",null,null,350,"mg/m2",null,null,null,null,null,null,null,null,null,null,null,null,null,null,null,null,6000,"mg/m2",null,420,"mg/m2",560,"mg/m2",4.5,"mg/m2",6,null,1900,null,null,"mg/m2",null,null,336,null,null,null,"EPI  560, VCR 3mg/m2, VDS 6mg/m2",null,null,null,null,null,"VCR\nVDS\nAra-C\nCPM","VCR\nCPM\nAra-C\nその他","PSL\nDEX\nCPM\nTHP\nVP iv(d)\nMTX iv(d)\n髄注",null,null,"49","化学療法\n放射線療法",null,null,null,null,"NHL",12,null,null,null,null,null,null,null,null,"シクロホスファミド\nメソトレキセート\nエトポシド\nビンクリスチン\nシタラビン","ピラルビシン\nフィルデシン\nエピルビシン\nプレドニゾロン\nデキサメサゾン\n髄腔内注射",null,null,null,null,null,null,null,null,null,null,null,null,null,null,null,"施行",null,null,null,49]
["TCCSG T01-05 T Ⅰ/Ⅱ\n",null,32480,null,null,null,1200,"mg/m2",null,null,null,null,null,null,null,null,null,null,2000,"mg/m2",null,null,null,null,120,"mg/m2",null,null,null,null,null,null,null,null,48000,null,"U/m2",null,null,1680,12000,"mg/m2",null,1680,"mg/m2",null,null,6,"mg/m2",null,null,null,null,null,null,null,null,99.6,null,null,null,null,null,null,null,null,null,"VCR\nMTX po\n6MP\nCPM\nAra-C","VCR\nL-Asp\nCPM\nAra-C","PSL\nL-asp\nCPM\nDNR\nMTX iv(d)\n髄注",null,null,"50","化学療法",null,null,null,null,"NHL",9,null,null,null,null,null,null,null,null,"シクロホスファミド\nメソトレキセート\nダウノルビシン\nビンクリスチン\n6MP(メルカプトプリン）","L-アスパラギナーゼ\nプレドニゾロン\n髄腔内注射",null,null,null,null,null,null,null,null,null,null,null,null,null,null,null,"なし",null,null,null,50]
["TCCSG T01-05TⅢ/Ⅳ",null,30195,null,null,null,1800,null,null,null,null,null,null,null,null,null,null,null,3000,"mg/m2",null,null,null,null,240,"mg/m2",null,null,null,null,null,null,null,null,88000,null,"U/m2",null,null,1500,12000,"mg/m2",null,3360,"mg/m2",null,null,12,"mg/m2",null,null,null,null,null,null,null,null,199.2,null,null,null,null,null,null,null,null,null,"VCR\nAra-C\nMTX po\n6MP\nCPM","VCR\nL-Asp\nCPM\nAra-C","PSL\nL-asp\nCPM\nDNR\nMTX iv(d)\n髄注",null,null,"51","化学療法\n放射線療法",null,null,null,null,"NHL",11,null,null,null,null,null,null,null,null,"シクロホスファミド\nメソトレキセート\nダウノルビシン\nビンクリスチン\n6MP(メルカプトプリン）","L-アスパラギナーゼ\nプレドニゾロン\nシタラビン\n髄腔内注射",null,null,null,null,null,null,null,null,null,null,null,"頭部",null,null,null,"施行",null,null,null,51]
["KPUM SLK 88",null,14,null,null,420,null,null,null,null,null,null,null,null,null,null,null,null,200,"mg/m2",null,null,null,null,null,null,null,"mg/m2",null,null,null,null,null,null,396000,null,"U/m2",null,null,null,75,"mg/m2",null,577,"mg/m2",null,null,1.85,"mg/m2",null,null,null,null,null,null,null,null,420,null,null,null,"維持療法 6MP,MTX 12mg/m2\n",null,null,null,null,null,"VCR\n6MP\nCPM","VCR\nL-Asp\nCPM","PSL\nL-asp\nCPM\nADR\nMTX iv(d)\n髄注\nDXR",null,null,"52","化学療法\n放射線療法",null,null,null,null,"ALL SR",7,null,"18",null,null,null,null,null,null,"ドキソルビシン\nシクロホスファミド\nメソトレキサート\nプレドニゾロン\nL-アスパラギナーゼ\nビンクリスチン","６ＭＰ\n2者髄注",null,null,null,null,null,null,null,null,null,null,null,"１．脳",null,null,null,"施行",null,null,null,52]
["KPUM SLK 02 M1,M2",null,1120,null,null,280,null,null,null,null,null,null,null,null,null,null,null,null,170,"mg/m2",null,null,null,null,null,null,null,"mg/m2",null,null,null,null,null,null,411000,null,"U/m2",null,null,null,6000,"mg/m2",null,505.25,"mg/m2",null,null,2.0499999999999998,"mg/m2",null,null,null,null,null,null,null,null,280,null,null,null,"DIT ×7　維持療法 6MP,MTX 12mg/m2\n",null,null,null,null,null,"VCR\n6MP\nCPM","VCR\nL-Asp\nCPM","PSL\nL-asp\nCPM\nADR\nMTX iv(d)\n髄注\nDXR",null,null,"53","化学療法",null,null,null,null,"ALL SR M1,M2",7,null,null,null,null,null,null,null,null,"ドキソルビシン\nシクロホスファミド\nメソトレキサート\nプレドニゾロン\nL-アスパラギナーゼ\nビンクリスチン","６ＭＰ\n2者髄注",null,null,null,null,null,null,null,null,null,null,null,null,null,null,null,"なし",null,null,null,53]
["KPUM SLK 02 M3",null,1120,null,null,280,600,"mg/m2",null,null,null,null,null,null,null,null,null,null,170,"mg/m2",null,null,16,"mg/m2",null,null,null,"mg/m2",null,null,null,null,null,null,411000,null,"U/m2",null,null,null,6000,"mg/m2",null,505.25,"mg/m2",null,null,2.0499999999999998,"mg/m2",null,null,600,null,null,"mg/m2",null,null,280,null,null,null,"MTX 12mg/m2,chemo  mPSL 16mg/kg\n維持療法 6MP",null,null,null,null,null,"VCR\n6MP\nAra-C\nCPM","VCR\nL-Asp\nCPM\nAra-C","PSL\nL-asp\nCPM\nADR\nMTX iv(d)\nVP iv(d)\n髄注\nDXR\nDEX",null,null,"54","化学療法",null,null,null,null,"ALL SR M3",8,null,null,null,null,null,null,null,null,null,null,null,null,null,null,null,null,null,null,null,null,null,null,null,null,null,"なし",null,null,null,54]
["KPUM TLK 88",null,588,null,null,420,null,null,null,null,null,null,null,null,null,null,null,null,360,"mg/m2",null,null,null,null,null,null,null,"mg/m2",null,null,null,null,null,null,351000,null,"U/m2",null,null,null,66,"mg/m2",null,415,"mg/m2",null,null,1.85,"mg/m2",null,null,null,null,null,null,null,null,420,null,null,null,"DIT 15 ALL 18 VCR\n維持療法 6MP,MTX 12mg/m2\nCNS+  CRT 18Gy",null,null,null,null,null,"VCR\n6MP\nCPM","VCR\nL-Asp\nCPM","PSL\nL-asp\nCPM\nADR\nMTX iv(d)\n髄注\nDXR","20000≦WBC<50000",null,"55","化学療法\n放射線療法",null,null,null,null,"T-ALL NHL-T",1518,null,"18",null,null,null,null,null,null,null,null,null,null,null,null,null,null,null,null,null,null,null,"１．脳",null,null,null,"施行",null,null,null,55]
["KPUM TLK 02 stage1～3",null,805,null,null,280,null,null,null,null,null,null,null,null,null,null,null,null,400,"mg/m2",null,null,null,null,null,null,null,"mg/m2",null,null,null,null,null,null,336000,null,"U/m2",null,null,null,9000,"mg/m2",null,395,"mg/m2",null,null,1.8,"mg/m2",null,null,null,null,null,null,null,null,280,null,null,null,"維持療法 6MP,MTX 12mg/m2\nALL≧6 year old or CNS3  \nCRT 18Gy + DIT 13 ",null,null,null,null,null,"VCR\n6MP\nCPM\nその他","VCR\nL-Asp\nCPM","PSL\nL-asp\nCPM\nADR\nMTX iv(d)\n髄注\nDXR",null,null,"56","化学療法\n放射線療法",null,null,null,null,"BCP-ALL,T-ALL,T-NHL",1013,null,null,null,null,null,null,null,null,null,null,null,null,null,null,null,null,null,null,null,null,null,null,null,null,null,null,null,null,null,56]
["KPUM TLK 02 ALL, stage4",null,805,null,null,280,null,null,null,null,null,null,null,null,null,null,null,null,400,"mg/m2",null,null,null,null,null,null,null,"mg/m2",null,null,null,null,null,null,306000,null,"U/m2",null,null,null,351,"mg/m2",null,387,"mg/m2",null,null,1.7,"mg/m2",null,null,null,null,null,null,null,null,280,null,null,null,"維持療法　6MP, MTX\nMTX 12mg/m2\nPSL 10mg",null,null,null,null,null,"VCR\n6MP\nCPM","VCR\nL-Asp\nCPM","PSL\nL-asp\nCPM\nADR\nMTX iv(d)\n髄注\nDXR",null,null,"57","化学療法",null,null,null,null,"ALL High risk",13,null,"18",null,null,null,null,null,null,null,null,null,null,null,null,null,null,null,null,null,null,null,"１．脳",null,null,null,"施行",null,null,null,57]
["KPUM HLK 88",null,1610,null,null,420,45,"mg/m2",null,null,null,null,null,null,null,null,null,null,620,"mg/m2",null,null,null,null,null,null,null,"mg/m2",null,null,null,null,null,null,555000,null,"U/m2",null,null,null,125,"mg/m2",null,609,"mg/m2",null,null,3.25,"mg/m2",null,null,null,null,null,null,null,null,420,null,null,null,"DIT 7 TIT 6, MTX 12mg/m2,\nALL+  CRT 18Gy  TIT →\nMTX 12mg/m2 PSL 10mgAraC 45mg/m2",null,null,null,null,null,"VCR\n6MP\nCPM\nAra-C","VCR\nL-Asp\nCPM\nAra-C","PSL\nL-asp\nCPM\nADR\nMTX iv(d)\n髄注\nDXR",null,null,"58","化学療法\n放射線療法",null,null,null,null,"ALL High risk",13,null,"18",null,null,null,null,null,null,null,null,null,null,null,null,null,null,null,null,null,null,null,"１．脳",null,null,null,"施行",null,null,null,58]
["KPUM HLK 92 VLP",null,924,null,null,420,600,"mg/m2",null,null,null,null,null,null,null,null,null,null,160,"mg/m2",null,null,null,null,null,null,null,"mg/m2",null,null,null,null,null,null,178000,null,"U/m2",null,null,null,30,"mg/m2",null,473,"mg/m2",null,null,1.35,"mg/m2",null,null,600,null,null,"mg/m2",null,null,420,null,null,null,"DIT 11 TIT 5\nMTX 12mg/m2\nPSL 10mg",null,null,null,null,null,"VCR\n6MP\nAra-C\nCPM","VCR\nL-Asp\nCPM\nAra-C","PSL\nL-asp\nCPM\nADR\nMTX iv(d)\nVP iv(d)\n髄注\nDXR",null,null,"59","化学療法\n放射線療法",null,null,null,null,"ALL High risk",16,null,"18",null,null,null,null,null,null,null,null,null,null,null,null,null,null,null,null,null,null,null,"１．脳",null,null,null,"施行",null,null,null,59]
["KPUM HLK 92 VAP",null,924,null,null,420,1800,"mg/m2",null,null,null,null,null,null,null,null,null,null,160,"mg/m2",null,null,null,null,null,null,null,"mg/m2",null,null,null,null,null,null,178000,null,"U/m2",null,null,null,30,"mg/m2",null,701,"mg/m2",null,null,1.25,"mg/m2",null,null,1800,null,null,"mg/m2",null,null,420,null,null,null,"DIT 11 TIT 5, VCR, 維持療法　6MP,MTX 12mg/m2\nALL+  CRT 18Gy  ",null,null,null,null,null,"VCR\n6MP\nAra-C\nCPM","VCR\nL-Asp\nCPM\nAra-C","PSL\nL-asp\nCPM\nADR\nMTX iv(d)\nVP iv(d)\n髄注\nDXR",null,null,"60","化学療法\n放射線療法",null,null,null,null,"ALL High risk",16,null,"18",null,null,null,null,null,null,null,null,null,null,null,null,null,null,null,null,null,null,null,"１．脳",null,null,null,"施行",null,null,null,60]
["KPUM HLK 03 non SCT",null,1008,null,null,400,900,"mg/m2",null,null,null,null,null,null,null,null,null,null,450,"mg/m2",null,null,100,"mg/m2",null,null,null,"mg/m2",null,null,null,null,null,null,251000,null,"U/m2",null,null,null,81,"mg/m2",null,724.5,"mg/m2",null,null,2.5499999999999998,"mg/m2",null,null,900,null,null,"mg/m2",null,null,400,null,null,null,"DIT 5 TIT 8, 維持療法 6MP, MTX\nALL+  CRT 18Gy  TIT →MTX 12mg/m2 PSL 10mgAraC 45mg/m2",null,null,null,null,null,"VCR\n6MP\nAra-C\nCPM","VCR\nL-Asp\nCPM\nAra-C","PSL\nL-asp\nCPM\nADR\nMTX iv(d)\nVP iv(d)\nDEX\n髄注\nDXR",null,null,"61","化学療法\n放射線療法",null,null,null,null,"ALL High risk",13,null,null,null,null,null,null,null,null,null,null,null,null,null,null,null,null,null,null,null,null,null,null,null,null,null,"なし",null,null,null,61]
["KPUM HLK03 SCT SCTあり",null,null,null,null,225,1500,"mg/m2",null,null,null,null,null,null,null,null,null,null,200,"mg/m2",null,null,100,"mg/m2",null,null,null,"mg/m2",null,null,null,null,null,null,42000,null,"U/m2",null,null,null,null,null,null,337.25,"mg/m2",null,null,0.3,"mg/kg",null,null,1400,null,null,"mg/m2",null,null,225,null,null,null,"TIT →MTX 12mg/m2 PSL 10mg,AraC ",null,null,null,null,"変更有","VCR 0.25 mg/kg (max 12mg)\nCPM 200 mg/kg\nPSL 126.25 mg/kg (max 4197.5mg)\nmPSL 32 mg/kg\nVCR\nAra-C\nCPM","VCR\nL-Asp\nCPM\nAra-C","L-asp\nVP iv(d)\nPSL\nDEX\n髄注\nADR\nDXR",null,null,null,"化学療法\n造血細胞移植",null,null,null,null,null,8,null,null,null,null,null,null,null,null,"ドキソルビシン\nメソトレキセート\nエトポシド\nL-アスパラギナーゼ","ビンクリスチン\nデキサメサゾン\nプレドニゾロン\nシタラビン\n髄腔内注射",null,null,null,null,null,null,null,null,null,null,null,null,null,null,null,"なし",null,null,null,62]
["KPUM HLK 03  SCT SCTあり",null,null,null,null,225,1500,"mg/m2",null,null,null,null,null,null,null,null,null,null,200,"mg/m2",null,null,100,"mg/m2",null,null,null,"mg/m2",null,null,null,null,null,null,42000,null,"U/m2",null,null,null,null,null,null,337.25,"mg/m2",null,null,0.3,"mg/kg",null,null,1400,null,null,"mg/m2",null,null,225,null,null,null,"TIT →MTX 12mg/m2 PSL 10mgAraC 45mg/m2\n",null,null,null,null,null,"VCR\nAra-C\nCPM","VCR\nL-Asp\nCPM","PSL\nL-asp\nCPM\nADR\nVP iv(d)\nDEX\n髄注\nDXR",null,null,"62","造血細胞移植\n化学療法\n放射線療法",null,null,null,null,"ALL High risk",8,null,null,null,null,null,null,null,null,null,null,null,null,null,null,null,null,null,null,null,null,null,null,null,null,null,null,null,null,null,62]
["KPUM HLK 03  SCT SCTなし",null,924,null,null,575,2100,"mg/m2",null,null,null,null,null,null,null,null,null,null,240,"mg/m2",null,null,100,"mg/m2",null,null,null,"mg/m2",null,null,null,null,null,null,192000,null,"U/m2",null,null,null,30,"mg/m2",null,685.25,"mg/m2",null,null,1.3,"mg/m2",null,null,2000,null,null,"mg/m2",null,null,575,null,null,null,"TIT 8, 維持療法6MP+MTX\nTIT →MTX 12mg/m2 PSL 10mgAraC 45mg/m2",null,null,null,null,null,"VCR\nAra-C\n6MP\nCPM","VCR\nL-Asp\nCPM\nAra-C","PSL\nL-asp\nCPM\nADR\nVP iv(d)\nDEX\nMTX iv(d)\n髄注\nDXR",null,null,"62","化学療法\n放射線療法",null,null,null,null,"ALL High risk",8,null,null,null,null,null,null,null,null,null,null,null,null,null,null,null,null,null,null,null,null,null,null,null,null,null,null,null,null,null,62]
["KPUM BLK 88",null,null,null,null,180,1500,"mg/m2",null,null,null,null,null,null,null,null,null,null,6000,"mg/m2",null,null,null,null,null,null,null,"mg/m2",null,null,null,null,null,null,null,null,null,null,null,null,7000,"mg/m2",null,96,"mg/m2",null,null,7.5,"mg/m2",null,null,null,null,null,null,null,null,180,null,null,null,"TIT 12回→MTX 15mg/m2 PSL 10mg AraC 45mg/m2\n\n",null,null,null,null,null,"VCR\nAra-C\nCPM\nその他","VCR\nCPM\nAra-C","PSL\nCPM\nADR\nMTX iv(d)\n髄注\nDXR",null,null,"63","化学療法",null,null,null,null,"B-NHL",12,null,null,null,null,null,null,null,null,"ドキソルビシン\nシクロホスファミド\nメソトレキセート\nL-アスパラギナーゼ",null,null,null,null,null,null,null,null,null,null,null,null,null,null,null,null,null,null,null,null,63]
["KPUM BLK 1-03",null,null,null,null,135,1200,"mg/m2",null,null,null,null,null,null,null,null,null,null,4800,"mg/m2",null,null,null,null,null,null,null,"mg/m2",null,null,null,null,null,null,null,null,null,null,null,null,9000,"mg/m2",null,163.25,"mg/m2",null,null,7.5,"mg/m2",null,null,null,null,null,null,null,null,135,null,null,null,"TIT 7→MTX 12mg/m2 PSL 10mg AraC 45mg/m2\nVCR\n",null,null,null,null,null,"VCR\nAra-C\nCPM","VCR\nCPM\nAra-C","PSL\nCPM\nADR\nMTX iv(d)\n髄注\nDXR",null,null,"64","化学療法",null,null,null,null,"B-NHL stage 1,2",7,null,null,null,null,null,null,null,null,"ドキソルビシン\nシクロホスファミド\nメソトレキセート\nL-アスパラギナーゼ",null,null,null,null,null,null,null,null,null,null,null,null,null,null,null,null,null,null,null,null,64]
["KPUM BLK 2-03",null,null,null,null,240,2400,"mg/m2",null,null,null,null,null,null,null,null,null,null,6000,"mg/m2",null,null,50,"mg/m2",null,null,null,"mg/m2",null,null,null,null,null,null,null,null,null,null,null,null,15000,"mg/m2",null,203.25,"mg/m2",null,null,10.5,"mg/m2",null,null,null,null,null,null,null,null,240,null,null,null,"TIT 9→MTX 12mg/m2 PSL 10mg AraC 45mg/m2\n",null,null,null,null,null,"VCR\nAra-C\nCPM","VCR\nCPM\nAra-C","PSL\nCPM\nADR\nMTX iv(d)\nDEX\n髄注\nDXR",null,null,"65","化学療法",null,null,null,null,"B-NHL stage 3,4",9,null,null,null,null,null,null,null,null,"ドキソルビシン\nシクロホスファミド\nメソトレキセート\n",null,null,null,null,null,null,null,null,null,null,null,null,null,null,null,null,null,null,null,null,65]
["KPUM BLK 3-03",null,null,null,null,240,25050,"mg/m2",null,null,null,null,null,null,null,null,null,null,8000,"mg/m2",null,null,50,"mg/m2",null,null,null,"mg/m2",null,null,null,null,null,null,null,null,null,null,null,null,12000,"mg/m2",null,233.25,"mg/m2",null,null,7.5,"mg/m2",null,null,2050,null,null,"mg/m2",null,null,240,null,null,null,"TIT 9 →MTX 12mg/m2 PSL 10mg AraC 45mg/m2, DIT 2→MTX 12mg/m2 PSL 10mg\n",null,null,null,null,null,"VCR\nAra-C\nCPM","VCR\nCPM\nAra-C","PSL\nCPM\nADR\nMTX iv(d)\nDEX\nVP iv(d)\n髄注\nDXR",null,null,"66","化学療法\n放射線療法",null,null,null,null,"B-ALL,B-NHL CNS+",11,null,"18",null,null,null,null,null,null,"シクロホスファミド\nメソトレキセート\nドキソルビシン\nエトポシド",null,null,null,null,null,null,null,null,null,null,null,null,"１．脳",null,null,null,"施行",null,null,null,66]
["KPUM LLK 88",null,406,null,null,385,null,null,null,null,null,null,null,null,null,null,null,null,270,"mg/m2",null,null,null,null,null,null,null,"mg/m2",null,null,null,null,null,null,21000,null,"U/m2",null,null,null,7,"mg/m2",null,265,"mg/m2",null,null,1.05,"mg/m2",null,null,null,null,null,null,null,null,385,null,null,null," DIT 13→MTX 12mg/m2 PSL 10mg\n",null,null,null,null,null,"VCR\n6MP\nCPM","VCR\nL-Asp\nCPM","PSL\nCPM\nADR\nMTX iv(d)\nL-asp\n髄注\nDXR",null,null,"67","化学療法",null,null,null,null,"non T, non B NHL stage1,2",13,null,null,null,null,null,null,null,null,null,null,null,null,null,null,null,null,null,null,null,null,null,null,null,null,null,null,null,null,null,67]
["KPUM HDK 88",null,null,null,null,270,null,null,null,60,"mg/m2",null,null,null,null,null,null,null,90,"mg/m2",null,null,null,null,null,null,4500,"mg/m2",null,null,null,null,null,null,null,null,null,null,null,null,null,null,2100,133.5,"mg/m2",null,null,0.45,"mg/kg",null,36,null,null,null,null,null,null,270,null,null,null," DIT 13→MTX 12mg/m2 PSL 10mg\nBLM 60mg/m2, DTIC 4500mg/m2, PCZ 2100mg/m2\n",null,null,null,null,null,"VCR\nPCZ\nDTIC\nVLB\nCPM\nBLM\nその他","VCR\nCPM","PSL\nCPM\nADR\nBLM\n髄注\nDXR",null,null,"68","化学療法",null,null,null,null,"Hodgkin disease",13,null,null,null,null,null,null,null,null,"シクロホスファミド\nドキソルビシン\nブレオマイシン",null,null,null,null,null,null,null,null,null,null,null,null,null,null,null,null,null,null,null,null,68]
["KPUM NLK 96",null,null,null,null,180,86200,"mg/m2",null,null,null,null,null,null,null,null,null,null,null,null,null,null,null,null,120,"mg/m2",null,"mg/m2",null,null,null,null,null,null,30000,null,"U/m2",null,null,null,2000,"mg/m2",null,null,null,null,null,null,null,null,null,3700,null,null,"mg/m2",null,null,279.60000000000002,null,null,null,"TIT 9回→MTX 12mg/m2 PSL 30mg/m2 AraC 45mg/m2\n\n\n",null,null,null,null,null,"Ara-C","L-Asp\nAra-C","L-asp\nADR\nVP iv(d)\nMTX iv(d)\nDNR\n髄注\nDXR",null,null,"69","造血細胞移植\n化学療法",null,null,null,null,"AML",9,null,null,null,null,null,null,null,null,"シクロホスファミド\nメソトレキセート\nドキソルビシン\nダウノルビシン\nエトポシド",null,null,null,null,null,null,null,null,null,null,null,null,null,null,null,null,null,null,null,null,69]
["JLSG-02 GP/PR",null,null,null,null,null,2400,"mg/m2",null,null,null,null,null,null,null,null,null,null,null,null,null,null,null,null,null,null,null,null,null,null,null,null,null,null,null,null,null,null,null,null,6,"mg/kg",null,330.5,"mg/kg",null,null,0.45,"mg/kg",null,36,null,null,null,null,null,null,null,null,null,null,"VLB 36mg/m2, 6MP内服",null,null,null,null,null,"VCR 0.45 mg/kg (max 18mg)\nVBL max 36 mg\nMTX 6 mg/kg\nPSL 210.5 mg (max 5235 mg)]\n6-MP 231 mg/kg\nVCR\nVLB\n6MP\nAra-C","VCR\nAra-C","MTX iv(d)\nPSL",null,null,null,"化学療法",null,null,null,null,null,null,null,null,null,null,null,null,null,null,"メソトレキセート\nビンクリスチン\nビンブラスチン\nシタラビン\n6MP(メルカプトプリン）",null,null,null,null,null,null,null,null,null,null,null,null,null,null,null,null,"なし",null,null,null,70]
["JLSG-02 NR",null,null,null,null,315,1500,"mg/m2",null,null,null,null,null,null,null,null,null,null,210,"mg/kg",null,null,null,null,null,null,null,"mg/m2",null,null,null,null,null,null,null,null,null,null,null,null,36,"mg/kg",null,248.5,"mg/kg",null,null,0.9,"mg/kg",null,36,null,null,null,null,null,null,315,null,null,null,null,null,null,null,null,null,"VCR 0.55 mg/kg (max 22mg)\nVBL max 36 mg\nMTX 12 mg/kg\nCPM 170 mg/kg\nPSL 230.5 mg (max 5995 mg)\n6-MP 231 mg/kg\nAra-C\nVCR\nVLB\n6MP\nCPM","VCR\nCPM\nAra-C","MTX iv(d)\nADR\nCPM\nDXR\nPSL",null,null,null,"化学療法",null,null,null,null,null,null,null,null,null,null,null,null,null,null,"ドキソルビシン\nシクロホスファミド\nメソトレキセート","ビンクリスチン\nビンブラスチン\nシタラビン\n6MP(メルカプトプリン）",null,null,null,null,null,null,null,null,null,null,null,null,null,null,null,"なし",null,null,null,71]
["JLSG-02 PD",null,null,null,null,315,1500,"mg/m2",null,null,null,null,null,null,null,null,null,null,210,"mg/kg",null,null,null,null,null,null,null,"mg/kg",null,null,null,null,null,null,null,null,null,null,null,null,36,"mg/kg",null,null,null,null,null,0.9,"mg/kg",null,36,null,null,null,null,null,null,315,null,null,null,null,null,null,null,null,null,"VCR 0.55 mg/kg (max 22mg)\nVBL max 36 mg\nMTX 12 mg/kg\nCPM 170 mg/kg\nPSL 230.5 mg (max 5995 mg)\n6-MP 231 mg/kg\nCsA 42 mg/kg\nAra-C\nVLB\n6MP\nVCR\nCPM","VCR\nCPM\nAra-C","MTX iv(d)\nADR\nCPM\nDXR",null,null,null,"化学療法",null,null,null,null,null,null,null,null,null,null,null,null,null,null,"ドキソルビシン\nシクロホスファミド\nメソトレキセート","ビンクリスチン\nビンブラスチン\nシタラビン\n6MP(メルカプトプリン）",null,null,null,null,null,null,null,null,null,null,null,null,null,null,null,"なし",null,null,null,72]
["JLSG-02 Special C",null,null,null,null,null,null,null,null,null,null,null,null,null,null,null,null,null,null,null,null,null,null,null,null,null,null,null,null,null,null,null,null,null,null,null,null,null,null,null,null,null,null,90,"mg/kg",null,null,null,null,null,54,null,null,null,null,null,null,null,null,null,null,"VBL 54mg/m2",null,null,null,null,null,"VBL max 54mg\nPSL 180 mg/kg (max 5400mg)\n6-MP 189 mg/kg\nVLB\nMTX po",null,"PSL",null,null,null,"化学療法",null,null,null,null,null,null,null,null,null,null,null,null,null,null,"メソトレキセート\nプレドニゾロン\nビンブラスチン",null,null,null,null,null,null,null,null,null,null,null,null,null,null,null,null,"なし",null,null,null,73]
["HLH-94 (52週まで）",null,null,null,null,null,null,null,null,null,null,null,null,null,null,null,null,null,null,null,null,null,913.75,"mg/m2",null,null,null,null,null,null,null,null,null,null,null,null,null,null,null,null,null,null,null,null,null,null,null,null,null,null,null,4800,null,null,"mg/m2",null,null,null,null,null,null,null,null,null,null,null,null,"CsA 1848 mg/kg",null,"VP iv(d)\nDEX\n髄注",null,null,null,"化学療法",null,null,null,null,"血球貪食リンパ組織球症",4,null,null,null,null,null,null,null,null,"エトポシド\nデキサメサゾン\n（髄腔内注射：初回細胞診陽性の患者）",null,null,null,null,null,null,null,null,null,null,null,null,null,null,null,null,"なし",null,null,null,74]
["HLH-2004 (40週まで）",null,null,null,null,0,0,"mg/㎡",null,0,"U/㎡",null,null,null,0,"mg/㎡",0,"mg/㎡",0,"mg/㎡",null,null,737,"mg/㎡",0,"mg/㎡",null,"mg/㎡",null,0,"mg/㎡",null,0,"g/㎡",0,null,"U/㎡",0,"mg/㎡",null,0,"mg/㎡",null,0,"mg/㎡",0,"mg/㎡",0,"mg/㎡",null,null,3900,null,null,"mg/㎡",null,null,0,null,null,null,"CSA　1,680mg/kg\n",null,null,null,null,null,"その他","その他","VP iv(d)\nDEX\n髄注",null,null,null,"化学療法",null,null,null,null,"HLH/FHL",4,null,null,"0",null,null,null,null,null,null,null,null,null,null,null,null,null,null,null,null,null,null,"0","0",null,null,"なし",null,null,null,75]
["KYCCSG AL841 (A arm)",null,null,null,null,null,1200,"mg/m2",null,null,null,null,null,null,null,null,null,null,24000,"mg/m2",null,null,null,null,450,"mg/m2",null,null,null,null,null,null,null,null,70000,null,"U/m2",null,null,160,700,"mg/m2",null,1680,"mg/m2",null,null,40,"mg/m2",null,null,null,"無",null,null,null,"有",373.5,"有","有",null,null,null,null,null,null,null,"VCR\nAra-C\nMTX po\nCPM","VCR\nL-Asp\nCPM\nAra-C","DNR\nL-asp\nMTX大量\n髄注\nCPM\nPSL\nMTX iv(d)",null,null,null,"化学療法\n放射線療法",null,null,null,"なし","急性リンパ性白血病",7,null,"18",null,null,null,null,null,null,"ダウノルビシン\nシクロホスファミド\nメソトレキセート\nL-アスパラギナーゼ","ビンクリスチン\nシタラビン\nプレドニゾロン\n髄腔内注射","無",null,null,null,null,null,null,null,null,null,null,"頭部",null,null,null,"施行",null,null,null,76]
["KYCCSG AL841 (B arm)",null,null,null,null,null,1200,"mg/m2",null,null,null,null,null,null,null,null,null,null,24000,"mg/m2",null,null,null,null,450,"mg/m2",null,null,null,null,null,null,null,null,390000,null,"U/m2",null,null,null,700,"mg/m2",null,1680,"mg/m2",null,null,40,"mg/m2",null,null,null,"無",null,null,null,"有",373.5,"有","無",null,null,null,null,null,null,null,"VCR\nAra-C\nCPM","VCR\nL-Asp\nCPM\nAra-C","DNR\nL-asp\nMTX大量\n髄注\nCPM\nPSL\nMTX iv(d)",null,null,null,"化学療法\n放射線療法",null,null,null,"なし","急性リンパ性白血病",7,null,"18",null,null,null,null,null,null,"ダウノルビシン\nシクロホスファミド\nメソトレキセート\nL-アスパラギナーゼ","ビンクリスチン\nシタラビン\nプレドニゾロン\n髄腔内注射","無",null,null,null,null,null,null,null,null,null,null,"頭部",null,null,null,"施行",null,null,null,77]
["KYCCSG AL851",null,15360,null,null,50,5400,"mg/m2",null,null,null,null,null,null,null,null,null,null,24000,"mg/m2",null,null,224,"mg/m2",500,"mg/m2",null,"mg/m2",null,null,null,null,null,null,76000,null,"U/m2",null,null,null,1000,"mg/m2",null,1680,"mg/m2",null,null,48,"mg/m2",null,null,null,"無",null,null,null,"有",465,"有","無",null," 6MP 15360",null,null,null,null,null,"VCR\n6MP\nAra-C\nCPM","VCR\nL-Asp\nCPM\nAra-C","DNR\nADR\nL-asp\nCPM\nMTX大量\n髄注\nPSL\nDEX\nMTX iv(d)\nDXR",null,null,null,"化学療法\n放射線療法",null,null,null,"なし","急性リンパ性白血病",6,null,"24",null,null,null,null,null,null,"ダウノルビシン\nドキソルビシン\nシクロホスファミド\nメソトレキセート\nL-アスパラギナーゼ","ビンクリスチン\nシタラビン\n6MP(メルカプトプリン）\nプレドニゾロン\nデキサメサゾン\n髄腔内注射","無",null,null,null,null,null,null,null,null,null,null,"頭部",null,null,null,"施行",null,null,null,78]
["KYCCSG AL HR88 (A arm)",null,1560,null,null,50,5200,"mg/m2",1200,null,null,null,null,null,null,null,null,null,1200,"mg/m2",null,null,112,"mg/m2",500,"mg/m2",null,"mg/m2",null,null,null,null,null,null,90000,null,"U/m2",null,null,null,1000,"mg/m2",null,1680,"mg/m2",null,null,46,"mg/m2",null,null,null,"無",null,null,null,"有",465,"有","無",null,"BH-AC 1200mg/m2, 6MP 15360mg/m2",null,null,null,null,null,"VCR\nAra-C\n6MP\nBHAC\nCPM","VCR\nL-Asp\nAra-C\nCPM","DNR\nADR\nL-asp\nCPM\nMTX大量\n髄注\nPSL\nDEX\nMTX iv(d)\nDXR",null,null,null,"化学療法\n放射線療法",null,null,null,"なし","急性リンパ性白血病",8,null,"24",null,null,null,null,null,null,"ダウノルビシン\nドキソルビシン\nシクロホスファミド\nメソトレキセート\nL-アスパラギナーゼ","ビンクリスチン\nシタラビン\n6MP(メルカプトプリン）\nプレドニゾロン\nデキサメサゾン\nBH-AC\n髄腔内注射","無",null,null,null,null,null,null,null,null,null,null,"頭部",null,null,null,"施行",null,null,null,79]
["KYCCSG AL HR88 (B arm)",null,15360,null,null,50,7200,"mg/m2",1200,null,null,null,null,null,null,null,null,null,1200,"mg/m2",null,null,112,"mg/m2",500,"mg/m2",null,"mg/m2",null,null,null,null,null,null,60000,null,"U/m2",null,null,null,1000,"mg/m2",null,1680,"mg/m2",null,null,46,"mg/m2",null,null,null,"無",null,null,null,"有",465,"有","無",null,"BH-AC 1200mg/m2, 6MP 15360mg/m2",null,null,null,null,null,"VCR\n6MP\nBHAC\nAra-C\nCPM","VCR\nL-Asp\nCPM\nAra-C","DNR\nADR\nL-asp\nCPM\nMTX大量\n髄注\nPSL\nDEX\nMTX iv(d)\nDXR",null,null,null,"化学療法\n放射線療法",null,null,null,"なし","急性リンパ性白血病",8,null,"24",null,null,null,null,null,null,"ダウノルビシン\nドキソルビシン\nシクロホスファミド\nメソトレキセート\nL-アスパラギナーゼ","ビンクリスチン\nシタラビン\n6MP(メルカプトプリン）\nプレドニゾロン\nデキサメサゾン\nBH-AC\n髄腔内注射","無",null,null,null,null,null,null,null,null,null,null,"頭部",null,null,null,"施行",null,null,null,80]
["KYCCSG AL 90 LR",null,28800,null,null,null,null,null,null,null,null,null,null,null,null,null,null,null,9000,"mg/m2",null,null,null,null,180,"mg/m2",null,null,null,null,null,null,null,null,40000,null,"U/m2",null,null,null,7000,"mg/m2",null,5280,"mg/m2",null,null,38,"mg/m2",null,null,null,"無",null,null,null,"有",149.4,"有","無",null,"VCR 38mg/m2, L-Asp 4万U/m2, 6MP 28800mg/m2",null,null,null,null,null,"VCR\n6MP\nCPM","VCR\nL-Asp\nCPM","L-asp\nMTX大量\n髄注\nCPM\nDNR\nPSL\nMTX iv(d)",null,null,null,"化学療法",null,null,null,"なし","急性リンパ性白血病",21,null,"12",null,null,null,null,null,null,"ダウノルビシン\nシクロホスファミド\nメソトレキセート\nL-アスパラギナーゼ","ビンクリスチン\n6MP(メルカプトプリン）\nプレドニゾロン\n髄腔内注射","無",null,null,6,null,null,null,null,null,null,null,"全身照射",null,null,null,"施行",null,null,null,81]
["KYCCSG AL 90 IR",null,30120,null,null,50,5800,"mg/m2",2250,null,null,null,null,null,null,null,null,null,6000,"mg/m2",null,null,224,"mg/m2",230,"mg/m2",null,"mg/m2",null,null,null,null,null,null,90000,null,"U/m2",null,null,600,4000,"mg/m2",null,4080,"mg/m2",null,null,46,"mg/m2",null,null,2250,"有",null,"mg/m2",null,"有",240.9,"有","無",null,"6MP 30120mg/m2, MTX po 600mg/m2",null,null,null,null,null,"BHAC\nVCR\nAra-C\n6MP\nMTX po\nCPM","VCR\nL-Asp\nCPM\nAra-C","DNR\nADR\nL-asp\nMTX大量\nCPM\nVP-16\nPSL\nDEX\n髄注\nMTX iv(d)\nVP iv(d)\nDXR",null,null,null,"化学療法\n放射線療法",null,null,null,"なし","急性リンパ性白血病",14,null,"15",null,null,null,null,null,null,"ダウノルビシン\nドキソルビシン\nシクロホスファミド\nメソトレキセート\nエトポシド\nプレドニゾロン","デキサメサゾン\nL-アスパラギナーゼ\nビンクリスチン\nシタラビン\n6MP\nBHAC","無",null,null,null,null,null,null,null,null,null,null,"頭部",null,null,null,"施行",null,null,null,82]
["KYCCSG AL 90 HR",null,30120,null,null,50,31800,"mg/m2",2250,null,null,null,null,null,null,null,null,null,72000,"mg/m2",null,null,224,"mg/m2",230,"mg/m2",null,"mg/m2",null,null,null,null,null,null,120000,null,"U/m2",null,null,600,4000,"mg/m2",null,4080,"mg/m2",null,null,46,"mg/m2",null,null,2250,"有",null,"mg/m2",null,"有",240.9,"有","無",null,"BH-AC 2250mg/m2, 6MP 30120mg/m2",null,null,null,null,null,"BHAC\nMTX po\n6MP\nAra-C\nVCR\nCPM","VCR\nL-Asp\nCPM\nAra-C","DNR\nADR\nL-asp\nMTX大量\nCPM\nVP-16\nPSL\nDEX\n髄注\nMTX iv(d)\nVP iv(d)\nDXR",null,null,null,"化学療法\n放射線療法",null,null,null,"なし","急性リンパ性白血病",14,null,"18",null,null,null,null,null,null,"ダウノルビシン\nドキソルビシン\nシクロホスファミド\nメソトレキセート\nエトポシド\nプレドニゾロン","デキサメサゾン\nL-アスパラギナーゼ\nビンクリスチン\nシタラビン\n6MP\nBHAC\n髄腔内注射","無",null,null,null,null,null,null,null,null,null,null,"頭部",null,null,null,"施行",null,null,null,83]
["KYCCSG AL 96 SR B-arm",null,31080,null,null,null,5200,"mg/m2",null,null,null,null,null,null,null,null,null,null,9000,"mg/m2",null,null,168,"mg/m2",95,"mg/m2",null,null,null,null,null,null,null,null,90000,null,"U/m2",null,null,null,7000,"mg/m2",null,5280,"mg/m2",null,null,46,"mg/m2",null,null,null,"無",null,null,null,"有",78.849999999999994,"有","無",null," 6MP 31080mg/m2",null,null,null,null,null,"VCR\nAra-C\n6MP\nCPM","VCR\nL-Asp\nCPM\nAra-C","DNR\nL-asp\nMTX大量\n髄注\nCPM\nPSL\nMTX iv(d)\nDEX",null,null,null,"化学療法",null,null,null,null,"急性リンパ性白血病",26,null,null,null,null,null,null,null,null,"ダウノマイシン\nシクロホスファミド\nメソトレキセート\nL-アスパラギナーゼ\nプレドニゾロン","ビンクリスチン\nシタラビン\n6MP（メルカプトプリン）\n髄腔内注射","無",null,null,null,null,null,null,null,null,null,null,null,null,null,null,"なし",null,null,null,84]
["KYCCSG AL 96 SR A-arm",null,33780,null,null,null,2200,"mg/m2",null,null,null,null,null,null,null,null,null,null,null,null,null,null,1428,"mg/m2",95,"mg/m2",null,null,null,null,null,null,null,null,90000,null,"U/m2",null,null,2700,4000,"mg/m2",null,1680,"mg/m2",null,null,76,"mg/m2",null,null,null,"無",null,null,null,"無",78.849999999999994,"有","無",null,"6MP 33780mg/m2, MTX 2700mg/m2",null,null,null,null,null,"VCR\nAra-C\n6MP\nMTX po","VCR\nL-Asp\nAra-C","DNR\nL-asp\nMTX大量\n髄注\nPSL\nDEX\nMTX iv(d)",null,null,null,"化学療法",null,null,null,null,"急性リンパ性白血病",26,null,null,null,null,null,null,null,null,"ダウノマイシン\nメソトレキセート\nL-アスパラギナーゼ\nプレドニゾロン\nデキサメタゾン","ビンクリスチン\nシタラビン\n6MP（メルカプトプリン）\n髄腔内注射","無",null,null,null,null,null,null,null,null,null,null,null,null,null,null,"なし",null,null,null,85]
["KYCCSG AL 02 SR",null,33780,null,null,null,2200,"mg/m2",null,null,null,null,null,null,null,null,null,null,null,null,null,null,1428,"mg/m2",95,"mg/m2",null,null,null,null,null,null,null,null,90000,null,"U/m2",null,null,2700,4000,"mg/m2",null,1680,"mg/m2",null,null,76,"mg/m2",null,null,null,"無",null,null,null,"無",78.849999999999994,"有","無",null," 6MP 33780mg/m2, MTX po 2700mg/m2",null,null,null,null,null,"VCR\nAra-C\n6MP\nMTX po","VCR\nL-Asp\nAra-C","DNR\nL-asp\nMTX大量\n髄注\nPSL\nDEX\nMTX iv(d)",null,null,null,"化学療法",null,null,null,null,"急性リンパ性白血病",26,null,null,null,null,null,null,null,null,"ダウノマイシン\nメソトレキセート\nL-アスパラギナーゼ\nプレドニゾロン\nデキサメタゾン","ビンクリスチン\nシタラビン\n6MP（メルカプトプリン）\n髄腔内注射","無",null,null,null,null,null,null,null,null,null,null,null,null,null,null,"なし",null,null,null,86]
["KYCCSG AL 96 HR A-arm",null,33780,null,null,null,26200,"mg/m2",null,null,null,null,null,null,null,null,null,null,2400,"mg/m2",null,null,1428,"mg/m2",145,"mg/m2",null,null,null,null,null,null,null,null,150000,null,"U/m2",null,null,2700,4000,"mg/m2",null,1680,"mg/m2",50,"mg/m2",76,"mg/m2",null,null,500,"有",null,"mg/m2",null,"有",150.35,"有","無",null,"6MP 33780mg/m2, MTX po 2700mg/m2",null,null,null,null,null,"VCR\nAra-C\n6MP\nMTX po\nCPM","VCR\nL-Asp\nCPM\nAra-C","DNR\nL-asp\nMTX大量\n髄注\nPSL\nDEX\nTHP\nVP-16\nCPM\nMTX iv(d)\nVP iv(d)",null,null,null,"化学療法\n放射線療法",null,null,null,null,"急性リンパ性白血病",9,null,"18",null,null,null,null,null,null,"ダウノマイシン\nピラルビシン\nシクロホスファミド\nメソトレキセート\nL-アスパラギナーゼ\nプレドニゾロン\nデキサメタゾン","ビンクリスチン\nシタラビン\n6MP（メルカプトプリン）\n髄腔内注射","無",null,null,12,null,null,null,null,null,null,null,"頭部",null,null,null,"施行",null,null,null,87]
["KYCCSG AL 02 HR",null,33780,null,null,null,26200,"mg/m2",null,null,null,null,null,null,null,null,null,null,2400,"mg/m2",null,null,1428,"mg/m2",145,"mg/m2",null,null,null,null,null,null,null,null,150000,null,"U/m2",null,null,2700,4000,"mg/m2",null,1680,"mg/m2",50,"mg/m2",76,"mg/m2",null,null,500,"有",null,"mg/m2",null,"有",150.35,"有","無",null,"6MP 33780mg/m2, MTX po 2700mg/m2",null,null,null,null,null,"VCR\nAra-C\n6MP\nMTX po\nCPM","VCR\nL-Asp\nCPM\nAra-C","DNR\nL-asp\nMTX大量\n髄注\nPSL\nDEX\nTHP\nVP-16\nCPM\nMTX iv(d)\nVP iv(d)",null,null,null,"化学療法\n放射線療法",null,null,null,"なし","急性リンパ性白血病",9,null,"18",null,null,null,null,null,null,"ダウノマイシン\nピラルビシン\nシクロホスファミド\nメソトレキセート\nL-アスパラギナーゼ\nプレドニゾロン\nデキサメタゾン","ビンクリスチン\nシタラビン\n6MP（メルカプトプリン）\n髄腔内注射","無",null,null,null,null,null,null,null,null,null,null,"頭部",null,null,null,"施行",null,null,null,88]
["KYCCSG AL 96 HR B-arm",null,29880,null,null,null,88200,"mg/m2",2250,null,null,null,null,null,null,null,null,null,8400,"mg/m2",null,null,168,"mg/m2",145,"mg/m2",null,null,null,null,null,null,null,null,200000,null,"U/m2",null,null,null,4000,"mg/m2",null,4080,"mg/m2",50,"mg/m2",36,"mg/m2",null,null,2750,"有",null,"mg/m2",null,"有",150.35,"有","無",null," 6MP 29880mg/m2, MTX po 2700mg/m2, BH-AC 2250mg/m2",null,null,null,null,null,"BHAC\n6MP\nAra-C\nVCR\nCPM","VCR\nL-Asp\nCPM\nAra-C","DNR\nL-asp\nMTX大量\n髄注\nPSL\nTHP\nVP-16\nCPM\nMTX iv(d)\nVP iv(d)\nDEX",null,null,null,"化学療法\n放射線療法",null,null,null,null,"急性リンパ性白血病",9,null,"18",null,null,null,null,null,null,"ダウノマイシン\nピラルビシン\nシクロホスファミド\nメソトレキセート\nL-アスパラギナーゼ\nプレドニゾロン","ビンクリスチン\nシタラビン\n6MP（メルカプトプリン）\nBH-AC\n髄腔内注射","無",null,null,12,null,null,null,null,null,null,null,"頭部",null,null,null,"施行",null,null,null,89]
["KYCCSG NHL 858A",null,20250,null,null,null,null,null,null,null,null,null,null,null,null,null,null,null,13200,"mg/m2",null,null,null,null,null,null,null,null,null,null,null,null,null,null,null,null,null,null,null,null,4400,"mg/m2",null,11280,"mg/m2",null,null,33,"mg/m2",null,null,null,"無",null,null,null,"有",null,"無","無",null,"6MP 20250mg/m2,",null,null,null,null,null,"VCR\n6MP\nCPM","VCR\nCPM","CPM\nMTX大量\nPSL\n髄注\nMTX iv(d)",null,null,null,"化学療法",null,null,null,null,"悪性リンパ腫(NHL)",3,null,null,null,null,null,null,null,null,"シクロホスファミド\nメソトレキセート\nプレドニゾロン","ビンクリスチン\n6MP\n髄腔内注射","無",null,null,null,null,null,null,null,null,null,null,null,null,null,null,"なし",null,null,null,90]
["KYCCSG NHL 858B",null,22500,null,null,420,null,null,null,null,null,null,null,null,null,null,null,null,13200,"mg/m2",null,null,null,null,null,null,null,"mg/m2",null,null,null,null,null,null,40000,null,"U/m2",null,null,null,4000,"mg/m2",null,16080,"mg/m2",null,null,51,"mg/m2",null,null,null,"無",null,null,null,"有",420,"有","無",null,"6MP 22500mg/m2",null,null,null,null,null,"VCR\n6MP\nCPM","VCR\nL-Asp\nCPM","CPM\nMTX大量\nPSL\n髄注\nL-asp\nADR\nMTX iv(d)\nDXR",null,null,null,"化学療法\n放射線療法",null,null,null,null,"悪性リンパ腫(NHL)",3,null,"18",null,null,null,null,null,null,"ドキソルビシン\nシクロホスファミド\nメソトレキセート\nプレドニゾロン\nL-アスパラギナーゼ","ビンクリスチン\n6MP\n髄腔内注射","無",null,null,null,null,null,null,null,null,null,null,"頭部",null,null,null,"施行",null,null,null,91]
["KYCCSG NHL 858C",null,22500,null,null,370,null,null,null,null,null,null,null,null,null,null,null,null,14400,"mg/m2",null,null,null,null,null,null,null,"mg/m2",null,null,null,null,null,null,40000,null,"U/m2",null,null,null,26000,"mg/m2",null,1680,"mg/m2",null,null,54,"mg/m2",null,null,null,"無",null,null,null,"有",370,"有","無",null,"6MP 22500mg/m2",null,null,null,null,null,"VCR\n6MP\nCPM","VCR\nL-Asp\nCPM","CPM\nMTX大量\nPSL\n髄注\nL-asp\nADR\nMTX iv(d)\nDXR",null,null,null,"化学療法",null,null,null,null,"悪性リンパ腫(NHL)",23,null,null,null,null,null,null,null,null,"ドキソルビシン\nシクロホスファミド\nメソトレキセート\nプレドニゾロン\nL-アスパラギナーゼ","ビンクリスチン\n6MP\n髄腔内注射","無",null,null,null,null,null,null,null,null,null,null,null,null,null,null,"なし",null,null,null,92]
["KYCCSG NHL 89LB I/II",null,12535,null,null,310,1200,"mg/m2",4000,null,null,null,null,null,null,null,null,null,7200,"mg/m2",null,null,null,null,null,null,null,"mg/m2",null,null,null,null,null,null,42000,null,"U/m2",null,null,null,null,null,null,9480,"mg/m2",null,null,22.5,"mg/m2",null,null,3450,"有",null,"mg/m2",null,"有",310,"有","無",null,"6MP 12535mg/m2",null,null,null,null,null,"BHAC\nAra-C\n6MP\nVCR\nCPM","VCR\nL-Asp\nCPM\nAra-C","CPM\nPSL\n髄注\nL-asp\nADR\nVP-16\nVP iv(d)\nDXR",null,null,null,"化学療法\n放射線療法",null,null,null,null,"悪性リンパ腫(NHL)",114,null,"18",null,null,null,null,null,null,"ドキソルビシン\nシクロホスファミド\nプレドニゾロン\nL-アスパラギナーゼ","ビンクリスチン\n6MP\nシタラビン\nBH-AC\n髄腔内注射","無",null,null,null,null,null,null,null,null,null,null,"頭部",null,null,null,"施行",null,null,null,93]
["KYCCSG NHL 89LB III/IV",null,19335,null,null,430,1200,"mg/m2",6400,null,null,null,null,null,null,null,null,null,12000,"mg/m2",null,null,null,null,null,null,null,"mg/m2",null,null,null,null,null,null,42000,null,"U/m2",null,null,null,null,null,null,14280,"mg/m2",null,null,34.5,"mg/m2",null,null,5250,"有",null,"mg/m2",null,"有",430,"有","無",null,"V6MP 19335mg/m2, BH-AC 6400mg/m2",null,null,null,null,null,"BHAC\nAra-C\n6MP\nVCR\nCPM","VCR\nL-Asp\nCPM\nAra-C","CPM\nPSL\n髄注\nL-asp\nADR\nVP-16\nVP iv(d)\nDXR",null,null,null,"化学療法\n放射線療法",null,null,null,null,"悪性リンパ腫(NHL)",118,null,"24",null,null,null,null,null,null,"ドキソルビシン\nシクロホスファミド\nプレドニゾロン\nL-アスパラギナーゼ","ビンクリスチン\n6MP\nシタラビン\nBH-AC\n髄腔内注射","無",null,null,null,null,null,null,null,null,null,null,"頭部",null,null,null,"施行",null,null,null,94]
["KYCCSG NHL 89DL III/IV",null,22500,null,null,70,null,null,null,null,null,null,null,null,null,null,null,null,13200,"mg/m2",null,null,null,null,null,null,null,"mg/m2",null,null,null,null,null,null,null,null,null,null,null,null,7000,"mg/m2",null,6480,"mg/m2",null,null,21,"mg/m2",null,null,null,"無",null,null,null,"有",70,"有","無",null,"6MP 22500mg/m2",null,null,null,null,null,"VCR\n6MP\nCPM","VCR\nCPM","CPM\nPSL\n髄注\nADR\nMTX大量\nMTX iv(d)\nDXR",null,null,null,"化学療法",null,null,null,null,"悪性リンパ腫(NHL)",13,null,null,null,null,null,null,null,null,"ドキソルビシン\nシクロホスファミド\nプレドニゾロン\nメソトレキセート","ビンクリスチン\n6MP\n髄腔内注射","無",null,null,null,null,null,null,null,null,null,null,null,null,null,null,"なし",null,null,null,95]
["KYCCSG NHL 89DL I/II",null,5625,null,null,70,null,null,null,null,null,null,null,null,null,null,null,null,7200,"mg/m2",null,null,null,null,null,null,null,"mg/m2",null,null,null,null,null,null,null,null,null,null,null,null,4500,"mg/m2",null,4080,"mg/m2",null,null,13.5,"mg/m2",null,null,null,"無",null,null,null,"有",70,"有","無",null," 6MP 5625mg/m2,",null,null,null,null,null,"VCR\n6MP\nCPM","VCR\nCPM","CPM\nPSL\n髄注\nADR\nMTX大量\nMTX iv(d)\nDXR",null,null,null,"化学療法",null,null,null,null,"悪性リンパ腫(NHL)",8,null,null,null,null,null,null,null,null,"ドキソルビシン\nシクロホスファミド\nプレドニゾロン\nメソトレキセート","ビンクリスチン\n6MP\n髄腔内注射","無",null,null,null,null,null,null,null,null,null,null,null,null,null,null,"なし",null,null,null,96]
["KYCCSG NHL 96LB I/II",null,12930,null,null,null,1200,"mg/m2",4000,null,null,null,null,null,null,null,null,null,8400,"mg/m2",null,null,null,null,null,null,null,null,null,null,null,null,null,null,40000,null,"U/m2",null,null,null,8500,"mg/m2",null,7680,"mg/m2",175,"mg/m2",21,"mg/m2",null,null,null,"無",null,null,null,"有",105,"有","無",null,"6MP 12930mg/m2, BH-AC 4000mg/m2",null,null,null,null,null,"BHAC\nAra-C\n6MP\nVCR\nCPM","VCR\nL-Asp\nCPM\nAra-C","CPM\nPSL\n髄注\nL-asp\nTHP\nMTX大量\nMTX iv(d)",null,null,null,"化学療法\n放射線療法",null,null,null,null,"悪性リンパ腫(NHL)",102,null,"18",null,null,null,null,null,null,"ピラルビシン\nシクロホスファミド\nプレドニゾロン\nメソトレキセート\nL-アスパラギナーゼ","ビンクリスチン\nシタラビン\n6MP\nBH-AC\n髄腔内注射","無",null,null,null,null,null,null,null,null,null,null,"頭部",null,null,null,"施行",null,null,null,97]
["KYCCSG NHL 96LB III",null,20520,null,null,null,29950,"mg/m2",null,null,null,null,null,null,null,null,null,null,12000,"mg/m2",null,null,null,null,null,null,null,null,null,null,null,null,null,null,210000,null,"U/m2",null,null,null,6000,"mg/m2",null,11700,"mg/m2",300,"mg/m2",33,"mg/m2",null,null,null,"無",null,null,null,"有",180,"有","無",null," 6MP 20520mg/m2",null,null,null,null,null,"Ara-C\n6MP\nVCR\nCPM","VCR\nL-Asp\nCPM\nAra-C","CPM\nPSL\n髄注\nL-asp\nTHP\nMTX大量\nMTX iv(d)",null,null,null,"化学療法\n放射線療法",null,null,null,null,"悪性リンパ腫(NHL)",92,null,"15",null,null,null,null,null,null,"ピラルビシン\nシクロホスファミド\nプレドニゾロン\nメソトレキセート\nL-アスパラギナーゼ","ビンクリスチン\nシタラビン\n6MP\n髄腔内注射","無",null,null,null,null,null,null,null,null,null,null,"頭部",null,null,null,"施行",null,null,null,98]
["KYCCSG NHL 96DL I/II",null,5625,null,null,null,null,null,null,null,null,null,null,null,null,null,null,null,7200,"mg/m2",null,null,null,null,null,null,null,null,null,null,null,null,null,null,null,null,null,null,null,null,6500,"mg/m2",null,4680,"mg/m2",50,"mg/m2",13.5,"mg/m2",null,null,null,"無",null,null,null,"有",30,"有","無",null," 6MP 5625mg/m2",null,null,null,null,null,"VCR\n6MP\nCPM","VCR\nCPM","CPM\nPSL\n髄注\nMTX大量\nTHP\nMTX iv(d)",null,null,null,"化学療法",null,null,null,null,"悪性リンパ腫(NHL)",62,null,null,null,null,null,null,null,null,"ピラルビシン\nシクロホスファミド\nプレドニゾロン\nメソトレキセート","ビンクリスチン\n6MP\n髄腔内注射","無",null,null,null,null,null,null,null,null,null,null,null,null,null,null,"なし",null,null,null,99]
["KYCCSG NHL 96DL III/IV",null,11250,null,null,null,null,null,null,null,null,null,null,null,null,null,null,null,13200,"mg/m2",null,null,null,null,null,null,null,null,null,null,null,null,null,null,null,null,null,null,null,null,9000,"mg/m2",null,7680,"mg/m2",50,"mg/m2",21,"mg/m2",null,null,null,"無",null,null,null,"有",30,"有","無",null,"6MP 11250mg/m2",null,null,null,null,null,"VCR\n6MP\nCPM","VCR\nCPM","CPM\nPSL\n髄注\nMTX大量\nTHP\nMTX iv(d)",null,null,null,"化学療法",null,null,null,null,"悪性リンパ腫(NHL)",112,null,null,null,null,null,null,null,null,"ピラルビシン\nシクロホスファミド\nプレドニゾロン\nメソトレキセート","ビンクリスチン\n6MP\n髄腔内注射","無",null,null,null,null,null,null,null,null,null,null,null,null,null,null,"なし",null,null,null,100]
["KYCCSG ANLL 88",null,1500,null,null,null,17800,"mg/m2",6000,null,null,null,null,null,null,null,null,null,null,null,null,null,null,null,240,"mg/m2",null,null,null,null,null,null,null,null,12000,null,"U/m2",80,"mg/m2",null,null,null,null,null,null,null,null,null,null,null,null,3700,"有",null,"mg/m2",null,"無",519.20000000000005,"有","無",null,"6MP 1500mg/m2, BH-AC 6000mg/m2",null,null,null,null,null,"Ara-C\n6MP\nBHAC","L-Asp\nAra-C","DNR\nVP-16\nL-asp\nMit\nVP iv(d)",null,null,null,"化学療法",null,null,null,null,"急性非リンパ性白血病",null,null,null,null,null,null,null,null,null,"ダウノマイシン\nミトキサントロン\nエトポシド\nL-アスパラギナーゼ","シタラビン\n6MP\nBH-AC\n髄腔内注射","無",null,null,null,null,null,null,null,null,null,null,null,null,null,null,"なし",null,null,null,101]
["KYCCSG ANLL 93（SCTなし）",null,null,180,null,null,99400,"mg/m2",null,null,null,null,null,null,null,null,null,null,null,null,null,null,null,null,null,null,null,null,null,null,null,null,null,null,null,null,null,45,"mg/m2",null,null,null,null,null,null,90,"mg/m2",3,"mg/m2",null,null,5750,"有",null,"mg/m2",null,"無",234,"有","無",null,"ACNU 180mg/m2",null,null,null,null,null,"Ara-C\nVCR","VCR\nAra-C","THP\nMit\nVP-16\nACNU\n髄注\nVP iv(d)",null,null,null,"化学療法",null,null,null,null,"急性非リンパ性白血病",9,null,null,null,null,null,null,null,null,"ピラルビシン\nミトキサントロン\nエトポシド\nACNU","ビンクリスチン\nシタラビン\n髄腔内注射","無",null,null,null,null,null,null,null,null,null,null,null,null,null,null,"なし",null,null,null,102]
["KYCCSG NHL 96LB IV",null,20520,null,null,null,29950,"mg/m2",null,null,null,null,null,null,null,null,null,null,12000,"mg/m2",null,null,null,null,null,null,null,null,null,null,null,null,null,null,210000,null,"U/m2",null,null,null,6000,"mg/m2",null,11700,"mg/m2",300,"mg/m2",33,"mg/m2",null,null,null,"無",null,null,null,"有",180,"有","無",null,"6MP 20520mg/m2",null,null,null,null,null,"Ara-C\n6MP\nVCR\nCPM","VCR\nL-Asp\nCPM\nAra-C","CPM\nPSL\n髄注\nL-asp\nTHP\nMTX大量\nMTX iv(d)",null,null,null,"化学療法\n放射線療法",null,null,null,null,"悪性リンパ腫(NHL)",92,null,"18",null,null,null,null,null,null,"ピラルビシン\nシクロホスファミド\nメソトレキセート\nプレドニゾロン\nL-アスパラギナーゼ","ビンクリスチン\nシタラビン\n6MP\n髄腔内注射","無",null,null,null,null,null,null,null,null,null,null,"頭部",null,null,null,"施行",null,null,null,103]
["AML-99(low risk　寛解導入A選択）",null,null,null,null,null,78400,"mg/m2",null,null,null,null,null,null,null,null,null,null,null,null,null,null,null,null,null,null,null,null,null,20,"mg/m2",null,null,null,null,null,null,40,"mg/m2",null,null,null,null,null,null,null,null,null,null,null,null,3150,null,null,"mg/m2",null,null,260,null,null,null,null,null,null,null,null,null,"Ara-C","Ara-C","Mit\nIDA\nVP iv(d)\n髄注",null,null,null,"化学療法",null,"寛解導入A→強化療法１，２，３，４，５L",null,null,"AML",6,null,null,null,null,null,null,null,null,"ミトキサントロン\nイダマイシン\nエトポシド","シタラビン\n髄腔内注射",null,null,"low　risk",null,null,null,null,null,null,null,null,null,null,null,null,"なし",null,null,null,104]
["AML-99(low risk  寛解導入B選択）",null,null,null,null,null,61000,"mg/m2",null,null,null,null,null,null,null,null,null,null,null,null,null,null,null,null,null,null,null,null,null,44,"mg/m2",null,null,null,null,null,null,15,"mg/m2",null,null,null,null,null,null,null,null,null,null,null,null,3300,null,null,"mg/m2",null,null,280,null,null,null,null,null,null,null,null,null,"Ara-C","Ara-C","Mit\nIDA\nVP iv(d)\n髄注",null,null,null,"化学療法",null,"寛解導入B→強化１，２，３，４，５L",null,null,"AML",6,null,null,null,null,null,null,null,null,"ミトキサントロン\nイダマイシン\nエトポシド","シタラビン\n髄腔内注射",null,null,"low　risk",null,null,null,null,null,null,null,null,null,null,null,null,"なし",null,null,null,105]
["AML-99(intermediate risk  寛解導入A選択）",null,null,null,null,null,59400,"mg/m2",null,null,null,null,null,null,null,null,null,null,null,null,null,null,null,null,null,null,null,null,null,20,"mg/m2",null,null,null,null,null,null,55,"mg/m2",null,null,null,null,null,null,null,null,null,null,null,null,3100,null,null,"mg/m2",null,null,320,null,null,null,null,null,null,null,null,null,"Ara-C","Ara-C","Mit\nIDA\nVP iv(d)\n髄注",null,null,null,"化学療法",null,"寛解導入A→強化１，２，３，４，５H（移植なし）",null,null,"AML",6,null,null,null,null,null,null,null,null,"ミトキサントロン\nイダマイシン\nエトポシド","シタラビン\n髄腔内注射",null,null,"中間リスク群",null,null,null,null,null,null,null,null,null,null,null,null,"なし",null,null,null,106]
["AML-99(intermediate risk  寛解導入A選択）",null,null,null,null,null,20400,"mg/m2",null,null,null,null,null,null,null,null,null,null,null,null,null,null,null,null,null,null,null,null,null,10,"mg/m2",null,null,null,null,null,null,40,"mg/m2",null,null,null,null,null,null,null,null,null,null,null,null,1650,null,null,"mg/m2",null,null,210,null,null,null,"寛解導入A→強化１，２→allo　BMT",null,null,null,null,null,"Ara-C","Ara-C","Mit\nIDA\nVP iv(d)\n髄注",null,null,null,"化学療法\n造血細胞移植",null,null,null,null,"AML",3,null,null,null,null,null,null,null,"施行","ミトキサントロン\nイダマイシン\nエトポシド","シタラビン\n髄腔内注射",null,null,"中間リスク群",null,null,null,null,null,null,null,null,null,null,null,null,"なし",null,null,null,107]
["AML-99(intermediate risk  寛解導入B選択）",null,null,null,null,null,61000,"mg/m2",null,null,null,null,null,null,null,null,null,null,null,null,null,null,null,null,null,null,null,null,null,44,"mg/m2",null,null,null,null,null,null,30,"mg/m2",null,null,null,null,null,null,null,null,null,null,null,null,3250,null,null,"mg/m2",null,null,340,null,null,null,"寛解導入B→強化１，２，３，４，５H（移植なし）",null,null,null,null,null,"Ara-C","Ara-C","Mit\nIDA\nVP iv(d)\n髄注",null,null,null,"化学療法",null,null,null,null,"AML",6,null,null,null,null,null,null,null,null,"ミトキサントロン\nイダマイシン\nエトポシド","シタラビン\n髄腔内注射",null,null,"中間リスク群",null,null,null,null,null,null,null,null,null,null,null,null,"なし",null,null,null,108]
["AML-99(intermediate risk  寛解導入B選択）",null,null,null,null,null,22000,"mg/m2",null,null,null,null,null,null,null,null,null,null,null,null,null,null,null,null,null,null,null,null,null,34,"mg/m2",null,null,null,null,null,null,15,"mg/m2",null,null,null,null,null,null,null,null,null,null,null,null,1800,null,null,"mg/m2",null,null,230,null,null,null,"寛解導入B→強化１，２→allo　BMT",null,null,null,null,null,"Ara-C","Ara-C","Mit\nIDA\nVP iv(d)\n髄注",null,null,null,"化学療法\n造血細胞移植",null,null,null,null,"AML",3,null,null,null,null,null,"BU\nLPAM",null,"施行","ミトキサントロン\nイダマイシン\nエトポシド","シタラビン\n髄腔内注射",null,null,"中間リスク群",null,null,null,null,null,null,null,null,null,null,null,null,"なし",null,null,null,109]
["AML-99(high risk  寛解導入A選択）",null,null,null,null,null,62400,"mg/m2",null,null,null,null,null,null,null,null,null,null,null,null,null,null,null,null,null,null,null,null,null,20,"mg/m2",null,null,null,null,null,null,55,"mg/m2",null,null,null,null,null,null,null,null,null,null,null,null,4300,null,null,"mg/m2",null,null,320,null,null,null,"寛解導入A→強化１，２，３，４，５H，６→UnrelatedBMT（できるだけ早期に）",null,null,null,null,null,"Ara-C","Ara-C","Mit\nIDA\nVP iv(d)\n髄注",null,null,null,"化学療法\n造血細胞移植",null,null,null,null,"AML",7,null,null,null,null,null,null,null,"施行","ミトキサントロン\nイダマイシン\nエトポシド","シタラビン\n髄腔内注射",null,null,"高リスク群",null,null,null,null,null,null,null,null,null,null,null,null,"なし",null,null,null,110]
["AML-99(high risk  寛解導入A選択）",null,null,null,null,null,20400,"mg/m2",null,null,null,null,null,null,null,null,null,null,null,null,null,null,null,null,null,null,null,null,null,10,"mg/m2",null,null,null,null,null,null,40,"mg/m2",null,null,null,null,null,null,null,null,null,null,null,null,1650,null,null,"mg/m2",null,null,210,null,null,null,"寛解導入A→強化１，２→alloBMT",null,null,null,null,null,"Ara-C","Ara-C","Mit\nIDA\nVP iv(d)\n髄注",null,null,null,"化学療法\n造血細胞移植",null,null,null,null,"AML",3,null,null,null,null,null,null,null,"施行","ミトキサントロン\nイダマイシン\nエトポシド","シタラビン\n髄腔内注射",null,null,"高リスク群",null,null,null,null,null,null,null,null,null,null,null,null,"なし",null,null,null,111]
["AML-99(high risk  寛解導入B選択）",null,null,null,null,null,64000,"mg/m2",null,null,null,null,null,null,null,null,null,null,null,null,null,null,null,null,null,null,null,null,null,44,"mg/m2",null,null,null,null,null,null,30,"mg/m2",null,null,null,null,null,null,null,null,null,null,null,null,4450,null,null,"mg/m2",null,null,340,null,null,null,"寛解導入A→強化１，２，３，４，５H，６→Unrelated BMT（できるだけ早期に）",null,null,null,null,null,"Ara-C","Ara-C","Mit\nIDA\nVP iv(d)\n髄注",null,null,null,"化学療法\n造血細胞移植",null,null,null,null,"AML",7,null,null,null,null,null,null,null,"施行","ミトキサントロン\nイダマイシン\nエトポシド","シタラビン\n髄腔内注射",null,null,"高リスク群",null,null,null,null,null,null,null,null,null,null,null,null,"なし",null,null,null,112]
["AML-99(high risk  寛解導入B選択）",null,null,null,null,null,22000,"mg/m2",null,null,null,null,null,null,null,null,null,null,null,null,null,null,null,null,null,null,null,null,null,34,"mg/m2",null,null,null,null,null,null,14,"mg/m2",null,null,null,null,null,null,null,null,null,null,null,null,1800,null,null,"mg/m2",null,null,226,null,null,null,"寛解導入A→強化１，２→allo BMT",null,null,null,null,null,"Ara-C","Ara-C","Mit\nIDA\nVP iv(d)\n髄注",null,null,null,"化学療法\n造血細胞移植",null,null,null,null,"AML",3,null,null,null,null,null,null,null,"施行","ミトキサントロン\nイダマイシン\nエトポシド","シタラビン\n髄腔内注射",null,null,"高リスク群",null,null,null,null,null,null,null,null,null,null,null,null,"なし",null,null,null,113]
["AML-99(M3ﾌﾟﾛﾄｺｰﾙ）",null,null,null,null,null,69400,"mg/m2",null,null,null,null,null,null,null,null,null,null,null,null,null,null,null,null,135,"mg/m2",null,null,null,null,null,null,null,null,null,null,null,20,"mg/m2",null,null,null,null,null,null,90,"mg/m2",null,null,null,null,null,null,null,null,null,null,246.05,null,null,null,"ATRA 5130mg/㎡\nACR 180mg/㎡",null,null,null,null,null,"Ara-C\nATRA\nACR","Ara-C","DNR\nTHP\nMit\n髄注",null,null,null,"化学療法",null,null,null,null,"AML",6,null,null,null,null,null,null,null,null,"ミトキサントロン\nダウノマイシン\nピラルビシン","シタラビン\n髄腔内注射\nトランスレチノイン酸",null,null,"M3",null,null,null,null,null,null,null,null,null,null,null,null,"なし",null,null,null,114]
["AML-99(Downﾌﾟﾛﾄｺｰﾙ）",null,null,null,null,null,3500,"mg/m2",null,null,null,null,null,null,null,null,null,null,null,null,null,null,null,null,null,null,null,null,null,null,null,null,null,null,null,null,null,null,null,null,null,null,null,null,null,250,"mg/m2",null,null,null,null,2250,null,null,"mg/m2",null,null,150,null,null,null,null,null,null,null,null,null,"Ara-C","Ara-C","THP\nVP iv(d)",null,null,null,"化学療法",null,null,null,null,"AML",null,null,null,null,null,null,null,null,null,"ピラルビシン\nエトポシド\nシタラビン",null,null,null,null,null,null,null,null,null,null,null,null,null,null,null,null,"なし",null,null,null,115]
["AML-P05",null,null,null,null,null,39400,"mg/m2",null,null,null,null,null,null,null,null,null,null,null,null,null,null,160,"mg/m2",135,"mg/m2",null,null,null,null,null,null,null,null,null,null,null,20,"mg/m2",null,null,null,null,1500,"mg/m2",90,"mg/m2",null,null,null,null,null,null,null,null,null,null,246.05,null,null,null,"ATRA 5535mg/㎡",null,null,null,null,null,"Ara-C\nATRA","Ara-C","DNR\nTHP\nMit\nPSL\nDEX\n髄注",null,null,null,"化学療法",null,null,null,null,"急性前骨髄球性白血病",4,null,null,null,null,null,null,null,null,"ミトキサントロン\nダウノマイシン\nピラルビシン\nプレドニゾロン\nデキサメサゾン","シタラビン\n髄腔内注射\nトランスレチノイン酸",null,null,null,null,null,null,null,null,null,null,null,null,null,null,null,"なし",null,null,null,116]
["AML-05LR",null,null,null,null,null,77400,"mg/m2",null,null,null,null,null,null,null,null,null,null,null,null,null,null,null,null,null,null,null,null,null,20,"mg/m2",null,null,null,null,null,null,25,"mg/m2",null,null,null,null,null,null,null,null,null,null,null,null,1750,null,null,"mg/m2",null,null,200,null,null,null,null,null,null,null,null,null,"Ara-C","Ara-C","Mit\nIDA\nVP iv(d)\n髄注",null,null,null,"化学療法",null,null,null,null,"AML",5,null,null,null,null,null,null,null,null,"ミトキサントロン\nイダマイシン\nエトポシド\nシタラビン\n髄腔内注射",null,null,null,"低リスク群",null,null,null,null,null,null,null,null,null,null,null,null,"なし",null,null,null,117]
["AML-05 IR",null,null,null,null,null,77400,"mg/m2",null,null,null,null,null,null,null,null,null,null,null,null,null,null,null,null,null,null,null,null,null,20,"mg/m2",null,null,null,null,null,null,55,"mg/m2",null,null,null,null,null,null,null,null,null,null,null,null,1750,null,null,"mg/m2",null,null,260,null,null,null,null,null,null,null,null,null,"Ara-C","Ara-C","Mit\nIDA\nVP iv(d)\n髄注",null,null,null,"化学療法",null,null,null,null,"AML",5,null,null,null,null,null,null,null,null,"イダマイシン\nミトキサントロン\nシタラビン\nエトボシド\n髄腔内注射",null,null,null,"中間リスク群",null,null,null,null,null,null,null,null,null,null,null,null,"なし",null,null,null,118]
["AML-05 HR",null,null,null,null,null,39400,"mg/m2",null,null,null,null,null,null,null,null,null,null,null,null,null,null,null,null,null,null,null,null,null,10,"mg/m2",null,null,null,null,null,null,40,"mg/m2",null,null,null,null,null,null,null,null,null,null,null,null,1250,null,null,"mg/m2",null,null,210,null,null,null,"寛解導入1：ECM→寛解導入２：HCEI→強化1：HCM→同種造血幹細胞移植",null,null,null,null,null,"Ara-C","Ara-C","Mit\nIDA\nVP iv(d)\n髄注",null,null,null,"化学療法\n造血細胞移植",null,null,null,null,"AML",3,null,null,null,null,null,"BU\nLPAM",null,"施行","ミトキサントロン\nイダマイシン\nエトポシド\nシタラビン\n髄腔内注射",null,null,null,"高リスク群",null,null,null,null,null,null,null,null,null,null,null,null,null,null,null,null,119]
["遅延局所療法",null,null,null,null,null,null,null,null,null,null,null,null,null,1600,null,500,null,12000,null,null,null,null,null,null,null,null,null,null,null,null,null,null,null,null,200,null,null,null,null,null,null,null,null,null,200,null,7.5,null,null,null,800,null,null,null,null,null,120,null,null,null,null,null,null,null,null,null,"VCR","VCR\nCPM\nCDDP\nCBDCA","THP\nCPM\nVP iv(d)\nCDDP\nCBDCA\nL-PAM",null,null,null,"化学療法\n手術\n放射線療法",null,"進行神経芽腫に対し原発巣切除術を含む局所療法を大量化学療法後に遅延させて行う治療計画（遅延局所療法）の早期第Ⅱ相",null,null,"神経芽細胞腫",null,null,null,null,null,null,null,null,null,"ピラルビシン\nシクロホスファミド\nエトポシド\nシスプラチン\nカルボプラチン","ビンクリスチン\nL-PAM",null,null,null,null,null,null,null,null,null,null,null,null,null,null,null,"施行",null,null,null,122]
["高リスク神経芽腫に対する標準的集学的治療",null,null,null,null,null,null,null,null,null,null,null,null,null,1600,null,500,null,10800,null,null,null,null,null,null,null,null,null,null,null,null,null,null,null,null,200,null,null,null,null,null,null,null,null,null,200,null,7.5,null,null,null,800,null,null,null,null,null,120,null,null,null,null,null,null,null,null,null,"VCR","VCR\nCPM\nCDDP\nCBDCA","THP\nCPM\nVP iv(d)\nCDDP\nCBDCA\nL-PAM",null,null,null,"化学療法\n手術\n放射線療法",null,"高リスク神経芽腫に対する標準的集学的治療の後期第Ⅱ相臨床試験",null,"施行","神経芽細胞腫",null,null,null,null,null,null,null,null,null,"ピラルビシン\nシクロホスファミド\nエトポシド\nシスプラチン\nカルボプラチン","ビンクリスチン\nL-PAM",null,null,null,null,null,null,null,null,null,null,null,null,null,null,null,"施行",null,null,null,123]
["JWiTS RTK（NWTS-5 RTKと同じ内容）",null,null,null,null,null,null,null,null,null,null,null,null,null,6000,"mg/m2",null,null,6600,"mg/m2",null,null,null,null,null,null,null,null,null,null,null,null,null,null,null,null,null,null,null,null,null,null,null,null,null,null,null,null,null,null,null,1800,null,null,"mg/m2",null,null,null,null,null,null,null,null,null,null,null,null,null,"CBDCA\nCPM","VP iv(d)\nCPM\nCBDCA",null,null,null,"化学療法","体重30kg以上、mg/m2",null,null,null,"腎芽腫",null,null,null,null,null,null,null,null,null,null,null,null,null,null,null,null,null,null,null,null,null,null,null,null,null,null,null,null,null,null,124]
["JWiTS RTK（NWTS-5 RTKと同じ内容）",null,null,null,null,null,null,null,null,null,null,null,null,null,200.4,"mg/kg",null,null,220.5,"mg/kg",null,null,null,null,null,null,null,null,null,null,null,null,null,null,null,null,null,null,null,null,null,null,null,null,null,null,null,null,null,null,null,59.4,null,null,"mg/kg",null,null,null,null,null,null,null,null,null,null,null,null,null,"CPM\nCBDCA","VP iv(d)\nCPM\nCBDCA",null,null,null,"化学療法","体重30kg未満、mg/kg",null,null,null,"腎芽腫",null,null,null,null,null,null,null,null,null,null,null,null,null,null,null,null,null,null,null,null,null,null,null,null,null,null,null,null,null,null,124]
["JWiTS-2 DD-4A（NWTS-5 DD-4Aと同じ内容）",null,null,null,6.75,150,null,null,null,null,null,null,null,null,null,null,null,null,null,null,null,null,null,null,null,null,null,"mg/m2",null,null,null,null,null,null,null,null,null,null,null,null,null,null,null,null,null,null,null,25,"mg/m2",null,null,null,null,null,null,null,null,150,null,null,null,null,null,null,null,null,null,"VCR\nAct-D","VCR","DXR",null,null,null,"化学療法","体重30kg以上、mg/m2",null,null,null,"腎芽腫",null,null,null,null,null,null,null,null,null,null,null,null,null,null,null,null,null,null,null,null,null,null,null,null,null,null,null,null,null,null,125]
["JWiTS-2 DD-4A（NWTS-5 DD-4Aと同じ内容）",null,null,null,null,5,null,null,null,null,null,null,null,null,null,null,null,null,null,null,null,null,null,null,null,null,null,"mg/kg",null,null,null,null,null,null,null,null,null,null,null,null,null,null,null,null,null,null,null,8.35,"mg/m2",null,null,null,null,null,null,null,null,5,null,null,null,"Act-D 0.225mg/m2",null,null,null,null,null,"VCR\nその他","VCR\nその他","DXR",null,null,null,"化学療法","体重30kg未満、mg/kg",null,null,null,"腎芽腫",null,null,null,null,null,null,null,null,null,null,null,null,null,null,null,null,null,null,null,null,null,null,null,null,null,null,null,null,null,null,125]
["JWiTS-2 EE-4A（NWTS-5 EE-4Aと同じ内容）",null,null,null,null,null,null,null,null,null,null,null,null,null,null,null,null,null,null,null,null,null,null,null,null,null,null,null,null,null,null,null,null,null,null,null,null,null,null,null,null,null,null,null,null,null,null,19.5,"mg/m2",null,null,null,null,null,null,null,null,null,null,null,null,"Act-D 9.45mg/m2",null,null,null,null,null,"VCR\nその他","VCR\nその他",null,null,null,null,null,"体重30kg以上、mg/m2",null,null,null,"腎芽腫",null,null,null,null,null,null,null,null,null,null,null,null,null,null,null,null,null,null,null,null,null,null,null,null,null,null,null,null,null,null,126]
["JWiTS-2 EE-4A（NWTS-5 EE-4Aと同じ内容）",null,null,null,null,null,null,null,null,null,null,null,null,null,null,null,null,null,null,null,null,null,null,null,null,null,null,null,null,null,null,null,null,null,null,null,null,null,null,null,null,null,null,null,null,null,null,0.7,"mg/m2",null,null,null,null,null,null,null,null,null,null,null,null,"Act-D 0.315mg/kg",null,null,null,null,null,"VCR\nその他","VCR\nその他",null,null,null,null,null,"体重30kg未満、mg/kg",null,null,null,"腎芽腫",null,null,null,null,null,null,null,null,null,null,null,null,null,null,null,null,null,null,null,null,null,null,null,null,null,null,null,null,null,null,126]
["JWiTS Regune 1（NWTS-5 Regimen 1と同じ内容）",null,null,null,null,225,null,null,null,null,null,null,null,null,null,null,null,null,14080,"mg/m2",null,null,null,null,null,null,null,"mg/m2",null,null,null,null,null,null,null,null,null,null,null,null,null,null,null,null,null,null,null,21.5,"mg/m2",null,null,2000,null,null,"mg/m2",null,null,225,null,null,null,"Act-D 9.45",null,null,null,null,null,"その他\nVCR","CPM\nVCR\nその他","DXR\nVP iv(d)\nCPM",null,null,null,"化学療法","体重30kg以上、mg/m2",null,null,null,"腎芽腫",null,null,null,null,null,null,null,null,null,null,null,null,null,null,null,null,null,null,null,null,null,null,null,null,null,null,null,null,null,null,127]
["JWiTS Regune 1（NWTS-5 Regimen 1と同じ内容）",null,null,null,null,7.5,null,null,null,null,null,null,null,null,null,null,null,null,470.4,"mg/kg",null,null,null,null,null,null,null,"mg/kg",null,null,null,null,null,null,null,null,null,null,null,null,null,null,null,null,null,null,null,0.71799999999999997,"mg/m2",null,null,66,null,null,"mg/kg",null,null,7.5,null,null,null,"Act-D 0.315mg/kg",null,null,null,null,null,"VCR\nその他","CPM\nVCR\nその他","DXR\nVP iv(d)\nCPM",null,null,null,"化学療法","体重30kg未満、mg/kg",null,null,null,"腎芽腫",null,null,null,null,null,null,null,null,null,null,null,null,null,null,null,null,null,null,null,null,null,null,null,null,null,null,null,null,null,null,127]
["NWTS-3 L",null,null,null,null,null,null,null,null,null,null,null,null,null,null,null,null,null,null,null,null,null,null,null,null,null,null,null,null,null,null,null,null,null,null,null,null,null,null,null,null,null,null,null,null,null,null,16.5,"mg/m2",null,null,null,null,null,null,null,null,null,null,null,null,"Act-D 0.15mg/kg",null,null,null,null,null,"VCR\nその他","VCR\nその他",null,null,null,null,null,null,null,null,null,"腎芽腫",null,null,null,null,null,null,null,null,null,null,null,null,null,null,null,null,null,null,null,null,null,null,null,null,null,null,null,null,null,null,128]
["NWTS-3 EE（NWTS-4 EEと同じ）",null,null,null,null,null,null,null,null,null,null,null,null,null,null,null,null,null,null,null,null,null,null,null,null,null,null,null,null,null,null,null,null,null,null,null,null,null,null,null,null,null,null,null,null,null,null,21,"mg/m2",null,null,null,null,null,null,null,null,null,null,null,null,"Act-D 0.3mg/kg",null,null,null,null,null,"VCR\nその他","VCR\nその他",null,null,null,null,"化学療法",null,null,null,null,"腎芽腫",null,null,null,null,null,null,null,null,null,null,null,null,null,null,null,null,null,null,null,null,null,null,null,null,null,null,null,null,null,null,129]
["NWTS-3 K（NWTS-4 Kと同じ）",null,null,null,null,null,null,null,null,null,null,null,null,null,null,null,null,null,null,null,null,null,null,null,null,null,null,null,null,null,null,null,null,null,null,null,null,null,null,null,null,null,null,null,null,null,null,69,"mg/m2",null,null,null,null,null,null,null,null,null,null,null,null,"Act-D 0.6mg/kg",null,null,null,null,null,"VCR\nその他","VCR\nその他",null,null,null,null,"化学療法","放射線治療なし",null,null,null,"腎芽腫",null,null,null,null,null,null,null,null,null,null,null,null,null,null,null,null,null,null,null,null,null,null,null,null,null,null,null,null,null,null,130]
["NWTS-3 K",null,null,null,null,null,null,null,null,null,null,null,null,null,null,null,null,null,null,null,null,null,null,null,null,null,null,null,null,null,null,null,null,null,null,null,null,null,null,null,null,null,null,null,null,null,null,69,"mg/m2",null,null,null,null,null,null,null,null,null,null,null,null,"Act-D 0.6mg/kg",null,null,null,null,null,"VCR\nその他","VCR\nその他",null,null,null,null,"化学療法\n放射線療法","放射線治療20Gy",null,null,null,"腎芽腫",null,null,null,null,null,null,null,null,null,null,null,null,null,null,null,null,null,null,null,null,null,null,null,null,null,null,null,null,null,null,130]
["NWTS-3 DD（NWTS-4 DDと同じ）",null,null,null,null,300,null,null,null,null,null,null,null,null,null,null,null,null,null,null,null,null,null,null,null,null,null,"mg/m2",null,null,null,null,null,null,null,null,null,null,null,null,null,null,null,null,null,null,null,30,"mg/m2",null,null,null,null,null,null,null,null,300,null,null,null,"Act-D 0.45mg/kg",null,null,null,null,null,"VCR\nその他","VCR\nその他","DXR",null,null,null,"化学療法","放射線治療なし",null,null,null,"腎芽腫",null,null,null,null,null,null,null,null,null,null,null,null,null,null,null,null,null,null,null,null,null,null,null,null,null,null,null,null,null,null,131]
["NWTS-3 K 放射線治療10Gy",null,null,null,null,300,null,null,null,null,null,null,null,null,null,null,null,null,null,null,null,null,null,null,null,null,null,"mg/m2",null,null,null,null,null,null,null,null,null,null,null,null,null,null,null,null,null,null,null,30,"mg/m2",null,null,null,null,null,null,null,null,300,null,null,null,"Act-D 0.45mg/kg",null,null,null,null,null,"VCR\nその他","VCR\nその他","DXR",null,null,null,"化学療法\n放射線療法","放射線治療10Gy",null,null,null,"腎芽腫",null,null,null,null,null,null,null,null,null,null,null,null,null,null,null,null,null,null,null,null,null,null,null,null,null,null,null,null,null,null,132]
["NWTS-3 K 放射線治療20Gy",null,null,null,null,300,null,null,null,null,null,null,null,null,null,null,null,null,null,null,null,null,null,null,null,null,null,"mg/m2",null,null,null,null,null,null,null,null,null,null,null,null,null,null,null,null,null,null,null,30,"mg/m2",null,null,null,null,null,null,null,null,300,null,null,null,"Act-D 0.45mg/kg",null,null,null,null,null,"VCR\nその他","VCR\nその他","DXR",null,null,null,"化学療法\n放射線療法","放射線治療20Gy",null,null,null,"腎芽腫",null,null,null,null,null,null,null,null,null,null,null,null,null,null,null,null,null,null,null,null,null,null,null,null,null,null,null,null,null,null,132]
["NWTS-3 J 放射線治療なし",null,null,null,null,300,null,null,null,null,null,null,null,null,null,null,null,null,300,"mg/kg",null,null,null,null,null,null,null,"mg/m2",null,null,null,null,null,null,null,null,null,null,null,null,null,null,null,null,null,null,null,42,"mg/m2",null,null,null,null,null,null,null,null,300,null,null,null,"Act-D 0.45mg/kg",null,null,null,null,null,"VCR\nその他","CPM\nVCR\nその他","DXR\nCPM",null,null,null,"化学療法","放射線治療なし",null,null,null,"腎芽腫",null,null,null,null,null,null,null,null,null,null,null,null,null,null,null,null,null,null,null,null,null,null,null,null,null,null,null,null,null,null,133]
["NWTS-3 J 放射線治療10Gy",null,null,null,null,300,null,null,null,null,null,null,null,null,null,null,null,null,300,"mg/kg",null,null,null,null,null,null,null,"mg/m2",null,null,null,null,null,null,null,null,null,null,null,null,null,null,null,null,null,null,null,30,"mg/m2",null,null,null,null,null,null,null,null,300,null,null,null,"Act-D 0.45mg/kg",null,null,null,null,null,"VCR\nその他","CPM\nVCR\nその他","DXR\nCPM",null,null,null,"化学療法\n放射線療法","放射線治療10Gy",null,null,null,"腎芽腫",null,null,null,null,null,null,null,null,null,null,null,null,null,null,null,null,null,null,null,null,null,null,null,null,null,null,null,null,null,null,133]
["NWTS-3 J 放射線治療20Gy",null,null,null,null,300,null,null,null,null,null,null,null,null,null,null,null,null,300,"mg/kg",null,null,null,null,null,null,null,"mg/m2",null,null,null,null,null,null,null,null,null,null,null,null,null,null,null,null,null,null,null,30,"mg/m2",null,null,null,null,null,null,null,null,300,null,null,null,"Act-D 0.45mg/kg",null,null,null,null,null,"VCR\nその他","CPM\nVCR\nその他","DXR\nCPM",null,null,null,"化学療法\n放射線療法","放射線治療20Gy",null,null,null,"腎芽腫",null,null,null,null,null,null,null,null,null,null,null,null,null,null,null,null,null,null,null,null,null,null,null,null,null,null,null,null,null,null,133]
["NWTS-4 EE-4A",null,null,null,null,null,null,null,null,null,null,null,null,null,null,null,null,null,null,null,null,null,null,null,null,null,null,null,null,null,null,null,null,null,null,null,null,null,null,null,null,null,null,null,null,null,null,21,"mg/m2",null,null,null,null,null,null,null,null,null,null,null,null,"Act-D 0.315mg/kg",null,null,null,null,null,"VCR\nその他","VCR\nその他",null,null,null,null,null,null,null,null,null,"腎芽腫",null,null,null,null,null,null,null,null,null,null,null,null,null,null,null,null,null,null,null,null,null,null,null,null,null,null,null,null,null,null,134]
["NWTS-4 K-4A",null,null,null,null,null,null,null,null,null,null,null,null,null,null,null,null,null,null,null,null,null,null,null,null,null,null,null,null,null,null,null,null,null,null,null,null,null,null,null,null,null,null,null,null,null,null,49,"mg/m2",null,null,null,null,null,null,null,null,null,null,null,null,"Act-D 0.945mg/kg",null,null,null,null,null,"その他\nVCR","VCR\nその他",null,null,null,null,"化学療法",null,null,null,null,"腎芽腫",null,null,null,null,null,null,null,null,null,null,null,null,null,null,null,null,null,null,null,null,null,null,null,null,null,null,null,null,null,null,135]
["NWTS-4 DD-4A",null,null,null,null,300,null,null,null,null,null,null,null,null,null,null,null,null,null,null,null,null,null,null,null,null,null,"mg/m2",null,null,null,null,null,null,null,null,null,null,null,null,null,null,null,null,null,null,null,45,"mg/m2",null,null,null,null,null,null,null,null,300,null,null,null,"Act-D 0.45mg/kg",null,null,null,null,null,"VCR\nその他","VCR\nその他","DXR",null,null,null,"化学療法",null,null,null,null,"腎芽腫",null,null,null,null,null,null,null,null,null,null,null,null,null,null,null,null,null,null,null,null,null,null,null,null,null,null,null,null,null,null,136]
["JACLS ALL97 SR-A",null,30100,null,null,null,900,"mg/m2",null,null,null,null,null,null,null,null,null,null,null,null,null,null,70,"mg/m2",120,"mg/m2",null,null,null,null,null,null,null,null,18000,null,"U/m2",null,null,2100,9000,"mg/m2",null,7680,"mg/m2",null,null,48,"mg/m2",null,null,null,null,null,null,null,null,99.6,null,null,null,"維持療法6MP 30100,MTX 2100",null,null,null,null,null,"VCR\nAra-C\n6MP\nMTX po","VCR\nL-Asp\nAra-C","DNR\nMTX iv(d)\nPSL\nDEX\nL-asp\n髄注",null,null,null,"化学療法",null,null,null,null,"急性リンパ性白血病",8,null,null,null,null,null,null,null,null,"ダウノルビシン\nメソトレキセート\nL-アスパラギナーゼ\nプレドニゾロン\nデキサメサゾン","ビンクリスチン\nシタラビン\n6MP(メルカプトプリン）\n髄腔内注射",null,null,null,null,null,null,null,null,null,null,null,null,null,null,null,null,null,null,null,137]
["JACLS ALL97 SR-B",null,31500,null,null,null,900,"mg/m2",null,null,null,null,null,null,null,null,null,null,null,null,null,null,70,"mg/m2",120,"mg/m2",null,null,null,null,null,null,null,null,12000,null,"U/m2",null,null,2200,9000,"mg/m2",null,7680,"mg/m2",null,null,45,"mg/m2",null,null,null,null,null,null,null,null,99.6,null,null,null,"維持療法6MP 31500,MTX 2200",null,null,null,null,null,"VCR\nAra-C\n6MP\nMTX po","VCR\nL-Asp\nAra-C","DNR\nMTX iv(d)\nPSL\nDEX\nL-asp\n髄注",null,null,null,"化学療法",null,null,null,null,null,8,null,null,null,null,null,null,null,null,"ダウノルビシン\nメソトレキセート\nL-アスパラギナーゼ\nプレドニゾロン\nデキサメサゾン","ビンクリスチン\nシタラビン\n6MP(メルカプトプリン）\n髄腔内注射",null,null,null,null,null,null,null,null,null,null,null,null,null,null,null,null,null,null,null,138]
["JACLS ALL97 IR-D",null,11200,null,null,null,900,"mg/m2",null,null,null,null,null,null,null,null,null,null,4800,"mg/m2",null,null,70,"mg/m2",330,"mg/m2",null,null,null,null,null,null,null,null,48000,null,"U/m2",null,null,3000,12000,"mg/m2",null,7600,"mg/m2",null,null,39,"mg/m2",45,null,null,null,null,null,null,null,273.89999999999998,null,null,null,"維持療法6MP 11200, VDS 45mg/m2",null,null,null,null,null,"VCR\nAra-C\n6MP\nMTX po\nVDS\nCPM","VCR\nL-Asp\nCPM\nAra-C","DNR\nMTX iv(d)\nPSL\nDEX\nL-asp\n髄注\nCPM",null,null,null,"化学療法",null,null,null,null,"急性リンパ性白血病",8,null,null,null,null,null,null,null,null,"ダウノルビシン\nシクロホスファミド\nメソトレキセート\nL-アスパラギナーゼ\nプレドニゾロン\nデキサメサゾン","ビンクリスチン\nビンデシン\nシタラビン\n6MP(メルカプトプリン）\n髄腔内注射",null,null,null,null,null,null,null,null,null,null,null,null,null,null,null,null,null,null,null,139]
["JACLS ALL97 IR-T",null,11200,null,null,null,900,"mg/m2",null,null,null,null,null,null,null,null,null,null,4800,"mg/m2",null,null,70,"mg/m2",null,null,null,null,null,null,null,null,null,null,48000,null,"U/m2",null,null,3000,12000,"mg/m2",null,7600,"mg/m2",275,"mg/m2",39,"mg/m2",45,null,null,null,null,null,null,null,165,null,null,null,"維持療法6MP 11200, VDS 45mg/m2",null,null,null,null,null,"VCR\nAra-C\n6MP\nMTX po\nVDS\nCPM","VCR\nL-Asp\nCPM\nAra-C","MTX iv(d)\nPSL\nDEX\nL-asp\n髄注\nTHP\nCPM",null,null,null,"化学療法\n放射線療法",null,null,null,null,"急性リンパ性白血病",8,null,"18",null,null,null,null,null,null,"ピラルビシン\nシクロホスファミド\nメソトレキセート\nL-アスパラギナーゼ\nプレドニゾロン\nデキサメサゾン","ビンクリスチン\nビンデシン\nシタラビン\n6MP(メルカプトプリン）\n髄腔内注射",null,null,null,null,null,null,null,null,null,null,null,"１．脳",null,null,null,"施行",null,null,null,140]
["JACLS ALL97 HR-D",null,11200,null,null,null,900,"mg/m2",null,null,null,null,null,null,null,null,null,null,4800,"mg/m2",null,null,70,"mg/m2",330,"mg/m2",null,null,null,null,null,null,null,null,48000,null,"U/m2",null,null,2700,11700,"mg/m2",null,7600,"mg/m2",null,null,39,"mg/m2",45,null,null,null,null,null,null,null,273.89999999999998,null,null,null,"維持療法6MP 11200, VDS 45mg/m2",null,null,null,null,null,"VCR\nAra-C\n6MP\nMTX po\nVDS\nCPM","VCR\nL-Asp\nCPM","DNR\nMTX iv(d)\nPSL\nDEX\nL-asp\n髄注\nCPM",null,null,null,"化学療法\n放射線療法",null,null,null,null,"急性リンパ性白血病",10,null,"18",null,null,null,null,null,null,"ダウノルビシン\nシクロホスファミド\nメソトレキセート\nL-アスパラギナーゼ\nプレドニゾロン\nデキサメサゾン","ビンクリスチン\nビンデシン\nシタラビン\n6MP(メルカプトプリン）\n髄腔内注射",null,null,null,null,null,null,null,null,null,null,null,"頭部",null,null,null,"施行",null,null,null,141]
["JACLS ALL97 HR-T",null,11200,null,null,null,900,"mg/m2",null,null,null,null,null,null,null,null,null,null,4800,"mg/m2",null,null,70,"mg/m2",null,null,null,null,null,null,null,null,null,null,48000,null,"U/m2",null,null,2700,11700,"mg/m2",null,7600,"mg/m2",275,"mg/m2",39,"mg/m2",45,null,null,null,null,null,null,null,165,null,null,null,"維持療法6MP 11200,VDS 45mg/m2",null,null,null,null,null,"VCR\nAra-C\n6MP\nMTX po\nVDS\nCPM","VCR\nL-Asp\nCPM\nAra-C","MTX iv(d)\nPSL\nDEX\nL-asp\n髄注\nTHP\nCPM",null,null,null,"化学療法\n放射線療法",null,null,null,null,"急性リンパ性白血病",10,null,"18",null,null,null,null,null,null,"ピラルビシン\nシクロホスファミド\nメソトレキセート\nL-アスパラギナーゼ\nプレドニゾロン\nデキサメサゾン","ビンクリスチン\nビンデシン\nシタラビン\n6MP(メルカプトプリン）\n髄腔内注射",null,null,null,null,null,null,null,null,null,null,null,"頭部",null,null,null,"施行",null,null,null,142]
["JACLS ALL97 ER (CNS+)",null,10500,null,null,null,7500,"mg/m2",null,null,null,null,null,null,null,null,null,null,10200,"mg/m2",null,null,670,"mg/m2",60,"mg/m2",null,null,null,null,null,null,null,null,40000,null,"U/m2",null,null,3000,10700,"mg/m2",null,6880,"mg/m2",325,"mg/m2",39,"mg/m2",27,null,2500,null,null,"mg/m2",null,null,244.8,null,null,null,"維持療法6MP 10500,VDS 27mg/m2",null,null,null,null,null,"VCR\nAra-C\n6MP\nMTX po\nVDS\nCPM","VCR\nL-Asp\nCPM\nAra-C","DNR\nMTX iv(d)\nPSL\nDEX\nL-asp\n髄注\nTHP\nCPM\nVP iv(d)",null,null,null,"化学療法\n放射線療法",null,null,null,null,"急性リンパ性白血病",13,null,"18",null,null,null,null,null,null,"ピラルビシン\nダウノルビシン\nシクロホスファミド\nメソトレキセート\nL-アスパラギナーゼ\nエトポシド","ビンクリスチン\nビンデシン\nシタラビン\n6MP(メルカプトプリン）\n髄腔内注射\nプレドニゾロン\nデキサメサゾン",null,null,null,null,null,null,null,null,null,null,null,"頭部",null,null,null,"施行",null,null,null,143]
["JACLS ALL97 T (CNS+)",null,10500,null,null,200,200,"mg/m2",null,null,null,null,null,null,null,null,null,null,7800,"mg/m2",null,null,70,"mg/m2",null,null,null,"mg/m2",null,null,null,null,null,null,60000,null,"U/m2",null,null,3000,10700,"mg/m2",null,7120,"mg/m2",125,"mg/m2",27,"mg/m2",43.5,null,null,null,null,null,null,null,275,null,null,null,"維持療法6MP 10500,VDS 27mg/m2",null,null,null,null,null,"VCR\nAra-C\n6MP\nMTX po\nVDS\nCPM","VCR\nL-Asp\nCPM\nAra-C","MTX iv(d)\nPSL\nDEX\nL-asp\n髄注\nADR\nTHP\nCPM\nDXR",null,null,null,"化学療法\n放射線療法",null,null,null,null,"急性リンパ性白血病",12,null,"18",null,null,null,null,null,null,"ピラルビシン\nドキソルビシン\nシクロホスファミド\nメソトレキセート\nL-アスパラギナーゼ","ビンクリスチン\nビンデシン\nシタラビン\n6MP(メルカプトプリン）\n髄腔内注射\nプレドニゾロン\nデキサメサゾン",null,null,null,null,null,null,null,null,null,null,null,"頭部",null,null,null,"施行",null,null,null,144]
["JACLS ALL97 ER (CNS-)",null,10500,null,null,null,7500,"mg/m2",null,null,null,null,null,null,null,null,null,null,10200,"mg/m2",null,null,670,"mg/m2",60,"mg/m2",null,null,null,null,null,null,null,null,40000,null,"U/m2",null,null,3000,11000,"mg/m2",null,6880,"mg/m2",325,"mg/m2",39,"mg/m2",27,null,2500,null,null,"mg/m2",null,null,244.8,null,null,null,"維持療法6MP 10500,VDS 27mg/m2",null,null,null,null,null,"VCR\nAra-C\n6MP\nMTX po\nVDS\nCPM","VCR\nL-Asp\nCPM\nAra-C","DNR\nMTX iv(d)\nPSL\nDEX\nL-asp\n髄注\nTHP\nCPM\nVP iv(d)",null,null,null,"化学療法\n放射線療法",null,null,null,null,"急性リンパ性白血病",11,null,"18",null,null,null,null,null,null,"ピラルビシン\nダウノルビシン\nシクロホスファミド\nメソトレキセート\nL-アスパラギナーゼ\nエトポシド","ビンクリスチン\nビンデシン\nシタラビン\n6MP(メルカプトプリン）\n髄腔内注射\nプレドニゾロン\nデキサメサゾン",null,null,null,null,null,null,null,null,null,null,null,"１．脳",null,null,null,"施行",null,null,null,145]
["JACLS ALL97 T (CNS-)",null,10500,null,null,200,2000,"mg/m2",null,null,null,null,null,null,null,null,null,null,7800,"mg/m2",null,null,70,null,null,null,null,null,null,null,null,null,null,null,60000,null,"U/m2",null,null,3000,8000,null,null,7120,null,125,null,43.5,"mg/m2",43.5,null,null,null,null,null,null,null,275,null,null,null,"維持療法6MP 10500,VDS 27mg/m2",null,null,null,null,null,"VCR\nAra-C\n6MP\nMTX po\nVDS\nCPM","VCR\nL-Asp\nCPM","MTX iv(d)\nPSL\nDEX\nL-asp\n髄注\nADR\nTHP\nCPM\nDXR",null,null,null,"化学療法\n放射線療法",null,null,null,null,null,10,null,null,null,null,null,null,null,null,"ピラルビシン\nドキソルビシン\nシクロホスファミド\nメソトレキセート\nL-アスパラギナーゼ","ビンクリスチン\nビンデシン\nシタラビン\n6MP(メルカプトプリン）\n髄腔内注射\nプレドニゾロン\nデキサメサゾン",null,null,null,null,null,null,null,null,null,null,null,null,null,null,null,"なし",null,null,null,146]
["JACLS ALL02 SR-A",null,31500,null,null,null,900,"mg/m2",null,null,null,null,null,null,null,null,null,null,1500,"mg/m2",null,null,70,"mg/m2",null,null,null,null,null,null,null,null,null,null,72000,null,"U/m2",null,null,2200,6000,"mg/m2",null,7625,"mg/m2",90,"mg/m2",43.5,"mg/m2",null,null,null,null,null,null,null,null,54,null,null,null,"維持療法6MP 31500, MTX 2200mg/m2",null,null,null,null,null,"VCR\nAra-C\n6MP\nMTX po\nCPM","VCR\nL-Asp\nCPM\nAra-C","THP\nCPM\nMTX iv(d)\nPSL\nDEX\nL-asp\n髄注",null,null,null,"化学療法",null,null,null,null,"急性リンパ性白血病",111,null,null,null,null,null,null,null,null,"ピラルビシン\nシクロホスファミド\nメソトレキセート\nL-アスパラギナーゼ\nプレドニゾロン\nデキサメサゾン","ビンクリスチン\nシタラビン\n6MP(メルカプトプリン）\n髄腔内注射\n",null,null,null,null,null,null,null,null,null,null,null,null,null,null,null,null,null,null,null,147]
["JACLS ALL02 SR-B",null,30800,null,null,null,500,"mg/m2",null,null,null,null,null,null,null,null,null,null,1500,"mg/m2",null,null,120,"mg/m2",null,null,null,null,null,null,null,null,null,null,72000,null,"U/m2",null,null,2200,6000,"mg/m2",null,7625,"mg/m2",90,"mg/m2",43.5,"mg/m2",null,null,null,null,null,null,null,null,54,null,null,null,"VCR 43.5mg/m2, L-asp 7.2万/m2, 維持療法6MP 30800, MTX 2200mg/m2",null,null,null,null,null,"VCR\nAra-C\n6MP\nMTX po\nCPM","VCR\nL-Asp\nCPM\nAra-C","THP\nCPM\nMTX iv(d)\nPSL\nDEX\nL-asp\n髄注",null,null,null,"化学療法",null,null,null,null,"急性リンパ性白血病",111,null,null,null,null,null,null,null,null,"ピラルビシン\nシクロホスファミド\nメソトレキセート\nL-アスパラギナーゼ\nプレドニゾロン\nデキサメサゾン","ビンクリスチン\nシタラビン\n6MP(メルカプトプリン）\n髄腔内注射",null,null,null,null,null,null,null,null,null,null,null,null,null,null,null,null,null,null,null,148]
["JACLS ALL02 HR-A(CNS+)",null,12600,null,null,null,1800,"mg/m2",null,null,null,null,null,null,null,null,null,null,7600,"mg/m2",null,null,70,"mg/m2",null,null,null,null,null,null,null,null,null,null,312000,null,"U/m2",null,null,3300,9300,"mg/m2",null,5945,"mg/m2",290,"mg/m2",46.5,"mg/m2",null,null,null,null,null,null,null,null,174,null,null,null,"VCR 46.5mg/m2, L-asp 31.2万/m2, 維持療法6MP 12600,",null,null,null,null,null,"VCR\nAra-C\n6MP\nMTX po\nCPM","VCR\nL-Asp\nCPM\nAra-C","THP\nCPM\nMTX iv(d)\nPSL\nDEX\nL-asp\n髄注",null,null,null,"化学療法\n放射線療法",null,null,null,null,"急性リンパ性白血病",131,null,"12",null,null,null,null,null,null,"ピラルビシン\nシクロホスファミド\nメソトレキセート\nL-アスパラギナーゼ\nプレドニゾロン\nデキサメサゾン","ビンクリスチン\nシタラビン\n6MP(メルカプトプリン）\n髄腔内注射",null,null,null,null,null,null,null,null,null,null,null,"頭部",null,null,null,"施行",null,null,null,149]
["JACLS ALL02 HR-B(CNS+)",null,11200,null,null,null,1000,"mg/m2",null,null,null,null,null,null,null,null,null,null,7600,"mg/m2",null,null,170,"mg/m2",null,null,null,null,null,null,null,null,null,null,312000,null,"U/m2",null,null,3300,9300,"mg/m2",null,5945,"mg/m2",290,"mg/m2",46.5,"mg/m2",null,null,null,null,null,null,null,null,174,null,null,null,null,null,null,null,null,null,"VCR\nAra-C\n6MP\nMTX po\nCPM","VCR\nL-Asp\nCPM\nAra-C","THP\nCPM\nMTX iv(d)\nPSL\nDEX\nL-asp\n髄注",null,null,null,"化学療法\n放射線療法",null,null,null,null,"急性リンパ性白血病",131,null,"12",null,null,null,null,null,null,"ピラルビシン\nシクロホスファミド\nメソトレキセート\nL-アスパラギナーゼ\nプレドニゾロン\nデキサメサゾン","ビンクリスチン\nシタラビン\n6MP(メルカプトプリン）\n髄腔内注射",null,null,null,null,null,null,null,null,null,null,null,"頭部",null,null,null,"施行",null,null,null,150]
["JACLS ALL02 ER (CNS+)",null,10200,null,null,null,20500,"mg/m2",null,null,null,null,null,null,null,null,null,null,8200,"mg/m2",null,null,670,"mg/m2",null,null,null,null,null,null,null,null,null,null,352000,null,"U/m2",null,null,3300,9300,"mg/m2",null,6505,"mg/m2",410,"mg/m2",52.5,"mg/m2",null,null,1500,null,null,"mg/m2",null,null,246,null,null,null,"VCR 52.5mg/m2, L-asp 35.2万/m2, 維持療法6MP 10200",null,null,null,null,null,"VCR\nAra-C\n6MP\nMTX po\nCPM","VCR\nL-Asp\nCPM","THP\nCPM\nMTX iv(d)\nPSL\nDEX\nL-asp\n髄注\nVP iv(d)",null,null,null,"化学療法\n放射線療法",null,null,null,null,"急性リンパ性白血病",141,null,"12",null,null,null,null,null,null,"ピラルビシン\nシクロホスファミド\nメソトレキセート\nL-アスパラギナーゼ\nプレドニゾロン\nデキサメサゾン\nエトポシド","ビンクリスチン\nシタラビン\n6MP(メルカプトプリン）\n髄腔内注射",null,null,null,null,null,null,null,null,null,null,null,"頭部",null,null,null,"施行",null,null,null,151]
["JACLS ALL02 T (CNS+)",null,23800,null,null,null,1800,"mg/m2",null,null,null,null,null,null,null,null,null,null,5400,"mg/m2",null,null,210,"mg/m2",null,null,null,null,null,null,null,null,null,null,246000,null,"U/m2",null,null,900,6900,"mg/m2",null,4155,"mg/m2",240,"mg/m2",24,"mg/m2",null,null,null,null,null,null,null,null,144,null,null,null,"VCR 24mg/m2, L-asp 24.6万/m2, 維持療法6MP 23800, MTX 1200mg/m2",null,null,null,null,null,"VCR\nAra-C\n6MP\nMTX po\nCPM","VCR\nL-Asp\nCPM\nAra-C","THP\nCPM\nMTX iv(d)\nPSL\nDEX\nL-asp\n髄注",null,null,null,"化学療法\n放射線療法",null,null,null,null,"急性リンパ性白血病",121,null,"12",null,null,null,null,null,null,"ピラルビシン\nシクロホスファミド\nメソトレキセート\nL-アスパラギナーゼ\nプレドニゾロン\nデキサメサゾン","ビンクリスチン\nシタラビン\n6MP(メルカプトプリン）\n髄腔内注射",null,null,null,null,null,null,null,null,null,null,null,"頭部",null,null,null,"施行",null,null,null,152]
["JACLS ALL02 HR-A(CNS-)",null,12600,null,null,null,1800,"mg/m2",null,null,null,null,null,null,null,null,null,null,7600,"mg/m2",null,null,70,"mg/m2",null,null,null,null,null,null,null,null,null,null,312000,null,"U/m2",null,null,3600,9600,"mg/m2",null,5945,"mg/m2",290,"mg/m2",46.5,"mg/m2",null,null,null,null,null,null,null,null,174,null,null,null,"VCR 46.5mg/m2, L-asp 31.2万/m2, 維持療法6MP 12600",null,null,null,null,null,"VCR\nAra-C\n6MP\nMTX po\nCPM","VCR\nL-Asp\nCPM\nAra-C","THP\nCPM\nMTX iv(d)\nPSL\nDEX\nL-asp\n髄注",null,null,null,"化学療法",null,null,null,null,null,141,null,null,null,null,null,null,null,null,"ピラルビシン\nシクロホスファミド\nメソトレキセート\nL-アスパラギナーゼ\nプレドニゾロン\nデキサメサゾン","ビンクリスチン\nシタラビン\n6MP(メルカプトプリン）\n髄腔内注射",null,null,null,null,null,null,null,null,null,null,null,null,null,null,null,"なし",null,null,null,153]
["JACLS ALL02 HR-B(CNS-)",null,11200,null,null,null,1000,"mg/m2",null,null,null,null,null,null,null,null,null,null,7600,"mg/m2",null,null,170,"mg/m2",null,null,null,null,null,null,null,null,null,null,312000,null,"U/m2",null,null,3600,9600,"mg/m2",null,5945,"mg/m2",290,"mg/m2",46.5,"mg/m2",null,null,null,null,null,null,null,null,174,null,null,null,"維持療法6MP 11200",null,null,null,null,null,"VCR\nAra-C\n6MP\nMTX po\nCPM","VCR\nL-Asp\nCPM\nAra-C","THP\nCPM\nMTX iv(d)\nPSL\nDEX\nL-asp\n髄注",null,null,null,"化学療法",null,null,null,null,null,141,null,null,null,null,null,null,null,null,"ピラルビシン\nシクロホスファミド\nメソトレキセート\nL-アスパラギナーゼ\nプレドニゾロン\nデキサメサゾン","ビンクリスチン\nシタラビン\n6MP(メルカプトプリン）\n髄腔内注射",null,null,null,null,null,null,null,null,null,null,null,null,null,null,null,"なし",null,null,null,154]
["JACLS ALL02 ER (CNS-)",null,10200,null,null,null,20500,"mg/m2",null,null,null,null,null,null,null,null,null,null,8200,"mg/m2",null,null,670,"mg/m2",null,null,null,null,null,null,null,null,null,null,352000,null,"U/m2",null,null,3600,9600,"mg/m2",null,6505,"mg/m2",410,"mg/m2",52.5,"mg/m2",null,null,1500,null,null,"mg/m2",null,null,246,null,null,null,"維持療法6MP 11200",null,null,null,null,null,"VCR\nAra-C\n6MP\nMTX po\nCPM","VCR\nL-Asp\nCPM\nAra-C","THP\nCPM\nMTX iv(d)\nPSL\nDEX\nL-asp\n髄注\nVP iv(d)",null,null,null,"化学療法",null,null,null,null,null,141,null,null,null,null,null,null,null,null,"ピラルビシン\nシクロホスファミド\nメソトレキセート\nエトポシド\nL-アスパラギナーゼ\nプレドニゾロン\nデキサメサゾン","ビンクリスチン\nシタラビン\n6MP(メルカプトプリン）\n髄腔内注射",null,null,null,null,null,null,null,null,null,null,null,null,null,null,null,"なし",null,null,null,155]
["JACLS ALL02 T (CNS-)WBC<10万",null,23800,null,null,null,1800,"mg/m2",null,null,null,null,null,null,null,null,null,null,5400,"mg/m2",null,null,210,"mg/m2",null,null,null,null,null,null,null,null,null,null,266000,null,"U/m2",null,null,900,6900,"mg/m2",null,4155,"mg/m2",240,"mg/m2",24,"mg/m2",null,null,null,null,null,null,null,null,144,null,null,null,"VCR 24mg/m2, L-asp 24.6万/m2, 維持療法6MP 23800, MTX 1200mg/m2",null,null,null,null,null,"VCR\nAra-C\n6MP\nMTX po\nCPM","VCR\nL-Asp\nCPM\nAra-C","THP\nCPM\nMTX iv(d)\nPSL\nDEX\nL-asp\n髄注",null,null,null,"化学療法",null,null,null,null,null,121,null,null,null,null,null,null,null,null,"ピラルビシン\nシクロホスファミド\nメソトレキセート\nL-アスパラギナーゼ\nプレドニゾロン\nデキサメサゾン","ビンクリスチン\nシタラビン\n6MP(メルカプトプリン）\n髄腔内注射",null,null,null,null,null,null,null,null,null,null,null,null,null,null,null,"なし",null,null,null,156]
["JACLS ALL02 T (CNS-)WBC>10万",null,23800,null,null,null,1800,"mg/m2",null,null,null,null,null,null,null,null,null,null,5400,"mg/m2",null,null,210,"mg/m2",null,null,null,null,null,null,null,null,null,null,246000,null,"U/m2",null,null,900,6900,"mg/m2",null,4155,"mg/m2",240,"mg/m2",24,"mg/m2",null,null,null,null,null,null,null,null,144,null,null,null,"維持療法6MP 23800, MTX 1200mg/m2",null,null,null,null,null,"VCR\nAra-C\n6MP\nMTX po\nCPM","VCR\nL-Asp\nCPM\nAra-C","THP\nCPM\nMTX iv(d)\nPSL\nDEX\nL-asp\n髄注",null,null,null,"化学療法\n放射線療法",null,null,null,null,null,121,null,null,null,null,null,null,null,null,"ピラルビシン\nシクロホスファミド\nメソトレキセート\nL-アスパラギナーゼ\nプレドニゾロン\nデキサメサゾン","ビンクリスチン\nシタラビン\n6MP(メルカプトプリン）\n髄腔内注射",null,null,null,null,null,null,null,null,null,null,null,null,null,null,null,"施行",null,null,null,156]
["ALL811　SR　 A群 (CCLSG)",null,34125,null,null,null,null,null,null,null,null,null,null,null,null,null,null,null,null,null,null,null,null,null,null,null,null,null,null,null,null,null,null,null,null,null,null,null,null,8100,18000,"mg/m2",null,25230,"mg/m2",null,null,86,"mg/m2",null,null,null,null,null,null,null,null,null,null,null,null,"6MP 34125mg/m2, MTX 8100mg/m2 po",null,null,null,null,null,"VCR\n6MP\nMTX po","VCR","MTX iv(d)\nPSL\n髄注",null,null,null,"放射線療法\n化学療法",null,null,null,null,null,3,null,"18",null,null,null,null,null,null,"メソトレキセート\nプレドニゾロン\nビンクリスチン\n6MP(メルカプトプリン）\n髄腔内注射",null,null,null,null,null,null,null,null,null,null,null,null,"頭部",null,null,null,"施行",null,null,null,157]
["ALL811　SR　B群 (CCLSG)",null,50750,null,null,null,null,null,null,null,null,null,null,null,null,null,null,null,null,null,null,null,null,null,null,null,null,null,null,null,null,null,null,null,null,null,null,null,null,2940,18000,"mg/m2",null,25230,"mg/m2",null,null,86,"mg/m2",null,null,null,null,null,null,null,null,null,null,null,null,"6MP 50750mg/m2, MTX 2940mg/m2 po",null,null,null,null,null,"VCR\n6MP\nMTX po","VCR","MTX iv(d)\nPSL\n髄注",null,null,null,"化学療法\n放射線療法",null,null,null,null,null,3,null,"18",null,null,null,null,null,null,"メソトレキセート\nプレドニゾロン\nビンクリスチン\n6MP(メルカプトプリン）\n髄腔内注射",null,null,null,null,null,null,null,null,null,null,null,null,"頭部",null,null,null,"施行",null,null,null,158]
["ALL811　HR　A群 (CCLSG)",null,22750,null,null,300,null,null,null,null,null,null,null,null,null,null,null,null,1200,"mg/m2",null,null,null,null,null,null,null,"mg/m2",null,null,null,null,null,null,null,null,null,null,null,null,6100,"mg/kg",null,17280,"mg/m2",null,null,60,"mg/m2",null,null,null,null,null,null,null,null,300,null,null,null,null,null,null,null,null,null,"6MP\nVCR","VCR\nCPM","ADR\nCPM\nMTX iv(d)\nPSL\n髄注\nDXR",null,null,null,"化学療法\n放射線療法",null,null,null,null,null,3,null,"18",null,null,null,null,null,null,"ドキソルビシン\nシクロホスファミド\nメソトレキセート\nプレドニゾロン\nビンクリスチン\n6MP(メルカプトプリン）\n髄腔内注射",null,null,null,null,null,null,null,null,null,null,null,null,"頭部",null,null,null,"施行",null,null,null,159]
["ALL811　HR　B群 (CCLSG)",null,23325,null,null,540,null,null,null,null,null,null,null,null,null,null,null,null,7800,"mg/m2",null,null,null,null,null,null,null,"mg/m2",null,null,null,null,null,null,null,null,null,null,null,1500,null,null,null,20490,"mg/m2",null,null,110,"mg/m2",null,null,null,null,null,null,null,null,540,null,null,null,"6MP 23325mg/m2, MTX 1500mg/m2 po",null,null,null,null,null,"VCR\n6MP\nMTX po","VCR\nCPM","ADR\nCPM\nPSL\n髄注\nDXR",null,null,null,"化学療法\n放射線療法",null,null,null,null,null,3,null,"18",null,null,null,null,null,null,"ドキソルビシン\nシクロホスファミド\nメソトレキセート\nプレドニゾロン\nビンクリスチン\n6MP(メルカプトプリン）\n髄腔内注射",null,null,null,null,null,null,null,null,null,null,null,null,"頭部",null,null,null,"施行",null,null,null,160]
["ALL841　LR　A群 (CCLSG)",null,34125,null,null,null,null,null,null,null,null,null,null,null,null,null,null,null,null,null,null,null,null,null,null,null,null,null,null,null,null,null,null,null,null,null,null,null,null,5850,30000,"mg/m2",null,25230,"mg/m2",null,null,86,"mg/m2",null,null,null,null,null,null,null,null,null,null,null,null,"6MP 34125mg/m2, MTX 5850mg/m2 po",null,null,null,null,null,"VCR\n6MP\nMTX po","VCR","MTX iv(d)\nPSL\n髄注",null,null,null,"化学療法\n放射線療法",null,null,null,null,null,3,null,"18",null,null,null,null,null,null,"メソトレキセート\nプレドニゾロン\nビンクリスチン\n6MP(メルカプトプリン）\n髄腔内注射",null,null,null,null,null,null,null,null,null,null,null,null,"頭部",null,null,null,"施行",null,null,null,161]
["ALL841　LR　B群 (CCLSG)",null,34125,null,null,null,null,null,null,null,null,null,null,null,null,null,null,null,null,null,null,null,null,null,null,null,null,null,null,null,null,null,null,null,98000,null,"U/m2",null,null,5850,30000,"mg/m2",null,25230,"mg/m2",null,null,86,"mg/m2",null,null,null,null,null,null,null,null,null,null,null,null,"6MP 34125mg/m2, MTX 8100mg/m2 po",null,null,null,null,null,"6MP\nMTX po\nVCR","VCR\nL-Asp","髄注\nL-asp\nPSL\nMTX iv(d)",null,null,null,"化学療法\n放射線療法",null,null,null,null,null,3,null,"18",null,null,null,null,null,null,"ドキソルビシン\nシクロホスファミド\nメソトレキセート\nプレドニゾロン\nビンクリスチン\n6MP(メルカプトプリン）\nL-アスパラギナーゼ","髄腔内注射",null,null,null,null,null,null,null,null,null,null,null,"頭部",null,null,null,"施行",null,null,null,162]
["ALL841　IR　C群 (CCLSG)",null,21875,null,null,540,null,null,null,null,null,null,null,null,null,null,null,null,null,null,null,null,null,null,null,null,null,"mg/m2",null,null,null,null,null,null,20000,null,"U/m2",null,null,null,2650,"mg/kg",null,16830,"mg/m2",null,null,108,"mg/m2",null,null,null,null,null,null,null,null,540,null,null,null,"6MP 21875mg/m2",null,null,null,null,null,"VCR\n6MP","VCR\nL-Asp","ADR\nMTX iv(d)\nPSL\nL-asp\n髄注\nDXR",null,null,null,"化学療法",null,null,null,null,null,1,null,null,null,null,null,null,null,null,"ドキソルビシン\nL-アスパラギナーゼ\nメソトレキセート\nプレドニゾロン\nビンクリスチン\n6MP(メルカプトプリン）\n髄腔内注射",null,null,null,null,null,null,null,null,null,null,null,null,null,null,null,null,"なし",null,null,null,163]
["ALL851　HR　A群 (CCLSG)",null,22750,null,null,240,null,null,null,null,null,null,null,null,null,null,null,null,1200,"mg/m2",null,null,null,null,null,null,null,"mg/m2",null,null,null,null,null,null,null,null,null,null,null,null,183000,"mg/m2",null,17430,"mg/m2",null,null,72,"mg/m2",null,null,null,null,null,null,null,null,240,null,null,null,null,null,null,null,null,null,"VCR\n6MP","CPM\nVCR","ADR\nCPM\nMTX iv(d)\nPSL\n髄注\nDXR",null,null,null,"化学療法",null,null,null,null,null,3,null,null,null,null,null,null,null,null,"ドキソルビシン\nシクロホスファミド\nメソトレキセート\nプレドニゾロン\nビンクリスチン\n6MP(メルカプトプリン）\n髄腔内注射",null,null,null,null,null,null,null,null,null,null,null,null,null,null,null,null,"なし",null,null,null,164]
["ALL851　HR B群 (CCLSG)",null,23100,null,null,460,null,null,null,null,null,null,null,null,null,null,null,null,7800,"mg/m2",null,null,null,null,null,null,null,"mg/m2",null,null,null,null,null,null,null,null,null,null,null,1320,27000,"mg/m2",null,14150,"mg/m2",null,null,108,"mg/m2",null,null,null,null,null,null,null,null,460,null,null,null,"6MP 23100mg/m2, MTX 1320mg/m2 po",null,null,null,null,null,"6MP\nMTX po\nVCR","CPM\nVCR","ADR\nCPM\nMTX iv(d)\nPSL\n髄注\nDXR",null,null,null,"化学療法",null,null,null,null,null,3,null,null,null,null,null,null,null,null,"ドキソルビシン\nシクロホスファミド\nメソトレキセート\nプレドニゾロン\nビンクリスチン\n6MP(メルカプトプリン）\n髄腔内注射",null,null,null,null,null,null,null,null,null,null,null,null,null,null,null,null,"なし",null,null,null,165]
["ALL874 LR A群 (CCLSG)",null,34125,null,null,null,null,null,null,null,null,null,null,null,null,null,null,null,null,null,null,null,null,null,null,null,null,null,null,null,null,null,null,null,20000,null,"U/m2",null,null,8775,null,null,null,25230,"mg/m2",null,null,86,"mg/m2",null,null,null,null,null,null,null,null,null,null,null,null,"6MP 34125mg/m2, MTX 8775mg/m2 po",null,null,null,null,null,"MTX po\n6MP\nVCR","VCR\nL-Asp","PSL\nL-asp\n髄注",null,null,null,"化学療法\n放射線療法",null,null,null,null,null,3,null,"18",null,null,null,null,null,null,"L-アスパラギナーゼ\nメソトレキセート\nプレドニゾロン\nビンクリスチン\n6MP(メルカプトプリン）\n髄腔内注射",null,null,null,null,null,null,null,null,null,null,null,null,"頭部",null,null,null,"施行",null,null,null,166]
["ALL874　LR　B群 (CCLSG)",null,34125,null,null,null,null,null,null,null,null,null,null,null,null,null,null,null,null,null,null,null,null,null,null,null,null,null,null,null,null,null,null,null,20000,null,"U/m2",null,null,8100,6000,"mg/m2",null,25230,"mg/m2",null,null,86,"mg/m2",null,null,null,null,null,null,null,null,null,null,null,null,"6MP 34125mg/m2, MTX 8100mg/m2 po",null,null,null,null,null,"VCR\n6MP\nMTX po","VCR\nL-Asp","MTX iv(d)\nPSL\nL-asp\n髄注",null,null,null,"化学療法",null,null,null,null,null,14,null,null,null,null,null,null,null,null,"L-アスパラギナーゼ\nメソトレキセート\nプレドニゾロン\nビンクリスチン\n6MP(メルカプトプリン）\n髄腔内注射",null,null,null,null,null,null,null,null,null,null,null,null,null,null,null,null,"なし",null,null,null,167]
["ALL874　IR　A群 (CCLSG)",null,19250,null,null,420,null,null,null,null,null,null,null,null,null,null,null,null,null,null,null,null,null,null,null,null,null,"mg/m2",null,null,null,null,null,null,64000,null,"U/m2",null,null,225,92,"mg/kg",null,15030,"mg/m2",null,null,94,"mg/m2",null,null,null,null,null,null,null,null,420,null,null,null,"6MP 19250mg/m2, MTX 225mg/m2 po",null,null,null,null,null,"VCR\n6MP\nMTX po","VCR\nL-Asp","ADR\nMTX iv(d)\nPSL\nL-asp\n髄注\nDXR",null,null,null,"化学療法\n放射線療法",null,null,null,null,null,3,null,"18",null,null,null,null,null,null,"ドキソルビシン\nL-アスパラギナーゼ\nメソトレキセート\nプレドニゾロン\nビンクリスチン\n6MP(メルカプトプリン）\n髄腔内注射",null,null,null,null,null,null,null,null,null,null,null,null,"頭部",null,null,null,"施行",null,null,null,168]
["ALL874　IR　B群 (CCLSG)",null,18375,null,null,450,null,null,null,null,null,null,null,null,null,null,null,null,null,null,null,null,null,null,null,null,null,"mg/m2",null,null,null,null,null,null,64000,null,"U/m2",null,null,null,105.5,"mg/kg",null,13680,"mg/m2",null,null,88,"mg/m2",null,null,null,null,null,null,null,null,450,null,null,null,"6MP 18375mg/m2",null,null,null,null,null,"VCR\n6MP","VCR\nL-Asp","ADR\nMTX iv(d)\nPSL\nL-asp\n髄注\nDXR",null,null,null,"化学療法",null,null,null,null,null,1,null,null,null,null,null,null,null,null,"L-アスパラギナーゼ\nメソトレキセート\nプレドニゾロン\nビンクリスチン\n6MP(メルカプトプリン）\n髄腔内注射",null,null,null,null,null,null,null,null,null,null,null,null,null,null,null,null,"なし",null,null,null,169]
["ALL874　HR　 A群 (CCLSG)",null,31290,null,null,225,3600,"mg/m2",null,null,null,null,null,null,null,null,null,null,2400,"mg/m2",null,null,null,null,null,null,null,"mg/m2",null,null,null,null,null,null,38000,null,"U/m2",null,null,6750,7500,"mg/m2",null,22270,"mg/m2",null,null,84,"mg/m2",null,null,null,null,null,null,null,null,225,null,null,null,null,null,null,null,null,null,"VCR\nAra-C\n6MP\nMTX po","VCR\nL-Asp\nCPM\nAra-C","ADR\nCPM\nMTX iv(d)\nPSL\nL-asp\n髄注\nDXR",null,null,null,"化学療法\n放射線療法",null,null,null,null,null,8,null,"24",null,null,null,null,null,null,"ドキソルビシン\nシクロホスファミド\nメソトレキセート\nL-アスパラギナーゼ\nプレドニゾロン","ビンクリスチン\nシタラビン\n6MP(メルカプトプリン）\n髄腔内注射",null,null,null,null,null,null,null,null,null,null,null,"頭部",null,null,null,"施行",null,null,null,170]
["ALL874　HR　 B群 (CCLSG)",null,26250,null,null,225,18000,null,null,null,null,null,null,null,null,"mg/m2",null,null,3600,"mg/m2",null,null,null,null,null,null,null,"mg/m2",null,null,null,null,null,null,38000,null,"U/m2",null,null,6750,7500,"mg/kg",null,22270,"mg/m2",null,null,84,"mg/m2",null,null,null,null,null,null,null,null,225,null,null,null,null,null,null,null,null,null,"MTX po\n6MP\nAra-C\nVCR","VCR\nL-Asp\nCPM\nAra-C","ADR\nCPM\nMTX iv(d)\nPSL\nL-asp\n髄注\nDXR",null,null,null,"化学療法\n放射線療法",null,null,null,null,null,8,null,"24",null,null,null,null,null,null,"ドキソルビシン\nシクロホスファミド\nメソトレキセート\nL-アスパラギナーゼ\nプレドニゾロン","ビンクリスチン\nシタラビン\n6MP(メルカプトプリン）\n髄腔内注射",null,null,null,null,null,null,null,null,null,null,null,"頭部",null,null,null,"施行",null,null,null,171]
["ALL911　LR (CCLSG)",null,29250,null,null,null,null,null,null,null,null,null,null,null,null,null,null,null,null,null,null,null,null,null,null,null,null,null,null,null,null,null,null,null,24000,null,"U/m2",null,null,6900,6000,"mg/m2",null,17430,"mg/m2",450,"mg/m2",60,"mg/m2",null,null,null,null,null,null,null,null,270,null,null,null,"6MP 29250mg/m2, MTX 6900mg/m2 po",null,null,null,null,null,"VCR\n6MP\nMTX po","VCR\nL-Asp","THP\nMTX iv(d)\nPSL\nL-asp\n髄注",null,null,null,"化学療法",null,null,null,null,null,12,null,null,null,null,null,null,null,null,"ピラルビシン\nメソトレキセート\nL-アスパラギナーゼ\nプレドニゾロン\nビンクリスチン\n6MP(メルカプトプリン）\n髄腔内注射",null,null,null,null,null,null,null,null,null,null,null,null,null,null,null,null,"なし",null,null,null,172]
["ALL911　IR (CCLSG)",null,33110,null,null,null,2400,"mg/m2",null,null,null,null,null,null,null,null,null,null,1600,"mg/m2",null,null,null,null,null,null,null,null,null,null,null,null,null,null,44000,null,"U/m2",null,null,7650,null,null,null,24370,"mg/m2",450,"mg/m2",92,"mg/m2",null,null,null,null,null,null,null,null,270,null,null,null,"6MP 33110mg/m2, MTX 7650mg/m2 po",null,null,null,null,null,"MTX po\n6MP\nAra-C\nVCR","VCR\nL-Asp\nCPM\nAra-C","THP\nCPM\nPSL\nL-asp\n髄注",null,null,null,"化学療法",null,null,null,null,null,28,null,null,null,null,null,null,null,null,"ピラルビシン\nシクロホスファミド\nメソトレキセート\nL-アスパラギナーゼ\nプレドニゾロン","ビンクリスチン\nシタラビン\n6MP(メルカプトプリン）\n髄腔内注射",null,null,null,null,null,null,null,null,null,null,null,null,null,null,null,"なし",null,null,null,173]
["ALL911　HR (CCLSG)",null,31600,null,null,225,3600,"mg/m2",null,null,null,null,null,null,null,null,null,null,2400,"mg/m2",null,null,null,null,null,null,null,"mg/m2",null,null,null,null,null,null,44000,null,"U/m2",null,null,7200,null,null,null,23470,"mg/m2",240,"mg/m2",88,"mg/m2",null,null,null,null,null,null,null,null,369,null,null,null,"6MP 31600mg/m2, MTX 7200mg/m2 po",null,null,null,null,null,"VCR\nAra-C\nMTX po\n6MP","VCR\nL-Asp\nCPM\nAra-C","ADR\nTHP\nCPM\nPSL\nL-asp\n髄注\nDXR",null,null,null,"化学療法\n放射線療法",null,null,null,null,null,6,null,"18",null,null,null,null,null,null,"ドキソルビシン\nピラルビシン\nシクロホスファミド\nメソトレキセート\nL-アスパラギナーゼ\nプレドニゾロン","ビンクリスチン\nシタラビン\n6MP(メルカプトプリン）\n髄腔内注射",null,null,null,null,null,null,null,null,null,null,null,"頭部",null,null,null,"施行",null,null,null,174]
["ALL911　H-HR (CCLSG)",null,23415,null,null,225,10800,"mg/m2",null,null,null,null,null,null,null,null,null,null,2400,"mg/m2",null,null,null,null,null,null,null,"mg/m2",null,null,null,null,null,null,44000,null,"U/m2",null,null,4725,null,null,null,16870,"mg/m2",180,"mg/m2",66,"mg/m2",null,null,3600,null,null,"mg/m2",null,null,333,null,null,null,null,null,null,null,null,null,"VCR\nAra-C\n6MP\nMTX po","VCR\nL-Asp\nCPM\nAra-C","ADR\nTHP\nCPM\nVP iv(d)\nPSL\nL-asp\n髄注\nDXR",null,null,null,"化学療法\n放射線療法",null,null,null,null,null,6,null,"24",null,null,null,null,null,null,"ドキソルビシン\nピラルビシン\nシクロホスファミド\nメソトレキセート\nL-アスパラギナーゼ\nエトポシド\nプレドニゾロン","ビンクリスチン\nシタラビン\n6MP(メルカプトプリン）\n髄腔内注射",null,null,null,null,null,null,null,null,null,null,null,"頭部",null,null,null,"施行",null,null,null,175]
["ALL941　LR (CCLSG)",null,32500,null,null,null,null,null,null,null,null,null,null,null,null,null,null,null,null,null,null,null,null,null,null,null,null,null,null,null,null,null,null,null,76000,null,"U/m2",null,null,5175,1500,"mg/m2",null,17430,"mg/m2",null,null,60,"mg/m2",null,null,null,null,null,null,null,null,null,null,null,null,"6MP 32500mg/m2, MTX 5175mg/m2 po",null,null,null,null,null,"VCR\n6MP\nMTX po","VCR\nL-Asp","MTX iv(d)\nPSL\nL-asp\n髄注",null,null,null,"化学療法",null,null,null,null,null,16,null,null,null,null,null,null,null,null,"L-アスパラギナーゼ\nメソトレキセート\nプレドニゾロン\nビンクリスチン\n6MP(メルカプトプリン）\n髄腔内注射",null,null,null,null,null,null,null,null,null,null,null,null,null,null,null,null,"なし",null,null,null,176]
["ALL941　IR (CCLSG)",null,48750,null,null,25,3200,"mg/m2",null,null,null,null,null,null,null,null,null,null,3200,"mg/m2",null,null,null,null,null,null,null,"mg/m2",null,null,null,null,null,null,94000,null,"U/m2",null,null,7200,1500,"mg/m2",null,22830,"mg/m2",180,"mg/m2",78,"mg/m2",null,null,null,null,null,null,null,null,133,null,null,null,"6MP 48750mg/m2, MTX 7200mg/m2 po",null,null,null,null,null,"VCR\nMTX po\n6MP\nAra-C","L-Asp\nVCR\nCPM\nAra-C","ADR\nTHP\nCPM\nMTX iv(d)\nPSL\nL-asp\n髄注\nDXR",null,null,null,"化学療法",null,null,null,null,null,20,null,null,null,null,null,null,null,null,"ドキソルビシン\nピラルビシン\nシクロホスファミド\nメソトレキセート\nL-アスパラギナーゼ\nプレドニゾロン","ビンクリスチン\nシタラビン\n6MP(メルカプトプリン）\n髄腔内注射",null,null,null,null,null,null,null,null,null,null,null,null,null,null,null,"なし",null,null,null,177]
["ALL941　HR　化学療法群 (CCLSG)",null,46250,null,null,75,6400,"mg/m2",null,null,null,null,null,null,null,null,null,null,6400,"mg/m2",null,null,null,null,null,null,null,"mg/m2",null,null,null,null,null,null,188000,null,"U/m2",null,null,5850,1500,"mg/m2",null,21060,"mg/m2",640,"mg/m2",74,"mg/m2",null,null,null,null,null,null,null,null,459,null,null,null,"6MP 46250mg/m2, MTX 5850mg/m2 po",null,null,null,null,null,"MTX po\n6MP\nAra-C\nVCR","VCR\nL-Asp\nCPM\nAra-C","PSL\nL-asp\n髄注\nMTX iv(d)\nCPM\nADR\nTHP\nDXR",null,null,null,"化学療法\n放射線療法",null,null,null,null,null,6,null,"18",null,null,null,null,null,null,"ドキソルビシン\nピラルビシン\nシクロホスファミド\nメソトレキセート\nL-アスパラギナーゼ\nプレドニゾロン","ビンクリスチン\nシタラビン\n6MP(メルカプトプリン）\n髄腔内注射",null,null,null,null,null,null,null,null,null,null,null,"頭部",null,null,null,"施行",null,null,null,178]
["ALL941　HR　PBSCT群(CCLSG)",null,5625,null,null,75,45200,"mg/m2",null,null,null,null,null,null,null,null,null,null,3800,"mg/m2",null,null,null,null,null,null,null,"mg/m2",null,null,null,null,null,null,142000,null,"U/m2",null,null,null,1500,"mg/m2",null,5460,"mg/m2",120,"mg/m2",22,"mg/m2",null,null,1900,null,null,"mg/m2",null,null,147,null,null,null,"BCNU 450",null,null,null,null,null,"6MP\nAra-C\nVCR","VCR\nL-Asp\nCPM\nAra-C","ADR\nTHP\nCPM\nMTX iv(d)\nVP iv(d)\nPSL\nL-asp\n髄注\nDXR",null,null,null,"化学療法\n放射線療法\n造血細胞移植",null,null,null,null,null,6,null,"18",null,null,null,null,null,"施行","ドキソルビシン\nピラルビシン\nシクロホスファミド\nメソトレキセート\nL-アスパラギナーゼ\nエトポシド\nプレドニゾロン","ビンクリスチン\nシタラビン\n6MP(メルカプトプリン）\n髄腔内注射\nBCNU",null,null,null,null,null,null,null,null,null,null,null,"頭部",null,null,null,"施行",null,null,null,179]
["ALL941　H-HR　化学療法群 (CCLSG)",null,45625,null,null,75,28200,"mg/m2",null,null,null,null,null,null,null,null,null,null,6400,"mg/m2",null,null,null,null,null,null,null,"mg/m2",null,null,null,null,null,null,194000,null,"U/m2",null,null,5850,1500,"mg/kg",null,21060,"mg/m2",640,"mg/m2",74,"mg/m2",null,null,1200,null,null,"mg/m2",null,null,459,null,null,null,null,null,null,null,null,null,"VCR\nAra-C\n6MP\nMTX po","VCR\nL-Asp\nCPM\nAra-C","髄注\nL-asp\nPSL\nVP iv(d)\nMTX iv(d)\nCPM\nTHP\nADR\nDXR",null,null,null,"化学療法\n放射線療法",null,null,null,null,null,6,null,"18",null,null,null,null,null,null,"ドキソルビシン\nピラルビシン\nシクロホスファミド\nメソトレキセート\nL-アスパラギナーゼ\nエトポシド\nプレドニゾロン","ビンクリスチン\nシタラビン\n6MP(メルカプトプリン）\n髄腔内注射",null,null,null,null,null,null,null,null,null,null,null,"頭部",null,null,null,"施行",null,null,null,180]
["ALL941　H-HRisk　PBSCT群 (CCLSG)",null,5625,null,null,75,47000,"mg/m2",null,null,null,null,null,null,null,null,null,null,4200,"mg/m2",null,null,null,null,null,null,null,"mg/m2",null,null,null,null,null,null,142000,null,"U/m2",null,null,null,1500,"mg/m2",null,5460,"mg/m2",120,"mg/m2",22,"mg/m2",null,null,2800,null,null,"mg/m2",null,null,147,null,null,null,"6MP 5625mg/m2, MCNU 450",null,null,null,null,null,"VCR\nAra-C\n6MP\nCPM","VCR\nL-Asp\nCPM\nAra-C","髄注\nL-asp\nPSL\nVP iv(d)\nMTX iv(d)\nCPM\nTHP\nADR\nDXR",null,null,null,"化学療法\n放射線療法\n造血細胞移植",null,null,null,null,null,6,null,"18",null,null,null,null,null,"施行","ドキソルビシン\nピラルビシン\nシクロホスファミド\nメソトレキセート\nL-アスパラギナーゼ\nエトポシド\nプレドニゾロン","ビンクリスチン\nシタラビン\n6MP(メルカプトプリン）\n髄腔内注射\nMCNU",null,null,null,null,null,null,null,null,null,null,null,"頭部",null,null,null,"施行",null,null,null,181]
["ALL2000　LR (CCLSG)",null,32500,null,null,25,3200,"mg/m2",null,null,null,null,null,null,null,null,null,null,3200,"mg/m2",null,null,null,null,null,null,null,"mg/m2",null,null,null,null,null,null,68000,null,"U/m2",null,null,4275,1500,"mg/m2",null,15030,"mg/m2",180,"mg/m2",52,"mg/m2",null,null,null,null,null,null,null,null,133,null,null,null,"6MP 32500mg/m2, MTX 4725mg/m2 po",null,null,null,null,null,"VCR\nAra-C\n6MP\nMTX po","VCR\nL-Asp\nCPM\nAra-C","ADR\nTHP\nCPM\nMTX iv(d)\nPSL\nL-asp\n髄注\nDXR",null,null,null,"化学療法",null,null,null,null,null,16,null,null,null,null,null,null,null,null,"ドキソルビシン\nピラルビシン\nシクロホスファミド\nメソトレキセート\nL-アスパラギナーゼ\nプレドニゾロン","ビンクリスチン\nシタラビン\n6MP(メルカプトプリン）\n髄腔内注射",null,null,null,null,null,null,null,null,null,null,null,null,null,null,null,"なし",null,null,null,182]
["ALL2000LR Salvage MRD陽性 (CCLSG)",null,30000,null,null,25,6400,"mg/m2",null,null,null,null,null,null,null,null,null,null,6400,"mg/m2",null,null,null,null,null,null,null,"mg/m2",null,null,null,null,null,null,134000,null,"U/m2",null,null,2925,1500,"mg/m2",null,13260,"mg/m2",380,"mg/m2",48,"mg/m2",null,null,null,null,null,null,null,null,253,null,null,null,"6MP 30000mg/m2, MTX 2925mg/m2 po",null,null,null,null,null,"MTX po\n6MP\nAra-C\nVCR","VCR\nL-Asp\nCPM\nAra-C","ADR\nTHP\nCPM\nMTX iv(d)\nPSL\nL-asp\n髄注\nDXR",null,null,null,"化学療法\n放射線療法",null,null,null,null,null,6,null,"18",null,null,null,null,null,null,"ドキソルビシン\nピラルビシン\nシクロホスファミド\nメソトレキセート\nL-アスパラギナーゼ\nプレドニゾロン","ビンクリスチン\nシタラビン\n6MP(メルカプトプリン）\n髄腔内注射",null,null,null,null,null,null,null,null,null,null,null,"頭部",null,null,null,"施行",null,null,null,183]
["ALL2000　IR (CCLSG)",null,48750,null,null,25,3200,"mg/m2",null,null,null,null,null,null,null,null,null,null,3200,"mg/m2",null,null,null,null,null,null,null,"mg/m2",null,null,null,null,null,null,94000,null,"U/m2",null,null,7200,1500,"mg/m2",null,22830,"mg/m2",180,"mg/m2",78,"mg/m2",null,null,null,null,null,null,null,null,133,null,null,null,"6MP 48750mg/m2, MTX 7200mg/m2 po",null,null,null,null,null,"MTX po\n6MP\nAra-C\nVCR","VCR\nL-Asp\nCPM\nAra-C","ADR\nTHP\nCPM\nMTX iv(d)\nPSL\nL-asp\n髄注\nDXR",null,null,null,"化学療法",null,null,null,null,null,20,null,null,null,null,null,null,null,null,"ドキソルビシン\nピラルビシン\nシクロホスファミド\nメソトレキセート\nL-アスパラギナーゼ\nプレドニゾロン","ビンクリスチン\nシタラビン\n6MP(メルカプトプリン）\n髄腔内注射",null,null,null,null,null,null,null,null,null,null,null,null,null,null,null,"なし",null,null,null,184]
["ALL2000IR　Salvage MRD陽性 (CCLSG)",null,46250,null,null,25,6400,"mg/m2",null,null,null,null,null,null,null,null,null,null,6400,"mg/m2",null,null,null,null,null,null,null,"mg/m2",null,null,null,null,null,null,160000,null,"U/m2",null,null,5850,1500,"mg/m2",null,21060,"mg/m2",640,"mg/m2",74,"mg/m2",null,null,null,null,null,null,null,null,409,null,null,null,null,null,null,null,null,null,"VCR\nAra-C\n6MP\nMTX po","VCR\nL-Asp\nCPM\nAra-C","髄注\nL-asp\nPSL\nMTX iv(d)\nCPM\nTHP\nADR\nDXR",null,null,null,"化学療法\n放射線療法",null,null,null,null,null,6,null,"18",null,null,null,null,null,null,"ドキソルビシン\nピラルビシン\nシクロホスファミド\nメソトレキセート\nL-アスパラギナーゼ\nプレドニゾロン","ビンクリスチン\nシタラビン\n6MP(メルカプトプリン）\n髄腔内注射",null,null,null,null,null,null,null,null,null,null,null,"頭部",null,null,null,"施行",null,null,null,185]
["ALL2000　HR (CCLSG)",null,46250,null,null,75,6400,"mg/m2",null,null,null,null,null,null,null,null,null,null,6400,"mg/m2",null,null,null,null,null,null,null,"mg/m2",null,null,null,null,null,null,188000,null,"U/m2",null,null,5850,1500,"mg/m2",null,21060,"mg/m2",640,"mg/m2",74,"mg/m2",null,null,null,null,null,null,null,null,459,null,null,null,null,null,null,null,null,null,"VCR\nAra-C\n6MP\nMTX po","VCR\nL-Asp\nCPM\nAra-C","ADR\nTHP\nCPM\nMTX iv(d)\nPSL\nL-asp\n髄注\nDXR",null,null,null,"化学療法\n放射線療法",null,null,null,null,null,6,null,"18",null,null,null,null,null,null,"ドキソルビシン\nピラルビシン\nシクロホスファミド\nメソトレキセート\nL-アスパラギナーゼ\nプレドニゾロン","ビンクリスチン\nシタラビン\n6MP(メルカプトプリン）\n髄腔内注射",null,null,null,null,null,null,null,null,null,null,null,"頭部",null,null,null,"施行",null,null,null,186]
["ALL2000HR　SalvageMRD陽性 (CCLSG)",null,45625,null,null,75,26900,"mg/m2",null,null,null,null,null,null,null,null,null,null,6000,"mg/m2",null,null,null,null,null,null,null,"mg/m2",null,null,null,null,null,null,192000,null,"U/m2",null,null,5625,1500,"mg/m2",null,21660,"mg/m2",640,"mg/m2",74,"mg/m2",null,null,750,null,null,"mg/m2",null,null,459,null,null,null,"6MP 45625mg/m2, MTX 5625mg/m2 po",null,null,null,null,null,"MTX po\n6MP\nAra-C\nVCR","VCR\nL-Asp\nCPM\nAra-C","ADR\nTHP\nCPM\nMTX iv(d)\nVP iv(d)\nPSL\nL-asp\n髄注\nDXR",null,null,null,"化学療法\n放射線療法",null,null,null,null,null,6,null,"18",null,null,null,null,null,null,"ドキソルビシン\nピラルビシン\nシクロホスファミド\nメソトレキセート\nL-アスパラギナーゼ\nエトポシド\nプレドニゾロン","ビンクリスチン\nシタラビン\n6MP(メルカプトプリン）\n髄腔内注射",null,null,null,null,null,null,null,null,null,null,null,"頭部",null,null,null,"施行",null,null,null,187]
["ALL2000　H-HR (CCLSG)",null,46250,null,null,75,27800,"mg/m2",null,null,null,null,null,null,null,null,null,null,6400,"mg/m2",null,null,null,null,null,null,null,"mg/m2",null,null,null,null,null,null,194000,null,"U/m2",null,null,5850,1500,"mg/m2",null,20460,"mg/m2",640,"mg/m2",74,"mg/m2",null,null,1200,null,null,"mg/m2",null,null,459,null,null,null,"6MP 46250mg/m2, MTX 5850mg/m2 po",null,null,null,null,null,"MTX po\n6MP\nAra-C\nVCR","VCR\nL-Asp\nCPM\nAra-C","ADR\nTHP\nCPM\nMTX iv(d)\nVP iv(d)\nPSL\nL-asp\n髄注\nDXR",null,null,null,"化学療法\n放射線療法",null,null,null,null,null,6,null,"18",null,null,null,null,null,null,"ドキソルビシン\nピラルビシン\nシクロホスファミド\nメソトレキセート\nL-アスパラギナーゼ\nエトポシド\nプレドニゾロン","ビンクリスチン\nシタラビン\n6MP(メルカプトプリン）\n髄腔内注射",null,null,null,null,null,null,null,null,null,null,null,"頭部",null,null,null,"施行",null,null,null,188]
["ALL2000HHRSalvageMRD陽性 (CCLSG)",null,42500,null,null,75,27400,"mg/m2",null,null,null,null,null,null,null,null,null,null,5600,"mg/m2",null,null,null,null,null,null,null,"mg/m2",null,null,null,null,null,null,216000,null,"U/m2",30,"mg/m2",5400,1500,"mg/m2",null,21100,"mg/m2",540,"mg/m2",81,"mg/m2",null,null,1650,null,null,"mg/m2",null,null,519,null,null,null,"6MP 33110mg/m2, MTX 7650mg/m2 po",null,null,null,null,null,"VCR\nAra-C\n6MP\nMTX po","VCR\nL-Asp\nCPM\nAra-C","ADR\nTHP\nMit\nCPM\nMTX iv(d)\nVP iv(d)\nPSL\nL-asp\n髄注\nDXR",null,null,null,"化学療法\n放射線療法",null,null,null,null,null,9,null,"18",null,null,null,null,null,null,"ドキソルビシン\nピラルビシン\nミトキサントロン\nシクロホスファミド\nメソトレキセート\nL-アスパラギナーゼ\nエトポシド\n","ビンクリスチン\nシタラビン\n6MP(メルカプトプリン）\n髄腔内注射\nプレドニゾロン",null,null,null,null,null,null,null,null,null,null,null,"頭部",null,null,null,"施行",null,null,null,189]
["ALL2004　SR　CNS1.2 (CCLSG)",null,31250,null,null,75,3200,"mg/m2",null,null,null,null,null,null,null,null,null,null,3200,"mg/m2",null,null,null,null,null,null,null,"mg/m2",null,null,null,null,null,null,110000,null,"U/m2",null,null,4275,12000,"mg/m2",null,11830,"mg/m2",40,"mg/m2",50,"mg/m2",null,null,null,null,null,null,null,null,99,null,null,null,"6MP 31250mg/m2, MTX 4725mg/m2 po",null,null,null,null,null,"MTX po\n6MP\nAra-C\nVCR","VCR\nL-Asp\nCPM\nAra-C","ADR\nTHP\nCPM\nMTX iv(d)\nPSL\nL-asp\n髄注\nDXR",null,null,null,"化学療法",null,null,null,null,null,16,null,null,null,null,null,null,null,null,"ドキソルビシン\nピラルビシン\nシクロホスファミド\nメソトレキセート\nL-アスパラギナーゼ\nプレドニゾロン","ビンクリスチン\nシタラビン\n6MP(メルカプトプリン）\n髄腔内注射\n",null,null,null,null,null,null,null,null,null,null,null,null,null,null,null,"なし",null,null,null,190]
["ALL2004　SR　CNS3 (CCLSG)",null,33125,null,null,75,3600,"mg/m2",null,null,null,null,null,null,null,null,null,null,3600,"mg/m2",null,null,null,null,null,null,null,"mg/m2",null,null,null,null,null,null,114000,null,"U/m2",null,null,4950,3000,"mg/m2",null,12430,"mg/m2",40,"mg/m2",52,"mg/m2",null,null,null,null,null,null,null,null,99,null,null,null,null,null,null,null,null,null,"MTX po\n6MP\nAra-C\nVCR","VCR\nL-Asp\nCPM\nAra-C","ADR\nTHP\nCPM\nMTX iv(d)\nPSL\nL-asp\n髄注\nDXR",null,null,null,"化学療法\n放射線療法",null,null,null,null,null,12,null,"18",null,null,null,null,null,null,"ドキソルビシン\nピラルビシン\nシクロホスファミド\nメソトレキセート\nL-アスパラギナーゼ\nプレドニゾロン","ビンクリスチン\nシタラビン\n6MP(メルカプトプリン）\n髄腔内注射",null,null,null,null,null,null,null,null,null,null,null,"頭部",null,null,null,"施行",null,null,null,191]
["ALL2004SR　MDR陽性CNS1.2 (CCLSG)",null,43555,null,null,75,38400,"mg/m2",null,null,null,null,null,null,null,null,null,null,8600,"mg/m2",null,null,330,"mg/m2",240,"mg/m2",null,"mg/m2",null,null,null,null,null,null,248000,null,"U/m2",null,null,5175,18000,"mg/m2",null,15430,"mg/m2",280,"mg/m2",74,"mg/m2",null,null,800,null,null,"mg/m2",null,null,442.2,null,null,null,"6MP 43555mg/m2, MTX 5175mg/m2 po",null,null,null,null,null,"MTX po\n6MP\nAra-C\nVCR","VCR\nL-Asp\nCPM\nAra-C","DNR\nADR\nTHP\nCPM\nMTX iv(d)\nVP iv(d)\nPSL\nDEX\nL-asp\n髄注\nDXR",null,null,null,"化学療法",null,null,null,null,null,22229,null,null,null,null,null,null,null,null,"ドキソルビシン\nピラルビシン\nダウノルビシン\nシクロホスファミド\nメソトレキセート\nL-アスパラギナーゼ\nエトポシド","ビンクリスチン\nシタラビン\n6MP(メルカプトプリン）\n髄腔内注射\nプレドニゾロン\nデキサメサゾン",null,null,null,null,null,null,null,null,null,null,null,null,null,null,null,"なし",null,null,null,192]
["ALL2004SR　MDR陽性　CNS3 (CCLSG)",null,44590,null,null,75,38800,"mg/m2",null,null,null,null,null,null,null,null,null,null,9000,"mg/m2",null,null,330,"mg/m2",240,"mg/m2",null,"mg/m2",null,null,null,null,null,null,284000,null,"U/m2",null,null,5175,4500,"mg/m2",null,16030,"mg/m2",300,"mg/m2",76,"mg/m2",null,null,800,null,null,"mg/m2",null,null,454.2,null,null,null,"6MP 44590mg/m2, MTX 5175mg/m2 po",null,null,null,null,null,"VCR\nAra-C\n6MP\nMTX po","VCR\nL-Asp\nCPM\nAra-C","髄注\nL-asp\nDEX\nPSL\nVP iv(d)\nMTX iv(d)\nCPM\nTHP\nADR\nDNR\nDXR",null,null,null,"化学療法\n放射線療法",null,null,null,null,null,16,null,"18",null,null,null,null,null,null,"ドキソルビシン\nピラルビシン\nダウノルビシン\nシクロホスファミド\nメソトレキセート\nL-アスパラギナーゼ\nエトポシド","ビンクリスチン\nシタラビン\n6MP(メルカプトプリン）\n髄腔内注射\nプレドニゾロン\nデキサメサゾン",null,null,null,null,null,null,null,null,null,null,null,"頭部",null,null,null,"施行",null,null,null,193]
["ALL2004　HR　CNS1.2 (CCLSG)",null,45235,null,null,75,7200,"mg/m2",null,null,null,null,null,null,null,null,null,null,7200,"mg/m2",null,null,330,"mg/m2",150,"mg/m2",null,"mg/m2",null,null,null,null,null,null,200000,null,"U/m2",null,null,5175,27000,"mg/m2",null,15430,"mg/m2",280,"mg/m2",78,"mg/m2",null,null,null,null,null,null,null,null,367.5,null,null,null,"6MP 45235mg/m2, MTX 5175mg/m2 po",null,null,null,null,null,"MTX po\n6MP\nAra-C\nVCR","VCR\nL-Asp\nCPM\nAra-C","DNR\nADR\nTHP\nCPM\nMTX iv(d)\nPSL\nDEX\nL-asp\n髄注\nDXR",null,null,null,"化学療法",null,null,null,null,null,22229,null,null,null,null,null,null,null,null,"ドキソルビシン\nピラルビシン\nダウノルビシン\nシクロホスファミド\nメソトレキセート\nL-アスパラギナーゼ","ビンクリスチン\nシタラビン\n6MP(メルカプトプリン）\n髄腔内注射\nプレドニゾロン\nデキサメサゾン",null,null,null,null,null,null,null,null,null,null,null,null,null,null,null,"なし",null,null,null,194]
["ALL2004 HR  CNS3 (CCLSG)",null,46270,null,null,75,7600,"mg/m2",null,null,null,null,null,null,null,null,null,null,7600,"mg/m2",null,null,330,"mg/m2",150,"mg/m2",null,"mg/m2",null,null,null,null,null,null,214000,null,"U/m2",null,null,5400,4.5,"g/kg",null,16030,"mg/m2",300,"mg/m2",80,"mg/m2",null,null,null,null,null,null,null,null,379.5,null,null,null,null,null,null,null,null,null,"VCR\nAra-C\n6MP\nMTX po","VCR\nL-Asp\nCPM\nAra-C","髄注\nL-asp\nDEX\nPSL\nMTX iv(d)\nCPM\nTHP\nADR\nDNR\nDXR",null,null,null,"化学療法\n放射線療法",null,null,null,null,null,13,null,"18",null,null,null,null,null,null,"ドキソルビシン\nピラルビシン\nダウノルビシン\nシクロホスファミド\nメソトレキセート\nL-アスパラギナーゼ\nエトポシド","ビンクリスチン\nシタラビン\n6MP(メルカプトプリン）\n髄腔内注射\nプレドニゾロン\nデキサメサゾン",null,null,null,null,null,null,null,null,null,null,null,"頭部",null,null,null,"施行",null,null,null,195]
["ALL2004 H-HR  (CCLSG)",null,44590,null,null,75,22800,"mg/m2",null,null,null,null,null,null,null,null,null,null,10200,"mg/m2",null,null,330,"mg/m2",240,"mg/m2",null,"mg/m2",null,null,null,null,null,null,278000,null,"U/m2",null,null,5175,4500,"mg/m2",null,16630,"mg/m2",320,"mg/m2",78,"mg/m2",null,null,400,null,null,"mg/m2",null,null,466.2,null,null,null,"6MP 46270mg/m2, MTX 5400mg/m2 po",null,null,null,null,null,"MTX po\n6MP\nAra-C\nVCR","VCR\nL-Asp\nCPM\nAra-C","DNR\nADR\nTHP\nCPM\nMTX iv(d)\nVP iv(d)\nPSL\nDEX\nL-asp\n髄注\nDXR",null,null,null,"化学療法\n放射線療法",null,null,null,null,null,62313,null,"18",null,null,null,null,null,null,"ドキソルビシン\nピラルビシン\nダウノルビシン\nシクロホスファミド\nメソトレキセート\nL-アスパラギナーゼ\nエトポシド","ビンクリスチン\nシタラビン\n6MP(メルカプトプリン）\n髄腔内注射\nプレドニゾロン\nデキサメサゾン",null,null,null,null,null,null,null,null,null,null,null,"頭部",null,null,null,"施行",null,null,null,196]
["ALL2004 HR＆HHR MDR陽性 (CCLSG)",null,44590,null,null,75,38800,"mg/m2",null,null,null,null,null,null,null,null,null,null,9000,"mg/m2",null,null,330,"mg/m2",240,"mg/m2",null,"mg/m2",null,null,null,null,null,null,284000,null,"U/m2",null,null,5175,4500,"mg/m2",null,16030,"mg/m2",300,"mg/m2",76,"mg/m2",null,null,800,null,null,"mg/m2",null,null,454.2,null,null,null,"6MP 44590mg/m2, MTX 5175mg/m2 po",null,null,null,null,null,"MTX po\n6MP\nAra-C\nVCR","VCR\nL-Asp\nCPM\nAra-C","DNR\nADR\nTHP\nCPM\nMTX iv(d)\nVP iv(d)\nPSL\nDEX\nL-asp\n髄注\nDXR",null,null,null,"化学療法\n放射線療法",null,null,null,null,null,92316,null,"18",null,null,null,null,null,null,"ドキソルビシン\nピラルビシン\nダウノルビシン\nシクロホスファミド\nメソトレキセート\nL-アスパラギナーゼ\nエトポシド","ビンクリスチン\nシタラビン\n6MP(メルカプトプリン）\n髄腔内注射\nプレドニゾロン\nデキサメサゾン",null,null,null,null,null,null,null,null,null,null,null,"頭部",null,null,null,"施行",null,null,null,197]
["NHL855 Stage Ⅰ (CCLSG)",null,1500,null,null,250,3200,"mg/m2",null,null,null,null,null,null,null,null,null,null,6000,"mg/m2",null,null,null,null,null,null,null,"mg/m2",null,null,null,null,null,null,null,null,null,null,null,42,49000,"mg/m2",null,3800,"mg/m2",null,null,16,"mg/m2",null,null,null,null,null,null,null,null,250,null,null,null,"6ＭＰ内服1500mg/m2",null,null,null,null,null,"VCR\nAra-C\n6MP\nMTX po\nCPM","VCR\nCPM\nAra-C","ADR\nCPM\nMTX iv(d)\nPSL\nDXR\n髄注",null,null,null,"化学療法",null,null,null,null,null,6,null,null,null,null,null,null,null,null,"ドキソルビシン\nシクロホスファミド\nメソトレキセート\nビンクリスチン\nシタラビン\n6MP(メルカプトプリン）\nプレドニゾロン",null,null,null,null,null,null,null,null,null,null,null,null,null,null,null,null,"なし",null,null,null,198]
["NHL855 Stage Ⅰ Salvage (CCLSG)",null,1500,null,null,300,3200,"mg/m2",null,null,null,null,null,null,null,null,null,null,7200,"mg/m2",null,null,null,null,null,null,null,"mg/m2",null,null,null,null,null,null,null,null,null,null,null,54,49000,"mg/m2",null,5220,null,null,null,22,"mg/m2",null,null,null,null,null,null,null,null,300,null,null,null,"6MP 1500mg/m2",null,null,null,null,null,"MTX po\n6MP\nAra-C\nVCR\nCPM","VCR\nCPM\nAra-C","ADR\nCPM\nMTX iv(d)\nPSL\nDXR\n髄注",null,null,null,"化学療法",null,null,null,null,null,7,null,null,null,null,null,null,null,null,"ドキソルビシン\nシクロホスファミド\nメソトレキセート\nビンクリスチン\nシタラビン\n6MP(メルカプトプリン）\nプレドニゾロン",null,null,null,null,null,null,null,null,null,null,null,null,null,null,null,null,"なし",null,null,null,199]
["NHL855 Stage Ⅱ～Ⅳ (CCLSG)",null,3000,null,null,450,6400,"mg/m2",null,null,null,null,null,null,null,null,null,null,10800,"mg/m2",null,null,null,null,null,null,null,"mg/m2",null,null,null,null,null,null,null,null,null,null,null,66,89000,"mg/m2",null,6210,"mg/m2",null,null,24,"mg/m2",null,null,null,null,null,null,null,null,450,null,null,null,"6MP 3000mg/m2",null,null,null,null,null,"MTX po\n6MP\nAra-C\nVCR\nCPM","VCR\nCPM\nAra-C","ADR\nCPM\nMTX iv(d)\nPSL\nDXR\n髄注",null,null,null,"化学療法",null,null,null,null,null,10,null,null,null,null,null,null,null,null,"ドキソルビシン\nシクロホスファミド\nメソトレキセート\nビンクリスチン\nシタラビン\n6MP(メルカプトプリン）\nプレドニゾロン",null,null,null,null,null,null,null,null,null,null,null,null,null,null,null,null,"なし",null,null,null,200]
["NHL855 StageⅡ～Ⅳ Salvage (CCLSG)",null,3000,null,null,500,6400,"mg/m2",null,null,null,null,null,null,null,null,null,null,12000,"mg/m2",null,null,null,null,null,null,null,"mg/m2",null,null,null,null,null,null,null,null,null,null,null,78,89000,"mg/m2",null,7620,"mg/m2",null,null,30,"mg/m2",null,null,null,null,null,null,null,null,500,null,null,null,"6MP 3000mg/m2",null,null,null,null,null,"VCR\nAra-C\n6MP\nMTX po\nCPM","VCR\nCPM\nAra-C","PSL\nMTX iv(d)\nCPM\nADR\nDXR\n髄注",null,null,null,"化学療法",null,null,null,null,null,11,null,null,null,null,null,null,null,null,"ドキソルビシン\nシクロホスファミド\nメソトレキセート\nビンクリスチン\nシタラビン\n6MP(メルカプトプリン）\nプレドニゾロン",null,null,null,null,null,null,null,null,null,null,null,null,null,null,null,null,"なし",null,null,null,201]
["NHL 890 A-1 (CCLSG)",null,3500,null,null,250,3200,"mg/m2",null,null,null,null,null,null,null,null,null,null,6000,"mg/m2",null,null,null,null,null,null,null,"mg/m2",null,null,null,null,null,null,null,null,null,null,null,null,55000,"mg/m2",null,4230,"mg/m2",null,null,16,"mg/m2",null,null,null,null,null,null,null,null,250,null,null,null,"6MP 3500mg/m2",null,null,null,null,null,"6MP\nAra-C\nVCR\nCPM","VCR\nCPM\nAra-C","ADR\nCPM\nMTX iv(d)\nPSL\n髄注\nDXR",null,null,null,"化学療法",null,null,null,null,null,6,null,null,null,null,null,null,null,null,"ドキソルビシン\nシクロホスファミド\nメソトレキセート\nビンクリスチン\nシタラビン\n6MP(メルカプトプリン）\nプレドニゾロン","髄腔内注射",null,null,null,null,null,null,null,null,null,null,null,null,null,null,null,"なし",null,null,null,202]
["NHL 890 A-2 (CCLSG)",null,3500,null,null,300,3200,"mg/m2",null,null,null,null,null,null,null,null,null,null,8400,"mg/m2",null,null,null,null,null,null,null,"mg/m2",null,null,null,null,null,null,null,null,null,null,null,null,70000,"mg/m2",null,5220,"mg/m2",null,null,20,"mg/m2",null,null,null,null,null,null,null,null,300,null,null,null,"6MP 3500mg/m2",null,null,null,null,null,"6MP\nAra-C\nVCR\nCPM","VCR\nCPM\nAra-C","ADR\nCPM\nMTX iv(d)\nPSL\n髄注\nDXR",null,null,null,"化学療法",null,null,null,null,null,6,null,null,null,null,null,null,null,null,"ドキソルビシン\nシクロホスファミド\nメソトレキセート\nビンクリスチン\nシタラビン\n6MP(メルカプトプリン）\nプレドニゾロン","髄腔内注射",null,null,null,null,null,null,null,null,null,null,null,null,null,null,null,"なし",null,null,null,203]
["NHL 890 B (CCLSG)",null,13650,null,null,350,14500,"mg/m2",null,null,null,null,null,null,null,null,null,null,20400,"mg/m2",null,null,null,null,100,"mg/m2",null,"mg/m2",null,null,null,null,null,null,172000,null,"U/m2",null,null,null,90000,"mg/m2",null,12240,"mg/m2",null,null,46,"mg/m2",null,null,4500,null,null,"mg/m2",null,null,433,null,null,null,"VCR 46mg/m2, L-asp 17.2万U/m2, 6MP 13650mg/m2",null,null,null,null,null,"VCR\nAra-C\n6MP\nCPM","VCR\nL-Asp\nCPM\nAra-C","DNR\nADR\nCPM\nMTX iv(d)\nVP iv(d)\nPSL\nL-asp\n髄注\nDXR",null,null,null,"化学療法",null,null,null,null,null,19,null,null,null,null,null,null,null,null,"ピラルビシン\nダウノルビシン\nシクロホスファミド\nメソトレキセート\nL-アスパラギナーゼ\nエトポシド","ビンクリスチン\nシタラビン\n6MP(メルカプトプリン）\n髄腔内注射\nプレドニゾロン",null,null,null,null,null,null,null,null,null,null,null,null,null,null,null,"なし",null,null,null,204]
["NHL960 1.2期NLB (CCLSG)",null,5250,null,null,null,1600,"mg/m2",null,null,null,null,null,null,null,null,null,null,3200,"mg/m2",null,null,null,null,null,null,null,null,null,null,null,null,null,null,null,null,null,null,null,48,21000,"mg/m2",null,3030,"mg/m2",120,"mg/m2",12,"mg/m2",null,null,null,null,null,null,null,null,72,null,null,null,"6MP 4250mg/m2",null,null,null,null,null,"MTX po\n6MP\nAra-C\nVCR\nCPM","VCR\nCPM\nAra-C","THP\nCPM\nMTX iv(d)\nPSL\n髄注",null,null,null,"化学療法",null,null,null,null,null,4,null,null,null,null,null,null,null,null,"ピラルビシン\nシクロホスファミド\nメソトレキセート\nビンクリスチン\nシタラビン\n6MP(メルカプトプリン）\n髄腔内注射","プレドニゾロン",null,null,null,null,null,null,null,null,null,null,null,null,null,null,null,"なし",null,null,null,205]
["NHL960　1.2期LB (CCLSG)",null,10500,null,null,null,3200,"mg/m2",null,null,null,null,null,null,null,null,null,null,5200,"mg/m2",null,null,null,null,null,null,null,null,null,null,null,null,null,null,null,null,null,null,null,72,33000,"mg/m2",null,4230,"mg/m2",180,"mg/m2",16,"mg/m2",null,null,null,null,null,null,null,null,108,null,null,null," 6MP 8500mg/m2",null,null,null,null,null,"MTX po\n6MP\nAra-C\nVCR\nCPM","VCR\nCPM\nAra-C","THP\nCPM\nMTX iv(d)\nPSL\n髄注",null,null,null,"化学療法",null,null,null,null,null,6,null,null,null,null,null,null,null,null,"ピラルビシン\nシクロホスファミド\nメソトレキセート\nビンクリスチン\nシタラビン\n6MP(メルカプトプリン）\n髄腔内注射","プレドニゾロン",null,null,null,null,null,null,null,null,null,null,null,null,null,null,null,"なし",null,null,null,206]
["NHL960 3.4期非リンパ芽球型 (CCLSG)\n",null,5250,null,null,null,4100,"mg/m2",null,null,null,null,null,null,null,null,null,null,5600,"mg/m2",null,null,165,"mg/m2",null,null,null,null,null,null,null,null,null,null,null,null,null,null,null,1500,22500,"mg/m2",null,3030,"mg/m2",180,"mg/m2",16,"mg/m2",null,null,600,null,null,"mg/m2",null,null,108,null,null,null,"6MP 5250mg/m2",null,null,null,null,null,"MTX po\n6MP\nAra-C\nVCR\nCPM","VCR\nCPM\nAra-C","THP\nCPM\nMTX iv(d)\nVP iv(d)\nPSL\nDEX\n髄注",null,null,null,"化学療法",null,null,null,null,null,4,null,null,null,null,null,null,null,null,"ピラルビシン\nシクロホスファミド\nメソトレキセート\nビンクリスチン\nシタラビン\n6MP(メルカプトプリン）\nエトポシド","髄腔内注射\nプレドニゾロン\nデキサメサゾン",null,null,null,null,null,null,null,null,null,null,null,null,null,null,null,"なし",null,null,null,207]
["NHL960　3.4期LB (CCLSG)",null,12180,null,null,null,7200,"mg/m2",null,null,null,null,null,null,null,null,null,null,7200,"mg/m2",null,null,165,"mg/m2",120,"mg/m2",null,null,null,null,null,null,null,null,132000,null,"U/m2",null,null,2000,11000,"mg/m2",null,4230,"mg/m2",180,"mg/m2",22,"mg/m2",null,null,1200,null,null,"mg/m2",null,null,207.6,null,null,null," 6MP12180mg/m2",null,null,null,null,null,"MTX po\n6MP\nAra-C\nVCR\nCPM","VCR\nL-Asp\nCPM\nAra-C","DNR\nTHP\nCPM\nMTX iv(d)\nVP iv(d)\nPSL\nDEX\nL-asp\n髄注",null,null,null,"化学療法",null,null,null,null,null,8,null,null,null,null,null,null,null,null,"ダウノルビシン\nピラルビシン\nシクロホスファミド\nメソトレキセート\nエトポシド\nL-アスパラギナーゼ","髄腔内注射\nプレドニゾロン\nデキサメサゾン\nビンクリスチン\nシタラビン\n6MP(メルカプトプリン）",null,null,null,null,null,null,null,null,null,null,null,null,null,null,null,"なし",null,null,null,208]
["B-NHL2003（P)　ｸﾞﾙｰﾌﾟ１ (CCLSG)",null,null,null,null,null,null,null,null,null,null,null,null,null,null,null,null,null,3000,"mg/m2",null,null,null,null,null,null,null,null,null,null,null,null,null,null,null,null,null,null,null,6000,null,null,null,600,"mg/m2",120,"mg/m2",3,"mg/m2",null,null,null,null,null,null,null,null,72,null,null,null,null,null,null,null,null,null,"MTX po\nVCR","VCR\nCPM","THP\nCPM\nPSL\n髄注",null,null,null,"化学療法",null,null,null,null,null,2,null,null,null,null,null,null,null,null,"ピラルビシン\nシクロホスファミド\nメソトレキセート\nビンクリスチン\nプレドニゾロン\n髄腔内注射",null,null,null,null,null,null,null,null,null,null,null,null,null,null,null,null,"なし",null,null,null,209]
["B-NHL2003（P）　ｸﾞﾙｰﾌﾟ2 (CCLSG)",null,null,null,null,null,1200,"mg/m2",null,null,null,null,null,null,null,null,null,null,3450,"mg/m2",null,null,130,"mg/m2",null,null,null,null,null,null,null,null,null,null,null,null,null,null,null,7000,null,null,null,420,"mg/m2",120,"mg/m2",4,"mg/m2",null,null,null,null,null,null,null,null,72,null,null,null,null,null,null,null,null,null,"MTX po\nAra-C\nVCR","VCR\nCPM\nAra-C","THP\nCPM\nPSL\nDEX\n髄注",null,null,null,"化学療法",null,null,null,null,null,5,null,null,null,null,null,null,null,null,"ピラルビシン\nシクロホスファミド\nメソトレキセート\nビンクリスチン\nシタラビン\n髄腔内注射","プレドニゾロン\nデキサメサゾン",null,null,null,null,null,null,null,null,null,null,null,null,null,null,null,"なし",null,null,null,210]
["B-NHL2003（P)　ｸﾞﾙｰﾌﾟ3 (CCLSG)",null,null,null,null,null,1500,"mg/m2",null,null,null,null,null,null,null,null,null,null,6450,"mg/m2",null,null,260,"mg/m2",null,null,null,null,null,null,null,null,null,null,null,null,null,null,null,13000,null,null,null,420,"mg/m2",240,"mg/m2",7,"mg/m2",null,null,600,null,null,"mg/m2",null,null,144,null,null,null,null,null,null,null,null,null,"MTX po\nAra-C\nVCR","VCR\nCPM\nAra-C","THP\nCPM\nVP iv(d)\nPSL\nDEX\n髄注",null,null,null,"化学療法",null,null,null,null,null,7,null,null,null,null,null,null,null,null,"ピラルビシン\nシクロホスファミド\nメソトレキセート\nビンクリスチン\nシタラビン\nエトポシド\n髄腔内注射","プレドニゾロン\nデキサメサゾン",null,null,null,null,null,null,null,null,null,null,null,null,null,null,null,"なし",null,null,null,211]
["B-NHL2003（P）　ｸﾞﾙｰﾌﾟ4 (CCLSG)",null,null,null,null,null,24000,"mg/m2",null,null,null,null,null,null,null,null,null,null,5950,"mg/m2",null,null,360,"mg/m2",null,null,null,null,null,null,null,null,null,null,null,null,null,null,null,20000,null,null,null,420,"mg/m2",240,"mg/m2",10,"mg/m2",null,null,1200,null,null,"mg/m2",null,null,144,null,null,null,null,null,null,null,null,null,"MTX po\nAra-C\nVCR","VCR\nCPM\nAra-C","THP\nCPM\nVP iv(d)\nPSL\nDEX\n髄注",null,null,null,"化学療法",null,null,null,null,null,15,null,null,null,null,null,null,null,null,"ピラルビシン\nシクロホスファミド\nメソトレキセート\nビンクリスチン\nシタラビン\nエトポシド\n髄腔内注射","プレドニゾロン\nデキサメサゾン",null,null,null,null,null,null,null,null,null,null,null,null,null,null,null,"なし",null,null,null,212]
["ANLL861 (CCLSG)",null,79450,null,null,320,4800,"mg/m2",3500,null,null,null,null,null,null,null,null,null,4800,"mg/m2",null,null,null,null,null,null,null,"mg/m2",null,null,null,null,null,null,null,null,null,null,null,null,null,null,null,15830,"mg/m2",null,null,64,"mg/m2",null,null,null,null,null,null,null,null,320,null,null,null,null,null,null,null,null,null,"BHAC\n6MP\nAra-C\nVCR\nCPM","VCR\nCPM\nAra-C","ADR\nCPM\nPSL\nDXR",null,null,null,"化学療法",null,null,null,null,null,null,null,null,null,null,null,null,null,null,"ドキソルビシン\nシクロホスファミド\n6MP（メルカプトプリン）\nビンクリスチン\nシタラビン\nBHAC\nプレドニゾロン\n",null,null,null,null,null,null,null,null,null,null,null,null,null,null,null,null,null,null,null,null,213]
["ANLL871 (CCLSG)",null,null,null,null,350,60000,"mg/m2",null,null,null,null,null,null,null,null,null,null,null,null,null,null,null,null,null,null,null,"mg/m2",null,null,null,null,null,null,null,null,null,null,null,null,null,null,null,4480,"mg/m2",null,null,20,"mg/m2",null,null,600,null,null,"mg/m2",null,null,350,null,null,null,"VCR 10mg/m2",null,null,null,null,null,"Ara-C\nVCR","VCR\nAra-C","ADR\nVP iv(d)\nPSL\nDXR\n髄注",null,null,null,"化学療法",null,null,null,null,null,3,null,null,null,null,null,null,null,null,"ドキソルビシン\nビンクリスチン\nシタラビン\nエトポシド\nプレドニゾロン\n髄腔内注射",null,null,null,null,null,null,null,null,null,null,null,null,null,null,null,null,"なし",null,null,null,214]
["ANLL8912 (CCLSG)",null,52675,null,null,240,4800,"mg/m2",10880,null,null,null,null,null,null,null,null,null,4800,"mg/m2",null,null,null,null,100,"mg/m2",null,"mg/m2",null,null,null,null,null,null,null,null,null,null,null,null,null,null,null,12005,"mg/m2",null,null,48,"mg/m2",null,null,null,null,null,null,null,null,323,null,null,null,"ACM 1000mg/m2, VCR 48mg/m2, 6MP 5320, BH-AC 10880mg/m2\n維持療法あり（コース数不明）",null,null,null,null,null,"BHAC\n6MP\nAra-C\nVCR\nCPM","VCR\nCPM\nAra-C","DNR\nADR\nCPM\nPSL\nDXR",null,null,null,"化学療法",null,null,null,null,null,null,null,null,null,null,null,null,null,null,"ドキソルビシン\nダウノルビシン\nビンクリスチン\nシタラビン\nシクロホスファミド\nBHAC\nプレドニゾロン","6MP（メルカプトプリン）",null,null,null,null,null,null,null,null,null,null,null,null,null,null,null,"なし",null,null,null,215]
["ANLL9205 (CCLSG)",null,null,null,null,null,64640,"mg/m2",null,null,null,null,null,null,null,null,null,null,null,null,null,null,null,null,null,null,null,null,null,null,null,null,null,null,null,null,null,null,null,null,null,null,null,null,null,205,"mg/m2",5,"mg/m2",null,null,900,null,null,"mg/m2",null,null,123,null,null,null,"VCR 5mg/m2",null,null,null,null,null,"Ara-C\nVCR","VCR\nAra-C","THP\nVP iv(d)\n髄注",null,null,null,"化学療法",null,null,null,null,null,4,null,null,null,null,null,null,null,null,"ピラルビシン\nエトポシド\nビンクリスチン\nシタラビン\n髄腔内注射",null,null,null,null,null,null,null,null,null,null,null,null,null,null,null,null,"なし",null,null,null,216]
["ANLL9411　Pilot (CCLSG)",null,2625,null,null,null,64640,"mg/m2",null,null,null,null,null,null,null,null,null,null,null,null,null,null,null,null,null,null,null,null,null,null,null,null,null,null,null,null,null,55,"mg/m2",null,null,null,null,null,null,155,"mg/m2",1,"mg/m2",null,null,1200,null,null,"mg/m2",null,null,313,null,null,null,"VCR 1mg/m2, 6MP 2625mg/m2",null,null,null,null,null,"6MP\nAra-C\nVCR","VCR\nAra-C","THP\nMit\nVP iv(d)\n髄注",null,null,null,"化学療法",null,null,null,null,null,4,null,null,null,null,null,null,null,null,"ピラルビシン\nミトキサントロン\nエトポシド\nビンクリスチン\nシタラビン\n髄腔内注射","6MP（メルカプトプリン）",null,null,null,null,null,null,null,null,null,null,null,null,null,null,null,"なし",null,null,null,217]
["AML9805　M1.2.7 (CCLSG)",null,null,null,null,null,45440,"mg/m2",null,null,null,null,null,null,null,null,null,null,null,null,null,null,null,null,null,null,null,null,null,null,null,null,null,null,null,null,null,55,"mg/m2",null,null,null,null,null,null,260,"mg/m2",4,"mg/m2",null,null,600,null,null,"mg/m2",null,null,376,null,null,null,"VCR 4mg/m2",null,null,null,null,null,"Ara-C\nVCR","VCR\nAra-C","THP\nMit\nVP iv(d)\n髄注",null,null,null,"化学療法",null,null,null,null,null,4,null,null,null,null,null,null,null,null,"ピラルビシン\nミトキサントロン\nエトポシド\nビンクリスチン\nシタラビン\n髄腔内注射",null,null,null,null,null,null,null,null,null,null,null,null,null,null,null,null,"なし",null,null,null,218]
["AML9805　M0.4.5.7 (CCLSG)",null,null,null,null,null,21440,"mg/m2",null,null,null,null,null,null,null,null,null,null,null,null,null,null,null,null,null,null,null,null,null,null,null,null,null,null,null,null,null,30,"mg/m2",null,null,null,null,null,null,260,"mg/m2",5.6,"mg/m2",4,null,1200,null,null,"mg/m2",null,null,276,null,null,null,null,null,null,null,null,null,"Ara-C\nVDS\nVCR","VCR\nAra-C","THP\nMit\nVP iv(d)\n髄注",null,null,null,"化学療法",null,null,null,null,null,4,null,null,null,null,null,null,null,null,"ピラルビシン\nミトキサントロン\nエトポシド\nビンクリスチン\nシタラビン\n髄腔内注射","ビンデシン",null,null,null,null,null,null,null,null,null,null,null,null,null,null,null,"なし",null,null,null,219]
["AML9805　ﾀﾞｳﾝ症候群(CCLSG)",null,null,null,null,null,23840,"mg/m2",null,null,null,null,null,null,null,null,null,null,null,null,null,null,null,null,null,null,null,null,null,null,null,null,null,null,null,null,null,15,"mg/m2",null,null,null,null,null,null,210,"mg/m2",3,"mg/m2",null,null,300,null,null,"mg/m2",null,null,186,null,null,null,null,null,null,null,null,null,"VCR\nAra-C","VCR\nAra-C","髄注\nVP iv(d)\nMit\nTHP",null,null,null,"化学療法",null,null,null,null,null,2,null,null,null,null,null,null,null,null,"ピラルビシン\nミトキサントロン\nエトポシド\nビンクリスチン\nシタラビン\n髄腔内注射",null,null,null,null,null,null,null,null,null,null,null,null,null,null,null,null,"なし",null,null,null,220]
["AML9805　NR.PR -1 (CCLSG)",null,null,null,null,null,28320,"mg/m2",null,null,null,null,null,null,null,null,null,null,null,null,null,null,84,"mg/m2",null,null,null,null,null,40,"mg/m2",null,null,null,null,null,null,40,"mg/m2",null,null,null,null,null,null,80,"mg/m2",1,"mg/m2",null,null,600,null,null,"mg/m2",null,null,408,null,null,null,null,null,null,null,null,null,"Ara-C\nVCR","VCR\nAra-C","THP\nMit\nIDA\nVP iv(d)\nDEX\n髄注",null,null,null,"化学療法",null,null,null,null,null,3,null,null,null,null,null,null,null,null,"ピラルビシン\nミトキサントロン\nイダマイシン\nエトポシド\nビンクリスチン\nシタラビン\n髄腔内注射","デキサメサゾン",null,null,null,null,null,null,null,null,null,null,null,null,null,null,null,"なし",null,null,null,221]
["AML9805　NR.PR -2 (CCLSG)",null,null,null,null,null,29440,"mg/m2",null,null,null,null,null,null,null,null,null,null,null,null,null,null,84,"mg/m2",null,null,null,null,null,40,"mg/m2",null,null,null,null,null,null,40,"mg/m2",null,null,null,null,null,null,160,"mg/m2",2,"mg/m2",null,null,600,null,null,"mg/m2",null,null,456,null,null,null,null,null,null,null,null,null,"Ara-C\nVCR","VCR\nAra-C","THP\nMit\nIDA\nVP iv(d)\nDEX\n髄注",null,null,null,"化学療法",null,null,null,null,null,3,null,null,null,null,null,null,null,null,"ピラルビシン\nミトキサントロン\nイダマイシン\nエトポシド\nビンクリスチン\nシタラビン\n","髄腔内注射\nデキサメサゾン",null,null,null,null,null,null,null,null,null,null,null,null,null,null,null,"なし",null,null,null,222]
["AML9805　NR.PR -3 (CCLSG)",null,null,null,null,null,13120,"mg/m2",null,null,null,null,null,null,null,null,null,null,null,null,null,null,42,"mg/m2",null,null,null,null,null,null,null,null,null,null,null,null,null,20,"mg/m2",null,null,null,null,null,null,80,"mg/m2",1,"mg/m2",null,null,null,null,null,null,null,null,148,null,null,null,null,null,null,null,null,null,"Ara-C\nVCR","VCR\nAra-C","THP\nMit\nDEX\n髄注",null,null,null,"化学療法",null,null,null,null,null,1,null,null,null,null,null,null,null,null,"ピラルビシン\nミトキサントロン\nビンクリスチン\nシタラビン\n髄腔内注射\nデキサメサゾン",null,null,null,null,null,null,null,null,null,null,null,null,null,null,null,null,"なし",null,null,null,223]
["AML9805　NR.PR -4 (CCLSG)",null,null,null,null,null,14240,"mg/m2",null,null,null,null,null,null,null,null,null,null,null,null,null,null,42,"mg/m2",null,null,null,null,null,20,"mg/m2",null,null,null,null,null,null,null,null,null,null,null,null,null,null,160,"mg/m2",2,"mg/m2",null,null,null,null,null,null,null,null,196,null,null,null,null,null,null,null,null,null,"Ara-C\nVCR","VCR\nAra-C","THP\nIDA\nDEX\n髄注",null,null,null,"化学療法",null,null,null,null,null,2,null,null,null,null,null,null,null,null,"ピラルビシン\nイダマイシン\nビンクリスチン\nシタラビン\n髄腔内注射\nデキサメサゾン",null,null,null,null,null,null,null,null,null,null,null,null,null,null,null,null,"なし",null,null,null,224]
["９２年 APLﾌﾟﾛﾄｺｰﾙ (CCLSG)",null,37450,null,null,140,2800,"mg/m2",8330,null,null,null,null,null,null,null,null,null,2800,"mg/m2",null,null,null,null,null,null,null,"mg/m2",null,null,null,null,null,null,null,null,null,null,null,null,null,null,null,5880,"mg/m2",null,null,28,"mg/m2",null,null,null,null,null,null,null,null,140,null,null,null,"VCR 28mg/m2, 6MP 37450, BH-AC 8330\n維持療法繰り返し　7回？",null,null,null,null,null,"VCR\nAra-C\n6MP\nBHAC\nCPM","VCR\nCPM\nAra-C","PSL\nCPM\nADR\nDXR",null,null,null,"化学療法",null,null,null,null,null,null,null,null,null,null,null,null,null,null,"ドキソルビシン\nシクロホスファミド\nプレドニゾロン\nビンクリスチン\nシタラビン\n6MP(メルカプトプリン）","BHAC",null,null,null,null,null,null,null,null,null,null,null,null,null,null,null,"なし",null,null,null,225]
["ANLL91 / M0-M3",null,null,null,null,null,99400,null,null,null,null,null,null,null,null,null,null,null,null,null,null,null,null,null,null,null,null,null,null,null,null,null,null,null,null,null,null,45,null,null,null,null,null,null,null,80,null,1.5,null,null,null,3250,null,null,null,null,null,228,null,null,null,"ACR 180",null,null,null,null,null,"VCR\nAra-C",null,"VP iv(d)\nMit\nTHP\n髄注",null,null,null,"化学療法",null,null,null,null,null,9,null,null,null,null,null,null,null,null,"ピラルビシン\nミトキサントロン\nエトポシド\nビンクリスチン\nシタラビン\n髄腔内注射","アクラシノマイシン",null,null,null,null,null,null,null,null,null,null,null,null,null,null,null,null,null,null,null,226]
["ANLL91 / M4-M7",null,null,null,null,null,99400,null,null,null,null,null,null,null,null,null,null,null,null,null,null,null,null,null,null,null,null,null,null,null,null,null,null,null,null,null,null,45,null,null,null,null,null,null,null,80,null,1.5,null,null,null,5750,null,null,null,null,null,228,null,null,null,"ACR 180",null,null,null,null,null,"VCR\nAra-C",null,"VP iv(d)\nMit\nTHP\n髄注",null,null,null,"化学療法",null,null,null,null,null,9,null,null,null,null,null,null,null,null,"ピラルビシン\nミトキサントロン\nエトポシド\nビンクリスチン\nシタラビン\n髄腔内注射","アクラシノマイシン",null,null,null,null,null,null,null,null,null,null,null,null,null,null,null,null,null,null,null,227]
["ANLL91/M0-M3 (初診時WBC≧10000)",null,null,null,null,null,99400,null,null,null,null,null,null,null,null,null,null,null,null,null,null,null,null,null,null,null,null,null,null,null,null,null,null,null,null,null,null,45,null,null,null,null,null,null,null,80,null,1.5,null,null,null,3250,null,null,null,null,null,228,null,null,null,"ACR 180",null,null,null,null,null,"VCR\nAra-C",null,"VP iv(d)\nMit\nTHP\n髄注",null,null,null,"化学療法\n放射線療法",null,null,null,null,null,9,null,null,null,null,null,null,null,null,"ピラルビシン\nミトキサントロン\nエトポシド\nビンクリスチン\nシタラビン\n髄腔内注射","アクラシノマイシン",null,null,null,null,null,null,null,null,null,null,null,"頭部",null,null,null,"施行",null,null,null,228]
["ANLL91/M4&M5 (初診時WBC≧20000)",null,null,null,null,null,99400,null,null,null,null,null,null,null,null,null,null,null,null,null,null,null,null,null,null,null,null,null,null,null,null,null,null,null,null,null,null,45,null,null,null,null,null,null,null,80,null,1.5,null,null,null,5750,null,null,null,null,null,228,null,null,null,"ACR 180",null,null,null,null,null,"VCR\nAra-C",null,"VP iv(d)\nMit\nTHP\n髄注",null,null,null,"化学療法\n放射線療法",null,null,null,null,null,9,null,null,null,null,null,null,null,null,"ピラルビシン\nミトキサントロン\nエトポシド\nビンクリスチン\nシタラビン\n髄腔内注射","アクラシノマイシン",null,null,null,null,null,null,null,null,null,null,null,"頭部",null,null,null,"施行",null,null,null,229]
["JPLSG NHL B-03 Group3",null,null,null,null,null,1500,"mg/m2",null,null,null,null,null,null,null,null,null,null,6450,"mg/m2",null,null,280,"mg/m2",null,null,null,null,null,null,null,null,null,null,null,null,null,null,null,null,13000,"mg/m2",null,330,"mg/m2",240,"mg/m2",7,"mg/m2",null,null,600,null,null,"mg/m2",null,null,144,null,null,null,null,null,null,null,null,null,"VCR\nAra-C\nCPM","VCR\nCPM\nAra-C","PSL\nCPM\n髄注\nDEX\nMTX iv(d)\nTHP\nVP iv(d)",null,null,null,"化学療法",null,null,null,null,null,16,null,null,null,null,null,null,null,null,"ピラルビシン\nシクロホスファミド\nメソトレキセート\nエトポシド\nビンクリスチン\nシタラビン","プレドニゾロン\nデキサメサゾン\n髄腔内注射",null,null,null,null,null,null,null,null,null,null,null,null,null,null,null,null,null,null,null,230]
["JPLSG NHL B-03 Group1",null,null,null,null,null,null,null,null,null,null,null,null,null,null,null,null,null,3000,"mg/m2",null,null,null,null,null,null,null,null,null,null,null,null,null,null,null,null,null,null,null,null,2000,"mg/m2",null,600,null,120,"mg/m2",3,"mg/m2",null,null,null,null,null,null,null,null,72,null,null,null,null,null,null,null,null,null,"VCR\nCPM","VCR\nCPM","PSL\nMTX iv(d)\nCPM\nTHP\n髄注",null,null,null,"化学療法",null,null,null,null,null,2,null,null,null,null,null,null,null,null,"ピラルビシン\nシクロホスファミド\nメソトレキセート\nプレドニゾロン\nビンクリスチン\n髄腔内注射",null,null,null,null,null,null,null,null,null,null,null,null,null,null,null,null,null,null,null,null,231]
["JPLSG NHL B-03 Group2",null,null,null,null,null,1200,"mg/m2",null,null,null,null,null,null,null,null,null,null,3450,"mg/m2",null,null,140,"mg/m2",null,null,null,null,null,null,null,null,null,null,null,null,null,null,null,null,7000,"mg/m2",null,330,"mg/m2",120,"mg/m2",4,"mg/m2",null,null,null,null,null,null,null,null,72,null,null,null,null,null,null,null,null,null,"VCR\nAra-C\nCPM","VCR\nCPM\nAra-C","PSL\nCPM\n髄注\nDEX\nMTX iv(d)\nTHP",null,null,null,"化学療法",null,null,null,null,null,5,null,null,null,null,null,null,null,null,"ピラルビシン\nシクロホスファミド\nメソトレキセート\nプレドニゾロン\nビンクリスチン\n髄腔内注射","エトポシド\nデキサメサゾン\nシタラビン",null,null,null,null,null,null,null,null,null,null,null,null,null,null,null,null,null,null,null,232]
["JPLSG NHL B-03 Group4 (CNS(-))",null,null,null,null,null,24000,"mg/m2",null,null,null,null,null,null,null,null,null,null,7450,"mg/m2",null,null,380,"mg/m2",null,null,null,null,null,null,null,null,null,null,null,null,null,null,null,null,20000,"mg/m2",null,330,"mg/m2",240,"mg/m2",10,"mg/m2",null,null,1200,null,null,"mg/m2",null,null,144,null,null,null,null,null,null,null,null,null,"VCR\nAra-C\nCPM","VCR\nCPM\nAra-C","THP\nPSL\nCPM\n髄注\nMTX iv(d)\nDEX\nVP iv(d)",null,null,null,"化学療法",null,null,null,null,null,310,null,null,null,null,null,null,null,null,"ピラルビシン\nシクロホスファミド\nメソトレキセート\nプレドニゾロン\nビンクリスチン\n髄腔内注射","エトポシド\nデキサメサゾン\nシタラビン",null,null,null,null,null,null,null,null,null,null,null,null,null,null,null,null,null,null,null,233]
["JPLSG NHL B-03 Group4 (CNS(+))",null,null,null,null,null,24000,"mg/m2",null,null,null,null,null,null,null,null,null,null,7450,"mg/m2",null,null,380,"mg/m2",null,null,null,null,null,null,null,null,null,null,null,null,null,null,null,null,20000,"mg/m2",null,330,"mg/m2",240,"mg/m2",10,"mg/m2",null,null,1200,null,null,"mg/m2",null,null,144,null,null,null,null,null,null,null,null,null,"VCR\nAra-C\nCPM","VCR\nCPM\nAra-C","THP\nPSL\nCPM\n髄注\nMTX iv(d)\nDEX\nVP iv(d)",null,null,null,"化学療法",null,null,null,null,null,313,null,null,null,null,null,null,null,null,"ピラルビシン\nシクロホスファミド\nメソトレキセート\nプレドニゾロン\nビンクリスチン\n髄腔内注射","エトポシド\nデキサメサゾン\nシタラビン",null,null,null,null,null,null,null,null,null,null,null,null,null,null,null,null,null,null,null,234]
["JPLSG AML P-05 (BSA 1.78m2未満）",null,null,null,null,null,39400,"mg/m2",null,null,null,null,null,null,null,null,null,null,null,null,null,null,null,null,135,"mg/m2",null,null,null,null,null,null,null,null,null,null,null,20,"mg/m2",null,null,null,null,null,null,90,"mg/m2",null,null,null,null,null,null,null,null,null,null,112.05,null,null,null,"ATRA 5535mg\n/m2",null,null,null,null,null,"ATRA 5535mg/m2\nその他\nAra-C","Ara-C","DNR\nMit\n髄注\nTHP",null,null,null,"化学療法",null,null,null,null,null,4,null,null,null,null,null,null,null,null,"ダウノルビシン\nピラルビシン\nミトキサントロン\nシタラビン\nATRA\n髄腔内注射",null,null,null,null,null,null,null,null,null,null,null,null,null,null,null,null,null,null,null,null,235]
["JPLSG AML P-05 (BSA 1.78m2以上）",null,null,null,null,null,39400,"mg/m2",null,null,null,null,null,null,null,null,null,null,null,null,null,null,null,null,135,"mg/m2",null,null,null,null,null,null,null,null,null,null,null,20,"mg/m2",null,null,null,null,null,null,90,"mg/m2",null,null,null,null,null,null,null,null,null,null,112.05,null,null,null,"ATRA 5535mg/㎡",null,null,null,null,null,"ATRA 5535mg/m2\nその他\nAra-C","Ara-C","DNR\nMit\n髄注\nTHP",null,null,null,"化学療法",null,null,null,null,null,4,null,null,null,null,null,null,null,null,"ダウノルビシン\nピラルビシン\nミトキサントロン\nシタラビン\nATRA\n髄腔内注射",null,null,null,null,null,null,null,null,null,null,null,null,null,null,null,null,null,null,null,null,236]
["JPLSG ALBNHL03（照射）",null,27755,null,null,null,1800,"mg/m2",null,null,null,null,null,null,null,null,null,null,6500,"mg/m2",null,null,140,"mg/m2",240,"mg/m2",null,null,null,null,null,null,null,null,234000,null,"U/m2",null,null,null,18250,"mg/m2",null,4390,"mg/m2",50,"mg/m2",36,"mg/m2",null,null,null,null,null,null,null,null,229.2,null,null,null,null,null,null,null,null,null,"VCR\nAra-C\n6MP\nCPM","VCR\nL-Asp\nCPM\nAra-C","DNR\nPSL\nCPM\nL-asp\n髄注\nMTX iv(d)\nTHP\nDEX",null,null,null,"化学療法\n放射線療法",null,null,null,null,"リンパ芽球性リンパ腫",13,null,null,null,null,null,null,null,null,null,null,null,null,null,null,null,null,null,null,null,null,null,null,null,null,null,"施行",null,null,null,237]
["JPLSG ALBNHL03（非照射）",null,27755,null,null,null,1800,"mg/m2",null,null,null,null,null,null,null,null,null,null,6500,"mg/m2",null,null,140,"mg/m2",240,"mg/m2",null,null,null,null,null,null,null,null,234000,null,"U/m2",null,null,null,18250,"mg/m2",null,4390,"mg/m2",50,"mg/m2",36,"mg/m2",null,null,null,null,null,null,null,null,229.2,null,null,null,null,null,null,null,null,null,"VCR\nAra-C\n6MP\nCPM","VCR\nL-Asp\nCPM\nAra-C","PSL\nCPM\nDNR\nL-asp\n髄注\nMTX iv(d)\nTHP\nDEX",null,null,null,"化学療法",null,null,null,null,"リンパ芽球性リンパ腫",15,null,null,null,null,null,null,null,null,null,null,null,null,null,null,null,null,null,null,null,null,null,null,null,null,null,"なし",null,null,null,238]
["JRSG高リスク 2歳以上",null,null,null,0.12,null,null,null,null,null,null,null,null,null,null,null,300,"mg/m2",3600,"mg/m2",null,null,null,null,null,null,null,null,null,null,null,null,18000,"mg/m2",null,280,null,null,null,null,null,null,null,null,null,180,"mg/m2",12,"mg/m2",null,null,2500,null,null,"mg/m2",null,null,108,null,null,null,"ActDは0.12㎎/kg, VCR 12mg/m2, L-PAM 280mg/m2\nTEPA 800㎎/㎡",null,null,"自家",null,null,"VCR\nAct-D\nCDDP\nCPM\nIFO","VCR\nCPM\nIFO\nCDDP","VP iv(d)\nCPM\nTHP\nCDDP\nIFO\nL-PAM",null,null,null,"化学療法\n造血細胞移植",null,null,null,null,"横紋筋肉腫",null,null,null,null,null,null,null,null,"施行",null,null,null,null,null,null,null,null,null,null,null,null,null,null,null,null,null,null,null,null,null,239]
["JRSG中間リスク3歳以上",null,null,null,0.63,null,null,null,null,null,null,null,null,null,null,null,null,null,30800,"mg/m2",null,null,null,null,null,null,null,null,null,null,null,null,null,null,null,null,null,null,null,null,null,null,null,null,null,null,null,43.5,"mg/m2",null,null,null,null,null,null,null,null,null,null,null,null,"ActDは 0.63mg/kg, ",null,null,null,null,null,"VCR\nAct-D\nCPM","VCR\nCPM","CPM",null,null,null,"化学療法",null,null,null,null,"横紋筋肉腫",null,null,null,null,null,null,null,null,null,null,null,null,null,null,null,null,null,null,null,null,null,null,null,null,null,null,null,null,null,null,240]
["JRSG中間リスク1歳以上3歳未満",null,null,null,0.63,null,null,null,null,null,null,null,null,null,null,null,null,null,1022,"mg/kg",null,null,null,null,null,null,null,null,null,null,null,null,null,null,null,null,null,null,null,null,null,null,null,null,null,null,null,1.45,"mg/kg",null,null,null,null,null,null,null,null,null,null,null,null," Act-D 0.63mg/kg",null,null,null,null,null,"VCR\nAct-D\nCPM","VCR\nCPM","CPM",null,null,null,"化学療法",null,null,null,null,"横紋筋肉腫",null,null,null,null,null,null,null,null,null,null,null,null,null,null,null,null,null,null,null,null,null,null,null,null,null,null,null,null,null,null,241]
["JRSG中間リスク1歳未満",null,null,null,0.35,null,null,null,null,null,null,null,null,null,null,null,null,null,504,"mg/kg",null,null,null,null,null,null,null,null,null,null,null,null,null,null,null,null,null,null,null,null,null,null,null,null,null,null,null,0.72499999999999998,"mg/kg",null,null,null,null,null,null,null,null,null,null,null,null," Act-D 0.35mg/kg",null,null,null,null,null,"VCR\nAct-D\nCPM","VCR\nCPM","CPM",null,null,null,"化学療法",null,null,null,null,"横紋筋肉腫",null,null,null,null,null,null,null,null,null,null,null,null,null,null,null,null,null,null,null,null,null,null,null,null,null,null,null,null,null,null,242]
["JRSG低リスクB2004.4.1　3歳以上",null,null,null,1.2,null,null,null,null,null,null,null,null,null,null,null,null,null,17600,"mg/m2",null,null,null,null,null,null,null,null,null,null,null,null,null,null,null,null,null,null,null,null,null,null,null,null,null,null,null,54,"mg/m2",null,null,null,null,null,null,null,null,null,null,null,null,"ActD1.2mg/kg",null,null,null,null,null,"VCR\nAct-D\nCPM","VCR\nCPM","CPM",null,null,null,"化学療法",null,null,null,null,"横紋筋肉腫",null,null,null,null,null,null,null,null,null,null,null,null,null,null,null,null,null,null,null,null,null,null,null,null,null,null,null,null,null,null,243]
["JRSG低リスクB2004.4.1　1歳以上3歳未満",null,null,null,1.08,null,null,null,null,null,null,null,null,null,null,null,null,null,584,"mg/kg",null,null,null,null,null,null,null,null,null,null,null,null,null,null,null,null,null,null,null,null,null,null,null,null,null,null,null,1.8,"mg/kg",null,null,null,null,null,null,null,null,null,null,null,null,"Act-D 1.08mg/kg",null,null,null,null,null,"VCR\nAct-D\nCPM","VCR\nCPM","CPM",null,null,null,"化学療法",null,null,null,null,"横紋筋肉腫",null,null,null,null,null,null,null,null,null,null,null,null,null,null,null,null,null,null,null,null,null,null,null,null,null,null,null,null,null,null,244]
["JRSG低リスクB2004.4.1　1歳未満",null,null,null,0.6,null,null,null,null,null,null,null,null,null,null,null,null,null,288,"mg/kg",null,null,null,null,null,null,null,null,null,null,null,null,null,null,null,null,null,null,null,null,null,null,null,null,null,null,null,0.9,"mg/kg",null,null,null,null,null,null,null,null,null,null,null,null,", Act-D 0.6mg/kg",null,null,null,null,null,"VCR\nAct-D\nCPM","VCR\nCPM","CPM",null,null,null,"化学療法",null,null,null,null,"横紋筋肉腫",null,null,null,null,null,null,null,null,null,null,null,null,null,null,null,null,null,null,null,null,null,null,null,null,null,null,null,null,null,null,245]
["JRSG低リスクB　3.2版　3歳以上",null,null,null,0.72,null,null,null,null,null,null,null,null,null,null,null,null,null,17600,"mg/m2",null,null,null,null,null,null,null,null,null,null,null,null,null,null,null,null,null,null,null,null,null,null,null,null,null,null,null,54,"mg/m2",null,null,null,null,null,null,null,null,null,null,null,null,"ActD 0.72mg/kg,",null,null,null,null,null,"VCR\nAct-D\nCPM","VCR\nCPM","CPM",null,null,null,"化学療法",null,null,null,null,"横紋筋肉腫",null,null,null,null,null,null,null,null,null,null,null,null,null,null,null,null,null,null,null,null,null,null,null,null,null,null,null,null,null,null,246]
["JRSG低リスクB　3.2版　1歳以上3歳未満",null,null,null,0.72,null,null,null,null,null,null,null,null,null,null,null,null,null,584,"mg/kg",null,null,null,null,null,null,null,null,null,null,null,null,null,null,null,null,null,null,null,null,null,null,null,null,null,null,null,1.8,"mg/kg",null,null,null,null,null,null,null,null,null,null,null,null," Act-D 0.72mg/kg",null,null,null,null,null,"VCR\nAct-D\nCPM","VCR\nCPM","CPM",null,null,null,"化学療法",null,null,null,null,"横紋筋肉腫",null,null,null,null,null,null,null,null,null,null,null,null,null,null,null,null,null,null,null,null,null,null,null,null,null,null,null,null,null,null,247]
["JRSG低リスクB　3.2版　1歳未満",null,null,null,0.4,null,null,null,null,null,null,null,null,null,null,null,null,null,288,"mg/kg",null,null,null,null,null,null,null,null,null,null,null,null,null,null,null,null,null,null,null,null,null,null,null,null,null,null,null,0.9,"mg/kg",null,null,null,null,null,null,null,null,null,null,null,null,"Act-D 0.4mg/kg",null,null,null,null,null,"VCR\nAct-D\nCPM","CPM\nVCR","CPM",null,null,null,"化学療法",null,null,null,null,"横紋筋肉腫",null,null,null,null,null,null,null,null,null,null,null,null,null,null,null,null,null,null,null,null,null,null,null,null,null,null,null,null,null,null,248]
["JRSG低リスクA　1歳以上",null,null,null,0.36,null,null,null,null,null,null,null,null,null,null,null,null,null,9600,"mg/m2",null,null,null,null,null,null,null,null,null,null,null,null,null,null,null,null,null,null,null,null,null,null,null,null,null,null,null,27,"mg/m2",null,null,null,null,null,null,null,null,null,null,null,null,null,null,null,null,null,null,"VCR\nAct-D\nCPM","VCR\nCPM","CPM",null,null,null,"化学療法",null,null,null,null,"横紋筋肉腫",null,null,null,null,null,null,null,null,null,null,null,null,null,null,null,null,null,null,null,null,null,null,null,null,null,null,null,null,null,null,249]
["JRSG高リスク2歳未満",null,null,null,0.12,null,null,null,null,null,null,null,null,null,null,null,300,"mg/m2",3600,"mg/m2",null,null,null,null,null,null,null,null,null,null,null,null,18000,"mg/m2",null,6,null,null,null,null,null,null,null,null,null,180,"mg/m2",12,"mg/m2",null,null,2500,null,null,"mg/m2",null,null,108,null,null,null,"Act-D 0.12mg/kg, L-PAM 6mg/kg, TEPA32mg/kg",null,null,"自家",null,null,"VCR\nAct-D\nCDDP\nCPM\nIFO","VCR\nCPM\nIFO\nCDDP","VP iv(d)\nCPM\nTHP\nCDDP\nIFO\nL-PAM",null,null,null,"化学療法\n造血細胞移植",null,null,null,null,"横紋筋肉腫",null,null,null,null,null,null,null,null,"施行",null,null,null,null,null,null,null,null,null,null,null,null,null,null,null,null,null,null,null,null,null,250]
["JPLSG B-12 SR-A",null,null,null,null,null,2400,"mg/m2",null,null,null,null,null,null,null,null,null,null,3000,"mg/m2",null,null,332.5,"mg/m2",60,"mg/m2",null,null,null,null,null,null,null,null,12,null,"U/m2",null,null,null,8,"g/m2",null,1762.5,"mg/m2",100,"mg/m2",12,"mg/m2",null,null,null,null,null,null,null,null,109.8,null,null,null,"DEX:10歳未満332.5mg/m2、10歳以上280mg/m2",null,null,null,null,null,"VCR\nAra-C","CPM\nAra-C\nVCR\nL-Asp","DNR\nTHP\nMTX iv(d)\n髄注\nPSL\nDEX",null,null,null,"化学療法",null,null,null,null,null,13,null,null,null,null,null,null,null,"なし",null,null,null,null,null,null,null,null,null,null,null,null,null,null,null,null,null,"なし",null,null,null,251]
["JPLSG B-12 SR-B",null,null,null,null,null,2400,"mg/m2",null,null,null,null,null,null,null,null,null,null,3000,"mg/m2",null,null,872.5,"mg/m2",60,"mg/m2",null,null,null,null,null,null,null,null,12,null,"U/m2",null,null,null,8,"g/m2",null,1762.5,"mg/m2",100,"mg/m2",39,"mg/m2",null,null,null,null,null,null,null,null,109.8,null,null,null,"DEX:10歳未満872.5mg/m2、10歳以上760mg/m2",null,null,null,null,null,"VCR\nAra-C","CPM\nVCR\nL-Asp\nAra-C\nIFO","DNR\nTHP\nMTX iv(d)\n髄注\nPSL\nDEX",null,null,null,"化学療法",null,null,null,null,null,13,null,null,null,null,null,null,null,"なし",null,null,null,null,null,null,null,null,null,null,null,null,null,null,null,null,null,"なし",null,null,null,252]
["JPLSG B-12 IR-A",null,null,null,null,null,2400,"mg/m2",null,null,null,null,null,null,null,null,null,null,3000,"mg/m2",null,null,332.5,"mg/m2",120,"mg/m2",null,null,null,null,null,null,null,null,12,null,"U/m2",null,null,null,20,"g/m2",null,1762.5,"mg/m2",100,"mg/m2",12,"mg/m2",null,null,null,null,null,null,null,null,159.6,null,null,null,"DEX:10歳未満332.5mg/m2、10歳以上280mg/m2",null,null,null,null,null,"VCR\nAra-C","L-Asp\nCPM\nVCR\nAra-C","THP\nMTX iv(d)\nPSL\nDEX\n髄注\nDNR",null,null,null,"化学療法",null,null,null,"なし",null,15,null,null,null,null,null,null,null,"なし",null,null,null,null,null,null,null,null,null,null,null,null,null,null,null,null,null,"なし",null,null,null,253]
["JPLSG B-12 IR-B",null,null,null,null,null,2400,"mg/m2",null,null,null,null,null,null,null,null,null,null,3000,"mg/m2",null,null,332.5,"mg/m2",120,"mg/m2",null,null,null,null,null,null,null,null,29,null,"U/m2",null,null,null,20,"g/m2",null,1762.5,"mg/m2",100,"mg/m2",12,"mg/m2",null,null,null,null,null,null,null,null,159.6,null,null,null,"DEX:10歳未満332.5mg/m2、10歳以上280mg/m2",null,null,null,null,null,"VCR\nAra-C","L-Asp\nCPM\nVCR\nAra-C\nCPT11","髄注\nDEX\nPSL\nMTX iv(d)\nDNR\nTHP",null,null,null,null,null,null,null,"なし",null,15,null,null,null,null,null,null,null,"なし",null,null,null,null,null,null,null,null,null,null,null,null,null,null,null,null,null,"なし",null,null,null,254]
["JPLSG B-12 HR-A(HRブロック群)",null,null,null,null,null,15000,"mg/m2",null,null,null,null,null,null,null,null,null,null,4.5,"g/m2",null,null,800,"mg/m2",150,"mg/m2",null,null,null,null,null,null,4,"g/m2",47,null,"U/m2",null,null,null,20,"g/m2",null,1762.5,"mg/m2",150,"mg/m2",18,"mg/m2",null,null,500,null,null,"mg/m2",null,null,214.5,null,null,null,"DEX:10歳未満800mg/m2、10歳以上720mg/m2",null,null,null,null,null,"VCR\nAra-C","L-Asp\nVCR\nCPM\nIFO\nAra-C","MTX iv(d)\nTHP\nDNR\nVP iv(d)\nPSL\nDEX\n髄注",null,null,null,null,null,null,null,null,null,14,null,null,null,null,null,null,null,null,null,null,null,null,null,null,null,null,null,null,null,null,null,null,null,null,null,null,null,null,null,255]
["JPLSG B-12 HR-B(HR-VCR群)",null,null,null,null,null,3000,"mg/m2",null,null,null,null,null,null,null,null,null,null,3.5,"g/m2",null,null,500,"mg/m2",120,"mg/m2",null,null,null,null,null,null,null,null,37,null,"U/m2",null,null,null,20,"g/m2",null,1762.5,"mg/m2",150,"mg/m2",33,"mg/m2",null,null,null,null,null,null,null,null,189.6,null,null,null,"DEX:10歳未満500mg/m2、10歳以上420mg/m2",null,null,null,null,null,"VCR\nAra-C","VCR\nL-Asp\nCPM\nAra-C","MTX iv(d)\nDNR\nTHP\nPSL\nDEX\n髄注",null,null,null,null,null,null,null,null,null,15,null,null,null,null,null,null,null,null,null,null,null,null,null,null,null,null,null,null,null,null,null,null,null,null,null,null,null,null,null,256]
["ALL-T11 SR L-asp中止例　10歳以上",null,null,null,null,120,1800,"mg/㎡",null,0,"U/㎡",null,null,null,0,"mg/㎡",0,"mg/㎡",3000,"mg/㎡",null,null,512,"mg/㎡",120,"mg/㎡",null,"mg/㎡",null,0,"mg/㎡",null,0,"g/㎡",0,null,"U/㎡",0,"mg/㎡",null,20,"g/㎡",null,315,"mg/㎡",0,"mg/㎡",21,"mg/㎡",null,null,0,null,null,"mg/㎡",null,null,219.6,null,null,null,null,null,null,null,null,null,null,"VCR\nCPM\nAra-C","DNR\nDXR\nMTX iv(d)\nPSL\nDEX\n髄注",null,null,null,null,"SR L-asp中止例　10歳以上",null,null,null,"T細胞性急性白血病",20,null,null,"0",null,null,null,null,null,null,null,null,null,"SR L-asp中止例　10歳以上",null,null,null,null,null,null,null,null,"0","0",null,null,"なし",null,null,null,257]
["ALL-T11 SR L-asp中止例　10歳未満",null,null,null,null,120,1800,"mg/㎡",null,0,"U/㎡",null,null,null,0,"mg/㎡",0,"mg/㎡",3000,"mg/㎡",null,null,652,"mg/㎡",120,"mg/㎡",null,"mg/㎡",null,0,"mg/㎡",null,0,"g/㎡",0,null,"U/㎡",0,"mg/㎡",null,20,"g/㎡",null,315,"mg/㎡",0,"mg/㎡",21,"mg/㎡",null,null,0,null,null,"mg/㎡",null,null,219.6,null,null,null,null,null,null,null,null,null,null,"VCR\nCPM\nAra-C","DNR\nDXR\nMTX iv(d)\nPSL\nDEX\n髄注",null,null,null,null,"SR L-asp中止例　10歳未満",null,null,null,"T細胞性急性白血病",20,null,null,"0",null,null,null,null,null,null,null,null,null,"SR L-asp中止例　10歳未満",null,null,null,null,null,null,null,null,"0","0",null,null,"なし",null,null,null,257]
["ALL-T11 SR　10歳以上",null,null,null,null,120,1800,"mg/㎡",null,0,"U/㎡",null,null,null,0,"mg/㎡",0,"mg/㎡",3000,"mg/㎡",null,null,332,"mg/㎡",120,"mg/㎡",null,"mg/㎡",null,0,"mg/㎡",null,0,"g/㎡",210000,null,"U/㎡",0,"mg/㎡",null,20,"g/㎡",null,315,"mg/㎡",0,"mg/㎡",12,"mg/㎡",null,null,0,null,null,"mg/㎡",null,null,219.6,null,null,null,null,null,null,null,null,null,null,"VCR\nL-Asp\nCPM\nAra-C","DNR\nDXR\nMTX iv(d)\nPSL\nDEX\n髄注",null,null,null,null,"SR　10歳以上",null,null,null,"T細胞性急性白血病",20,null,null,"0",null,null,null,null,null,null,null,null,null,"SR　10歳以上",null,null,null,null,null,null,null,null,"0","0",null,null,"なし",null,null,null,257]
["ALL-T11 SR　10歳未満",null,null,null,null,120,1800,"mg/㎡",null,0,"U/㎡",null,null,null,0,"mg/㎡",0,"mg/㎡",3000,"mg/㎡",null,null,472,"mg/㎡",120,"mg/㎡",null,"mg/㎡",null,0,"mg/㎡",null,0,"g/㎡",210000,null,"U/㎡",0,"mg/㎡",null,20,"g/㎡",null,315,"mg/㎡",0,"mg/㎡",12,"mg/㎡",null,null,0,null,null,"mg/㎡",null,null,219.6,null,null,null,null,null,null,null,null,null,null,"VCR\nL-Asp\nCPM\nAra-C","DNR\nDXR\nMTX iv(d)\nDEX\nPSL\n髄注",null,null,null,null,"SR　10歳未満",null,null,null,"T細胞性急性白血病",20,null,null,"0",null,null,null,null,null,null,null,null,null,"SR　10歳未満",null,null,null,null,null,null,null,null,"0","0",null,null,"なし",null,null,null,257]
["ALL-T11 HR CNS3　10歳以上",null,null,null,null,120,26,"g/㎡",null,0,"U/㎡",null,null,null,0,"mg/㎡",0,"mg/㎡",5000,"mg/㎡",null,null,932,"mg/㎡",180,"mg/㎡",null,"mg/㎡",null,0,"mg/㎡",null,8000,"mg/㎡",460000,null,"U/㎡",0,"mg/㎡",null,20,"g/㎡",null,315,"mg/㎡",0,"mg/㎡",18,"mg/㎡",null,null,1000,null,null,"mg/㎡",null,null,269.39999999999998,null,null,null,"NEL 19500mg/m2 ",null,null,null,null,null,null,"VCR\nL-Asp\nCPM\nIFO\nAra-C\nその他","DNR\nDXR\nMTX iv(d)\nVP iv(d)\nPSL\nDEX\n髄注",null,null,null,null,"HR CNS3　10歳以上",null,null,null,"T細胞性急性白血病",13,null,null,"0",null,null,null,null,null,null,null,null,null,"HR CNS3　10歳以上",null,null,null,null,null,null,null,null,"CRT","0",null,null,"施行",null,null,null,258]
["ALL-T11 HR CNS3　10歳未満",null,null,null,null,120,26,"g/㎡",null,0,"U/㎡",null,null,null,0,"mg/㎡",0,"mg/㎡",5000,"mg/㎡",null,null,1072,"mg/㎡",180,"mg/㎡",null,"mg/㎡",null,0,"mg/㎡",null,8000,"mg/㎡",460000,null,"U/㎡",0,"mg/㎡",null,20,"g/㎡",null,315,"mg/㎡",0,"mg/㎡",18,"mg/㎡",null,null,1000,null,null,"mg/㎡",null,null,269.39999999999998,null,null,null,"NEL 19500mg/m2 ",null,null,null,null,null,null,"VCR\nL-Asp\nCPM\nIFO\nAra-C\nその他","DNR\nDXR\nMTX iv(d)\nVP iv(d)\nPSL\nDEX\n髄注",null,null,null,null,"HR CNS3　10歳未満",null,null,null,"T細胞性急性白血病",13,null,null,"0",null,null,null,null,null,null,null,null,null,"HR CNS3　10歳未満",null,null,null,null,null,null,null,null,"CRT","0",null,null,"施行",null,null,null,258]
["ALL-T11 HR L-asp中止例10歳以上",null,null,null,null,120,26,"g/㎡",null,0,"U/㎡",null,null,null,0,"mg/㎡",0,"mg/㎡",5000,"mg/㎡",null,null,1112,"mg/㎡",180,"mg/㎡",null,"mg/㎡",null,0,"mg/㎡",null,8000,"mg/㎡",0,null,"U/㎡",0,"mg/㎡",null,20,"g/㎡",null,315,"mg/㎡",0,"mg/㎡",27,"mg/㎡",null,null,1000,null,null,"mg/㎡",null,null,269.39999999999998,null,null,null,"NEL 19500mg/m2 ",null,null,null,null,null,null,"VCR\nCPM\nIFO\nAra-C\nその他","DNR\nDXR\nMTX iv(d)\nVP iv(d)\nPSL\nDEX\n髄注",null,null,null,null,"HR L-asp中止例10歳以上",null,null,null,"T細胞性急性白血病",20,null,null,"0",null,null,null,null,null,null,null,null,null,"HR L-asp中止例10歳以上",null,null,null,null,null,null,null,null,"0","0",null,null,"なし",null,null,null,258]
["ALL-T11 HR L-asp中止例　10歳未満",null,null,null,null,120,26,"g/㎡",null,0,"U/㎡",null,null,null,0,"mg/㎡",0,"mg/㎡",5000,"mg/㎡",null,null,1252,"mg/㎡",180,"mg/㎡",null,"mg/㎡",null,0,"mg/㎡",null,8000,"mg/㎡",0,null,"U/㎡",0,"mg/㎡",null,20,"g/㎡",null,315,"mg/㎡",0,"mg/㎡",27,"mg/㎡",null,null,1000,null,null,"mg/㎡",null,null,269.39999999999998,null,null,null,"NEL 19500mg/m2 ",null,null,null,null,null,null,"VCR\nCPM\nIFO\nAra-C\nその他","DNR\nDXR\nMTX iv(d)\nVP iv(d)\nPSL\nDEX\n髄注",null,null,null,null,"HR L-asp中止例　10歳未満",null,null,null,"T細胞性急性白血病",20,null,null,"0",null,null,null,null,null,null,null,null,null,"HR L-asp中止例　10歳未満",null,null,null,null,null,null,null,null,"0","0",null,null,"なし",null,null,null,258]
["ALL-T11 HR　10歳以上",null,null,null,null,120,26,"g/㎡",null,0,"U/㎡",null,null,null,0,"mg/㎡",0,"mg/㎡",5000,"mg/㎡",null,null,932,"mg/㎡",180,"mg/㎡",null,"mg/㎡",null,0,"mg/㎡",null,8000,"mg/㎡",460000,null,"U/㎡",0,"mg/㎡",null,20,"g/㎡",null,315,"mg/㎡",0,"mg/㎡",18,"mg/㎡",null,null,1000,null,null,"mg/㎡",null,null,269.39999999999998,null,null,null,"NEL 19500mg/m2 ",null,null,null,null,null,null,"L-Asp\nVCR\nCPM\nIFO\nAra-C\nその他","DNR\nDXR\nMTX iv(d)\nVP iv(d)\nPSL\nDEX\n髄注",null,null,null,null,"HR　10歳以上",null,null,null,"T細胞性急性白血病",20,null,null,"0",null,null,null,null,null,null,null,null,null,"HR　10歳以上",null,null,null,null,null,null,null,null,"0","0",null,null,"なし",null,null,null,258]
["ALL-T11 HR　10歳未満",null,null,null,null,120,26,"g/㎡",null,0,"U/㎡",null,null,null,0,"mg/㎡",0,"mg/㎡",5000,"mg/㎡",null,null,1072,"mg/㎡",180,"mg/㎡",null,"mg/㎡",null,0,"mg/㎡",null,8000,"mg/㎡",460000,null,"U/㎡",0,"mg/㎡",null,20,"g/㎡",null,315,"mg/㎡",0,"mg/㎡",18,"mg/㎡",null,null,1000,null,null,"mg/㎡",null,null,269.39999999999998,null,null,null,"NEL 19500mg/m2 ",null,null,null,null,null,null,"VCR\nL-Asp\nCPM\nIFO\nAra-C\nその他","DNR\nDXR\nMTX iv(d)\nVP iv(d)\nPSL\nDEX\n髄注",null,null,null,null,"HR　10歳未満",null,null,null,"T細胞性急性白血病",20,null,null,"0",null,null,null,null,null,null,null,null,null,"HR　10歳未満",null,null,null,null,null,null,null,null,"0","0",null,null,"なし",null,null,null,258]
["ALL-T11 VHR アームA（1クール施行後に移植）\n10歳以上",null,null,null,null,0,13,"g/㎡",null,0,"U/㎡",null,null,null,0,"mg/㎡",0,"mg/㎡",3000,"mg/㎡",null,null,466,"mg/㎡",150,"mg/㎡",null,"mg/㎡",null,0,"mg/㎡",null,4000,"mg/㎡",230000,null,"U/㎡",0,"mg/㎡",null,10,"g/㎡",null,315,"mg/㎡",0,"mg/㎡",9,"mg/㎡",null,null,500,null,null,"mg/㎡",null,null,124.5,null,null,null,"NEL 3250mg/m2 ",null,null,null,null,null,null,"VCR\nL-Asp\nCPM\nIFO\nAra-C\nその他","DNR\nMTX iv(d)\nVP iv(d)\nPSL\nDEX\n髄注",null,null,null,null,"VHR アームA（1クール施行後に移植）\n10歳以上",null,null,null,"T細胞性急性白血病",8,null,null,"0",null,null,null,null,null,null,null,null,null,"VHR アームA（1クール施行後に移植）\n10歳以上",null,null,null,null,null,null,null,null,"0","0",null,null,"なし",null,null,null,259]
["ALL-T11 VHR アームA（1クール施行後に移植）10歳未満",null,null,null,null,0,13,"g/㎡",null,0,"U/㎡",null,null,null,0,"mg/㎡",0,"mg/㎡",3000,"mg/㎡",null,null,536,"mg/㎡",150,"mg/㎡",null,"mg/㎡",null,0,"mg/㎡",null,4000,"mg/㎡",230000,null,"U/㎡",0,"mg/㎡",null,10,"g/㎡",null,315,"mg/㎡",0,"mg/㎡",9,"mg/㎡",null,null,500,null,null,"mg/㎡",null,null,124.5,null,null,null,"NEL 3250mg/m2 ",null,null,null,null,null,null,"VCR\nL-Asp\nCPM\nIFO\nAra-C\nその他","DNR\nMTX iv(d)\nVP iv(d)\nPSL\nDEX\n髄注",null,null,null,null,"VHR アームA（1クール施行後に移植）10歳未満",null,null,null,"T細胞性急性白血病",8,null,null,"0",null,null,null,null,null,null,null,null,null,"VHR アームA（1クール施行後に移植）10歳未満",null,null,null,null,null,null,null,null,"0","0",null,null,"なし",null,null,null,259]
["ALL-T11 VHR アームB（1クール施行後に移植）10歳以上",null,null,null,null,0,3200,"mg/㎡",null,0,"U/㎡",null,null,null,0,"mg/㎡",0,"mg/㎡",3200,"mg/㎡",null,null,414,"mg/㎡",120,"mg/㎡",null,"mg/㎡",null,0,"mg/㎡",null,0,"mg/㎡",205000,null,"U/㎡",0,"mg/㎡",null,5,"g/㎡",null,875,"mg/㎡",50,"mg/㎡",10.5,"mg/㎡",null,null,500,null,null,"mg/㎡",null,null,129.6,null,null,null,"NEL 3250mg/m2 ",null,null,null,null,null,null,"VCR\nL-Asp\nCPM\nAra-C\nその他","DNR\nTHP\nMTX iv(d)\nVP iv(d)\nPSL\nDEX\n髄注",null,null,null,null,"VHR アームB（1クール施行後に移植）10歳以上",null,null,null,"T細胞性急性白血病",8,null,null,"0",null,null,null,null,null,null,null,null,null,"VHR アームB（1クール施行後に移植）10歳以上",null,null,null,null,null,null,null,null,"0","0",null,null,"なし",null,null,null,260]
["ALL-T11 VHR アームB（1クール施行後に移植）10歳未満",null,null,null,null,0,3200,"mg/㎡",null,0,"U/㎡",null,null,null,0,"mg/㎡",0,"mg/㎡",3200,"mg/㎡",null,null,484,"mg/㎡",120,"mg/㎡",null,"mg/㎡",null,0,"mg/㎡",null,0,"mg/㎡",205000,null,"U/㎡",0,"mg/㎡",null,5,"g/㎡",null,875,"mg/㎡",50,"mg/㎡",10.5,"mg/㎡",null,null,500,null,null,"mg/㎡",null,null,129.6,null,null,null,"NEL 3250mg/m2 ",null,null,null,null,null,null,"VCR\nL-Asp\nCPM\nAra-C\nその他","DNR\nTHP\nMTX iv(d)\nVP iv(d)\nPSL\nDEX\n髄注",null,null,null,null,"VHR アームB（1クール施行後に移植）10歳未満",null,null,null,"T細胞性急性白血病",8,null,null,"0",null,null,null,null,null,null,null,null,null,"VHR アームB（1クール施行後に移植）10歳未満",null,null,null,null,null,null,null,null,"0","0",null,null,"なし",null,null,null,260]
["Ph+ALL04 IM単独投与後SCT",null,null,null,null,100,2725,"mg/㎡",null,0,"U/㎡",null,null,null,0,"mg/㎡",0,"mg/㎡",3600,"mg/㎡",null,null,84,"mg/㎡",100,"mg/㎡",null,"mg/㎡",null,0,"mg/㎡",null,0,"g/㎡",94000,null,"U/㎡",0,"mg/㎡",null,0,"mg/㎡",null,1680,"mg/㎡",0,"mg/㎡",13.5,"mg/㎡",null,null,1800,null,null,"mg/kg",null,null,183,null,null,"CPM　120mg/kg　　ｍPSL1000mg/m2　IM　4760mg/m2","CPM　120mg/kg　　ｍPSL1000mg/m2　IM　4760mg/m2\n",null,null,null,null,null,null,"Ara-C\nL-Asp\nVCR\nCPM\nその他","DNR\nDXR\nVP iv(d)\nPSL\nDEX\n髄注",null,null,null,"化学療法\n造血幹細胞移植\n放射線療法","IM単独投与後SCT",null,null,null,"Ph+ALL",9,null,"12",null,null,null,null,null,"施行",null,null,null,null,"IM単独投与後SCT",6,null,null,null,null,null,null,null,"TBI",null,null,null,"施行",null,null,null,261]
["Ph+ALL04 移植前追加強化療法後SCT",null,null,null,null,100,4325,"mg/㎡",null,0,"U/㎡",null,null,null,0,"mg/㎡",0,"mg/㎡",3600,"mg/㎡",null,null,84,"mg/㎡",100,"mg/㎡",null,"mg/㎡",null,0,"mg/㎡",null,0,"g/㎡",94000,null,"U/㎡",0,"mg/㎡",null,0,"mg/㎡",null,1680,"mg/㎡",0,"mg/㎡",13.5,"mg/㎡",null,null,2100,null,null,"mg/kg",null,null,183,null,null,"CPM　120mg/kg　　ｍPSL2000mg/m2　IM　4760mg/m2","CPM　120mg/kg　　ｍPSL2000mg/m2　IM　4760mg/m2",null,null,null,null,null,null,"VCR\nL-Asp\nCPM\nAra-C","髄注\nDEX\nPSL\nVP iv(d)\nDXR\nDNR",null,null,null,"化学療法\n放射線療法\n造血幹細胞移植","移植前追加強化療法後SCT",null,null,null,"Ph+ALL",10,null,"12",null,null,null,null,null,"施行",null,null,null,null,"移植前追加強化療法後SCT",6,null,null,null,null,null,null,null,"TBI",null,null,null,"施行",null,null,null,262]
["ALL-Ph13　イマチニブ移植なし",null,27300,null,null,180,15000,"mg/㎡",null,null,null,null,null,null,null,null,null,null,4500,"mg/㎡",null,null,746.25,"mg/㎡",150,"mg/㎡",null,"mg/㎡",null,null,null,null,4000,"mg/㎡",202000,null,"U/㎡",null,null,1320,10000,"mg/㎡",null,1680,"mg/㎡",null,null,18,"mg/㎡",6,null,500,null,null,"mg/㎡",null,null,304.5,null,null,null,"IM",null,null,null,null,null,"その他\nMTX po\n6MP\nAra-C\nVDS\nVCR","その他\nAra-C\nIFO\nCPM\nL-Asp\nVCR","DNR\nDXR\nMTX iv(d)\nVP iv(d)\nPSL\nDEX\n髄注",null,null,null,"化学療法",null,null,null,null,"Ph1-ALL",17,null,null,"18",null,null,null,null,"なし",null,null,null,null,"イマチニブ移植なし",null,null,null,null,null,null,null,null,null,"CRT 　　　CNS2,歳未満",null,null,null,null,null,null,263]
["ALL-Ph13　ダサチニブ移植なし",null,27300,null,null,180,15000,"mg/㎡",null,null,null,null,null,null,null,null,null,null,4500,"mg/㎡",null,null,746.25,"mg/㎡",150,"mg/㎡",null,"mg/㎡",null,null,null,null,4000,"mg/㎡",202000,null,"U/㎡",null,null,1320,10000,"mg/㎡",null,1680,"mg/㎡",null,null,18,"mg/㎡",6,null,500,null,null,"mg/㎡",null,null,304.5,null,null,null,"IM・Dasa",null,null,null,null,null,"VCR\nVDS\nAra-C\n6MP\nMTX po\nその他","L-Asp\nCPM\nVCR\nIFO\nAra-C\nその他","DNR\nDXR\nMTX iv(d)\nVP iv(d)\nPSL\nDEX\n髄注",null,null,null,"化学療法",null,null,null,null,"Ph1-ALL",17,null,null,"18",null,null,null,null,"なし",null,null,null,null,"ダサチニブ移植なし",null,null,null,null,null,null,null,null,null,"CRT 　　　CNS2,歳未満",null,null,null,null,null,null,264]
["ALL-Ph13　イマチニブ移植あり",null,2940,null,null,50,25200,"mg/㎡",null,null,null,null,null,null,null,null,null,null,4800,"mg/㎡",null,null,460,"mg/㎡",150,"mg/㎡",null,"mg/㎡",null,null,null,null,4000,"mg/㎡",190000,null,"U/㎡",null,null,null,11000,"mg/㎡",null,1680,"mg/㎡",null,null,13,"mg/㎡",6,null,2300,null,null,"mg/㎡",null,null,174.5,null,null,null,"IM・Dasa",null,null,null,null,null,null,"その他\nAra-C\nCPM\nIFO\nL-Asp\nVCR","DNR\nDXR\nMTX iv(d)\nVP iv(d)\nPSL\nDEX",null,null,null,"化学療法\n造血幹細胞移植",null,null,null,null,"Ph1-ALL",10,null,"12","18",null,null,null,null,null,null,null,null,null,"イマチニブ移植あり",6,15,null,null,null,null,null,null,"TBI","CRT 　　　CNS2,歳未満",null,null,"施行",null,null,null,265]
["ALL-Ph13　ダサチニブ移植あり",null,2940,null,null,50,25200,"mg/㎡",null,null,null,null,null,null,null,null,null,null,4800,"mg/㎡",null,null,460,"mg/㎡",150,"mg/㎡",null,"mg/㎡",null,null,null,null,4000,"mg/㎡",190000,null,"U/㎡",null,null,null,11000,"mg/㎡",null,1680,"mg/㎡",null,null,13,"mg/㎡",6,null,2300,null,null,"mg/㎡",null,null,174.5,null,null,null,"IM・Dasa",null,null,null,null,null,"Ara-C\n6MP\nVCR\nVDS\nその他","Ara-C\nIFO\nCPM\nVCR\nL-Asp\nその他","DNR\nDXR\nCPM\nVP iv(d)\nMTX iv(d)\nIFO\nPSL\nDEX\nL-asp\n髄注",null,null,null,"化学療法\n造血幹細胞移植",null,null,null,null,"Ph1-ALL",10,null,"12","18",null,null,null,null,"施行",null,null,null,null,"ダサチニブ移植あり",6,15,null,null,null,null,null,null,"TBI","CRT 　　　CNS2,歳未満",null,null,"施行",null,null,null,266]
["ALL-Ph13　ダサチニブ移植あり・ドナー準備あり",null,1680,null,null,null,13200,"mg/㎡",null,null,null,null,null,null,null,null,null,null,2100,"mg/㎡",null,null,300,"mg/㎡",150,"mg/㎡",null,null,null,null,null,null,4000,"mg/㎡",190000,null,"U/㎡",null,null,null,10000,"mg/㎡",null,1680,"mg/㎡",null,null,9,"mg/㎡",6,null,2300,null,null,"mg/㎡",null,null,124.5,null,null,null,"IM・Dasa",null,null,null,null,null,"VDS\nVCR\nAra-C\n6MP\nその他","VCR\nL-Asp\nCPM\nIFO\nAra-C\nその他","DNR\nMTX iv(d)\nVP iv(d)\nPSL\nDEX\n髄注\nIFO",null,null,null,"造血幹細胞移植",null,null,null,null,"Ph1-ALL",8,null,"12","18",null,null,null,null,"施行",null,null,null,null,"ダサチニブ移植あり・ドナー準備あり",6,15,null,null,null,null,null,null,"TBI","CRT 　　　CNS2,歳未満",null,null,"施行",null,null,null,267]
["AML12 CBF SR 寛解導入1A(ECM)",null,null,null,null,null,78400,null,null,null,null,null,null,null,null,null,null,null,null,null,null,null,null,null,null,null,null,null,null,10,null,null,null,null,null,null,null,40,null,null,null,null,null,null,null,null,null,null,null,null,null,2450,null,null,null,null,null,210,null,null,null,null,null,null,null,null,null,"Ara-C","Ara-C","VP iv(d)\nIDA\nMit",null,null,null,null,null,null,null,null,"AML",6,null,null,null,null,null,null,null,null,null,null,null,null,"標準リスク",null,null,null,null,null,null,null,null,null,null,null,null,null,null,null,null,268]
["AML12 CBF SR 寛解導入1B(HD-ECM)",null,null,null,null,null,94000,null,null,null,null,null,null,null,null,null,null,null,null,null,null,null,null,null,null,null,null,null,null,10,null,null,null,null,null,null,null,40,null,null,null,null,null,null,null,null,null,null,null,null,null,2450,null,null,null,null,null,210,null,null,null,null,null,null,null,null,null,"Ara-C","Ara-C","Mit\nIDA\n髄注",null,null,null,null,null,null,null,null,"AML",6,null,null,null,null,null,null,null,null,null,null,null,null,"標準リスク",null,null,null,null,null,null,null,null,null,null,null,null,null,null,null,null,269]
["AML12 Non-CBF SR 寛解導入1A(ECM)",null,null,null,null,null,77400,null,null,null,null,null,null,null,null,null,null,null,null,null,null,null,null,null,null,null,null,null,null,10,null,null,null,null,null,null,null,55,null,null,null,null,null,null,null,null,null,null,null,null,null,2250,null,null,null,null,null,270,null,null,null,null,null,null,null,null,null,"Ara-C","Ara-C","Mit\nIDA\nVP iv(d)",null,null,null,null,null,null,null,null,"AML",5,null,null,null,null,null,null,null,null,null,null,null,null,"中間リスク",null,null,null,null,null,null,null,null,null,null,null,null,null,null,null,null,270]
["AML12 Non-CBF SR 寛解導入1B(HD-ECM)",null,null,null,null,null,94000,null,null,null,null,null,null,null,null,null,null,null,null,null,null,null,null,null,null,null,null,null,null,10,null,null,null,null,null,null,null,55,null,null,null,null,null,null,null,null,null,null,null,null,null,2250,null,null,null,null,null,270,null,null,null,null,null,null,null,null,null,"Ara-C","Ara-C","VP iv(d)\nIDA\nMit",null,null,null,null,null,null,null,null,"AML",5,null,null,null,null,null,null,null,null,null,null,null,null,"中間リスク",null,null,null,null,null,null,null,null,null,null,null,null,null,null,null,null,271]
["AML12 HR 寛解導入 1A(ECM)",null,null,null,null,null,39400,null,null,null,null,null,null,null,null,null,null,null,null,null,null,null,null,null,null,null,null,null,null,10,null,null,null,null,null,null,null,40,null,null,null,null,null,null,null,null,null,null,null,null,null,1500,null,null,null,null,null,210,null,null,null,"移植あり",null,null,null,null,null,"Ara-C","Ara-C\nその他","Mit\nIDA\nVP iv(d)\n髄注",null,null,null,null,null,null,null,null,"AML",3,null,null,null,null,null,null,null,null,null,null,null,null,"高リスク",null,null,null,null,null,null,null,null,null,null,null,null,null,null,null,null,272]
["AML12 HR 寛解導入 1B(HD-ECM)",null,null,null,null,null,56000,null,null,null,null,null,null,null,null,null,null,null,null,null,null,null,null,null,null,null,null,null,null,10,null,null,null,null,null,null,null,40,null,null,null,null,null,null,null,null,null,null,null,null,null,1500,null,null,null,null,null,210,null,null,null,"移植あり",null,null,null,null,null,"Ara-C","Ara-C\nその他","Mit\nIDA\nVP iv(d)\n髄注",null,null,null,null,null,null,null,null,"AML",3,null,null,null,null,null,null,null,null,null,null,null,null,"高リスク",null,null,null,null,null,null,null,null,null,null,null,null,null,null,null,null,273]
["AML-D05 標準リスク",0,0,null,0,0,3500,"mg/㎡",0,0,"U/㎡",null,0,"mg/㎡",0,"mg/㎡",0,"mg/㎡",0,"mg/㎡",null,null,0,"mg/㎡",0,"mg/㎡",0,"mg/㎡",0,0,"mg/㎡",0,0,"g/㎡",0,0,"U/㎡",0,"mg/㎡",0,0,"mg/㎡",0,0,"mg/㎡",250,"mg/㎡",0,"mg/㎡",0,null,1350,null,0,"mg/㎡",null,null,150,null,null,null,null,null,null,null,null,null,null,"Ara-C","THP\nVP iv(d)",null,null,null,"化学療法",null,null,null,null,"ダウン症に発症した急性骨髄性白血病",0,null,null,"0",null,null,null,null,null,null,null,null,null,"標準リスク",null,null,null,null,null,null,null,null,"0","0",null,null,"なし",null,null,null,274]
["AML-D05 高リスク",0,0,null,0,0,22800,"mg/㎡",0,0,"U/㎡",null,0,"mg/㎡",0,"mg/㎡",0,"mg/㎡",0,"mg/㎡",null,null,0,"mg/㎡",0,"mg/㎡",0,"mg/㎡",0,0,"mg/㎡",0,0,"g/㎡",0,0,"U/㎡",0,"mg/㎡",0,0,"mg/㎡",0,0,"mg/㎡",170,"mg/㎡",3,"mg/㎡",0,null,1050,null,0,"mg/㎡",null,null,102,null,null,null,null,null,null,null,null,null,null,"Ara-C\nVCR","THP\nVP iv(d)",null,null,null,"化学療法",null,null,null,null,"ダウン症に発症した急性骨髄性白血病",0,null,null,"0",null,null,null,null,null,null,null,null,null,"高リスク",null,null,null,null,null,null,null,null,"0","0",null,null,"なし",null,null,null,275]
["AML-Ｄ11 標準リスク",0,0,null,0,0,3500,"mg/㎡",0,0,"U/㎡",null,0,"mg/㎡",0,"mg/㎡",0,"mg/㎡",0,"mg/㎡",null,null,0,"mg/㎡",0,"mg/㎡",0,"mg/㎡",0,0,"mg/㎡",0,0,"g/㎡",0,0,"U/㎡",0,"mg/㎡",0,0,"mg/㎡",0,0,"mg/㎡",250,"mg/㎡",0,"mg/㎡",0,null,1350,null,0,"mg/㎡",null,null,150,null,null,null,null,null,null,null,null,null,null,"Ara-C","THP\nVP iv(d)",null,null,null,"化学療法",null,null,null,null,"ダウン症に発症した急性骨髄性白血病",0,null,null,"0",null,null,null,null,null,null,null,null,null,"標準リスク",null,null,null,null,null,null,null,null,"0","0",null,null,"なし",null,null,null,276]
["AML-Ｄ11 高リスク",0,0,null,0,0,22800,"mg/㎡",0,0,"U/㎡",null,0,"mg/㎡",0,"mg/㎡",0,"mg/㎡",0,"mg/㎡",null,null,0,"mg/㎡",0,"mg/㎡",0,"mg/㎡",0,0,"mg/㎡",0,0,"g/㎡",0,0,"U/㎡",0,"mg/㎡",0,0,"mg/㎡",0,0,"mg/㎡",170,"mg/㎡",3,"mg/㎡",0,null,1050,null,0,"mg/㎡",null,null,102,null,null,null,null,null,null,null,null,null,null,"VCR\nAra-C","THP\nVP iv(d)",null,null,null,"化学療法",null,null,null,null,"ダウン症に発症した急性骨髄性白血病",0,null,null,"0",null,null,null,null,null,null,null,null,null,"高リスク",null,null,null,null,null,null,null,null,"0","0",null,null,"なし",null,null,null,277]
["ALL-R08-I",null,21250,null,null,null,24000,null,null,null,null,null,null,null,null,null,null,null,null,null,null,null,860,null,105,null,null,null,null,null,null,null,6000,null,80000,null,null,null,null,1040,7000,null,null,null,null,null,null,14,null,9,null,null,null,null,null,null,null,87.15,null,null,null,null,null,null,null,null,null,null,"VCR\nL-Asp\nIFO\nAra-C","DNR\nMTX iv(d)\nDEX\n髄注",null,null,null,null,null,null,null,null,"再発ALL",8,null,null,null,null,null,null,null,null,null,null,null,null,null,null,null,null,null,null,null,null,null,null,null,null,null,null,null,null,null,278]
["ALL-R08-II MRD(-)",null,40500,null,null,null,28000,null,null,null,null,null,null,null,null,null,null,null,null,null,null,null,1080,null,140,null,null,null,null,null,null,null,8000,null,100000,null,null,null,null,2080,9000,null,null,null,null,null,null,17,null,12,null,null,null,null,null,null,null,116.2,null,null,null,null,null,null,null,null,null,null,"VCR\nL-Asp\nIFO\nAra-C","DNR\nMTX iv(d)\nDEX\n髄注",null,null,null,null,null,null,null,null,"再発ALL",10,null,null,null,null,null,null,null,null,null,null,null,null,null,null,null,null,null,null,null,null,null,null,null,null,null,null,null,null,null,279]
["ALL-R08-II MRD(+)",null,2500,null,null,null,20000,null,null,null,null,null,null,null,null,null,null,null,null,null,null,null,750,null,105,null,null,null,null,null,null,null,6000,null,70000,null,null,null,null,0,6000,null,null,null,null,null,null,11,null,9,null,null,null,null,null,null,null,87.15,null,null,null,null,null,null,null,null,null,null,"Ara-C\nIFO\nL-Asp\nVCR","DNR\nMTX iv(d)\nDEX\n髄注",null,null,null,null,null,null,null,null,"再発ALL",7,null,null,null,null,null,null,null,null,null,null,null,null,null,null,null,null,null,null,null,null,null,null,null,null,null,null,null,null,null,280]
["ALL-R08-II MRD（評価不能)",null,2500,null,null,null,20000,null,null,null,null,null,null,null,null,null,null,null,null,null,null,null,750,null,105,null,null,null,null,null,null,null,6000,null,70000,null,null,null,null,0,6000,null,null,null,null,null,null,11,null,9,null,null,null,null,null,null,null,87.15,null,null,null,"（armA, B に分かれる前まで）",null,null,null,null,null,null,"VCR\nL-Asp\nIFO\nAra-C","DEX\n髄注\nMTX iv(d)\nDNR",null,null,null,null,null,null,null,null,"再発ALL",7,null,null,null,null,null,null,null,null,null,null,null,null,null,null,null,null,null,null,null,null,null,null,null,null,null,null,null,null,null,281]
["RT-11　第I相（-2）1サイクル",null,null,null,null,null,null,null,null,null,null,null,null,null,null,null,null,null,null,null,null,null,null,null,null,null,null,null,null,null,null,null,null,null,null,null,null,null,null,null,null,null,null,null,null,null,null,null,null,null,null,50,null,null,null,null,null,null,null,null,null,"FLU 20mg/㎡, NEL 650mg/㎡",null,null,null,null,null,null,"その他","VP iv(d)",null,null,null,null,null,null,null,null,"再発ALL",null,null,null,null,null,null,null,null,null,null,null,null,null,null,null,null,null,null,null,null,null,null,null,null,null,null,null,null,null,null,282]
["RT-11　第I相（-1）1サイクル",null,null,null,null,null,null,null,null,null,null,null,null,null,null,null,null,null,null,null,null,null,null,null,null,null,null,null,null,null,null,null,null,null,null,null,null,null,null,null,null,null,null,null,null,null,null,null,null,null,null,75,null,null,null,null,null,null,null,null,null,"FLU 20mg/㎡, NEL 650mg/㎡",null,null,null,null,null,null,"その他","VP iv(d)",null,null,null,null,null,null,null,null,null,null,null,null,null,null,null,null,null,null,null,null,null,null,null,null,null,null,null,null,null,null,null,null,null,null,null,null,null,null,null,283]
["RT-11　第I相（1）1サイクル",null,null,null,null,null,null,null,null,null,null,null,null,null,null,null,null,null,null,null,null,null,null,null,null,null,null,null,null,null,null,null,null,null,null,null,null,null,null,null,null,null,null,null,null,null,null,null,null,null,null,75,null,null,null,null,null,null,null,null,null,"FLU 30mg/㎡, NEL 650mg/㎡",null,null,null,null,null,null,"その他","VP iv(d)",null,null,null,null,null,null,null,null,null,null,null,null,null,null,null,null,null,null,null,null,null,null,null,null,null,null,null,null,null,null,null,null,null,null,null,null,null,null,null,284]
["RT-11　第I相（2）1サイクル",null,null,null,null,null,null,null,null,null,null,null,null,null,null,null,null,null,null,null,null,null,null,null,null,null,null,null,null,null,null,null,null,null,null,null,null,null,null,null,null,null,null,null,null,null,null,null,null,null,null,100,null,null,null,null,null,null,null,null,null,"FLU 30mg/㎡, NEL 650mg/㎡",null,null,null,null,null,null,"その他","VP iv(d)",null,null,null,null,null,null,null,null,null,null,null,null,null,null,null,null,null,null,null,null,null,null,null,null,null,null,null,null,null,null,null,null,null,null,null,null,null,null,null,285]
["RT-11　第II相　1サイクル",null,null,null,null,null,null,null,null,null,null,null,null,null,null,null,null,null,null,null,null,null,null,null,null,null,null,null,null,null,null,null,null,null,null,null,null,null,null,null,null,null,null,null,null,null,null,null,null,null,null,2,null,null,null,null,null,null,null,null,null,"FLU RP2Dmg/㎡, NEL 650mg/㎡",null,null,null,null,null,null,"その他","VP iv(d)",null,null,null,null,null,null,null,null,null,null,null,null,null,null,null,null,null,null,null,null,null,null,null,null,null,null,null,null,null,null,null,null,null,null,null,null,null,null,null,286]
["MLL03 CNS陰性 日齢121日以降",null,null,null,null,50,29000,null,null,null,null,null,null,null,null,null,null,null,12002120,null,null,null,140,null,null,null,null,null,null,null,null,null,null,null,null,null,null,10,null,null,3000,null,null,420,null,null,null,0.15,null,null,null,900260,null,null,null,null,null,90,null,null,null,"BU×16回",null,null,null,null,null,null,"VCR\nCPM\nAra-C","DXR\nMit\nMTX iv(d)\nVP iv(d)\nPSL\nDEX\n髄注",null,null,null,"化学療法",null,null,null,null,null,6,null,null,null,null,null,null,null,null,null,null,null,null,null,null,null,null,null,null,null,null,null,null,null,null,null,null,null,null,null,287]
["MLL03 CNS陽性 日齢121日以降",null,null,null,null,50,29000,null,null,null,null,null,null,null,null,null,null,null,12002120,null,null,null,140,null,null,null,null,null,null,null,null,null,null,null,null,null,null,10,null,null,3000,null,null,420,null,null,null,0.15,null,null,null,900260,null,null,null,null,null,90,null,null,null,"BU×16回",null,null,null,null,null,null,"VCR\nCPM\nAra-C","DXR\nMit\nMTX iv(d)\nVP iv(d)\nPSL\nDEX\n髄注",null,null,null,"化学療法",null,null,null,null,null,8,null,null,null,null,null,null,null,null,null,null,null,null,null,null,null,null,null,null,null,null,null,null,null,null,null,null,null,null,null,288]
["MLL10 LR CNS陰性 月齢4M以降",null,null,null,null,100,6320,null,null,null,null,null,null,null,null,null,null,null,3900,null,null,null,280,null,75,null,null,null,null,null,null,null,null,null,150000,null,null,null,null,null,10920,null,null,6000,null,null,null,1.1499999999999999,null,null,null,2000,null,null,null,null,null,162.25,null,null,null,null,null,null,null,null,null,null,"L-Asp\nCPM\nVCR\nAra-C","DNR\nDXR\nMTX iv(d)\nVP iv(d)\nPSL\nDEX\n髄注",null,null,null,"化学療法",null,null,null,null,null,19,null,null,null,null,null,null,null,null,null,null,null,null,null,null,null,null,null,null,null,null,null,null,null,null,null,null,null,null,null,289]
["MLL10 LR CNS陽性 月齢4M以降",null,null,null,null,100,6320,null,null,null,null,null,null,null,null,null,null,null,3900,null,null,null,280,null,75,null,null,null,null,null,null,null,null,null,150000,null,null,null,null,null,10920,null,null,6000,null,null,null,1.1499999999999999,null,null,null,2000,null,null,null,null,null,162.25,null,null,null,null,null,null,null,null,null,null,"VCR\nL-Asp\nCPM\nAra-C","DXR\nDNR\nMTX iv(d)\nVP iv(d)\nPSL\nDEX\n髄注",null,null,null,null,null,null,null,null,null,21,null,null,null,null,null,null,null,null,null,null,null,null,null,null,null,null,null,null,null,null,null,null,null,null,null,null,null,null,null,290]
["MLL10 IR CNS陰性 月齢4M以降",null,null,null,null,null,49050,null,null,null,null,null,null,null,null,null,null,null,7000,null,null,null,866,null,60,null,null,null,null,null,null,null,null,null,132000,null,null,null,null,null,17160,null,null,420,null,null,null,1.35,null,null,null,2000,null,null,null,null,null,49.8,null,null,null,null,null,null,null,null,null,null,"Ara-C\nCPM\nL-Asp\nVCR","DNR\nMTX iv(d)\nVP iv(d)\nPSL\nDEX\n髄注",null,null,null,"化学療法",null,null,null,null,null,18,null,null,null,null,null,null,null,null,null,null,null,null,null,null,null,null,null,null,null,null,null,null,null,null,null,null,null,null,null,291]
["MLL10 IR CNS陽性 月齢4M以降",null,null,null,null,null,49050,null,null,null,null,null,null,null,null,null,null,null,7000,null,null,null,866,null,60,null,null,null,null,null,null,null,null,null,132000,null,null,null,null,null,17160,null,null,420,null,null,null,1.35,null,null,null,2000,null,null,null,null,null,49.8,null,null,null,null,null,null,null,null,null,null,"VCR\nL-Asp\nCPM\nAra-C","DNR\nMTX iv(d)\nVP iv(d)\nPSL\nDEX\n髄注",null,null,null,"化学療法",null,null,null,null,null,19,null,null,null,null,null,null,null,null,null,null,null,null,null,null,null,null,null,null,null,null,null,null,null,null,null,null,null,null,null,292]
["MLL10 HR CNS陰性 月齢4M以降",null,null,null,null,null,13050,null,null,null,null,null,null,null,null,null,null,null,25002120,null,null,null,266,null,60,null,null,null,null,null,null,null,null,null,114000,null,null,null,null,null,8000,null,null,420,null,null,null,0.35,null,null,null,500260,null,null,null,null,null,49.8,null,null,null,"BU×16回",null,null,null,null,null,null,"Ara-C\nCPM\nL-Asp\nVCR\nその他","DNR\nMTX iv(d)\nVP iv(d)\nPSL\nDEX\n髄注",null,null,null,null,null,null,null,null,null,7,null,null,null,null,null,null,null,null,null,null,null,null,null,null,null,null,null,null,null,null,null,null,null,null,null,null,null,null,null,293]
["MLL10 HR CNS陽性 月齢4M以降",null,null,null,null,null,13050,null,null,null,null,null,null,null,null,null,null,null,25002120,null,null,null,266,null,60,null,null,null,null,null,null,null,null,null,114000,null,null,null,null,null,8000,null,null,420,null,null,null,0.35,null,null,null,500260,null,null,null,null,null,49.8,null,null,null,"BU×16回",null,null,null,null,null,null,"VCR\nL-Asp\nCPM\nAra-C\nその他","DEX\n髄注\nPSL\nVP iv(d)\nMTX iv(d)\nDNR",null,null,null,"化学療法",null,null,null,null,null,8,null,null,null,null,null,null,null,null,null,null,null,null,null,null,null,null,null,null,null,null,null,null,null,null,null,null,null,null,null,294]
["B-NHL-14 Group B",0,0,null,0,120,1000,null,0,0,null,null,0,null,0,null,0,null,3300,null,null,null,0,null,0,null,0,null,0,0,null,0,0,null,0,0,null,0,null,0,12000,null,0,1020,null,0,null,5,null,0,null,0,null,0,null,null,null,120,null,null,null,"リツキシマブ　2250mg/㎡",null,null,null,null,null,null,"VCR\nCPM\nAra-C\nその他","DXR\nMTX iv(d)\nPSL\n髄注",null,null,null,"化学療法",null,null,null,null,"BNHL",9,null,null,null,null,null,null,null,null,null,null,null,null,"Group B",null,null,null,null,null,null,null,null,null,null,null,null,null,null,null,null,295]
["B-NHL-14 Group B day7 評価でNR",0,0,null,0,180,25000,null,0,0,null,null,0,null,0,null,0,null,5800,null,null,null,0,null,0,null,0,null,0,0,null,0,0,null,0,0,null,0,null,0,24000,null,0,1320,null,0,null,7,null,0,null,2050,null,0,null,null,null,180,null,null,null,"リツキシマブ　2250mg/㎡",null,null,null,null,null,null,"VCR\nCPM\nAra-C\nその他","DXR\nMTX iv(d)\nVP iv(d)\nPSL",null,null,null,"化学療法",null,null,null,null,null,8,null,null,null,null,null,null,null,null,null,null,null,null,"Group B day7 評価でNR",null,null,null,null,null,null,null,null,null,null,null,null,null,null,null,null,296]
["B-NHL-14 Group B #3終了時NR",0,0,null,0,180,25500,null,0,0,null,null,0,null,0,null,0,null,4300,null,null,null,0,null,0,null,0,null,0,0,null,0,0,null,0,0,null,0,null,0,17000,null,0,1320,null,0,null,7,null,0,null,2050,null,0,null,null,null,180,null,null,null,"リツキシマブ　2625mg/㎡",null,null,null,null,null,null,"VCR\nCPM\nAra-C\nその他","DXR\nMTX iv(d)\nVP iv(d)\nPSL\n髄注",null,null,null,"化学療法",null,null,null,null,null,8,null,null,null,null,null,null,null,null,null,null,null,null,"Group B #3終了時NR",null,null,null,null,null,null,null,null,null,null,null,null,null,null,null,null,297]
["B-NHL-14 Group C1 CNS(-)",0,0,null,0,180,25000,null,0,0,null,null,0,null,0,null,0,null,5800,null,null,null,0,null,0,null,0,null,0,0,null,0,0,null,0,0,null,0,null,0,24000,null,0,1320,null,0,null,7,null,0,null,2050,null,0,null,null,null,180,null,null,null,"リツキシマブ　2250mg/㎡",null,null,null,null,null,null,"Ara-C\nCPM\nVCR\nその他","DXR\nMTX iv(d)\nVP iv(d)\nPSL\n髄注",null,null,null,"化学療法",null,null,null,null,null,10,null,null,null,null,null,null,null,null,null,null,null,null,"Group C1 CNS(-)",null,null,null,null,null,null,null,null,null,null,null,null,null,null,null,null,298]
["B-NHL-14 Group C1 CNS(+)",0,0,null,0,180,25000,null,0,0,null,null,0,null,0,null,0,null,5800,null,null,null,0,null,0,null,0,null,0,0,null,0,0,null,0,0,null,0,null,0,32000,null,0,1320,null,0,null,7,null,0,null,2050,null,0,null,null,null,180,null,null,null,"リツキシマブ　2250mg/㎡",null,null,null,null,null,null,"Ara-C\nCPM\nVCR\nその他","DXR\nMTX iv(d)\nVP iv(d)\nPSL\n髄注",null,null,null,"化学療法",null,null,null,null,null,13,null,null,null,null,null,null,null,null,null,null,null,null,"Group C1 CNS(+)",null,null,null,null,null,null,null,null,null,null,null,null,null,null,null,null,299]
["TCCSG L09-1603 HEX/BFM95",null,null,null,null,120,25350,"mg/m2",null,null,null,null,null,null,null,null,null,null,6000,"mg/m2",null,null,840,"mg/m2",160,"mg/m2",null,"mg/m2",null,null,null,null,8000,"mg/m2",244000,null,"U/m2",null,null,null,20000,"mg/m2",null,2100,"mg/m2",null,null,16.5,"mg/m2",null,null,1000,null,null,"mg/m2",null,null,252.8,null,null,null,"VDS 12mg/m2, 6MP 24360mg/m2, MTX 1350mg/m2",null,null,null,null,null,"CPM\nAra-C\nIFO","CPM\nIFO\nAra-C\nL-Asp\nVCR","DNR\nDXR\nMTX iv(d)\nVP iv(d)\nPSL\nDEX\n髄注",null,null,null,"化学療法",null,null,null,null,"ALL",12,null,null,null,null,null,null,null,null,"ダウノマイシン\nドキソルビシン\nエトポシド\nシクロホスファミド\nメソトレキサート\nL-アスパラギナーゼ\nビンクリスチン","プレドニゾロン、デキサメサゾン\nイフォスファミド\nビンデシン\nシタラビン\n６ＭＰ（ロイケリン）\n髄注12回",null,null,null,null,null,null,null,null,null,null,null,null,null,null,null,null,null,null,null,300]
["B-NHL-14 Group C3",0,0,null,0,180,25000,null,0,0,null,null,0,null,0,null,0,null,5800,null,null,null,0,null,0,null,0,null,0,0,null,0,0,null,0,0,null,0,null,0,32000,null,0,1320,null,0,null,7,null,0,null,2050,null,0,null,null,null,180,null,null,null,"リツキシマブ　2250mg/㎡",null,null,null,null,null,null,"VCR\nCPM\nAra-C\nその他","DXR\nMTX iv(d)\nVP iv(d)\nPSL\n髄注",null,null,null,"化学療法",null,null,null,null,null,13,null,null,null,null,null,null,null,null,null,null,null,null,"Group C3",null,null,null,null,null,null,null,null,null,null,null,null,null,null,null,null,300]
["TCCSG　L04-16　HR",null,null,null,null,100,17590,"mg/m2",null,null,null,null,null,null,null,null,null,null,5000,"mg/m2",null,null,84,"mg/m2",100,"mg/m2",null,"mg/m2",null,null,null,null,null,null,154000,null,"U/m2",null,null,null,10000,"mg/m2",null,3220,"mg/m2",120,"mg/m2",22.5,"mg/m2",null,null,null,null,null,null,null,null,255,null,null,null,"維持療法 6MP, MTX",null,null,null,null,null,"CPM\nAra-C","VCR\nL-Asp\nCPM\nAra-C","DNR\nDXR\nTHP\nMTX iv(d)\nPSL\nDEX\n髄注",null,null,null,"化学療法",null,null,null,null,null,10,null,null,null,null,null,null,null,null,"ダウノマイシン\nドキソルビシン\nピラルビシン\nシクロホスファミド\nメソトレキサート\nL-アスパラギナーゼ\nビンクリスチン","プレドニゾロン、デキサメサゾン\nシタラビン\n６ＭＰ（ロイケリン）\n髄注10回",null,null,null,null,null,null,null,null,null,null,null,null,null,null,null,null,null,null,null,301]
["B-NHL-14 Group C1 day7 評価でNR＝C3と同じ",0,0,null,0,180,25000,null,0,0,null,null,0,null,0,null,0,null,5800,null,null,null,0,null,0,null,0,null,0,0,null,0,0,null,0,0,null,0,null,0,32000,null,0,1320,null,0,null,7,null,0,null,2050,null,0,null,null,null,180,null,null,null,"リツキシマブ　2250mg/㎡",null,null,null,null,null,null,"Ara-C\nCPM\nVCR\nその他","DXR\nMTX iv(d)\nVP iv(d)\nPSL",null,null,null,"化学療法",null,null,null,null,null,13,null,null,null,null,null,null,null,null,null,null,null,null,"Group C1 day7 評価でNR＝C3と同じ",null,null,null,null,null,null,null,null,null,null,null,null,null,null,null,null,301]
["TCCSG　L07-1602　SR",null,null,null,null,null,1875,"mg/m2",null,null,null,null,null,null,null,null,null,null,2000,"mg/m2",null,null,null,null,null,null,null,null,null,null,null,null,null,null,18480,null,"U/m2",null,null,null,10500,"mg/m2",null,18480,"mg/m2",100,"mg/m2",25.5,"mg/m2",null,null,null,null,null,null,null,null,60,null,null,null,"維持療法 6MP, MTX",null,null,null,null,null,"CPM\nAra-C\nその他","VCR\nL-Asp\nCPM\nAra-C","THP\nMTX iv(d)\nPSL",null,null,null,"化学療法",null,null,null,null,null,null,null,null,null,null,null,null,null,null,null,null,null,null,null,null,null,null,null,null,null,null,null,null,null,null,null,null,null,null,null,302]
["LCH-12　多臓器型GR/PR",null,5040,null,null,null,2400,null,null,null,null,null,null,null,null,null,null,null,null,null,null,null,null,null,null,null,null,null,null,null,null,null,null,null,null,null,null,null,null,null,240,null,null,4110,null,null,null,22.5,null,null,36,null,null,null,null,null,null,null,null,null,null,"VBL 36mg/㎡",null,null,null,null,null,"Ara-C\n6MP\nVCR\nVLB\nその他","VCR\nAra-C","MTX iv(d)\nPSL",null,null,null,"化学療法",null,null,null,null,"LCH",null,null,null,null,null,null,null,null,null,null,null,null,null,"多臓器型",null,null,null,null,null,null,null,null,null,null,null,null,null,null,null,null,302]
["LCH-12　多発骨型",null,null,null,null,null,2400,null,null,null,null,null,null,null,null,null,null,null,null,null,null,null,null,null,null,null,null,null,null,null,null,null,null,null,null,null,null,null,null,null,120,null,null,2910,null,null,null,22.5,null,null,null,null,null,null,null,null,null,null,null,null,null,null,null,null,null,null,null,"Ara-C\nVCR","Ara-C\nVCR","MTX iv(d)\nPSL",null,null,null,"化学療法",null,null,null,null,"LCH",null,null,null,null,null,null,null,null,null,null,null,null,null,"多発骨型",null,null,null,null,null,null,null,null,null,null,null,null,null,null,null,null,303]
["LCH-12　多臓器型NR",null,5040,null,null,210,1500,null,null,null,null,null,null,null,null,null,null,null,3600,null,null,null,null,null,null,null,null,null,null,null,null,null,null,null,null,null,null,null,null,null,480,null,null,4860,null,null,null,18,null,null,36,null,null,null,null,null,null,210,null,null,null,"VBL 36mg/㎡",null,null,null,null,null,"6MP\nVCR\nVLB\nAra-C","Ara-C\nCPM\nVCR\nその他","DXR\nMTX iv(d)\nPSL",null,null,null,"化学療法",null,null,null,null,"LCH",null,null,null,null,null,null,null,null,null,null,null,null,null,"多臓器型",null,null,null,null,null,null,null,null,null,null,null,null,null,null,null,null,304]
["TCCSG L80-10p SR regimen I Arm A",null,89250,null,null,null,null,null,null,null,null,null,null,null,null,null,null,null,4000,"mg/m2",null,null,900,null,null,null,null,null,null,null,null,null,null,null,48000,null,"U/m2",null,null,2760,null,null,null,1890,null,null,null,7.5,"mg/m2",null,null,null,null,null,null,null,"有",null,null,null,null,null,null,null,null,null,null,"VCR\n6MP\nMTX po","VCR\nL-Asp\nCPM","CPM\nPSL\nDEX\nL-asp\n髄注",null,null,null,"化学療法\n放射線療法",null,null,null,null,null,5,null,"24",null,null,null,null,null,null,null,null,null,null,null,null,null,null,null,null,null,null,null,"頭",null,null,null,"施行",null,null,null,305]
["TCCSG L80-10p  regimen I Arm B",null,89250,null,null,null,null,null,null,null,null,null,null,null,null,null,null,null,4000,"mg/m2",null,null,900,null,null,null,null,null,null,null,null,null,null,null,48000,null,"U/m2",null,null,2740,null,null,null,1890,null,null,null,7.5,"mg/m2",null,null,null,null,null,null,null,"有",null,null,null,null,null,null,null,null,null,null,"VCR\n6MP\nMTX po","VCR\nL-Asp\nCPM","CPM\nPSL\nDEX\nL-asp\n髄注",null,null,null,"化学療法\n放射線療法",null,null,null,null,null,5,null,"18",null,null,null,null,null,null,null,null,null,null,null,null,null,null,null,null,null,null,null,"頭",null,null,null,"施行",null,null,null,306]
["TCCSG L80-10p  regimen II Arm A",null,98280,null,null,null,null,null,null,null,null,null,null,null,null,null,null,null,10500,"mg/m2",null,null,700,null,300,null,null,null,null,null,null,null,null,null,48000,null,"U/m2",null,null,2540,null,null,null,1890,null,null,null,7.5,"mg/m2",null,null,null,null,null,null,null,"有",249,"有",null,null,null,null,null,null,null,null,"6MP\nMTX po\nVCR","VCR\nCPM\nL-Asp","DNR\nCPM\nPSL\nL-asp\nDEX\n髄注",null,null,null,"化学療法\n放射線療法",null,null,null,null,null,5,null,"24",null,null,null,null,null,null,null,null,null,null,null,null,null,null,null,null,null,null,null,"頭",null,null,null,"施行",null,null,null,307]
["TCCSG L80-10p  regime II Arm B",null,102480,null,null,null,null,null,null,null,null,null,null,null,null,null,null,null,null,null,null,null,700,null,300,null,null,null,null,null,null,null,null,null,48000,null,"U/m2",null,null,2740,null,null,null,1890,null,null,null,7.5,"mg/m2",null,null,null,null,null,null,null,"無",249,"有",null,null,null,null,null,null,null,null,"VCR\n6MP\nMTX po","VCR\nL-Asp","DNR\nPSL\nDEX\nL-asp\n髄注",null,null,null,"化学療法\n放射線療法",null,null,null,null,null,5,null,"24",null,null,null,null,null,null,null,null,null,null,null,null,null,null,null,null,null,null,null,"頭",null,null,null,"施行",null,null,null,308]
["TCCSG L84-11p SR S-1 ",null,74340,null,null,null,null,null,null,null,null,null,null,null,null,null,null,null,null,null,null,null,924,null,null,null,null,null,null,null,null,null,null,null,48000,null,"U/m2",null,null,3320,2000,null,null,1890,null,null,null,13.5,"mg/m2",null,null,null,null,null,null,null,"無",null,null,null,null,null,null,null,null,null,null,"VCR\n6MP\nMTX po","VCR\nL-Asp","MTX iv(d)\nPSL\nDEX\nL-asp\n髄注",null,null,null,"化学療法\n放射線療法",null,null,null,null,null,12,null,"18",null,null,null,null,null,null,null,null,null,null,null,null,null,null,null,null,null,null,null,"頭",null,null,null,"施行",null,null,null,309]
["TCCSG L84-11p SR S-2 ",null,72240,null,null,null,null,null,null,null,null,null,null,null,null,null,null,null,null,null,null,null,924,null,null,null,null,null,null,null,null,null,null,null,48000,null,"U/m2",null,null,3380,3500,null,null,1890,null,null,null,13.5,"mg/m2",null,null,null,null,null,null,null,"無",0,null,null,null,null,null,null,null,null,null,"VCR\n6MP\nMTX po","VCR\nL-Asp","MTX iv(d)\nPSL\nL-asp\nDEX\n髄注",null,null,null,"化学療法\n放射線療法",null,null,null,null,null,15,null,"18",null,null,null,null,null,null,null,null,null,null,null,null,null,null,null,null,null,null,null,"頭",null,null,null,"施行",null,null,null,310]
["TCCSG L84-11p HR H-1 ",null,55020,null,null,null,4000,null,1500,null,null,null,null,null,null,null,null,null,6800,"mg/m2",null,null,924,null,180,null,null,null,null,null,null,null,null,null,96000,null,"U/m2",null,null,2100,3000,null,null,1890,null,null,null,31.5,"mg/m2",null,null,null,null,null,null,null,"有",149.4,"有",null,null," ACM 150 mg/㎡",null,null,null,null,null,"VCR\nAra-C\n6MP\nMTX po\nBHAC\nその他","VCR\nL-Asp\nCPM\nAra-C\nその他","DNR\nCPM\nMTX iv(d)\nPSL\nL-asp\nDEX\n髄注",null,null,null,"化学療法\n放射線療法",null,null,null,null,null,9,null,"24",null,null,null,null,null,null,null,null,null,null,null,null,null,null,null,null,null,null,null,"頭",null,null,null,"施行",null,null,null,311]
["TCCSG L84-11p HR H-2 ",null,53340,null,null,null,4000,null,1500,null,null,null,null,null,null,null,null,null,6000,"mg/m2",null,null,840,null,180,null,null,null,null,null,null,null,null,null,96000,null,"U/m2",null,null,2140,4500,null,null,1890,null,null,null,28.5,"mg/m2",null,null,null,null,null,null,null,"有",149.4,"有",null,null," ACM 150 mg/㎡",null,null,null,null,null,"VCR\nAra-C\n6MP\nMTX po\nBHAC\nその他","VCR\nCPM\nL-Asp\nAra-C\nその他","DNR\nCPM\nMTX iv(d)\nPSL\nDEX\nL-asp\n髄注",null,null,null,"化学療法\n放射線療法",null,null,null,null,null,15,null,"24",null,null,null,null,null,null,null,null,null,null,null,null,null,null,null,null,null,null,null,"頭",null,null,null,"施行",null,null,null,312]
["TCCSG L84-11p HEX ",null,45360,null,null,100,1200,null,1200,null,null,null,null,null,null,null,null,null,4000,"mg/m2",null,null,315,null,75,null,null,"mg/m2",null,null,null,null,null,null,78000,null,"U/m2",null,null,1995,null,null,null,5250,null,null,null,24,"mg/m2",null,null,null,null,null,null,null,"有",162.25,"有",null,null,null,null,null,null,null,null,"VCR\nAra-C\n6MP\nMTX po\nBHAC","Ara-C\nCPM\nL-Asp\nVCR","DNR\nDXR\nCPM\nPSL\nDEX\nL-asp\n髄注",null,null,null,"化学療法\n放射線療法",null,null,null,null,null,17,null,"24",null,null,null,null,null,null,null,null,null,null,null,null,null,null,null,null,null,null,null,"頭",null,null,null,"施行",null,null,null,313]
["TCCSG L89-12p SR 0  ",null,36030,null,null,null,900,null,800,null,null,null,null,null,null,null,null,null,null,null,null,null,84,null,null,null,null,null,null,null,null,null,null,null,94000,null,"U/m2",null,null,2025,9000,null,null,1890,null,80,null,10.5,"mg/m2",null,null,900,null,null,null,null,"無",48,"有",null,null,null,null,null,null,null,null,"VCR\n6MP\nAra-C\nMTX po\nBHAC","VCR\nL-Asp\nAra-C","髄注\nL-asp\nDEX\nPSL\nVP iv(d)\nMTX iv(d)\nTHP",null,null,null,"化学療法",null,null,null,null,null,9,null,null,null,null,null,null,null,null,null,null,null,null,null,null,null,null,null,null,null,null,null,null,null,null,null,"なし",null,null,null,314]
["TCCSG L89-12p SR 18  ",null,37500,null,null,null,900,null,800,null,null,null,null,null,null,null,null,null,null,null,null,null,84,null,null,null,null,null,null,null,null,null,null,null,94000,null,"U/m2",null,null,2100,null,null,null,1890,null,80,null,10.5,"mg/m2",null,null,900,null,null,null,null,"無",48,"有",null,null,null,null,null,null,null,null,"BHAC\nMTX po\n6MP\nAra-C\nVCR","VCR\nL-Asp\nAra-C","THP\nVP iv(d)\nPSL\nDEX\nL-asp\n髄注",null,null,null,"化学療法\n放射線療法",null,null,null,null,null,9,null,"18",null,null,null,null,null,null,null,null,null,null,null,null,null,null,null,null,null,null,null,"頭",null,null,null,"施行",null,null,null,315]
["TCCSG L89-12p IR ※RTx ",null,32760,null,null,null,1200,null,1200,null,null,null,null,null,null,null,null,null,3100,"mg/m2",null,null,84,null,null,null,null,null,null,null,null,null,null,null,174000,null,"U/m2",null,null,1800,null,null,null,3570,null,100,null,12,"mg/m2",null,null,2400,null,null,null,null,"有",60,"有",null,null," ACM 60 mg/㎡",null,null,null,null,null,"VCR\nAra-C\n6MP\nMTX po\nBHAC\nその他","VCR\nL-Asp\nCPM\nAra-C\nその他","THP\nCPM\nVP iv(d)\nPSL\nDEX\nL-asp\n髄注",null,null,null,"化学療法",null,null,null,null,null,7,null,null,null,null,null,null,null,null,null,null,null,null,null,null,null,null,null,null,null,null,null,null,null,null,null,"なし",null,null,null,316]
["TCCSG L89-12p HR ※RTx ",null,30030,null,null,null,17200,null,1200,null,null,null,null,null,null,null,null,null,3600,"mg/m2",null,null,84,null,null,null,null,null,null,null,null,null,null,null,186000,null,"U/m2",20,null,1650,6000,null,null,4050,null,120,null,12,"mg/m2",null,null,2400,null,null,null,null,"有",152,"有",null,null," ACM 60 mg/㎡",null,null,null,null,null,"VCR\nAra-C\n6MP\nMTX po\nBHAC\nその他","VCR\nL-Asp\nCPM\nAra-C\nその他","THP\nMit\n髄注\nL-asp\nDEX\nPSL\nVP iv(d)\nMTX iv(d)\nCPM",null,null,null,"化学療法",null,null,null,null,null,9,null,null,null,null,null,null,null,null,null,null,null,null,null,null,null,null,null,null,null,null,null,null,null,null,null,"なし",null,null,null,317]
["TCCSG NHL B01-05 Group A  ",null,null,null,null,null,900,null,null,null,null,null,null,null,null,null,null,null,4000,"mg/m2",null,null,null,null,null,null,null,null,null,null,null,null,null,null,null,null,null,null,null,null,6000,null,null,900,null,null,null,1.5,"mg/m2",null,null,800,null,null,null,null,"有",null,null,null,null,null,null,null,null,null,null,"Ara-C\nVCR","VCR\nCPM\nAra-C","CPM\nMTX iv(d)\nVP iv(d)\nPSL\n髄注",null,null,null,"化学療法",null,null,null,null,null,3,null,null,null,null,null,null,null,null,null,null,null,null,null,null,null,null,null,null,null,null,null,null,null,null,null,"なし",null,null,null,318]
["TCCSG NHL B01-05 Group B  ",null,null,null,null,null,2700,null,null,null,null,null,null,null,null,null,null,null,9400,"mg/m2",null,null,null,null,null,null,null,null,null,null,null,null,null,null,null,null,null,null,null,null,9000,null,null,2100,null,null,null,4.5,"mg/m2",null,null,1200,null,null,null,null,"有",null,"有",null,null,"EPI 300",null,null,null,null,null,"VCR\nAra-C\nその他","VCR\nCPM\nAra-C\nその他","髄注\nPSL\nVP iv(d)\nMTX iv(d)\nCPM",null,null,null,"化学療法",null,null,null,null,null,7,null,null,null,null,null,null,null,null,null,null,null,null,null,null,null,null,null,null,null,null,null,null,null,null,null,"なし",null,null,null,319]
["TCCSG NHL B01-05 Group C  ",null,null,null,null,null,25800,null,null,null,null,null,null,null,null,null,null,null,9000,"mg/m2",null,null,null,null,null,null,null,null,null,null,null,null,null,null,null,null,null,null,null,null,6000,null,null,2200,null,null,null,3,"mg/m2",6,null,1900,null,null,null,null,"有",null,"有",null,null,"EPI 360",null,null,null,null,null,"Ara-C\nVDS\nVCR\nその他","VCR\nCPM\nAra-C\nその他","CPM\nMTX iv(d)\nVP iv(d)\nPSL\n髄注",null,null,null,"化学療法",null,null,null,null,null,10,null,null,null,null,null,null,null,null,null,null,null,null,null,null,null,null,null,null,null,null,null,null,null,null,null,"なし",null,null,null,320]
["TCCSG NHL B01-05 Group D  ",null,null,null,null,null,27600,null,null,null,null,null,null,null,null,null,null,null,12600,"mg/m2",null,null,350,null,null,null,null,null,null,null,null,null,null,null,null,null,null,null,null,null,6000,null,null,420,null,null,null,4.5,"mg/m2",6,null,1900,null,null,null,null,"有",null,"有",null,null,"EPI 560",null,null,null,null,null,"VCR\nVDS\nAra-C\nその他","VCR\nCPM\nAra-C\nその他","髄注\nDEX\nPSL\nVP iv(d)\nMTX iv(d)\nCPM",null,null,null,"化学療法",null,null,null,null,null,12,null,"24",null,null,null,null,null,null,null,null,null,null,null,null,null,null,null,null,null,null,null,null,null,null,null,null,null,null,null,321]
["TCCSG NHL T01-05 T I/II  ",null,32130,null,null,null,1200,null,null,null,null,null,null,null,null,null,null,null,2000,"mg/m2",null,null,null,null,120,null,null,null,null,null,null,null,null,null,48000,null,"U/m2",null,null,1660,12000,null,null,1890,null,null,null,6,"mg/m2",null,null,null,null,null,null,null,"有",99.6,"有",null,null,null,null,null,null,null,null,"Ara-C\n6MP\nMTX po\nVCR","VCR\nL-Asp\nCPM\nAra-C","DNR\nCPM\nMTX iv(d)\nPSL\nL-asp\n髄注",null,null,null,"化学療法",null,null,null,null,null,9,null,null,null,null,null,null,null,null,null,null,null,null,null,null,null,null,null,null,null,null,null,null,null,null,null,"なし",null,null,null,322]
["TCCSG NHL T01-05 T III/IV  ",null,29820,null,null,120,1800,null,null,null,null,null,null,null,null,null,null,null,3000,"mg/m2",null,null,null,null,120,null,null,"mg/m2",null,null,null,null,null,null,88000,null,"U/m2",null,null,1480,12000,null,null,3150,null,null,null,12,"mg/m2",null,null,null,null,null,null,null,"有",219.6,"有",null,null,null,null,null,null,null,null,"Ara-C\n6MP\nMTX po\nVCR","VCR\nL-Asp\nCPM\nAra-C","DNR\nDXR\nCPM\nMTX iv(d)\nPSL\nL-asp\n髄注",null,null,null,"化学療法\n放射線療法",null,null,null,null,null,11,null,"12",null,null,null,null,null,null,null,null,null,null,null,null,null,null,null,null,null,null,null,null,null,null,null,"施行",null,null,null,323]
["【JANB85】澤口重徳班；A1*6",null,null,null,null,null,null,null,null,null,null,null,null,null,null,null,540,"mg/m2",7200,"mg/m2",null,null,null,null,null,null,null,null,null,null,null,null,null,null,null,null,null,null,null,null,null,null,null,null,null,240,"mg/m2",9,"mg/m2",null,null,null,null,null,null,null,null,144,null,null,null,null,null,null,null,null,null,"VCR","VCR\nCPM\nCDDP","THP\nCPM\nCDDP",null,null,null,"化学療法\n放射線療法\n手術",null,null,null,null,"神経芽細胞腫",null,null,null,null,null,null,null,null,null,null,null,null,null,"高リスクNB",null,null,null,null,null,null,null,null,null,null,null,null,"施行",null,null,null,324]
["【JANB91】土田嘉昭班；MycN+",null,null,null,null,null,null,null,null,null,null,null,null,null,null,null,715,"mg/m2",13200,"mg/m2",null,null,null,null,null,null,null,null,null,null,null,null,null,null,null,null,null,null,null,null,null,null,null,null,null,240,"mg/m2",null,null,null,null,3000,null,null,"mg/m2",null,null,144,null,null,null,null,null,null,null,null,null,null,"CPM\nCDDP","THP\nVP iv(d)\nCPM\nCDDP",null,null,null,"化学療法\n放射線療法\n手術",null,null,null,null,"神経芽細胞腫",null,null,null,null,null,null,null,null,null,null,null,null,null,"高リスクNB",null,null,null,null,null,null,null,null,null,null,null,null,"施行",null,null,null,325]
["【JANB91】土田嘉昭班；MycN-",null,null,null,null,null,null,null,null,null,null,null,null,null,null,null,540,"mg/m2",7200,"mg/m2",null,null,null,null,null,null,null,null,null,null,null,null,null,null,null,null,null,null,null,null,null,null,null,null,null,240,"mg/m2",null,null,null,null,3000,null,null,"mg/m2",null,null,144,null,null,null,null,null,null,null,null,null,null,"CPM\nCDDP","THP\nVP iv(d)\nCPM\nCDDP",null,null,null,"化学療法\n放射線療法\n手術",null,null,null,null,"神経芽細胞腫",null,null,null,null,null,null,null,null,null,null,null,null,null,"高リスクNB",null,null,null,null,null,null,null,null,null,null,null,null,"施行",null,null,null,326]
["【JANB98】金子道夫班：Stage4MycN+",null,null,null,null,null,null,null,null,null,null,null,null,null,null,null,750,"mg/m2",14400,"mg/m2",null,null,null,null,null,null,null,null,null,null,null,null,null,null,null,null,null,null,null,null,null,null,null,null,null,240,null,9,"mg/m2",null,null,null,null,null,null,null,null,144,null,null,null,null,null,null,null,null,null,"VCR","VCR\nCPM\nCDDP","THP\nCPM\nCDDP",null,null,null,"化学療法\n放射線療法\n手術",null,null,null,null,"神経芽細胞腫",null,null,"15または術中",null,null,null,null,null,null,null,null,null,null,"高リスクNB（Stage4、MycN（+））",null,null,null,null,null,null,null,null,null,null,null,null,"施行",null,null,null,327]
["【JANB98】金子道夫班：Stage4MycN-",null,null,null,null,null,null,null,null,null,null,null,null,null,null,null,750,"mg/m2",14400,"mg/m2",null,null,null,null,null,null,null,null,null,null,null,null,null,null,null,null,null,null,null,null,null,null,null,null,null,240,"mg/m2",9,"mg/m2",null,null,null,null,null,null,null,null,144,null,null,null,null,null,null,null,null,null,"VCR","VCR\nCPM\nCDDP","THP\nCPM\nCDDP",null,null,null,"化学療法\n放射線療法\n手術",null,null,null,null,"神経芽細胞腫",null,null,"15または術中",null,null,null,null,null,null,null,null,null,null,"高リスクNB（Stage4、MycN（-））",null,null,null,null,null,null,null,null,null,null,null,null,"施行",null,null,null,328]
["【JANB98】金子道夫班：Stage3MycN+",null,null,null,null,null,null,null,null,null,null,null,null,null,null,null,715,"mg/m2",13200,"mg/m2",null,null,null,null,null,null,null,null,null,null,null,null,null,null,null,null,null,null,null,null,null,null,null,null,null,240,"mg/m2",9,"mg/m2",null,null,null,null,null,null,null,null,144,null,null,null,null,null,null,null,null,null,"VCR","VCR\nCPM\nCDDP","THP\nCPM\nCDDP",null,null,null,"化学療法\n放射線療法\n手術",null,null,null,null,"神経芽細胞腫",null,null,"15または術中",null,null,null,null,null,null,null,null,null,null,"高リスクNB（Stage3、MycN（+））",null,null,null,null,null,null,null,null,null,null,null,null,"施行",null,null,null,329]
["【JANB98】金子道夫班：Stage3MycN-",null,null,null,null,null,null,null,null,null,null,null,null,null,null,null,540,"mg/m2",7200,"mg/m2",null,null,null,null,null,null,null,null,null,null,null,null,null,null,null,null,null,null,null,null,null,null,null,null,null,240,"mg/m2",9,"mg/m2",null,null,null,null,null,null,null,null,144,null,null,null,null,null,null,null,null,null,"VCR","VCR\nCPM\nCDDP","THP\nCPM\nCDDP",null,null,null,"化学療法\n放射線療法\n手術",null,null,null,null,"神経芽細胞腫",null,null,"15または術中",null,null,null,null,null,null,null,null,null,null,"高リスクNB（Stage3、MycN（-））",null,null,null,null,null,null,null,null,null,null,null,null,"施行",null,null,null,330]
["【JN-L-10】（限局例 ：stage 1・stage 2A/2B ・stage 3）、初期手術にて原発巣摘出症例",null,null,null,null,null,null,null,null,null,null,null,null,null,null,null,null,null,null,null,null,null,null,null,null,null,null,null,null,null,null,null,null,null,null,null,null,null,null,null,null,null,null,null,null,0,null,null,null,null,null,null,null,null,null,null,null,0,null,null,null,null,null,null,null,null,null,null,null,null,null,null,null,null,null,null,null,null,"神経芽細胞腫",null,null,null,null,null,null,null,null,null,null,null,null,null,"低リスク",null,null,null,null,null,null,null,null,null,null,null,null,"無",null,null,null,331]
["【JN-L-10】（限局例 ：stage 1・stage 2A/2B ・stage 3）、18ヶ月未満・初期手術不能",null,null,null,null,null,null,null,null,null,null,null,null,null,null,null,null,null,4500,"mg/m2",null,null,null,null,null,null,null,null,null,null,null,null,null,null,null,null,null,null,null,null,null,null,null,null,null,180,"mg/m2",13.5,"mg/m2",null,null,null,null,null,null,null,null,108,null,null,null,null,null,null,null,null,null,"VCR","VCR\nCPM","THP\nCPM",null,null,null,"化学療法",null,null,null,null,"神経芽細胞腫",null,null,null,null,null,null,null,null,null,null,null,null,null,"低リスク",null,null,null,null,null,null,null,null,null,null,null,null,"なし",null,null,null,332]
["【JN-L-10】（限局例 ：stage 1・stage 2A/2B ・stage 3）、18ヶ月以上・初期手術不能",null,null,null,null,null,null,null,null,null,null,null,null,null,1350,"mg/m2",null,null,6300,"mg/m2",null,null,null,null,null,null,null,null,null,null,null,null,null,null,null,null,null,null,null,null,null,null,null,null,null,180,"mg/m2",13.5,"mg/m2",null,null,null,null,null,null,null,null,108,null,null,null,null,null,null,null,null,null,"VCR","VCR\nCPM\nCBDCA","THP\nCPM\nCBDCA",null,null,null,"化学療法",null,null,null,null,"神経芽細胞腫",null,null,null,null,null,null,null,null,null,null,null,null,null,"低リスク",null,null,null,null,null,null,null,null,null,null,null,null,"無",null,null,null,333]
["【JN-L-10】（stage 4S）、初期手術にて原発巣摘出",null,null,null,null,null,null,null,null,null,null,null,null,null,null,null,null,null,2700,"mg/m2",null,null,null,null,null,null,null,null,null,null,null,null,null,null,null,null,null,null,null,null,null,null,null,null,null,90,"mg/m2",9,"mg/m2",null,null,null,null,null,null,null,null,54,null,null,null,null,null,null,null,null,null,"VCR","VCR\nCPM","THP\nCPM",null,null,null,"化学療法\n手術",null,null,null,null,"神経芽細胞腫",null,null,null,null,null,null,null,null,null,null,null,null,null,"低リスク",null,null,null,null,null,null,null,null,null,null,null,null,"無",null,null,null,334]
["【JN-L-10】（stage 4S）、初期手術にて原発巣摘出不能",null,null,null,null,null,null,null,null,null,null,null,null,null,null,null,null,null,3600,"mg/m2",null,null,null,null,null,null,null,null,null,null,null,null,null,null,null,null,null,null,null,null,null,null,null,null,null,90,"mg/m2",13.5,"mg/m2",null,null,null,null,null,null,null,null,54,null,null,null,null,null,null,null,null,null,"VCR","VCR\nCPM","THP\nCPM",null,null,null,"手術\n化学療法",null,null,null,null,"神経芽細胞腫",null,null,null,null,null,null,null,null,null,null,null,null,null,"低リスク",null,null,null,null,null,null,null,null,null,null,null,null,"なし",null,null,null,335]
["【JN-I-10】IDRF陽性、限局性腫瘍",null,null,null,null,null,null,null,null,null,null,null,null,null,900,"mg/m2",450,"mg/m2",8700,"mg/m2",null,null,null,null,null,null,null,null,null,null,null,null,null,null,null,null,null,null,null,null,null,null,null,null,null,240,"mg/m2",13.5,"mg/m2",null,null,null,null,null,null,null,null,144,null,null,null,null,null,null,null,null,null,"VCR","VCR\nCPM\nCDDP\nCBDCA","THP\nCPM\nCDDP\nCBDCA",null,null,null,"化学療法\n手術",null,null,null,null,"神経芽細胞腫",null,null,null,null,null,null,null,null,null,null,null,null,null,"中間リスク",null,null,null,null,null,null,null,null,null,null,null,null,"無",null,null,null,336]
["【JN-I-10】IDRF陽性、転移性腫瘍",null,null,null,null,null,null,null,null,null,null,null,null,null,null,null,360,"mg/m2",5400,"mg/m2",null,null,null,null,null,null,null,null,null,null,null,null,null,null,null,null,null,null,null,null,null,null,null,null,null,180,"mg/m2",9,"mg/m2",null,null,null,null,null,null,null,null,108,null,null,null,null,null,null,null,null,null,"VCR","VCR\nCPM\nCDDP","THP\nCPM\nCDDP",null,null,null,"化学療法\n手術",null,null,null,null,"神経芽細胞腫",null,null,null,null,null,null,null,null,null,null,null,null,null,"中間リスク",null,null,null,null,null,null,null,null,null,null,null,null,"無",null,null,null,337]
["【JN-H-07】標準的集学的治療の後期第II相臨床試験",null,null,null,null,null,null,null,null,null,null,null,null,null,1600,"mg/m2",500,"mg/m2",10800,"mg/m2",null,null,null,null,null,null,null,null,null,null,null,null,null,null,null,200,null,null,null,null,null,null,null,null,null,200,"mg/m2",7.5,"mg/m2",null,null,800,null,null,"mg/m2",null,null,120,null,null,null,null,null,null,null,null,null,"VCR","VCR\nCPM\nCDDP\nCBDCA","THP\nVP iv(d)\nCDDP\nCBDCA\nL-PAM\nCPM",null,null,null,"化学療法\n放射線療法\n手術",null,null,null,null,"神経芽細胞腫",null,null,"19.8",null,null,null,null,null,null,null,null,null,null,"高リスクNB",11,null,null,null,null,null,null,null,"局所",null,null,null,"施行",null,null,null,338]
["【JN-H-11】遅延局所療法第II相臨床試験",null,null,null,null,null,null,null,null,null,null,null,null,null,1600,"mg/m2",500,"mg/m2",12000,"mg/m2",null,null,null,null,null,null,null,null,null,null,null,null,null,null,null,200,null,null,null,null,null,null,null,null,null,200,"mg/m2",7.5,"mg/m2",null,null,800,null,null,"mg/m2",null,null,120,null,null,null,null,null,null,null,null,null,"VCR","VCR\nCPM\nCDDP\nCBDCA","THP\nVP iv(d)\nCPM\nCDDP\nCBDCA\nL-PAM",null,null,null,"化学療法\n放射線療法\n手術",null,null,null,null,"神経芽細胞腫",null,null,"19.8",null,null,null,null,null,null,null,null,null,null,"高リスクNB",11,null,null,null,null,null,null,null,"局所",null,null,null,"施行",null,null,null,339]
["【JN-H-15】ICE療法を含む寛解導入とBU+LPAMによる大量化学療法を用いた遅延局所療法第Ⅱ相臨床試験",null,null,null,null,null,null,null,null,null,null,null,19.2,null,1600,"mg/m2",300,"mg/m2",6000,"mg/m2",null,null,null,null,null,null,null,null,null,null,null,null,18000,"mg/m2",null,180,null,null,null,null,null,null,null,null,null,120,"mg/m2",7.5,"mg/m2",null,null,1000,null,null,"mg/m2",null,null,72,null,null,null,null,null,null,null,null,null,"VCR","VCR\nCPM\nIFO\nCDDP\nCBDCA","THP\nVP iv(d)\nBU\nL-PAM\nCDDP\nCBDCA\nIFO",null,null,null,"化学療法\n放射線療法\n手術",null,null,null,null,"神経芽細胞腫",null,null,"19.8",null,null,null,null,null,null,null,null,null,null,"高リスクNB",11,null,null,null,null,null,null,null,"局所",null,null,null,"施行",null,null,null,340]
["JPLT-2　low CITA×4",null,null,null,null,null,null,null,null,null,null,null,null,null,null,null,160,"mg/m2",null,null,null,null,null,null,null,null,null,null,null,null,null,null,null,null,null,null,null,null,null,null,null,null,null,null,null,120,"mg/m2",null,null,null,null,null,null,null,null,null,null,72,null,null,null,null,null,null,null,null,null,null,"CDDP","THP\nCDDP",null,null,null,"化学療法","low CITA×4",null,null,null,"肝芽腫",null,null,null,null,null,null,null,null,null,null,null,null,null,null,null,null,null,null,null,null,null,null,null,null,null,null,null,null,null,null,341]
["JPLT-2 low CITA×4+ITEC×2",null,null,null,null,null,null,null,null,null,null,null,null,null,800,"mg/m2",160,"mg/m2",null,null,null,null,null,null,null,null,null,null,null,null,null,null,12000,"mg/m2",null,null,null,null,null,null,null,null,null,null,null,240,"mg/m2",null,null,null,null,1000,null,null,"mg/m2",null,null,144,null,null,null,null,null,null,null,null,null,null,"IFO\nCDDP\nCBDCA","THP\nVP iv(d)\nCDDP\nCBDCA\nIFO",null,null,null,"化学療法","low CITA×4+ITEC×2",null,null,null,"肝芽腫",null,null,null,null,null,null,null,null,null,null,null,null,null,null,null,null,null,null,null,null,null,null,null,null,null,null,null,null,null,null,342]
["JPLT-2 CATA-L+low CITA×4",null,null,null,null,null,null,null,null,null,null,null,null,null,200,"mg/m2",160,"mg/m2",null,null,null,null,null,null,null,null,null,null,null,null,null,null,null,null,null,null,null,null,null,null,null,null,null,null,null,150,"mg/m2",null,null,null,null,null,null,null,null,null,null,90,null,null,null,null,null,null,null,null,null,null,"CDDP\nCBDCA","THP\nCDDP\nCBDCA",null,null,null,"化学療法","CATA-L+low CITA×4",null,null,null,"肝芽腫",null,null,null,null,null,null,null,null,null,null,null,null,null,null,null,null,null,null,null,null,null,null,null,null,null,null,null,null,null,null,343]
["JPLT-2 CATA-L+low CITA×4+ITEC×2",null,null,null,null,null,null,null,null,null,null,null,null,null,1000,"mg/m2",160,"mg/m2",null,null,null,null,null,null,null,null,null,null,null,null,null,null,12000,"mg/m2",null,null,null,null,null,null,null,null,null,null,null,270,"mg/m2",null,null,null,null,1000,null,null,"mg/m2",null,null,162,null,null,null,null,null,null,null,null,null,null,"IFO\nCDDP\nCBDCA","THP\nVP iv(d)\nIFO\nCBDCA\nCDDP",null,null,null,"化学療法","CATA-L+low CITA×4+ITEC×2",null,null,null,"肝芽腫",null,null,null,null,null,null,null,null,null,null,null,null,null,null,null,null,null,null,null,null,null,null,null,null,null,null,null,null,null,null,344]
["JPLT-2 CITA×2+low CITA×4",null,null,null,null,null,null,null,null,null,null,null,null,null,null,null,320,"mg/m2",null,null,null,null,null,null,null,null,null,null,null,null,null,null,null,null,null,null,null,null,null,null,null,null,null,null,null,240,"mg/m2",null,null,null,null,null,null,null,null,null,null,144,null,null,null,null,null,null,null,null,null,null,"CDDP","THP\nCDDP",null,null,null,"化学療法","CITA×2+low CITA×4",null,null,null,"肝芽腫",null,null,null,null,null,null,null,null,null,null,null,null,null,null,null,null,null,null,null,null,null,null,null,null,null,null,null,null,null,null,345]
["JPLT-2 CITA×2+low CITA×4+ITEC×2",null,null,null,null,null,null,null,null,null,null,null,null,null,800,"mg/m2",320,"mg/m2",null,null,null,null,null,null,null,null,null,null,null,null,null,null,12000,"mg/m2",null,null,null,null,null,null,null,null,null,null,null,360,"mg/m2",null,null,null,null,1000,null,null,"mg/m2",null,null,216,null,null,null,null,null,null,null,null,null,null,"IFO\nCDDP\nCBDCA","THP\nVP iv(d)\nCDDP\nCBDCA\nIFO",null,null,null,"化学療法","CITA×2+low CITA×4+ITEC×2",null,null,null,"肝芽腫",null,null,null,null,null,null,null,null,null,null,null,null,null,null,null,null,null,null,null,null,null,null,null,null,null,null,null,null,null,null,346]
["JPLT-2 CITA×2+CITA×2",null,null,null,null,null,null,null,null,null,null,null,null,null,null,null,320,"mg/m2",null,null,null,null,null,null,null,null,null,null,null,null,null,null,null,null,null,null,null,null,null,null,null,null,null,null,null,240,"mg/m2",null,null,null,null,null,null,null,null,null,null,144,null,null,null,null,null,null,null,null,null,null,"CDDP","THP\nCDDP",null,null,null,"化学療法","CITA×2+CITA×2",null,null,null,"肝芽腫",null,null,null,null,null,null,null,null,null,null,null,null,null,null,null,null,null,null,null,null,null,null,null,null,null,null,null,null,null,null,347]
["JPLT-2 CITA×2+ITEC×2",null,null,null,null,null,null,null,null,null,null,null,null,null,800,"mg/m2",160,"mg/m2",null,null,null,null,null,null,null,null,null,null,null,null,null,null,12000,"mg/m2",null,null,null,null,null,null,null,null,null,null,null,240,"mg/m2",null,null,null,null,1000,null,null,"mg/m2",null,null,144,null,null,null,null,null,null,null,null,null,null,"CDDP\nIFO\nCBDCA","THP\nVP iv(d)\nIFO\nCBDCA\nCDDP",null,null,null,"化学療法","CITA×2+ITEC×2",null,null,null,"肝芽腫",null,null,null,null,null,null,null,null,null,null,null,null,null,null,null,null,null,null,null,null,null,null,null,null,null,null,null,null,null,null,348]
["JPLT-2 CATA-L",null,null,null,null,null,null,null,null,null,null,null,null,null,200,"mg/m2",null,null,null,null,null,null,null,null,null,null,null,null,null,null,null,null,null,null,null,null,null,null,null,null,null,null,null,null,null,30,"mg/m2",null,null,null,null,null,null,null,null,null,null,18,null,null,null,null,null,null,null,null,null,null,"CBDCA","THP\nCBDCA",null,null,null,"化学療法","CATA-L",null,null,null,"肝芽腫",null,null,null,null,null,null,null,null,null,null,null,null,null,null,null,null,null,null,null,null,null,null,null,null,null,null,null,null,null,null,349]
["JPLT-2 CATA-L×3",null,null,null,null,null,null,null,null,null,null,null,null,null,600,"mg/m2",null,null,null,null,null,null,null,null,null,null,null,null,null,null,null,null,null,null,null,null,null,null,null,null,null,null,null,null,null,90,"mg/m2",null,null,null,null,null,null,null,null,null,null,54,null,null,null,null,null,null,null,null,null,null,"CBDCA","THP\nCBDCA",null,null,null,"化学療法","CATA-L×3",null,null,null,"肝芽腫",null,null,null,null,null,null,null,null,null,null,null,null,null,null,null,null,null,null,null,null,null,null,null,null,null,null,null,null,null,null,350]
["JPLT-2 CATA-L+ITEC×2",null,null,null,null,null,null,null,null,null,null,null,null,null,1000,"mg/m2",null,null,null,null,null,null,null,null,null,null,null,null,null,null,null,null,12000,"mg/m2",null,null,null,null,null,null,null,null,null,null,null,150,"mg/m2",null,null,null,null,1000,null,null,"mg/m2",null,null,90,null,null,null,null,null,null,null,null,null,null,"IFO\nCBDCA","THP\nVP iv(d)\nCBDCA\nIFO",null,null,null,"化学療法","CATA-L+ITEC×2",null,null,null,"肝芽腫",null,null,null,null,null,null,null,null,null,null,null,null,null,null,null,null,null,null,null,null,null,null,null,null,null,null,null,null,null,null,351]
["JPLT-2 CITA×2",null,null,null,null,null,null,null,null,null,null,null,null,null,null,null,160,"mg/m2",null,null,null,null,null,null,null,null,null,null,null,null,null,null,null,null,null,null,null,null,null,null,null,null,null,null,null,120,"mg/m2",null,null,null,null,null,null,null,null,null,null,72,null,null,null,null,null,null,null,null,null,null,"CDDP","THP\nCDDP",null,null,null,"化学療法","CITA×2",null,null,null,"肝芽腫",null,null,null,null,null,null,null,null,null,null,null,null,null,null,null,null,null,null,null,null,null,null,null,null,null,null,null,null,null,null,352]
["JPLT-2 ITEC×2",null,null,null,null,null,null,null,null,null,null,null,null,null,800,"mg/m2",null,null,null,null,null,null,null,null,null,null,null,null,null,null,null,null,12000,"mg/m2",null,null,null,null,null,null,null,null,null,null,null,120,"mg/m2",null,null,null,null,1000,null,null,"mg/m2",null,null,72,null,null,null,null,null,null,null,null,null,null,"IFO\nCBDCA","THP\nVP iv(d)\nCBDCA\nIFO",null,null,null,"化学療法","ITEC×2",null,null,null,"肝芽腫",null,null,null,null,null,null,null,null,null,null,null,null,null,null,null,null,null,null,null,null,null,null,null,null,null,null,null,null,null,null,353]
["JPLT-2 Hi-MEC",null,null,null,null,null,null,null,null,null,null,null,null,null,1600,"mg/m2",null,null,null,null,null,null,null,null,null,null,null,null,null,null,null,null,null,null,null,180,null,null,null,null,null,null,null,null,null,null,null,null,null,null,null,800,null,null,"mg/m2",null,null,null,null,null,null,"L-PAM 180 mg/㎡",null,null,null,null,null,null,"CBDCA\nその他","VP iv(d)\nCBDCA\nL-PAM",null,null,null,"化学療法\n造血幹細胞移植",null,null,null,null,"肝芽腫",null,null,null,null,null,null,null,null,null,null,null,null,null,null,null,null,null,null,null,null,null,null,null,null,null,null,null,null,null,null,354]
["JPLT-3（SIOPEL 6と同じ内容）",null,null,null,null,null,null,null,null,null,null,null,null,null,null,null,480,"mg/m2",null,null,null,null,null,null,null,null,null,null,null,null,null,null,null,null,null,180,null,null,null,null,null,null,null,null,null,null,null,null,null,null,null,null,null,null,null,null,null,null,null,null,null,null,null,null,null,null,null,null,"CDDP","CDDP\nL-PAM",null,null,null,"化学療法",null,null,null,null,"肝芽腫",null,null,null,null,null,null,null,null,null,null,null,null,null,null,null,null,null,null,null,null,null,null,null,null,null,null,null,null,null,null,355]
["JMML11 （移植Bu別計算）",null,null,null,null,null,null,null,null,null,null,null,null,null,null,null,null,null,null,null,null,null,null,null,null,null,null,null,null,null,null,null,null,null,null,180,null,null,null,null,null,null,null,null,null,null,null,null,null,null,null,null,null,null,null,null,null,null,null,null,null,"Flu 120mg/m2, L-PAM 180mg/m2, Bu体重・年齢・血中濃度調整",null,null,null,null,null,null,"その他",null,null,null,null,null,null,null,null,null,"JMML",null,null,null,null,null,null,null,null,null,null,null,null,null,null,null,null,null,null,null,null,null,null,null,null,null,null,null,null,null,null,356]

{"sheet":"group疾患名リスト","index":3,"n_rows":54,"n_cols":30,"rows_kept":54,"cut":false,"hidden":false,"merged":[[1,1,1,2],[1,3,1,5],[1,27,1,29],[1,7,1,12],[1,13,1,15],[1,16,1,18],[1,19,1,21]]}
["グループ名"]
[null,"TCCSG",null,"KPUM",null,null,"JLSG","JPLSG",null,null,null,null,null,"KYCCSG",null,null,"JACLS",null,null,"CCLSG",null,null,"JRSG","JNBSG","JPLT","JWiTS","NWTS","その他"]
["疾患名","ALL","NHL","ALL","AML","NHL","LCH","ALL","AML","NHL","HLH","LCH","その他","ALL","AML","NHL","ALL","AML","NHL","ALL","AML","NHL","横紋筋肉腫","神経芽腫","肝芽腫","ウィルムス腫瘍","ウィルムス腫瘍","HLH","AML","神経芽腫"]
["プロトコール名","TCCSG L81-10 Ⅰ-A","TCCSG T-8801 StageⅠ，Ⅱ","KPUM SLK 88","KPUM NLK 96","KPUM BLK 88","JLSG-02 GP/PR","JPLSG B-12 SR-A","AML-P05","JPLSG NHL B-03 Group3","HLH-2004 (40週まで）","LCH-12　多臓器型GR/PR","JMML11 （移植Bu別計算）","KYCCSG AL841 (A arm)","KYCCSG ANLL 88","KYCCSG NHL 858A","JACLS ALL97 SR-A",null,null,"ALL811　SR　 A群 (CCLSG)","ANLL861 (CCLSG)","NHL855 Stage Ⅰ (CCLSG)","JRSG高リスク 2歳以上","【JN-H-11】遅延局所療法第II相臨床試験","JPLT-2　low CITA×4","JWiTS RTK（NWTS-5 RTKと同じ内容）","NWTS-3 L","HLH-94 (52週まで）","AML-99(low risk　寛解導入A選択）","【JANB85】澤口重徳班；A1*6"]
[null,"TCCSG L81-10 Ⅰ-B","TCCSG T-8801 StageⅢ，Ⅳ","KPUM SLK 02 M1,M2",null,"KPUM BLK 1-03","JLSG-02 NR","JPLSG B-12 SR-B","AML-05LR","JPLSG NHL B-03 Group1",null,"LCH-12　多発骨型",null,"KYCCSG AL841 (B arm)","KYCCSG ANLL 93（SCTなし）","KYCCSG NHL 858B","JACLS ALL97 SR-B",null,null,"ALL811　SR　B群 (CCLSG)","ANLL871 (CCLSG)","NHL855 Stage Ⅰ Salvage (CCLSG)","JRSG中間リスク3歳以上","【JN-H-07】標準的集学的治療の後期第II相臨床試験","JPLT-2 low CITA×4+ITEC×2","JWiTS RTK（NWTS-5 RTKと同じ内容）","NWTS-3 EE（NWTS-4 EEと同じ）",null,"AML-99(low risk  寛解導入B選択）","【JANB91】土田嘉昭班；MycN+"]
[null,"TCCSG L81-10 Ⅱ-1","TCCSG Modified  LSA2L2 StageI,Ⅲ","KPUM SLK 02 M3",null,"KPUM BLK 2-03","JLSG-02 PD","JPLSG B-12 IR-A","AML-05 IR","JPLSG NHL B-03 Group2",null,"LCH-12　多臓器型NR",null,"KYCCSG AL851",null,"KYCCSG NHL 858C","JACLS ALL97 IR-D",null,null,"ALL811　HR　A群 (CCLSG)","ANLL8912 (CCLSG)","NHL855 Stage Ⅱ～Ⅳ (CCLSG)","JRSG中間リスク1歳以上3歳未満","【JN-H-15】ICE療法を含む寛解導入とBU+LPAMによる大量化学療法を用いた遅延局所療法第Ⅱ相臨床試験","JPLT-2 CATA-L+low CITA×4","JWiTS-2 DD-4A（NWTS-5 DD-4Aと同じ内容）","NWTS-3 K（NWTS-4 Kと同じ）",null,"AML-99(intermediate risk  寛解導入A選択）","【JANB91】土田嘉昭班；MycN-"]
[null,"TCCSG L81-10 Ⅱ-2","TCCSG Modified LSA2L2 StageⅣ","KPUM TLK 88",null,"KPUM BLK 3-03","JLSG-02 Special C","JPLSG B-12 IR-B","AML-05 HR","JPLSG NHL B-03 Group4 (CNS(-))",null,null,null,"KYCCSG AL HR88 (A arm)",null,"KYCCSG NHL 89LB I/II","JACLS ALL97 IR-T",null,null,"ALL811　HR　B群 (CCLSG)","ANLL9205 (CCLSG)","NHL855 StageⅡ～Ⅳ Salvage (CCLSG)","JRSG中間リスク1歳未満","【JN-L-10】（限局例 ：stage 1・stage 2A/2B ・stage 3）、初期手術にて原発巣摘出症例","JPLT-2 CATA-L+low CITA×4+ITEC×2","JWiTS-2 DD-4A（NWTS-5 DD-4Aと同じ内容）","NWTS-3 K",null,"AML-99(intermediate risk  寛解導入A選択）","【JANB98】金子道夫班：Stage4MycN+"]
[null,"TCCSG L84-11 SR-1","TCCSG B-8801　StageⅠ,Ⅱ","KPUM TLK 02 stage1～3",null,"KPUM LLK 88",null,"JPLSG B-12 HR-A(HRブロック群)","JPLSG AML P-05 (BSA 1.78m2未満）","JPLSG NHL B-03 Group4 (CNS(+))",null,null,null,"KYCCSG AL HR88 (B arm)",null,"KYCCSG NHL 89LB III/IV","JACLS ALL97 HR-D",null,null,"ALL841　LR　A群 (CCLSG)","ANLL9411　Pilot (CCLSG)","NHL 890 A-1 (CCLSG)","JRSG低リスクB2004.4.1　3歳以上","【JN-L-10】（限局例 ：stage 1・stage 2A/2B ・stage 3）、18ヶ月未満・初期手術不能","JPLT-2 CITA×2+low CITA×4","JWiTS-2 EE-4A（NWTS-5 EE-4Aと同じ内容）","NWTS-3 DD（NWTS-4 DDと同じ）",null,"AML-99(intermediate risk  寛解導入B選択）","【JANB98】金子道夫班：Stage4MycN-"]
[null,"TCCSG L84-11 SR-2","TCCSG B-8801 StageⅢ,Ⅳ","KPUM TLK 02 ALL, stage4",null,"KPUM HDK 88",null,"JPLSG B-12 HR-B(HR-VCR群)","JPLSG AML P-05 (BSA 1.78m2以上）","JPLSG ALBNHL03（照射）",null,null,null,"KYCCSG AL 90 LR",null,"KYCCSG NHL 89DL III/IV","JACLS ALL97 HR-T",null,null,"ALL841　LR　B群 (CCLSG)","AML9805　M1.2.7 (CCLSG)","NHL 890 A-2 (CCLSG)","JRSG低リスクB2004.4.1　1歳以上3歳未満","【JN-L-10】（限局例 ：stage 1・stage 2A/2B ・stage 3）、18ヶ月以上・初期手術不能","JPLT-2 CITA×2+low CITA×4+ITEC×2","JWiTS-2 EE-4A（NWTS-5 EE-4Aと同じ内容）","NWTS-3 K 放射線治療10Gy",null,"AML-99(intermediate risk  寛解導入B選択）","【JANB98】金子道夫班：Stage3MycN+"]
[null,"TCCSG L84-11 ＨR-１","TCCSG B96-04　Group A","KPUM HLK 88",null,null,null,"ALL-T11 SR L-asp中止例　10歳以上","AML12 CBF SR 寛解導入1A(ECM)","JPLSG ALBNHL03（非照射）",null,null,null,"KYCCSG AL 90 IR",null,"KYCCSG NHL 89DL I/II","JACLS ALL97 ER (CNS+)",null,null,"ALL841　IR　C群 (CCLSG)","AML9805　M0.4.5.7 (CCLSG)","NHL 890 B (CCLSG)","JRSG低リスクB2004.4.1　1歳未満","【JN-L-10】（stage 4S）、初期手術にて原発巣摘出","JPLT-2 CITA×2+CITA×2","JWiTS Regune 1（NWTS-5 Regimen 1と同じ内容）","NWTS-3 K 放射線治療20Gy",null,"AML-99(high risk  寛解導入A選択）","【JANB98】金子道夫班：Stage3MycN-"]
[null,"TCCSG L84-11 ＨR-2","TCCSG B96-04　Group B","KPUM HLK 92 VLP",null,null,null,"ALL-T11 SR L-asp中止例　10歳未満","AML12 CBF SR 寛解導入1B(HD-ECM)","B-NHL-14 Group B",null,null,null,"KYCCSG AL 90 HR",null,"KYCCSG NHL 96LB I/II","JACLS ALL97 T (CNS+)",null,null,"ALL851　HR　A群 (CCLSG)","AML9805　ﾀﾞｳﾝ症候群(CCLSG)","NHL960 1.2期NLB (CCLSG)","JRSG低リスクB　3.2版　3歳以上","【JN-L-10】（stage 4S）、初期手術にて原発巣摘出不能","JPLT-2 CITA×2+ITEC×2","JWiTS Regune 1（NWTS-5 Regimen 1と同じ内容）","NWTS-3 J 放射線治療なし",null,"AML-99(high risk  寛解導入A選択）","遅延局所療法"]
[null,"TCCSG L84-11 ＨEX","TCCSG B96-04　Group C","KPUM HLK 92 VAP",null,null,null,"ALL-T11 SR　10歳以上","AML12 Non-CBF SR 寛解導入1A(ECM)","B-NHL-14 Group B day7 評価でNR",null,null,null,"KYCCSG AL 96 SR B-arm",null,"KYCCSG NHL 96LB III","JACLS ALL97 ER (CNS-)",null,null,"ALL851　HR B群 (CCLSG)","AML9805　NR.PR -1 (CCLSG)","NHL960　1.2期LB (CCLSG)","JRSG低リスクB　3.2版　1歳以上3歳未満","【JN-I-10】IDRF陽性、限局性腫瘍","JPLT-2 CATA-L",null,"NWTS-3 J 放射線治療10Gy",null,"AML-99(high risk  寛解導入B選択）","高リスク神経芽腫に対する標準的集学的治療"]
[null,"TCCSG L89-12 SR(0Gy)","TCCSG B96-04　Group D","KPUM HLK 03 non SCT",null,null,null,"ALL-T11 SR　10歳未満","AML12 Non-CBF SR 寛解導入1B(HD-ECM)","B-NHL-14 Group B #3終了時NR",null,null,null,"KYCCSG AL 96 SR A-arm",null,"KYCCSG NHL 96DL I/II","JACLS ALL97 T (CNS-)",null,null,"ALL874 LR A群 (CCLSG)","AML9805　NR.PR -2 (CCLSG)","NHL960 3.4期非リンパ芽球型 (CCLSG)\n","JRSG低リスクB　3.2版　1歳未満","【JN-I-10】IDRF陽性、転移性腫瘍","JPLT-2 CATA-L×3",null,"NWTS-3 J 放射線治療20Gy",null,"AML-99(high risk  寛解導入B選択）"]
[null,"TCCSG L89-12 SR(18Gy)\n","TCCSG T96-04 Stage1/2","KPUM HLK03 SCT SCTあり",null,null,null,"ALL-T11 HR CNS3　10歳以上","AML12 HR 寛解導入 1A(ECM)","B-NHL-14 Group C1 CNS(-)",null,null,null,"KYCCSG AL 02 SR",null,"KYCCSG NHL 96DL III/IV","JACLS ALL02 SR-A",null,null,"ALL874　LR　B群 (CCLSG)","AML9805　NR.PR -3 (CCLSG)","NHL960　3.4期LB (CCLSG)","JRSG低リスクA　1歳以上",null,"JPLT-2 CATA-L+ITEC×2",null,"NWTS-4 EE-4A",null,"AML-99(M3ﾌﾟﾛﾄｺｰﾙ）"]
[null,"TCCSG L89-12 IR\n","TCCSG T96-04 Stage3/4","KPUM HLK 03  SCT SCTあり",null,null,null,"ALL-T11 HR CNS3　10歳未満","AML12 HR 寛解導入 1B(HD-ECM)","B-NHL-14 Group C1 CNS(+)",null,null,null,"KYCCSG AL 96 HR A-arm",null,"KYCCSG NHL 96LB IV","JACLS ALL02 SR-B",null,null,"ALL874　IR　A群 (CCLSG)","AML9805　NR.PR -4 (CCLSG)","B-NHL2003（P)　ｸﾞﾙｰﾌﾟ１ (CCLSG)","JRSG高リスク2歳未満",null,"JPLT-2 CITA×2",null,"NWTS-4 K-4A",null,"AML-99(Downﾌﾟﾛﾄｺｰﾙ）"]
[null,"TCCSG L89-12 HR\n","TCCSG B01-05 GroupA","KPUM HLK 03  SCT SCTなし",null,null,null,"ALL-T11 HR L-asp中止例10歳以上","AML-D05 標準リスク","B-NHL-14 Group C3",null,null,null,"KYCCSG AL 02 HR",null,null,"JACLS ALL02 HR-A(CNS+)",null,null,"ALL874　IR　B群 (CCLSG)","９２年 APLﾌﾟﾛﾄｺｰﾙ (CCLSG)","B-NHL2003（P）　ｸﾞﾙｰﾌﾟ2 (CCLSG)",null,null,"JPLT-2 ITEC×2",null,"NWTS-4 DD-4A",null,"ANLL91 / M0-M3"]
[null,"TCCSG L92-13SR","TCCSG B01-05 GroupB",null,null,null,null,"ALL-T11 HR L-asp中止例　10歳未満","AML-D05 高リスク","B-NHL-14 Group C1 day7 評価でNR＝C3と同じ",null,null,null,"KYCCSG AL 96 HR B-arm",null,null,"JACLS ALL02 HR-B(CNS+)",null,null,"ALL874　HR　 A群 (CCLSG)",null,"B-NHL2003（P)　ｸﾞﾙｰﾌﾟ3 (CCLSG)",null,null,"JPLT-2 Hi-MEC",null,null,null,"ANLL91 / M4-M7"]
[null,"TCCSG L92-13 SR ※中間維持","TCCSG B01-05 GroupC",null,null,null,null,"ALL-T11 HR　10歳以上","AML-Ｄ11 標準リスク",null,null,null,null,null,null,null,"JACLS ALL02 ER (CNS+)",null,null,"ALL874　HR　 B群 (CCLSG)",null,"B-NHL2003（P）　ｸﾞﾙｰﾌﾟ4 (CCLSG)",null,null,"JPLT-3（SIOPEL 6と同じ内容）",null,null,null,"ANLL91/M0-M3 (初診時WBC≧10000)"]
[null,"TCCSG L92-13HR(0Gy)\n","TCCSG B01-05 GroupD",null,null,null,null,"ALL-T11 HR　10歳未満","AML-Ｄ11 高リスク",null,null,null,null,null,null,null,"JACLS ALL02 T (CNS+)",null,null,"ALL911　LR (CCLSG)",null,null,null,null,null,null,null,null,"ANLL91/M4&M5 (初診時WBC≧20000)"]
[null,"TCCSG L92-HR(12/18y)","TCCSG T01-05 T Ⅰ/Ⅱ\n",null,null,null,null,"ALL-T11 VHR アームA（1クール施行後に移植）\n10歳以上",null,null,null,null,null,null,null,null,"JACLS ALL02 HR-A(CNS-)",null,null,"ALL911　IR (CCLSG)"]
[null,"TCCSG L92-13PH","TCCSG T01-05TⅢ/Ⅳ",null,null,null,null,"ALL-T11 VHR アームA（1クール施行後に移植）10歳未満",null,null,null,null,null,null,null,null,"JACLS ALL02 HR-B(CNS-)",null,null,"ALL911　HR (CCLSG)"]
[null,"TCCSG 95L-14SR(PSL)","TCCSG NHL B01-05 Group A  ",null,null,null,null,"ALL-T11 VHR アームB（1クール施行後に移植）10歳以上",null,null,null,null,null,null,null,null,"JACLS ALL02 ER (CNS-)",null,null,"ALL911　H-HR (CCLSG)"]
[null,"TCCSG L95-14SR(Dex)","TCCSG NHL B01-05 Group B  ",null,null,null,null,"ALL-T11 VHR アームB（1クール施行後に移植）10歳未満",null,null,null,null,null,null,null,null,"JACLS ALL02 T (CNS-)WBC<10万",null,null,"ALL941　LR (CCLSG)"]
[null,"TCCSG L95-14HR(0)(PSL)\n","TCCSG NHL B01-05 Group C  ",null,null,null,null,"Ph+ALL04 IM単独投与後SCT",null,null,null,null,null,null,null,null,"JACLS ALL02 T (CNS-)WBC>10万",null,null,"ALL941　IR (CCLSG)"]
[null,"TCCSG L95-14HR(0)(DEX)","TCCSG NHL B01-05 Group D  ",null,null,null,null,"Ph+ALL04 移植前追加強化療法後SCT",null,null,null,null,null,null,null,null,null,null,null,"ALL941　HR　化学療法群 (CCLSG)"]
[null,"TCCSG L95-14HR(12/18)(PSL)","TCCSG NHL T01-05 T I/II  ",null,null,null,null,"ALL-Ph13　イマチニブ移植なし",null,null,null,null,null,null,null,null,null,null,null,"ALL941　HR　PBSCT群(CCLSG)"]
[null,"TCCSG L95-14HR(12/18)(DEX)","TCCSG NHL T01-05 T III/IV  ",null,null,null,null,"ALL-Ph13　ダサチニブ移植なし",null,null,null,null,null,null,null,null,null,null,null,"ALL941　H-HR　化学療法群 (CCLSG)"]
[null,"TCCSG L95-14neoHEX",null,null,null,null,null,"ALL-Ph13　イマチニブ移植あり",null,null,null,null,null,null,null,null,null,null,null,"ALL941　H-HRisk　PBSCT群 (CCLSG)"]
[null,"TCCSG L95-14neoHEX(SCT)",null,null,null,null,null,"ALL-Ph13　ダサチニブ移植あり",null,null,null,null,null,null,null,null,null,null,null,"ALL2000　LR (CCLSG)"]
[null,"TCCSG L99-15",null,null,null,null,null,"ALL-Ph13　ダサチニブ移植あり・ドナー準備あり",null,null,null,null,null,null,null,null,null,null,null,"ALL2000LR Salvage MRD陽性 (CCLSG)"]
[null,"TCCSG L99-15SR(armX)",null,null,null,null,null,"ALL-R08-I",null,null,null,null,null,null,null,null,null,null,null,"ALL2000　IR (CCLSG)"]
[null,"TCCSG L99-15HR(armA,armX)",null,null,null,null,null,"ALL-R08-II MRD(-)",null,null,null,null,null,null,null,null,null,null,null,"ALL2000IR　Salvage MRD陽性 (CCLSG)"]
[null,"TCCSG L99-15HR(armA,armY)",null,null,null,null,null,"ALL-R08-II MRD(+)",null,null,null,null,null,null,null,null,null,null,null,"ALL2000　HR (CCLSG)"]
[null,"TCCSG L99-15HR(armBarmX)",null,null,null,null,null,"ALL-R08-II MRD（評価不能)",null,null,null,null,null,null,null,null,null,null,null,"ALL2000HR　SalvageMRD陽性 (CCLSG)"]
[null,"TCCSG L99-15HR(armB,armY)",null,null,null,null,null,"RT-11　第I相（-2）1サイクル",null,null,null,null,null,null,null,null,null,null,null,"ALL2000　H-HR (CCLSG)"]
[null,"TCCSG L99-15HEX",null,null,null,null,null,"RT-11　第I相（-1）1サイクル",null,null,null,null,null,null,null,null,null,null,null,"ALL2000HHRSalvageMRD陽性 (CCLSG)"]
[null,"TCCSG L99-15HEX(SCT)",null,null,null,null,null,"RT-11　第I相（1）1サイクル",null,null,null,null,null,null,null,null,null,null,null,"ALL2004　SR　CNS1.2 (CCLSG)"]
[null,"TCCSG T-8801  ※維持 ",null,null,null,null,null,"RT-11　第I相（2）1サイクル",null,null,null,null,null,null,null,null,null,null,null,"ALL2004　SR　CNS3 (CCLSG)"]
[null,"TCCSG L09-1603 HEX/BFM95",null,null,null,null,null,"RT-11　第II相　1サイクル",null,null,null,null,null,null,null,null,null,null,null,"ALL2004SR　MDR陽性CNS1.2 (CCLSG)"]
[null,"TCCSG　L04-16　HR",null,null,null,null,null,"MLL03 CNS陰性 日齢121日以降",null,null,null,null,null,null,null,null,null,null,null,"ALL2004SR　MDR陽性　CNS3 (CCLSG)"]
[null,"TCCSG　L07-1602　SR",null,null,null,null,null,"MLL03 CNS陽性 日齢121日以降",null,null,null,null,null,null,null,null,null,null,null,"ALL2004　HR　CNS1.2 (CCLSG)"]
[null,"TCCSG L80-10p SR regimen I Arm A",null,null,null,null,null,"MLL10 LR CNS陰性 月齢4M以降",null,null,null,null,null,null,null,null,null,null,null,"ALL2004 HR  CNS3 (CCLSG)"]
[null,"TCCSG L80-10p  regimen I Arm B",null,null,null,null,null,"MLL10 LR CNS陽性 月齢4M以降",null,null,null,null,null,null,null,null,null,null,null,"ALL2004 H-HR  (CCLSG)"]
[null,"TCCSG L80-10p  regimen II Arm A",null,null,null,null,null,"MLL10 IR CNS陰性 月齢4M以降",null,null,null,null,null,null,null,null,null,null,null,"ALL2004 HR＆HHR MDR陽性 (CCLSG)"]
[null,"TCCSG L80-10p  regime II Arm B",null,null,null,null,null,"MLL10 IR CNS陽性 月齢4M以降"]
[null,"TCCSG L84-11p SR S-1 ",null,null,null,null,null,"MLL10 HR CNS陰性 月齢4M以降"]
[null,"TCCSG L84-11p SR S-2 ",null,null,null,null,null,"MLL10 HR CNS陽性 月齢4M以降"]
[null,"TCCSG L84-11p HR H-1 "]
[null,"TCCSG L84-11p HR H-2 "]
[null,"TCCSG L84-11p HEX "]
[null,"TCCSG L89-12p SR 0  "]
[null,"TCCSG L89-12p SR 18  "]
[null,"TCCSG L89-12p IR ※RTx "]
[null,"TCCSG L89-12p HR ※RTx "]